Workbook

Sheet Text (hidden)
C1: LookUP value | D1: =Settings!C7&"|"&Graphs!B7 -> Opel|Opel Adam
C2: TextForIN
C3: TextForOUT | D3: =IFERROR(VLOOKUP(D1,B:C,2,0),"There is no comment") -> There is no comment
C4: Ther is something to input? | D4: =LEN(TRIM(D2)) -> 0
B8: LookUP value | C8: Տեքստ

Sheet Graphs (hidden)
D1: =B7 -> Opel Adam
A2: Month for Graph | B2: =VALUE(Settings!B2) -> 11 | D2: =IF(B6=2,D17,D25) -> STOCK | E2: =IF(LEN(E15)>0,TEXT(E14,"mmm-yy"),"") -> Nov-17 | F2: =IF(LEN(F15)>0,TEXT(F14,"mmm-yy"),"") -> Nov-18 | G2: Nov-19 | H2: Nov-20 | I2: Nov-21 | J2: Jan-22 | K2: Feb-22 | L2: Mar-22 | M2: Apr-22 | N2: May-22 | O2: Jun-22 | P2: Jul-22 | Q2: Aug-22 | R2: Sep-22 | S2: Oct-22 | T2: Nov-22
A3: Year for Graph | B3: =Settings!B3 -> 2022 | D3: Plan | E3: =IF($B$6=2,E18,E26) -> 111 | F3: =IF($B$6=2,F18,F26) -> 273 | G3: 403 | H3: 443 | I3: 262 | J3: 157 | K3: 357 | L3: 410 | M3: 452 | N3: 398 | O3: 467 | P3: 429 | Q3: 417 | R3: 225 | S3: 449 | T3: 462 | U3: 0
A4: for lookup | B4: =B3&"|"&B2 -> 2022|11 | E4: =IF($B$6=2,E19,E27) -> 111 | F4: =IF($B$6=2,F19,F27) -> 273 | G4: 403 | H4: 443 | I4: 262 | J4: 157 | K4: 357 | L4: 410 | M4: 452 | N4: 398 | O4: 467 | P4: 429 | Q4: 417 | R4: 225 | S4: 449 | T4: 462 | U4: 0
A5: togh graf | B5: =Settings!B6 -> 6
A6: Stock-Flow /1 flow,2 stock/ | B6: =VLOOKUP(Settings!D7,Settings!E7:I20,4,0) -> 2
A7: vernagir | B7: =IFERROR(HLOOKUP("Hodvac",TheDate,B5,0),"") -> Opel Adam
E14: =IFERROR(HLOOKUP(E17,TheDate,Settings!$B$10,0),"0") -> 2017-11-30 | F14: =IFERROR(HLOOKUP(F17,TheDate,Settings!$B$10,0),"0") -> 2018-11-30 | G14: =IFERROR(HLOOKUP(G17,TheDate,Settings!$B$10,0),"0") -> 2019-11-30 | H14: =IFERROR(HLOOKUP(H17,TheDate,Settings!$B$10,0),"0") -> 2020-11-30 | I14: =IFERROR(HLOOKUP(I17,TheDate,Settings!$B$10,0),"0") -> 2021-11-30 | J14: =IFERROR(HLOOKUP(J17,TheDate,Settings!$B$10,0),"0") -> 2022-01-31 | K14: =IFERROR(HLOOKUP(K17,TheDate,Settings!$B$10,0),"0") -> 2022-02-28 | L14: =IFERROR(HLOOKUP(L17,TheDate,Settings!$B$10,0),"0") -> 2022-03-31 | M14: =IFERROR(HLOOKUP(M17,TheDate,Settings!$B$10,0),"0") -> 2022-04-30 | N14: =IFERROR(HLOOKUP(N17,TheDate,Settings!$B$10,0),"0") -> 2022-05-31 | O14: =IFERROR(HLOOKUP(O17,TheDate,Settings!$B$10,0),"0") -> 2022-06-30 | P14: =IFERROR(HLOOKUP(P17,TheDate,Settings!$B$10,0),"0") -> 2022-07-31 | Q14: =IFERROR(HLOOKUP(Q17,TheDate,Settings!$B$10,0),"0") -> 2022-08-31 | R14: =IFERROR(HLOOKUP(R17,TheDate,Settings!$B$10,0),"0") -> 2022-09-30 | S14: =IFERROR(HLOOKUP(S17,TheDate,Settings!$B$10,0),"0") -> 2022-10-31 | T14: =IFERROR(HLOOKUP(T17,TheDate,Settings!$B$10,0),"0") -> 2022-11-30 | U14: =IFERROR(HLOOKUP(U17,TheDate,Settings!$B$10,0),"0") -> 0
E15: =$B$2 -> 11 | F15: =$B$2 -> 11 | G15: =$B$2 -> 11 | H15: =$B$2 -> 11 | I15: =$B$2 -> 11 | J15: 1 | K15: =IFERROR(IF(J15+1>$B$2,"",J15+1),"") -> 2 | L15: =IFERROR(IF(K15+1>$B$2,"",K15+1),"") -> 3 | M15: 4 | N15: 5 | O15: 6 | P15: 7 | Q15: 8 | R15: 9 | S15: 10 | T15: 11
E16: =F16-1 -> 2017 | F16: =G16-1 -> 2018 | G16: =H16-1 -> 2019 | H16: =I16-1 -> 2020 | I16: =J16-1 -> 2021 | J16: =$B$3 -> 2022 | K16: =$J$16 -> 2022 | L16: =$J$16 -> 2022 | M16: 2022 | N16: 2022 | O16: 2022 | P16: 2022 | Q16: 2022 | R16: 2022 | S16: 2022 | T16: 2022 | U16: 2022
D17: STOCK | E17: =E16&"|"&E15 -> 2017|11 | F17: 2018|11 | G17: 2019|11 | H17: 2020|11 | I17: 2021|11 | J17: 2022|1 | K17: 2022|2 | L17: 2022|3 | M17: 2022|4 | N17: 2022|5 | O17: 2022|6 | P17: 2022|7 | Q17: 2022|8 | R17: 2022|9 | S17: 2022|10 | T17: 2022|11 | U17: 2022|
D18: PL | E18: =IFERROR(HLOOKUP(E17,TheDate,$B$5,0),"0") -> 111 | F18: 273 | G18: 403 | H18: 443 | I18: 262 | J18: 157 | K18: 357 | L18: 410 | M18: 452 | N18: 398 | O18: 467 | P18: 429 | Q18: 417 | R18: 225 | S18: 449 | T18: 462 | U18: 0
D19: FA | E19: =IFERROR(HLOOKUP(E17,TheDate,$B$5,0),"0") -> 111 | F19: 273 | G19: 403 | H19: 443 | I19: 262 | J19: 157 | K19: 357 | L19: 410 | M19: 452 | N19: 398 | O19: 467 | P19: 429 | Q19: 417 | R19: 225 | S19: 449 | T19: 462 | U19: 0
E23: =$B$2 -> 11 | F23: =$B$2 -> 11 | G23: =$B$2 -> 11 | H23: =$B$2 -> 11 | I23: =$B$2 -> 11 | J23: 1 | K23: =J23+1 -> 2 | L23: =K23+1 -> 3 | M23: 4 | N23: 5 | O23: 6 | P23: 7 | Q23: 8 | R23: 9 | S23: 10 | T23: 11 | U23: 12
E24: =F24-1 -> 2017 | F24: =G24-1 -> 2018 | G24: =H24-1 -> 2019 | H24: =I24-1 -> 2020 | I24: =J24-1 -> 2021 | J24: =$B$3 -> 2022 | K24: =$J$16 -> 2022 | L24: =$J$16 -> 2022 | M24: 2022 | N24: 2022 | O24: 2022 | P24: 2022 | Q24: 2022 | R24: 2022 | S24: 2022 | T24: 2022 | U24: 2022
D25: FLOW | E25: =E24&"|"&E23 -> 2017|11 | F25: 2018|11 | G25: 2019|11 | H25: 2020|11 | I25: 2021|11 | J25: 2022|1 | K25: 2022|2 | L25: 2022|3 | M25: 2022|4 | N25: 2022|5 | O25: 2022|6 | P25: 2022|7 | Q25: 2022|8 | R25: 2022|9 | S25: 2022|10 | T25: 2022|11 | U25: 2022|12
D26: PL | E26: =Q36 -> 297.3862275 | F26: =Q43 -> 286.9071856 | G26: =Q50 -> 285.1856287 | H26: =Q57 -> 310.7820896 | I26: =Q64 -> 243.1946108 | J26: =IFERROR(HLOOKUP(J25,TheDate,$B$5,0),"0") -> 157 | K26: 357 | L26: 410 | M26: 452 | N26: 398 | O26: 467 | P26: 429 | Q26: 417 | R26: 225 | S26: 449 | T26: 462 | U26: 285
D27: FA | E27: =Q37 -> 270.494012 | F27: =Q44 -> 294.5688623 | G27: =Q51 -> 282.2155689 | H27: =Q58 -> 244.6716418 | I27: =Q65 -> 209.2245509 | J27: =IFERROR(HLOOKUP(J25,TheDate,$B$5+1,0),"0") -> 371 | K27: 330 | L27: 104 | M27: 403 | N27: 301 | O27: 128 | P27: 214 | Q27: 275 | R27: 165 | S27: 125 | T27: 242 | U27: 112
E29: 31 | F29: 28 | G29: 31 | H29: 30 | I29: 31 | J29: 30 | K29: 31 | L29: 31 | M29: 30 | N29: 31 | O29: 30 | P29: 31 | Q29: =SUM(E29:P29) -> 365
E30: 1 | F30: 2 | G30: 3 | H30: 4 | I30: 5 | J30: 6 | K30: 7 | L30: 8 | M30: 9 | N30: 10 | O30: 11 | P30: 12
E32: =IF($B$2<E$30,"",E$29) -> 31 | F32: =IF($B$2<F$30,"",IF(OR(D34=2012,D34=2016,D34=2008,D34=2020),29,F$29)) -> 28 | G32: =IF($B$2<G$30,"",G$29) -> 31 | H32: 30 | I32: 31 | J32: 30 | K32: 31 | L32: 31 | M32: 30 | N32: 31 | O32: 30
E33: =IF($B$2<E$30,"",E$30) -> 1 | F33: 2 | G33: 3 | H33: 4 | I33: 5 | J33: 6 | K33: 7 | L33: 8 | M33: 9 | N33: 10 | O33: 11
D34: =E24 -> 2017 | E34: =$D$34 -> 2017 | F34: =$D$34 -> 2017 | G34: 2017 | H34: 2017 | I34: 2017 | J34: 2017 | K34: 2017 | L34: 2017 | M34: 2017 | N34: 2017 | O34: 2017 | P34: 2017
E35: =E34&"|"&E33 -> 2017|1 | F35: 2017|2 | G35: 2017|3 | H35: 2017|4 | I35: 2017|5 | J35: 2017|6 | K35: 2017|7 | L35: 2017|8 | M35: 2017|9 | N35: 2017|10 | O35: 2017|11 | P35: 2017|
D36: PL | E36: =IFERROR(HLOOKUP(E35,TheDate,$B$5,0),"") -> 174 | F36: 427 | G36: 389 | H36: 344 | I36: 424 | J36: 347 | K36: 276 | L36: 459 | M36: 177 | N36: 149 | O36: 111 | Q36: =SUMPRODUCT(E36:P36,E32:P32)/SUM(E32:P32) -> 297.3862275
D37: FA | E37: =IFERROR(HLOOKUP(E35,TheDate,$B$5+1,0),"") -> 435 | F37: 180 | G37: 217 | H37: 169 | I37: 444 | J37: 105 | K37: 104 | L37: 217 | M37: 452 | N37: 188 | O37: 459 | Q37: =SUMPRODUCT(E37:P37,E32:P32)/SUM(E32:P32) -> 270.494012
E39: =IF($B$2<E$30,"",E$29) -> 31 | F39: =IF($B$2<F$30,"",IF(OR(D41=2012,D41=2016,D41=2008,D41=2020),29,F$29)) -> 28 | G39: =IF($B$2<G$30,"",G$29) -> 31 | H39: 30 | I39: 31 | J39: 30 | K39: 31 | L39: 31 | M39: 30 | N39: 31 | O39: 30
E40: =IF($B$2<E$30,"",E$30) -> 1 | F40: 2 | G40: 3 | H40: 4 | I40: 5 | J40: 6 | K40: 7 | L40: 8 | M40: 9 | N40: 10 | O40: 11
D41: =F24 -> 2018 | E41: =$D$41 -> 2018 | F41: =$D$41 -> 2018 | G41: 2018 | H41: 2018 | I41: 2018 | J41: 2018 | K41: 2018 | L41: 2018 | M41: 2018 | N41: 2018 | O41: 2018 | P41: 2018
E42: =E41&"|"&E40 -> 2018|1 | F42: =F41&"|"&F40 -> 2018|2 | G42: =G41&"|"&G40 -> 2018|3 | H42: =H41&"|"&H40 -> 2018|4 | I42: =I41&"|"&I40 -> 2018|5 | J42: =J41&"|"&J40 -> 2018|6 | K42: =K41&"|"&K40 -> 2018|7 | L42: =L41&"|"&L40 -> 2018|8 | M42: =M41&"|"&M40 -> 2018|9 | N42: =N41&"|"&N40 -> 2018|10 | O42: =O41&"|"&O40 -> 2018|11 | P42: =P41&"|"&P40 -> 2018|
D43: PL | E43: =IFERROR(HLOOKUP(E42,TheDate,$B$5,0),"") -> 241 | F43: 498 | G43: 199 | H43: 418 | I43: 460 | J43: 138 | K43: 422 | L43: 124 | M43: 182 | N43: 217 | O43: 273 | Q43: =SUMPRODUCT(E43:P43,E39:P39)/SUM(E39:P39) -> 286.9071856
D44: FA | E44: =IFERROR(HLOOKUP(E42,TheDate,$B$5+1,0),"") -> 414 | F44: 310 | G44: 376 | H44: 214 | I44: 256 | J44: 150 | K44: 100 | L44: 458 | M44: 387 | N44: 322 | O44: 249 | Q44: =SUMPRODUCT(E44:P44,E39:P39)/SUM(E39:P39) -> 294.5688623
E46: =IF($B$2<E$30,"",E$29) -> 31 | F46: =IF($B$2<F$30,"",IF(OR(D48=2012,D48=2016,D48=2008,D48=2020),29,F$29)) -> 28 | G46: =IF($B$2<G$30,"",G$29) -> 31 | H46: 30 | I46: 31 | J46: 30 | K46: 31 | L46: 31 | M46: 30 | N46: 31 | O46: 30
E47: =IF($B$2<E30,"",E30) -> 1 | F47: 2 | G47: 3 | H47: 4 | I47: 5 | J47: 6 | K47: 7 | L47: 8 | M47: 9 | N47: 10 | O47: 11
D48: =G24 -> 2019 | E48: =$D$48 -> 2019 | F48: =$D$48 -> 2019 | G48: 2019 | H48: 2019 | I48: 2019 | J48: 2019 | K48: 2019 | L48: 2019 | M48: 2019 | N48: 2019 | O48: 2019 | P48: 2019
E49: =E48&"|"&E47 -> 2019|1 | F49: =F48&"|"&F47 -> 2019|2 | G49: =G48&"|"&G47 -> 2019|3 | H49: =H48&"|"&H47 -> 2019|4 | I49: =I48&"|"&I47 -> 2019|5 | J49: =J48&"|"&J47 -> 2019|6 | K49: =K48&"|"&K47 -> 2019|7 | L49: =L48&"|"&L47 -> 2019|8 | M49: =M48&"|"&M47 -> 2019|9 | N49: =N48&"|"&N47 -> 2019|10 | O49: =O48&"|"&O47 -> 2019|11 | P49: =P48&"|"&P47 -> 2019|
D50: PL | E50: =IFERROR(HLOOKUP(E49,TheDate,$B$5,0),"") -> 402 | G50: 211 | H50: 297 | I50: 496 | J50: 275 | K50: 262 | L50: 245 | M50: 183 | N50: 336 | O50: 403 | Q50: =SUMPRODUCT(E50:P50,E46:P46)/SUM(E46:P46) -> 285.1856287
D51: FA | E51: =IFERROR(HLOOKUP(E49,TheDate,$B$5+1,0),"") -> 425 | G51: 500 | H51: 424 | I51: 287 | J51: 131 | K51: 131 | L51: 364 | M51: 217 | N51: 273 | O51: 324 | Q51: =SUMPRODUCT(E51:P51,E46:P46)/SUM(E46:P46) -> 282.2155689
E53: =IF($B$2<E$30,"",E$29) -> 31 | F53: =IF($B$2<F$30,"",IF(OR(D55=2012,D55=2016,D55=2008,D55=2020),29,F$29)) -> 29 | G53: =IF($B$2<G$30,"",G$29) -> 31 | H53: 30 | I53: 31 | J53: 30 | K53: 31 | L53: 31 | M53: 30 | N53: 31 | O53: 30
E54: =IF($B$2<E$30,"",E$30) -> 1 | F54: 2 | G54: 3 | H54: 4 | I54: 5 | J54: 6 | K54: 7 | L54: 8 | M54: 9 | N54: 10 | O54: 11
D55: =H24 -> 2020 | E55: =$D$55 -> 2020 | F55: =$D$55 -> 2020 | G55: 2020 | H55: 2020 | I55: 2020 | J55: 2020 | K55: 2020 | L55: 2020 | M55: 2020 | N55: 2020 | O55: 2020 | P55: 2020
E56: =E55&"|"&E54 -> 2020|1 | F56: =F55&"|"&F54 -> 2020|2 | G56: =G55&"|"&G54 -> 2020|3 | H56: =H55&"|"&H54 -> 2020|4 | I56: =I55&"|"&I54 -> 2020|5 | J56: =J55&"|"&J54 -> 2020|6 | K56: =K55&"|"&K54 -> 2020|7 | L56: =L55&"|"&L54 -> 2020|8 | M56: =M55&"|"&M54 -> 2020|9 | N56: =N55&"|"&N54 -> 2020|10 | O56: =O55&"|"&O54 -> 2020|11 | P56: =P55&"|"&P54 -> 2020|
D57: PL | E57: =IFERROR(HLOOKUP(E56,TheDate,$B$5,0),"") -> 478 | F57: 103 | G57: 488 | H57: 330 | I57: 175 | J57: 167 | K57: 491 | L57: 454 | M57: 111 | N57: 159 | O57: 443 | Q57: =SUMPRODUCT(E57:P57,E53:P53)/SUM(E53:P53) -> 310.7820896
D58: FA | E58: =IFERROR(HLOOKUP(E56,TheDate,$B$5+1,0),"") -> 147 | F58: 364 | G58: 363 | H58: 130 | I58: 151 | J58: 228 | K58: 187 | L58: 216 | M58: 341 | N58: 445 | O58: 122 | Q58: =SUMPRODUCT(E58:P58,E53:P53)/SUM(E53:P53) -> 244.6716418
E60: =IF($B$2<E$30,"",E$29) -> 31 | F60: =IF($B$2<F$30,"",IF(OR(D62=2012,D62=2016,D62=2008,D62=2020),29,F$29)) -> 28 | G60: =IF($B$2<G$30,"",G$29) -> 31 | H60: 30 | I60: 31 | J60: 30 | K60: 31 | L60: 31 | M60: 30 | N60: 31 | O60: 30
E61: =IF($B$2<E$30,"",E$30) -> 1 | F61: 2 | G61: 3 | H61: 4 | I61: 5 | J61: 6 | K61: 7 | L61: 8 | M61: 9 | N61: 10 | O61: 11
D62: =I24 -> 2021 | E62: =$D$62 -> 2021 | F62: =$D$62 -> 2021 | G62: 2021 | H62: 2021 | I62: 2021 | J62: 2021 | K62: 2021 | L62: 2021 | M62: 2021 | N62: 2021 | O62: 2021 | P62: 2021
E63: =E62&"|"&E61 -> 2021|1 | F63: =F62&"|"&F61 -> 2021|2 | G63: =G62&"|"&G61 -> 2021|3 | H63: =H62&"|"&H61 -> 2021|4 | I63: =I62&"|"&I61 -> 2021|5 | J63: =J62&"|"&J61 -> 2021|6 | K63: =K62&"|"&K61 -> 2021|7 | L63: =L62&"|"&L61 -> 2021|8 | M63: =M62&"|"&M61 -> 2021|9 | N63: =N62&"|"&N61 -> 2021|10 | O63: =O62&"|"&O61 -> 2021|11 | P63: =P62&"|"&P61 -> 2021|
D64: PL | E64: =IFERROR(HLOOKUP(E63,TheDate,$B$5,0),"") -> 289 | F64: 105 | G64: 208 | H64: 205 | I64: 124 | J64: 152 | K64: 352 | L64: 331 | M64: 175 | N64: 453 | O64: 262 | Q64: =SUMPRODUCT(E64:P64,E60:P60)/SUM(E60:P60) -> 243.1946108
D65: FA | E65: =IFERROR(HLOOKUP(E63,TheDate,$B$5+1,0),"") -> 131 | F65: 199 | G65: 161 | H65: 371 | I65: 163 | J65: 180 | K65: 178 | L65: 195 | M65: 158 | N65: 121 | O65: 454 | Q65: =SUMPRODUCT(E65:P65,E60:P60)/SUM(E60:P60) -> 209.2245509

Sheet Settings (hidden)
K1: Togi Yntrutyun | L1: 1 | M1: 0
A2: Month | B2: 11 | L2: 2 | M2: =M1+1 -> 1
A3: Year | B3: 2022 | L3: 3 | M3: =M2+1 -> 2
A4: for lookup | B4: =$B$3-5&"|"&$B$2 -> 2017|11 | C4: =$B$3-4&"|"&$B$2 -> 2018|11 | D4: =$B$3-3&"|"&$B$2 -> 2019|11 | E4: =$B$3-2&"|"&$B$2 -> 2020|11 | F4: =$B$3-1&"|"&$B$2 -> 2021|11 | G4: =B3&"|"&B2 -> 2022|11 | L4: 4 | M4: 3
A5: start togh for graf | B5: 1 | L5: 5 | M5: 4
A6: togh graf | B6: =IF(B11>B12,B12,B11)+VLOOKUP(B5,L1:M9,2,0) -> 6 | L6: 6 | M6: 5
A7: sheet | B7: ="'"&C7&"'!" -> 'Opel'! | C7: =VLOOKUP(D7,E7:F29,2,0) -> Opel | D7: 1 | E7: 2 | F7: =MID(I7,SEARCH("]",I7,1)+1,SEARCH("!",I7,1)-2-SEARCH("]",I7,1)) -> BMW | G7: =BMW!$A$1 -> BMW sells | H7: 2 | I7: =CELL("address",BMW!$A$1) -> '[Report Template renewed 2022.xlsm]BMW'!$A$1 | L7: 7 | M7: 6
A8: shift for row | B8: 34 | E8: 3 | F8: AUDI | G8: =AUDI!$A$1 -> Audi sells | H8: 2 | I8: =CELL("address",AUDI!$A$1) -> '[Report Template renewed 2022.xlsm]AUDI'!$A$1 | L8: 8 | M8: 7
E9: 1 | F9: Opel | G9: =Opel!$A$1 -> Opel sells | H9: 2 | I9: =CELL("address",Opel!$A$1) -> '[Report Template renewed 2022.xlsm]Opel'!$A$1 | L9: 9 | M9: 8
A10: vernagir togh | B10: 5 | E10: 5 | F10: Nissan | G10: =Nissan!$A$1 -> Nissan sells | H10: 2 | I10: =CELL("address",Nissan!$A$1) -> '[Report Template renewed 2022.xlsm]Nissan'!$A$1
A11: start togh | B11: 6 | E11: 7 | F11: Ford | G11: =Ford!$A$1 -> Ford sells | H11: 2 | I11: =CELL("address",Ford!$A$1) -> '[Report Template renewed 2022.xlsm]Ford'!$A$1
A12: maximal togh | B12: =IF(MAX(B36:B185)-7<6,6,MAX(B36:B185)-7) -> 52 | E12: 4 | F12: Toyota | G12: =Toyota!$A$1 -> Toyota sells | H12: 2 | I12: =CELL("address",Toyota!$A$1) -> '[Report Template renewed 2022.xlsm]Toyota'!$A$1
E13: 6 | F13: Honda | G13: =Honda!$A$1 -> Honda sells | H13: 2 | I13: =CELL("address",Honda!$A$1) -> '[Report Template renewed 2022.xlsm]Honda'!$A$1
E14: 8 | F14: Jeep | G14: =Jeep!$A$1 -> Jeep sells | H14: 2 | I14: =CELL("address",Jeep!$A$1) -> '[Report Template renewed 2022.xlsm]Jeep'!$A$1
A18: 1 | B18: =B19-1 -> 2011
A19: =A18+1 -> 2 | B19: 2012
A20: =A19+1 -> 3 | B20: 2013
A21: 4 | B21: 2014
A22: 5 | B22: 2015
A23: 6 | B23: 2016
A24: 7 | B24: 2017
A25: 8 | B25: 2018
A26: 9 | B26: 2019
A27: 10 | B27: 2020
A28: 11 | B28: =B29-1 -> 2021
A29: 12 | B29: =YEAR(NOW()) -> 2022
A31: 1 | C31: Hodvac | D31: =D34&"|"&D33 -> 2016|1 | E31: 2016|2 | F31: 2016|3 | G31: 2016|4 | H31: 2016|5 | I31: 2016|6 | J31: 2016|7 | K31: 2016|8 | L31: 2016|9 | M31: 2016|10 | N31: 2016|11 | O31: 2016|12 | P31: 2017|1 | Q31: 2017|2 | R31: 2017|3 | S31: 2017|4 | T31: 2017|5 | U31: 2017|6 | V31: 2017|7 | W31: 2017|8 | X31: 2017|9 | Y31: 2017|10 | Z31: 2017|11 | AA31: 2017|12 | AB31: 2018|1 | AC31: 2018|2 | AD31: 2018|3 | AE31: 2018|4 | AF31: 2018|5 | AG31: 2018|6 | AH31: 2018|7 | AI31: 2018|8 | AJ31: 2018|9 | AK31: =AK34&"|"&AK33 -> 2018|10 | AL31: 2018|11 | AM31: 2018|12 | AN31: 2019|1 | AO31: 2019|3 | AP31: 2019|3 | AQ31: 2019|4 | AR31: 2019|5 | AS31: 2019|6 | AT31: 2019|7 | AU31: 2019|8 | AV31: 2019|9 | AW31: 2019|10 | AX31: 2019|11 | AY31: 2019|12 | AZ31: 2020|1 | BA31: 2020|2 | BB31: 2020|3 | BC31: 2020|4 | BD31: 2020|5 | BE31: 2020|6 | BF31: 2020|7 | BG31: 2020|8 | BH31: 2020|9 | BI31: 2020|10 | BJ31: 2020|11 | BK31: 2020|12 | BL31: 2021|1 | BM31: 2021|2 | BN31: 2021|3 | BO31: 2021|4 | BP31: 2021|5 | BQ31: =BQ34&"|"&BQ33 -> 2021|6 | BR31: 2021|7 | BS31: 2021|8 | BT31: 2021|9 | BU31: 2021|10 | BV31: 2021|11 | BW31: 2021|12 | BX31: 2022|1 | BY31: 2022|2 | BZ31: 2022|3 | CA31: 2022|4 | CB31: 2022|5 | CC31: 2022|6 | CD31: 2022|7 | CE31: 2022|8 | CF31: 2022|9 | CG31: 2022|10 | CH31: 2022|11 | CI31: 2022|12 | CJ31: 1900|1 | CK31: 1900|1 | CL31: 1900|1 | CM31: 1900|1 | CN31: 1900|1 | CO31: 1900|1 | CP31: 1900|1 | CQ31: 1900|1 | CR31: 1900|1 | CS31: 1900|1 | CT31: 1900|1 | CU31: 1900|1 | CV31: 1900|1 | CW31: =CW34&"|"&CW33 -> 1900|1 | CX31: 1900|1 | CY31: 1900|1 | CZ31: 1900|1 | DA31: 1900|1 | DB31: 1900|1 | DC31: =DC34&"|"&DC33 -> 1900|1 | DD31: 1900|1 | DE31: 1900|1 | DF31: 1900|1 | DG31: 1900|1 | DH31: 1900|1 | DI31: 1900|1 | DJ31: 1900|1 | DK31: 1900|1 | DL31: 1900|1 | DM31: 1900|1 | DN31: 1900|1 | DO31: 1900|1 | DP31: 1900|1 | DQ31: 1900|1 | DR31: 1900|1 | DS31: 1900|1 | DT31: 1900|1 | DU31: 1900|1 | DV31: 1900|1 | DW31: 1900|1 | DX31: 1900|1 | DY31: 1900|1 | DZ31: 1900|1 | EA31: 1900|1 | EB31: 1900|1
A32: =A31+1 -> 2 | C32: A | D32: B | E32: C | F32: D | G32: E | H32: F | I32: G | J32: H | K32: I | L32: J | M32: K | N32: L | O32: M | P32: N | Q32: O | R32: P | S32: Q | T32: R | U32: S | V32: T | W32: U | X32: V | Y32: W | Z32: X | AA32: Y | AB32: Z | AC32: AA | AD32: AB | AE32: AC | AF32: AD | AG32: AE | AH32: AF | AI32: AG | AJ32: AH | AK32: AI | AL32: AJ | AM32: AK | AN32: AL | AO32: AM | AP32: AN | AQ32: AO | AR32: AP | AS32: AQ | AT32: AR | AU32: AS | AV32: AT | AW32: AU | AX32: AV | AY32: AW | AZ32: AX | BA32: AY | BB32: AZ | BC32: BA | BD32: BB | BE32: BC | BF32: BD | BG32: BE | BH32: BF | BI32: BG | BJ32: BH | BK32: BI | BL32: BJ | BM32: BK | BN32: BL | BO32: BM | BP32: BN | BQ32: BO | BR32: BP | BS32: BQ | BT32: BR | BU32: BS | BV32: BT | BW32: BU | BX32: BV | BY32: BW | BZ32: BX | CA32: BY | CB32: BZ | CC32: CA | CD32: CB | CE32: CC | CF32: CD | CG32: CE | CH32: CF | CI32: CG | CJ32: CH | CK32: CI | CL32: CJ | CM32: CK | CN32: CL | CO32: CM | CP32: CN | CQ32: CO | CR32: CP | CS32: CQ | CT32: CR | CU32: CS | CV32: CT | CW32: CU | CX32: CV | CY32: CW | CZ32: CX | DA32: CY | DB32: CZ | DC32: DA | DD32: DB | DE32: DC | DF32: DD | DG32: DE | DH32: DF | DI32: DG | DJ32: DH | DK32: DI | DL32: DJ | DM32: DK | DN32: DL | DO32: DM | DP32: DN | DQ32: DO | DR32: DP | DS32: DQ | DT32: DR | DU32: DS | DV32: DT | DW32: DU | DX32: DV | DY32: DW | DZ32: DX | EA32: DY | EB32: DZ
A33: =A32+1 -> 3 | B33: sheet | C33: =B7 -> 'Opel'! | D33: =MONTH(D35) -> 1 | E33: =MONTH(E35) -> 2 | F33: 3 | G33: 4 | H33: 5 | I33: 6 | J33: 7 | K33: 8 | L33: 9 | M33: 10 | N33: 11 | O33: 12 | P33: 1 | Q33: 2 | R33: 3 | S33: 4 | T33: 5 | U33: 6 | V33: 7 | W33: 8 | X33: 9 | Y33: 10 | Z33: 11 | AA33: 12 | AB33: 1 | AC33: 2 | AD33: 3 | AE33: 4 | AF33: 5 | AG33: 6 | AH33: 7 | AI33: 8 | AJ33: 9 | AK33: =MONTH(AK35) -> 10 | AL33: 11 | AM33: 12 | AN33: 1 | AO33: 3 | AP33: 3 | AQ33: 4 | AR33: 5 | AS33: 6 | AT33: 7 | AU33: 8 | AV33: 9 | AW33: 10 | AX33: 11 | AY33: 12 | AZ33: 1 | BA33: 2 | BB33: 3 | BC33: 4 | BD33: 5 | BE33: 6 | BF33: 7 | BG33: 8 | BH33: 9 | BI33: 10 | BJ33: 11 | BK33: 12 | BL33: 1 | BM33: 2 | BN33: 3 | BO33: 4 | BP33: 5 | BQ33: =MONTH(BQ35) -> 6 | BR33: 7 | BS33: 8 | BT33: 9 | BU33: 10 | BV33: 11 | BW33: 12 | BX33: 1 | BY33: 2 | BZ33: 3 | CA33: 4 | CB33: 5 | CC33: 6 | CD33: 7 | CE33: 8 | CF33: 9 | CG33: 10 | CH33: 11 | CI33: 12 | CJ33: 1 | CK33: 1 | CL33: 1 | CM33: 1 | CN33: 1 | CO33: 1 | CP33: 1 | CQ33: 1 | CR33: 1 | CS33: 1 | CT33: 1 | CU33: 1 | CV33: 1 | CW33: =MONTH(CW35) -> 1 | CX33: 1 | CY33: 1 | CZ33: 1 | DA33: 1 | DB33: 1 | DC33: =MONTH(DC35) -> 1 | DD33: 1 | DE33: 1 | DF33: 1 | DG33: 1 | DH33: 1 | DI33: 1 | DJ33: 1 | DK33: 1 | DL33: 1 | DM33: 1 | DN33: 1 | DO33: 1 | DP33: 1 | DQ33: 1 | DR33: 1 | DS33: =MONTH(DS35) -> 1 | DT33: 1 | DU33: 1 | DV33: 1 | DW33: 1 | DX33: 1 | DY33: 1 | DZ33: 1 | EA33: 1 | EB33: 1
A34: 4 | B34: shift for row | C34: =B8 -> 34 | D34: =YEAR(D35) -> 2016 | E34: 2016 | F34: 2016 | G34: 2016 | H34: 2016 | I34: 2016 | J34: 2016 | K34: 2016 | L34: 2016 | M34: 2016 | N34: 2016 | O34: 2016 | P34: 2017 | Q34: 2017 | R34: 2017 | S34: 2017 | T34: 2017 | U34: 2017 | V34: 2017 | W34: 2017 | X34: 2017 | Y34: 2017 | Z34: 2017 | AA34: 2017 | AB34: 2018 | AC34: 2018 | AD34: 2018 | AE34: 2018 | AF34: 2018 | AG34: 2018 | AH34: 2018 | AI34: 2018 | AJ34: 2018 | AK34: =YEAR(AK35) -> 2018 | AL34: 2018 | AM34: 2018 | AN34: 2019 | AO34: 2019 | AP34: 2019 | AQ34: 2019 | AR34: 2019 | AS34: 2019 | AT34: 2019 | AU34: 2019 | AV34: 2019 | AW34: 2019 | AX34: 2019 | AY34: 2019 | AZ34: 2020 | BA34: 2020 | BB34: 2020 | BC34: 2020 | BD34: 2020 | BE34: 2020 | BF34: 2020 | BG34: 2020 | BH34: 2020 | BI34: 2020 | BJ34: 2020 | BK34: 2020 | BL34: 2021 | BM34: 2021 | BN34: 2021 | BO34: 2021 | BP34: 2021 | BQ34: =YEAR(BQ35) -> 2021 | BR34: 2021 | BS34: 2021 | BT34: 2021 | BU34: 2021 | BV34: 2021 | BW34: 2021 | BX34: 2022 | BY34: 2022 | BZ34: 2022 | CA34: 2022 | CB34: 2022 | CC34: 2022 | CD34: 2022 | CE34: 2022 | CF34: 2022 | CG34: 2022 | CH34: 2022 | CI34: 2022 | CJ34: 1900 | CK34: 1900 | CL34: 1900 | CM34: 1900 | CN34: 1900 | CO34: 1900 | CP34: 1900 | CQ34: 1900 | CR34: 1900 | CS34: 1900 | CT34: 1900 | CU34: 1900 | CV34: 1900 | CW34: =YEAR(CW35) -> 1900 | CX34: 1900 | CY34: 1900 | CZ34: 1900 | DA34: 1900 | DB34: 1900 | DC34: 1900 | DD34: 1900 | DE34: 1900 | DF34: 1900 | DG34: 1900 | DH34: 1900 | DI34: 1900 | DJ34: 1900 | DK34: 1900 | DL34: 1900 | DM34: 1900 | DN34: 1900 | DO34: 1900 | DP34: 1900 | DQ34: 1900 | DR34: 1900 | DS34: 1900 | DT34: 1900 | DU34: 1900 | DV34: 1900 | DW34: 1900 | DX34: 1900 | DY34: 1900 | DZ34: 1900 | EA34: 1900 | EB34: 1900
A35: 5 | D35: =INDIRECT($C$33&D$32&ROW()-$C$34) -> 2016-01-31 | E35: 2016-02-28 | F35: 2016-03-31 | G35: 2016-04-30 | H35: 2016-05-31 | I35: 2016-06-30 | J35: 2016-07-31 | K35: 2016-08-31 | L35: 2016-09-30 | M35: 2016-10-31 | N35: 2016-11-30 | O35: =INDIRECT($C$33&O$32&ROW()-$C$34) -> 2016-12-31 | P35: 2017-01-31 | Q35: 2017-02-28 | R35: 2017-03-31 | S35: 2017-04-30 | T35: 2017-05-31 | U35: 2017-06-30 | V35: 2017-07-31 | W35: 2017-08-31 | X35: 2017-09-30 | Y35: =INDIRECT($C$33&Y$32&ROW()-$C$34) -> 2017-10-31 | Z35: 2017-11-30 | AA35: 2017-12-31 | AB35: 2018-01-31 | AC35: 2018-02-28 | AD35: 2018-03-31 | AE35: 2018-04-30 | AF35: 2018-05-31 | AG35: 2018-06-30 | AH35: 2018-07-31 | AI35: =INDIRECT($C$33&AI$32&ROW()-$C$34) -> 2018-08-31 | AJ35: 2018-09-30 | AK35: 2018-10-31 | AL35: 2018-11-30 | AM35: 2018-12-31 | AN35: 2019-01-31 | AO35: 2019-03-01 | AP35: 2019-03-31 | AQ35: 2019-04-30 | AR35: 2019-05-31 | AS35: =INDIRECT($C$33&AS$32&ROW()-$C$34) -> 2019-06-30 | AT35: 2019-07-31 | AU35: 2019-08-31 | AV35: 2019-09-30 | AW35: 2019-10-31 | AX35: 2019-11-30 | AY35: 2019-12-31 | AZ35: 2020-01-31 | BA35: 2020-02-28 | BB35: 2020-03-31 | BC35: =INDIRECT($C$33&BC$32&ROW()-$C$34) -> 2020-04-30 | BD35: 2020-05-31 | BE35: 2020-06-30 | BF35: 2020-07-31 | BG35: 2020-08-31 | BH35: 2020-09-30 | BI35: 2020-10-31 | BJ35: 2020-11-30 | BK35: 2020-12-31 | BL35: 2021-01-31 | BM35: =INDIRECT($C$33&BM$32&ROW()-$C$34) -> 2021-02-28 | BN35: 2021-03-31 | BO35: 2021-04-30 | BP35: 2021-05-31 | BQ35: 2021-06-30 | BR35: 2021-07-31 | BS35: 2021-08-31 | BT35: 2021-09-30 | BU35: 2021-10-31 | BV35: 2021-11-30 | BW35: =INDIRECT($C$33&BW$32&ROW()-$C$34) -> 2021-12-31 | BX35: 2022-01-31 | BY35: 2022-02-28 | BZ35: 2022-03-31 | CA35: 2022-04-30 | CB35: 2022-05-31 | CC35: 2022-06-30 | CD35: 2022-07-31 | CE35: 2022-08-31 | CF35: 2022-09-30 | CG35: =INDIRECT($C$33&CG$32&ROW()-$C$34) -> 2022-10-31 | CH35: 2022-11-30 | CI35: 2022-12-31 | CJ35: 00:00:00 | CK35: 00:00:00 | CL35: 00:00:00 | CM35: 00:00:00 | CN35: 00:00:00 | CO35: 00:00:00 | CP35: 00:00:00 | CQ35: =INDIRECT($C$33&CQ$32&ROW()-$C$34) -> 00:00:00 | CR35: 00:00:00 | CS35: 00:00:00 | CT35: 00:00:00 | CU35: 00:00:00 | CV35: 00:00:00 | CW35: 00:00:00 | CX35: 00:00:00 | CY35: 00:00:00 | CZ35: 00:00:00 | DA35: 00:00:00 | DB35: 00:00:00 | DC35: 00:00:00 | DD35: 00:00:00 | DE35: 00:00:00 | DF35: 00:00:00 | DG35: =INDIRECT($C$33&DG$32&ROW()-$C$34) -> 00:00:00 | DH35: 00:00:00 | DI35: 00:00:00 | DJ35: 00:00:00 | DK35: 00:00:00 | DL35: 00:00:00 | DM35: 00:00:00 | DN35: 00:00:00 | DO35: 00:00:00 | DP35: 00:00:00 | DQ35: 00:00:00 | DR35: 00:00:00 | DS35: 00:00:00 | DT35: =INDIRECT($C$33&DT$32&ROW()-$C$34) -> 00:00:00 | DU35: 00:00:00 | DV35: 00:00:00 | DW35: 00:00:00 | DX35: 00:00:00 | DY35: 00:00:00 | DZ35: 00:00:00 | EA35: 00:00:00 | EB35: 00:00:00
A36: 6 | B36: =IF(LEN(C36)>1,A36,0) -> 6 | C36: =INDIRECT($C$33&C$32&ROW()-$C$34) -> Opel Adam | D36: 145 | E36: 213 | F36: 261 | G36: 266 | H36: 291 | I36: 466 | J36: 397 | K36: 459 | L36: 375 | M36: 441 | N36: 218 | O36: 181 | P36: 174 | Q36: 427 | R36: 389 | S36: 344 | T36: 424 | U36: 347 | V36: 276 | W36: 459 | X36: 177 | Y36: 149 | Z36: 111 | AA36: 410 | AB36: 241 | AC36: 498 | AD36: 199 | AE36: 418 | AF36: 460 | AG36: 138 | AH36: 422 | AI36: 124 | AJ36: 182 | AK36: 217 | AL36: 273 | AM36: 467 | AN36: 402 | AO36: 211 | AP36: 213 | AQ36: 297 | AR36: 496 | AS36: 275 | AT36: 262 | AU36: 245 | AV36: 183 | AW36: 336 | AX36: 403 | AY36: 125 | AZ36: 478 | BA36: 103 | BB36: 488 | BC36: 330 | BD36: 175 | BE36: 167 | BF36: 491 | BG36: 454 | BH36: 111 | BI36: 159 | BJ36: 443 | BK36: 289 | BL36: 289 | BM36: 105 | BN36: 208 | BO36: 205 | BP36: 124 | BQ36: 152 | BR36: 352 | BS36: 331 | BT36: 175 | BU36: 453 | BV36: 262 | BW36: 492 | BX36: 157 | BY36: 357 | BZ36: 410 | CA36: 452 | CB36: 398 | CC36: 467 | CD36: 429 | CE36: 417 | CF36: 225 | CG36: 449 | CH36: 462 | CI36: 285 | CJ36: 0 | CK36: 0 | CL36: 0 | CM36: 0 | CN36: 0 | CO36: 0 | CP36: 0 | CQ36: 0 | CR36: 0 | CS36: 0 | CT36: 0 | CU36: 0 | CV36: 0 | CW36: 0 | CX36: 0 | CY36: 0 | CZ36: 0 | DA36: 0 | DB36: 0 | DC36: 0 | DD36: 0 | DE36: 0 | DF36: 0 | DG36: 0 | DH36: 0 | DI36: 0 | DJ36: 0 | DK36: 0 | DL36: 0 | DM36: 0 | DN36: 0 | DO36: 0 | DP36: 0 | DQ36: 0 | DR36: 0 | DS36: 0 | DT36: 0 | DU36: 0 | DV36: 0 | DW36: 0 | DX36: 0 | DY36: 0 | DZ36: 0 | EA36: 0 | EB36: 0
A37: 7 | B37: 7 | C37: Opel Admiral | D37: 470 | E37: 168 | F37: 341 | G37: 364 | H37: 103 | I37: 301 | J37: 246 | K37: 475 | L37: 467 | M37: 404 | N37: 281 | O37: 419 | P37: 435 | Q37: 180 | R37: 217 | S37: 169 | T37: 444 | U37: 105 | V37: 104 | W37: 217 | X37: 452 | Y37: 188 | Z37: 459 | AA37: 386 | AB37: 414 | AC37: 310 | AD37: 376 | AE37: 214 | AF37: 256 | AG37: 150 | AH37: 100 | AI37: 458 | AJ37: 387 | AK37: 322 | AL37: 249 | AM37: 456 | AN37: 425 | AO37: 500 | AP37: 310 | AQ37: 424 | AR37: 287 | AS37: 131 | AT37: 131 | AU37: 364 | AV37: 217 | AW37: 273 | AX37: 324 | AY37: 307 | AZ37: 147 | BA37: 364 | BB37: 363 | BC37: 130 | BD37: 151 | BE37: 228 | BF37: 187 | BG37: 216 | BH37: 341 | BI37: 445 | BJ37: 122 | BK37: 263 | BL37: 131 | BM37: 199 | BN37: 161 | BO37: 371 | BP37: 163 | BQ37: 180 | BR37: 178 | BS37: 195 | BT37: 158 | BU37: 121 | BV37: 454 | BW37: 119 | BX37: 371 | BY37: 330 | BZ37: 104 | CA37: 403 | CB37: 301 | CC37: 128 | CD37: 214 | CE37: 275 | CF37: 165 | CG37: 125 | CH37: 242 | CI37: 112 | CJ37: 0 | CK37: 0 | CL37: 0 | CM37: 0 | CN37: 0 | CO37: 0 | CP37: 0 | CQ37: 0 | CR37: 0 | CS37: 0 | CT37: 0 | CU37: 0 | CV37: 0 | CW37: 0 | CX37: 0 | CY37: 0 | CZ37: 0 | DA37: 0 | DB37: 0 | DC37: 0 | DD37: 0 | DE37: 0 | DF37: 0 | DG37: 0 | DH37: 0 | DI37: 0 | DJ37: 0 | DK37: 0 | DL37: 0 | DM37: 0 | DN37: 0 | DO37: 0 | DP37: 0 | DQ37: 0 | DR37: 0 | DS37: 0 | DT37: 0 | DU37: 0 | DV37: 0 | DW37: 0 | DX37: 0 | DY37: 0 | DZ37: 0 | EA37: 0 | EB37: 0
A38: 8 | B38: 8 | C38: Opel Agila | D38: 313 | E38: 147 | F38: 178 | G38: 386 | H38: 101 | I38: 308 | J38: 217 | K38: 123 | L38: 395 | M38: 334 | N38: 375 | O38: 241 | P38: 271 | Q38: 456 | R38: 395 | S38: 461 | T38: 258 | U38: 474 | V38: 389 | W38: 231 | X38: 310 | Y38: 399 | Z38: 130 | AA38: 426 | AB38: 427 | AC38: 281 | AD38: 293 | AE38: 327 | AF38: 277 | AG38: 425 | AH38: 465 | AI38: 261 | AJ38: 419 | AK38: 250 | AL38: 327 | AM38: 353 | AN38: 383 | AO38: 428 | AP38: 149 | AQ38: 325 | AR38: 261 | AS38: 439 | AT38: 179 | AU38: 266 | AV38: 192 | AW38: 286 | AX38: 488 | AY38: 144 | AZ38: 230 | BA38: 192 | BB38: 398 | BC38: 218 | BD38: 343 | BE38: 447 | BF38: 353 | BG38: 139 | BH38: 200 | BI38: 322 | BJ38: 447 | BK38: 172 | BL38: 484 | BM38: 251 | BN38: 160 | BO38: 390 | BP38: 256 | BQ38: 427 | BR38: 454 | BS38: 143 | BT38: 432 | BU38: 279 | BV38: 189 | BW38: 427 | BX38: 256 | BY38: 344 | BZ38: 264 | CA38: 492 | CB38: 317 | CC38: 125 | CD38: 420 | CE38: 248 | CF38: 324 | CG38: 472 | CH38: 135 | CI38: 340 | CJ38: 0 | CK38: 0 | CL38: 0 | CM38: 0 | CN38: 0 | CO38: 0 | CP38: 0 | CQ38: 0 | CR38: 0 | CS38: 0 | CT38: 0 | CU38: 0 | CV38: 0 | CW38: 0 | CX38: 0 | CY38: 0 | CZ38: 0 | DA38: 0 | DB38: 0 | DC38: 0 | DD38: 0 | DE38: 0 | DF38: 0 | DG38: 0 | DH38: 0 | DI38: 0 | DJ38: 0 | DK38: 0 | DL38: 0 | DM38: 0 | DN38: 0 | DO38: 0 | DP38: 0 | DQ38: 0 | DR38: 0 | DS38: 0 | DT38: 0 | DU38: 0 | DV38: 0 | DW38: 0 | DX38: 0 | DY38: 0 | DZ38: 0 | EA38: 0 | EB38: 0
A39: 9 | B39: 9 | C39: Opel Ampera | D39: 403 | E39: 315 | F39: 337 | G39: 480 | H39: 402 | I39: 138 | J39: 152 | K39: 276 | L39: 272 | M39: 187 | N39: 362 | O39: 451 | P39: 155 | Q39: 177 | R39: 390 | S39: 420 | T39: 223 | U39: 278 | V39: 203 | W39: 179 | X39: 190 | Y39: 385 | Z39: 351 | AA39: 431 | AB39: 458 | AC39: 428 | AD39: 362 | AE39: 458 | AF39: 472 | AG39: 140 | AH39: 294 | AI39: 473 | AJ39: 298 | AK39: 257 | AL39: 460 | AM39: 477 | AN39: 316 | AO39: 217 | AP39: 267 | AQ39: 461 | AR39: 301 | AS39: 242 | AT39: 178 | AU39: 352 | AV39: 331 | AW39: 333 | AX39: 152 | AY39: 387 | AZ39: 346 | BA39: 350 | BB39: 277 | BC39: 491 | BD39: 182 | BE39: 131 | BF39: 458 | BG39: 265 | BH39: 283 | BI39: 478 | BJ39: 274 | BK39: 217 | BL39: 482 | BM39: 201 | BN39: 264 | BO39: 131 | BP39: 322 | BQ39: 292 | BR39: 499 | BS39: 138 | BT39: 429 | BU39: 129 | BV39: 469 | BW39: 288 | BX39: 109 | BY39: 278 | BZ39: 490 | CA39: 110 | CB39: 477 | CC39: 315 | CD39: 494 | CE39: 319 | CF39: 490 | CG39: 326 | CH39: 344 | CI39: 129 | CJ39: 0 | CK39: 0 | CL39: 0 | CM39: 0 | CN39: 0 | CO39: 0 | CP39: 0 | CQ39: 0 | CR39: 0 | CS39: 0 | CT39: 0 | CU39: 0 | CV39: 0 | CW39: 0 | CX39: 0 | CY39: 0 | CZ39: 0 | DA39: 0 | DB39: 0 | DC39: 0 | DD39: 0 | DE39: 0 | DF39: 0 | DG39: 0 | DH39: 0 | DI39: 0 | DJ39: 0 | DK39: 0 | DL39: 0 | DM39: 0 | DN39: 0 | DO39: 0 | DP39: 0 | DQ39: 0 | DR39: 0 | DS39: 0 | DT39: 0 | DU39: 0 | DV39: 0 | DW39: 0 | DX39: 0 | DY39: 0 | DZ39: 0 | EA39: 0 | EB39: 0
A40: 10 | B40: 10 | C40: Opel Antara | D40: 148 | E40: 265 | F40: 109 | G40: 253 | H40: 261 | I40: 306 | J40: 437 | K40: 138 | L40: 183 | M40: 406 | N40: 116 | O40: 140 | P40: 413 | Q40: 442 | R40: 303 | S40: 444 | T40: 259 | U40: 196 | V40: 117 | W40: 354 | X40: 190 | Y40: 287 | Z40: 472 | AA40: 113 | AB40: 169 | AC40: 148 | AD40: 387 | AE40: 412 | AF40: 309 | AG40: 312 | AH40: 253 | AI40: 289 | AJ40: 276 | AK40: 161 | AL40: 123 | AM40: 300 | AN40: 494 | AO40: 105 | AP40: 267 | AQ40: 416 | AR40: 325 | AS40: 325 | AT40: 473 | AU40: 358 | AV40: 463 | AW40: 288 | AX40: 177 | AY40: 452 | AZ40: 356 | BA40: 199 | BB40: 491 | BC40: 158 | BD40: 286 | BE40: 136 | BF40: 315 | BG40: 470 | BH40: 200 | BI40: 203 | BJ40: 135 | BK40: 489 | BL40: 154 | BM40: 378 | BN40: 453 | BO40: 427 | BP40: 115 | BQ40: 486 | BR40: 466 | BS40: 340 | BT40: 347 | BU40: 337 | BV40: 103 | BW40: 159 | BX40: 122 | BY40: 181 | BZ40: 327 | CA40: 254 | CB40: 346 | CC40: 206 | CD40: 210 | CE40: 158 | CF40: 436 | CG40: 267 | CH40: 411 | CI40: 197 | CJ40: 0 | CK40: 0 | CL40: 0 | CM40: 0 | CN40: 0 | CO40: 0 | CP40: 0 | CQ40: 0 | CR40: 0 | CS40: 0 | CT40: 0 | CU40: 0 | CV40: 0 | CW40: 0 | CX40: 0 | CY40: 0 | CZ40: 0 | DA40: 0 | DB40: 0 | DC40: 0 | DD40: 0 | DE40: 0 | DF40: 0 | DG40: 0 | DH40: 0 | DI40: 0 | DJ40: 0 | DK40: 0 | DL40: 0 | DM40: 0 | DN40: 0 | DO40: 0 | DP40: 0 | DQ40: 0 | DR40: 0 | DS40: 0 | DT40: 0 | DU40: 0 | DV40: 0 | DW40: 0 | DX40: 0 | DY40: 0 | DZ40: 0 | EA40: 0 | EB40: 0
A41: 11 | B41: 11 | C41: Opel Ascona | D41: 180 | E41: 118 | F41: 356 | G41: 153 | H41: 410 | I41: 273 | J41: 228 | K41: 163 | L41: 263 | M41: 337 | N41: 125 | O41: 367 | P41: 346 | Q41: 247 | R41: 105 | S41: 214 | T41: 401 | U41: 345 | V41: 344 | W41: 143 | X41: 401 | Y41: 334 | Z41: 152 | AA41: 158 | AB41: 255 | AC41: 357 | AD41: 481 | AE41: 378 | AF41: 495 | AG41: 301 | AH41: 485 | AI41: 273 | AJ41: 425 | AK41: 243 | AL41: 218 | AM41: 113 | AN41: 196 | AO41: 111 | AP41: 480 | AQ41: 202 | AR41: 217 | AS41: 260 | AT41: 125 | AU41: 462 | AV41: 432 | AW41: 411 | AX41: 112 | AY41: 386 | AZ41: 470 | BA41: 198 | BB41: 304 | BC41: 470 | BD41: 406 | BE41: 171 | BF41: 416 | BG41: 140 | BH41: 218 | BI41: 304 | BJ41: 302 | BK41: 481 | BL41: 343 | BM41: 445 | BN41: 441 | BO41: 131 | BP41: 181 | BQ41: 486 | BR41: 265 | BS41: 440 | BT41: 496 | BU41: 260 | BV41: 438 | BW41: 414 | BX41: 365 | BY41: 107 | BZ41: 478 | CA41: 211 | CB41: 114 | CC41: 409 | CD41: 178 | CE41: 273 | CF41: 375 | CG41: 302 | CH41: 162 | CI41: 130 | CJ41: 0 | CK41: 0 | CL41: 0 | CM41: 0 | CN41: 0 | CO41: 0 | CP41: 0 | CQ41: 0 | CR41: 0 | CS41: 0 | CT41: 0 | CU41: 0 | CV41: 0 | CW41: 0 | CX41: 0 | CY41: 0 | CZ41: 0 | DA41: 0 | DB41: 0 | DC41: 0 | DD41: 0 | DE41: 0 | DF41: 0 | DG41: 0 | DH41: 0 | DI41: 0 | DJ41: 0 | DK41: 0 | DL41: 0 | DM41: 0 | DN41: 0 | DO41: 0 | DP41: 0 | DQ41: 0 | DR41: 0 | DS41: 0 | DT41: 0 | DU41: 0 | DV41: 0 | DW41: 0 | DX41: 0 | DY41: 0 | DZ41: 0 | EA41: 0 | EB41: 0
A42: 12 | B42: =IF(LEN(C42)>1,A42,0) -> 12 | C42: Opel Astra | D42: 418 | E42: 248 | F42: 411 | G42: 403 | H42: 224 | I42: 201 | J42: 108 | K42: 333 | L42: 369 | M42: 390 | N42: 426 | O42: 275 | P42: 357 | Q42: 119 | R42: 153 | S42: 320 | T42: 180 | U42: 495 | V42: 163 | W42: 438 | X42: 180 | Y42: 357 | Z42: 201 | AA42: 165 | AB42: 482 | AC42: 455 | AD42: 308 | AE42: 291 | AF42: 217 | AG42: 386 | AH42: 489 | AI42: 168 | AJ42: 492 | AK42: 239 | AL42: 299 | AM42: 247 | AN42: 155 | AO42: 484 | AP42: 176 | AQ42: 397 | AR42: 264 | AS42: 451 | AT42: 237 | AU42: 486 | AV42: 405 | AW42: 398 | AX42: 480 | AY42: 293 | AZ42: 384 | BA42: 112 | BB42: 412 | BC42: 453 | BD42: 188 | BE42: 185 | BF42: 247 | BG42: 142 | BH42: 421 | BI42: 193 | BJ42: 276 | BK42: 109 | BL42: 259 | BM42: 428 | BN42: 132 | BO42: 263 | BP42: 177 | BQ42: 170 | BR42: 490 | BS42: 349 | BT42: 188 | BU42: 142 | BV42: 426 | BW42: 260 | BX42: 209 | BY42: 219 | BZ42: 462 | CA42: 216 | CB42: 184 | CC42: 158 | CD42: 336 | CE42: 445 | CF42: 387 | CG42: 102 | CH42: 180 | CI42: 114 | CJ42: 0 | CK42: 0 | CL42: 0 | CM42: 0 | CN42: 0 | CO42: 0 | CP42: 0 | CQ42: 0 | CR42: 0 | CS42: 0 | CT42: 0 | CU42: 0 | CV42: 0 | CW42: 0 | CX42: 0 | CY42: 0 | CZ42: 0 | DA42: 0 | DB42: 0 | DC42: 0 | DD42: 0 | DE42: 0 | DF42: 0 | DG42: 0 | DH42: 0 | DI42: 0 | DJ42: 0 | DK42: 0 | DL42: 0 | DM42: 0 | DN42: 0 | DO42: 0 | DP42: 0 | DQ42: 0 | DR42: 0 | DS42: 0 | DT42: 0 | DU42: 0 | DV42: 0 | DW42: 0 | DX42: 0 | DY42: 0 | DZ42: 0 | EA42: 0 | EB42: 0
A43: 13 | B43: 13 | C43: Opel Astra Cabrio | D43: 286 | E43: 249 | F43: 422 | G43: 481 | H43: 125 | I43: 348 | J43: 458 | K43: 314 | L43: 272 | M43: 288 | N43: 246 | O43: 223 | P43: 419 | Q43: 168 | R43: 431 | S43: 344 | T43: 166 | U43: 364 | V43: 477 | W43: 419 | X43: 364 | Y43: 329 | Z43: 222 | AA43: 147 | AB43: 444 | AC43: 153 | AD43: 360 | AE43: 454 | AF43: 198 | AG43: 216 | AH43: 264 | AI43: 488 | AJ43: 495 | AK43: 103 | AL43: 329 | AM43: 131 | AN43: 389 | AO43: 260 | AP43: 112 | AQ43: 204 | AR43: 141 | AS43: 490 | AT43: 319 | AU43: 345 | AV43: 281 | AW43: 454 | AX43: 246 | AY43: 318 | AZ43: 148 | BA43: 335 | BB43: 474 | BC43: 428 | BD43: 202 | BE43: 266 | BF43: 387 | BG43: 401 | BH43: 128 | BI43: 279 | BJ43: 324 | BK43: 489 | BL43: 385 | BM43: 348 | BN43: 181 | BO43: 386 | BP43: 235 | BQ43: 157 | BR43: 204 | BS43: 128 | BT43: 260 | BU43: 192 | BV43: 270 | BW43: 103 | BX43: 137 | BY43: 230 | BZ43: 234 | CA43: 492 | CB43: 127 | CC43: 237 | CD43: 457 | CE43: 172 | CF43: 251 | CG43: 267 | CH43: 461 | CI43: 413 | CJ43: 0 | CK43: 0 | CL43: 0 | CM43: 0 | CN43: 0 | CO43: 0 | CP43: 0 | CQ43: 0 | CR43: 0 | CS43: 0 | CT43: 0 | CU43: 0 | CV43: 0 | CW43: 0 | CX43: 0 | CY43: 0 | CZ43: 0 | DA43: 0 | DB43: 0 | DC43: 0 | DD43: 0 | DE43: 0 | DF43: 0 | DG43: 0 | DH43: 0 | DI43: 0 | DJ43: 0 | DK43: 0 | DL43: 0 | DM43: 0 | DN43: 0 | DO43: 0 | DP43: 0 | DQ43: 0 | DR43: 0 | DS43: 0 | DT43: 0 | DU43: 0 | DV43: 0 | DW43: 0 | DX43: 0 | DY43: 0 | DZ43: 0 | EA43: 0 | EB43: 0
A44: 14 | B44: 14 | C44: Opel Astra Coupe Bertone | D44: 276 | E44: 382 | F44: 373 | G44: 413 | H44: 340 | I44: 122 | J44: 249 | K44: 441 | L44: 372 | M44: 280 | N44: 249 | O44: 410 | P44: 138 | Q44: 131 | R44: 237 | S44: 412 | T44: 368 | U44: 244 | V44: 297 | W44: 284 | X44: 315 | Y44: 421 | Z44: 498 | AA44: 274 | AB44: 379 | AC44: 309 | AD44: 380 | AE44: 122 | AF44: 492 | AG44: 478 | AH44: 444 | AI44: 330 | AJ44: 433 | AK44: 456 | AL44: 441 | AM44: 178 | AN44: 446 | AO44: 473 | AP44: 448 | AQ44: 256 | AR44: 368 | AS44: 376 | AT44: 479 | AU44: 426 | AV44: 373 | AW44: 225 | AX44: 430 | AY44: 407 | AZ44: 475 | BA44: 406 | BB44: 336 | BC44: 457 | BD44: 425 | BE44: 324 | BF44: 469 | BG44: 363 | BH44: 362 | BI44: 186 | BJ44: 235 | BK44: 137 | BL44: 417 | BM44: 200 | BN44: 233 | BO44: 329 | BP44: 387 | BQ44: 257 | BR44: 438 | BS44: 387 | BT44: 199 | BU44: 500 | BV44: 469 | BW44: 157 | BX44: 468 | BY44: 487 | BZ44: 173 | CA44: 364 | CB44: 293 | CC44: 209 | CD44: 295 | CE44: 277 | CF44: 426 | CG44: 290 | CH44: 303 | CI44: 279 | CJ44: 0 | CK44: 0 | CL44: 0 | CM44: 0 | CN44: 0 | CO44: 0 | CP44: 0 | CQ44: 0 | CR44: 0 | CS44: 0 | CT44: 0 | CU44: 0 | CV44: 0 | CW44: 0 | CX44: 0 | CY44: 0 | CZ44: 0 | DA44: 0 | DB44: 0 | DC44: 0 | DD44: 0 | DE44: 0 | DF44: 0 | DG44: 0 | DH44: 0 | DI44: 0 | DJ44: 0 | DK44: 0 | DL44: 0 | DM44: 0 | DN44: 0 | DO44: 0 | DP44: 0 | DQ44: 0 | DR44: 0 | DS44: 0 | DT44: 0 | DU44: 0 | DV44: 0 | DW44: 0 | DX44: 0 | DY44: 0 | DZ44: 0 | EA44: 0 | EB44: 0
A45: 15 | B45: 15 | C45: Opel Astra GTC | D45: 419 | E45: =INDIRECT($C$33&E$32&ROW()-$C$34) -> 233 | F45: 447 | G45: 392 | H45: 116 | I45: 296 | J45: 231 | K45: 453 | L45: 297 | M45: 421 | N45: 371 | O45: =INDIRECT($C$33&O$32&ROW()-$C$34) -> 354 | P45: 332 | Q45: 392 | R45: 158 | S45: 179 | T45: 216 | U45: 103 | V45: 241 | W45: 308 | X45: 489 | Y45: =INDIRECT($C$33&Y$32&ROW()-$C$34) -> 138 | Z45: 140 | AA45: 482 | AB45: 228 | AC45: 327 | AD45: 346 | AE45: 107 | AF45: 412 | AG45: 406 | AH45: 449 | AI45: =INDIRECT($C$33&AI$32&ROW()-$C$34) -> 132 | AJ45: 100 | AK45: 317 | AL45: 296 | AM45: 263 | AN45: 450 | AO45: 434 | AP45: 355 | AQ45: 343 | AR45: 445 | AS45: =INDIRECT($C$33&AS$32&ROW()-$C$34) -> 315 | AT45: 495 | AU45: 195 | AV45: 165 | AW45: 291 | AX45: 234 | AY45: 106 | AZ45: 377 | BA45: 199 | BB45: 181 | BC45: =INDIRECT($C$33&BC$32&ROW()-$C$34) -> 405 | BD45: 269 | BE45: 445 | BF45: 116 | BG45: 378 | BH45: 189 | BI45: 474 | BJ45: 207 | BK45: 107 | BL45: 218 | BM45: =INDIRECT($C$33&BM$32&ROW()-$C$34) -> 250 | BN45: 179 | BO45: 184 | BP45: 248 | BQ45: 255 | BR45: 192 | BS45: 104 | BT45: 390 | BU45: 373 | BV45: 196 | BW45: =INDIRECT($C$33&BW$32&ROW()-$C$34) -> 122 | BX45: 458 | BY45: 292 | BZ45: 189 | CA45: 262 | CB45: 489 | CC45: 139 | CD45: 178 | CE45: 305 | CF45: 134 | CG45: =INDIRECT($C$33&CG$32&ROW()-$C$34) -> 477 | CH45: 377 | CI45: 197 | CJ45: 0 | CK45: 0 | CL45: 0 | CM45: 0 | CN45: 0 | CO45: 0 | CP45: 0 | CQ45: =INDIRECT($C$33&CQ$32&ROW()-$C$34) -> 0 | CR45: 0 | CS45: 0 | CT45: 0 | CU45: 0 | CV45: 0 | CW45: 0 | CX45: 0 | CY45: 0 | CZ45: 0 | DA45: 0 | DB45: 0 | DC45: 0 | DD45: 0 | DE45: 0 | DF45: 0 | DG45: 0 | DH45: 0 | DI45: 0 | DJ45: 0 | DK45: 0 | DL45: 0 | DM45: 0 | DN45: 0 | DO45: 0 | DP45: 0 | DQ45: 0 | DR45: 0 | DS45: 0 | DT45: 0 | DU45: 0 | DV45: 0 | DW45: 0 | DX45: 0 | DY45: 0 | DZ45: 0 | EA45: 0 | EB45: 0
A46: 16 | B46: 16 | C46: Opel Astra OPC | D46: 371 | E46: 431 | F46: 436 | G46: 312 | H46: 146 | I46: 197 | J46: 343 | K46: 200 | L46: 365 | M46: 156 | N46: 164 | O46: 131 | P46: 204 | Q46: 112 | R46: 305 | S46: 376 | T46: 149 | U46: 109 | V46: 280 | W46: 216 | X46: 120 | Y46: 167 | Z46: 267 | AA46: 173 | AB46: 251 | AC46: 424 | AD46: 295 | AE46: 205 | AF46: 317 | AG46: 203 | AH46: 299 | AI46: 156 | AJ46: 363 | AK46: 109 | AL46: 480 | AM46: 239 | AN46: 292 | AO46: 248 | AP46: 250 | AQ46: 275 | AR46: 411 | AS46: 149 | AT46: 118 | AU46: 274 | AV46: 266 | AW46: 158 | AX46: 407 | AY46: 313 | AZ46: 337 | BA46: 182 | BB46: 478 | BC46: 153 | BD46: 250 | BE46: 499 | BF46: 191 | BG46: 223 | BH46: 494 | BI46: 243 | BJ46: 436 | BK46: 297 | BL46: 284 | BM46: 346 | BN46: 327 | BO46: 409 | BP46: 460 | BQ46: 167 | BR46: 105 | BS46: 429 | BT46: 144 | BU46: 330 | BV46: 355 | BW46: 360 | BX46: 326 | BY46: 221 | BZ46: 487 | CA46: 361 | CB46: 417 | CC46: 207 | CD46: 175 | CE46: 455 | CF46: 193 | CG46: 110 | CH46: 426 | CI46: 139 | CJ46: 0 | CK46: 0 | CL46: 0 | CM46: 0 | CN46: 0 | CO46: 0 | CP46: 0 | CQ46: 0 | CR46: 0 | CS46: 0 | CT46: 0 | CU46: 0 | CV46: 0 | CW46: 0 | CX46: 0 | CY46: 0 | CZ46: 0 | DA46: 0 | DB46: 0 | DC46: 0 | DD46: 0 | DE46: 0 | DF46: 0 | DG46: 0 | DH46: 0 | DI46: 0 | DJ46: 0 | DK46: 0 | DL46: 0 | DM46: 0 | DN46: 0 | DO46: 0 | DP46: 0 | DQ46: 0 | DR46: 0 | DS46: 0 | DT46: 0 | DU46: 0 | DV46: 0 | DW46: 0 | DX46: 0 | DY46: 0 | DZ46: 0 | EA46: 0 | EB46: 0
A47: 17 | B47: 17 | C47: Opel Astra Twin Top | D47: 398 | E47: 276 | F47: 453 | G47: 163 | H47: 117 | I47: 211 | J47: 142 | K47: 258 | L47: 235 | M47: 495 | N47: 145 | O47: 379 | P47: 291 | Q47: 285 | R47: 299 | S47: 316 | T47: 341 | U47: 238 | V47: 435 | W47: 488 | X47: 376 | Y47: 414 | Z47: 161 | AA47: 417 | AB47: 295 | AC47: 373 | AD47: 464 | AE47: 319 | AF47: 460 | AG47: 452 | AH47: 122 | AI47: 141 | AJ47: 204 | AK47: 212 | AL47: 407 | AM47: 213 | AN47: 321 | AO47: 260 | AP47: 208 | AQ47: 194 | AR47: 408 | AS47: 492 | AT47: 102 | AU47: 307 | AV47: 261 | AW47: 309 | AX47: 284 | AY47: 453 | AZ47: 407 | BA47: 178 | BB47: 313 | BC47: 151 | BD47: 486 | BE47: 345 | BF47: 424 | BG47: 497 | BH47: 496 | BI47: 234 | BJ47: 170 | BK47: 132 | BL47: 164 | BM47: 334 | BN47: 138 | BO47: 180 | BP47: 462 | BQ47: 209 | BR47: 374 | BS47: 223 | BT47: 279 | BU47: 500 | BV47: 177 | BW47: 184 | BX47: 487 | BY47: 143 | BZ47: 489 | CA47: 295 | CB47: 303 | CC47: 437 | CD47: 364 | CE47: 203 | CF47: 246 | CG47: 253 | CH47: 470 | CI47: 457 | CJ47: 0 | CK47: 0 | CL47: 0 | CM47: 0 | CN47: 0 | CO47: 0 | CP47: 0 | CQ47: 0 | CR47: 0 | CS47: 0 | CT47: 0 | CU47: 0 | CV47: 0 | CW47: 0 | CX47: 0 | CY47: 0 | CZ47: 0 | DA47: 0 | DB47: 0 | DC47: 0 | DD47: 0 | DE47: 0 | DF47: 0 | DG47: 0 | DH47: 0 | DI47: 0 | DJ47: 0 | DK47: 0 | DL47: 0 | DM47: 0 | DN47: 0 | DO47: 0 | DP47: 0 | DQ47: 0 | DR47: 0 | DS47: 0 | DT47: 0 | DU47: 0 | DV47: 0 | DW47: 0 | DX47: 0 | DY47: 0 | DZ47: 0 | EA47: 0 | EB47: 0
A48: 18 | B48: 18 | C48: Opel Bedford Blitz | D48: 338 | E48: 214 | F48: 388 | G48: 476 | H48: 123 | I48: 266 | J48: 470 | K48: 491 | L48: 118 | M48: 196 | N48: 238 | O48: 183 | P48: 394 | Q48: 201 | R48: 217 | S48: 404 | T48: 330 | U48: 190 | V48: 392 | W48: 416 | X48: 340 | Y48: 124 | Z48: 395 | AA48: 450 | AB48: 362 | AC48: 258 | AD48: 359 | AE48: 479 | AF48: 169 | AG48: 286 | AH48: 292 | AI48: 434 | AJ48: 179 | AK48: 458 | AL48: 483 | AM48: 303 | AN48: 401 | AO48: 278 | AP48: 383 | AQ48: 339 | AR48: 297 | AS48: 431 | AT48: 156 | AU48: 281 | AV48: 100 | AW48: 347 | AX48: 288 | AY48: 427 | AZ48: 116 | BA48: 242 | BB48: 440 | BC48: 190 | BD48: 156 | BE48: 197 | BF48: 283 | BG48: 334 | BH48: 360 | BI48: 160 | BJ48: 401 | BK48: 250 | BL48: 207 | BM48: 258 | BN48: 210 | BO48: 161 | BP48: 265 | BQ48: 371 | BR48: 407 | BS48: 412 | BT48: 424 | BU48: 249 | BV48: 295 | BW48: 211 | BX48: 105 | BY48: 198 | BZ48: 370 | CA48: 116 | CB48: 418 | CC48: 119 | CD48: 128 | CE48: 355 | CF48: 494 | CG48: 430 | CH48: 431 | CI48: 177 | CJ48: 0 | CK48: 0 | CL48: 0 | CM48: 0 | CN48: 0 | CO48: 0 | CP48: 0 | CQ48: 0 | CR48: 0 | CS48: 0 | CT48: 0 | CU48: 0 | CV48: 0 | CW48: 0 | CX48: 0 | CY48: 0 | CZ48: 0 | DA48: 0 | DB48: 0 | DC48: 0 | DD48: 0 | DE48: 0 | DF48: 0 | DG48: 0 | DH48: 0 | DI48: 0 | DJ48: 0 | DK48: 0 | DL48: 0 | DM48: 0 | DN48: 0 | DO48: 0 | DP48: 0 | DQ48: 0 | DR48: 0 | DS48: 0 | DT48: 0 | DU48: 0 | DV48: 0 | DW48: 0 | DX48: 0 | DY48: 0 | DZ48: 0 | EA48: 0 | EB48: 0
A49: 19 | B49: 19 | C49: Opel Calibra | D49: 497 | E49: 429 | F49: 465 | G49: 287 | H49: 413 | I49: 417 | J49: 377 | K49: 290 | L49: 488 | M49: 205 | N49: 280 | O49: 165 | P49: 123 | Q49: 204 | R49: 454 | S49: 338 | T49: 486 | U49: 129 | V49: 245 | W49: 330 | X49: 253 | Y49: 453 | Z49: 184 | AA49: 407 | AB49: 268 | AC49: 364 | AD49: 355 | AE49: 449 | AF49: 390 | AG49: 113 | AH49: 265 | AI49: 197 | AJ49: 247 | AK49: 339 | AL49: 239 | AM49: 389 | AN49: 255 | AO49: 393 | AP49: 300 | AQ49: 230 | AR49: 393 | AS49: 286 | AT49: 192 | AU49: 366 | AV49: 450 | AW49: 239 | AX49: 286 | AY49: 146 | AZ49: 340 | BA49: 438 | BB49: 382 | BC49: 239 | BD49: 106 | BE49: 241 | BF49: 192 | BG49: 107 | BH49: 226 | BI49: 436 | BJ49: 392 | BK49: 497 | BL49: 206 | BM49: 406 | BN49: 214 | BO49: 227 | BP49: 300 | BQ49: 163 | BR49: 465 | BS49: 301 | BT49: 308 | BU49: 176 | BV49: 318 | BW49: 410 | BX49: 186 | BY49: 122 | BZ49: 365 | CA49: 275 | CB49: 143 | CC49: 271 | CD49: 267 | CE49: 432 | CF49: 218 | CG49: 164 | CH49: 184 | CI49: 134 | CJ49: 0 | CK49: 0 | CL49: 0 | CM49: 0 | CN49: 0 | CO49: 0 | CP49: 0 | CQ49: 0 | CR49: 0 | CS49: 0 | CT49: 0 | CU49: 0 | CV49: 0 | CW49: 0 | CX49: 0 | CY49: 0 | CZ49: 0 | DA49: 0 | DB49: 0 | DC49: 0 | DD49: 0 | DE49: 0 | DF49: 0 | DG49: 0 | DH49: 0 | DI49: 0 | DJ49: 0 | DK49: 0 | DL49: 0 | DM49: 0 | DN49: 0 | DO49: 0 | DP49: 0 | DQ49: 0 | DR49: 0 | DS49: 0 | DT49: 0 | DU49: 0 | DV49: 0 | DW49: 0 | DX49: 0 | DY49: 0 | DZ49: 0 | EA49: 0 | EB49: 0
A50: 20 | B50: 20 | C50: Opel Combo | D50: 146 | E50: 308 | F50: 180 | G50: 220 | H50: 277 | I50: 474 | J50: 335 | K50: 407 | L50: 320 | M50: 253 | N50: 105 | O50: 232 | P50: 135 | Q50: 170 | R50: 478 | S50: 443 | T50: 282 | U50: 461 | V50: 252 | W50: 410 | X50: 491 | Y50: 126 | Z50: 414 | AA50: 294 | AB50: 209 | AC50: 336 | AD50: 208 | AE50: 279 | AF50: 120 | AG50: 303 | AH50: 206 | AI50: 175 | AJ50: 247 | AK50: 375 | AL50: 329 | AM50: 240 | AN50: 411 | AO50: 372 | AP50: 341 | AQ50: 313 | AR50: 247 | AS50: 116 | AT50: 134 | AU50: 378 | AV50: 287 | AW50: 354 | AX50: 298 | AY50: 484 | AZ50: 211 | BA50: 159 | BB50: 307 | BC50: 244 | BD50: 190 | BE50: 403 | BF50: 324 | BG50: 222 | BH50: 235 | BI50: 462 | BJ50: 212 | BK50: 232 | BL50: 458 | BM50: 235 | BN50: 500 | BO50: 121 | BP50: 184 | BQ50: 426 | BR50: 495 | BS50: 386 | BT50: 312 | BU50: 350 | BV50: 225 | BW50: 339 | BX50: 363 | BY50: 413 | BZ50: 363 | CA50: 375 | CB50: 452 | CC50: 387 | CD50: 363 | CE50: 217 | CF50: 195 | CG50: 348 | CH50: 117 | CI50: 406 | CJ50: 0 | CK50: 0 | CL50: 0 | CM50: 0 | CN50: 0 | CO50: 0 | CP50: 0 | CQ50: 0 | CR50: 0 | CS50: 0 | CT50: 0 | CU50: 0 | CV50: 0 | CW50: 0 | CX50: 0 | CY50: 0 | CZ50: 0 | DA50: 0 | DB50: 0 | DC50: 0 | DD50: 0 | DE50: 0 | DF50: 0 | DG50: 0 | DH50: 0 | DI50: 0 | DJ50: 0 | DK50: 0 | DL50: 0 | DM50: 0 | DN50: 0 | DO50: 0 | DP50: 0 | DQ50: 0 | DR50: 0 | DS50: 0 | DT50: 0 | DU50: 0 | DV50: 0 | DW50: 0 | DX50: 0 | DY50: 0 | DZ50: 0 | EA50: 0 | EB50: 0
A51: 21 | B51: 21 | C51: Opel Commodore | D51: 444 | E51: 460 | F51: 434 | G51: 134 | H51: 374 | I51: 484 | J51: 476 | K51: 419 | L51: 185 | M51: 107 | N51: 376 | O51: 395 | P51: 496 | Q51: 260 | R51: 497 | S51: 167 | T51: 349 | U51: 198 | V51: 458 | W51: 173 | X51: 445 | Y51: 381 | Z51: 421 | AA51: 147 | AB51: 439 | AC51: 347 | AD51: 413 | AE51: 180 | AF51: 216 | AG51: 331 | AH51: 180 | AI51: 168 | AJ51: 350 | AK51: 157 | AL51: 425 | AM51: 426 | AN51: 211 | AO51: 120 | AP51: 337 | AQ51: 371 | AR51: 159 | AS51: 194 | AT51: 149 | AU51: 263 | AV51: 294 | AW51: 408 | AX51: 447 | AY51: 135 | AZ51: 336 | BA51: 443 | BB51: 359 | BC51: 401 | BD51: 184 | BE51: 279 | BF51: 425 | BG51: 246 | BH51: 482 | BI51: 300 | BJ51: 141 | BK51: 398 | BL51: 132 | BM51: 412 | BN51: 480 | BO51: 108 | BP51: 426 | BQ51: 245 | BR51: 122 | BS51: 138 | BT51: 121 | BU51: 409 | BV51: 360 | BW51: 142 | BX51: 264 | BY51: 301 | BZ51: 204 | CA51: 307 | CB51: 217 | CC51: 140 | CD51: 230 | CE51: 426 | CF51: 450 | CG51: 332 | CH51: 253 | CI51: 441 | CJ51: 0 | CK51: 0 | CL51: 0 | CM51: 0 | CN51: 0 | CO51: 0 | CP51: 0 | CQ51: 0 | CR51: 0 | CS51: 0 | CT51: 0 | CU51: 0 | CV51: 0 | CW51: 0 | CX51: 0 | CY51: 0 | CZ51: 0 | DA51: 0 | DB51: 0 | DC51: =INDIRECT($C$33&DC$32&ROW()-$C$34) -> 0 | DD51: 0 | DE51: 0 | DF51: 0 | DG51: 0 | DH51: 0 | DI51: 0 | DJ51: 0 | DK51: 0 | DL51: 0 | DM51: 0 | DN51: 0 | DO51: 0 | DP51: 0 | DQ51: 0 | DR51: 0 | DS51: 0 | DT51: =INDIRECT($C$33&DT$32&ROW()-$C$34) -> 0 | DU51: 0 | DV51: 0 | DW51: 0 | DX51: 0 | DY51: 0 | DZ51: 0 | EA51: 0 | EB51: 0
A52: 22 | B52: 22 | C52: Opel Corsa | D52: 293 | E52: 166 | F52: 274 | G52: 179 | H52: 251 | I52: 226 | J52: 389 | K52: 291 | L52: 325 | M52: 484 | N52: 135 | O52: 299 | P52: 300 | Q52: 442 | R52: 228 | S52: 133 | T52: 263 | U52: 386 | V52: 440 | W52: 141 | X52: 341 | Y52: 346 | Z52: 155 | AA52: 284 | AB52: 223 | AC52: 158 | AD52: 316 | AE52: 271 | AF52: 288 | AG52: 228 | AH52: 159 | AI52: 496 | AJ52: 133 | AK52: 326 | AL52: 241 | AM52: 444 | AN52: 417 | AO52: 261 | AP52: 302 | AQ52: 248 | AR52: 250 | AS52: 360 | AT52: 485 | AU52: 273 | AV52: 433 | AW52: 287 | AX52: 189 | AY52: 277 | AZ52: 307 | BA52: 420 | BB52: 157 | BC52: 344 | BD52: 314 | BE52: 139 | BF52: 192 | BG52: 328 | BH52: 346 | BI52: 213 | BJ52: 218 | BK52: 160 | BL52: 335 | BM52: 346 | BN52: 452 | BO52: 415 | BP52: 233 | BQ52: 371 | BR52: 249 | BS52: 250 | BT52: 212 | BU52: 157 | BV52: 453 | BW52: 179 | BX52: 358 | BY52: 169 | BZ52: 434 | CA52: 150 | CB52: 249 | CC52: 470 | CD52: 428 | CE52: 417 | CF52: 162 | CG52: 262 | CH52: 120 | CI52: 489 | CJ52: 0 | CK52: 0 | CL52: 0 | CM52: 0 | CN52: 0 | CO52: 0 | CP52: 0 | CQ52: 0 | CR52: 0 | CS52: 0 | CT52: 0 | CU52: 0 | CV52: 0 | CW52: 0 | CX52: 0 | CY52: 0 | CZ52: 0 | DA52: 0 | DB52: 0 | DC52: 0 | DD52: 0 | DE52: 0 | DF52: 0 | DG52: 0 | DH52: 0 | DI52: 0 | DJ52: 0 | DK52: 0 | DL52: 0 | DM52: 0 | DN52: 0 | DO52: 0 | DP52: 0 | DQ52: 0 | DR52: 0 | DS52: 0 | DT52: 0 | DU52: 0 | DV52: 0 | DW52: 0 | DX52: 0 | DY52: 0 | DZ52: 0 | EA52: 0 | EB52: 0
A53: 23 | B53: 23 | C53: Opel Corsa OPC | D53: 177 | E53: 392 | F53: 315 | G53: 224 | H53: 124 | I53: 148 | J53: 390 | K53: 314 | L53: 326 | M53: 472 | N53: 477 | O53: 126 | P53: 297 | Q53: 329 | R53: 237 | S53: 166 | T53: 389 | U53: 429 | V53: 107 | W53: 263 | X53: 193 | Y53: 208 | Z53: 491 | AA53: 455 | AB53: 498 | AC53: 239 | AD53: 180 | AE53: 439 | AF53: 386 | AG53: 476 | AH53: 184 | AI53: 474 | AJ53: 286 | AK53: 482 | AL53: 268 | AM53: 306 | AN53: 420 | AO53: 309 | AP53: 406 | AQ53: 219 | AR53: 327 | AS53: 180 | AT53: 284 | AU53: 339 | AV53: 253 | AW53: 413 | AX53: 155 | AY53: 404 | AZ53: 125 | BA53: 152 | BB53: 333 | BC53: 408 | BD53: 106 | BE53: 415 | BF53: 374 | BG53: 196 | BH53: 478 | BI53: 373 | BJ53: 146 | BK53: 397 | BL53: 482 | BM53: 203 | BN53: 289 | BO53: 229 | BP53: 459 | BQ53: 120 | BR53: 412 | BS53: 109 | BT53: 346 | BU53: 265 | BV53: 442 | BW53: 150 | BX53: 382 | BY53: 270 | BZ53: 110 | CA53: 306 | CB53: 306 | CC53: 369 | CD53: 340 | CE53: 489 | CF53: 238 | CG53: 334 | CH53: 315 | CI53: 315 | CJ53: 0 | CK53: 0 | CL53: 0 | CM53: 0 | CN53: 0 | CO53: 0 | CP53: 0 | CQ53: 0 | CR53: 0 | CS53: 0 | CT53: 0 | CU53: 0 | CV53: 0 | CW53: 0 | CX53: 0 | CY53: 0 | CZ53: 0 | DA53: 0 | DB53: 0 | DC53: 0 | DD53: 0 | DE53: 0 | DF53: 0 | DG53: 0 | DH53: 0 | DI53: 0 | DJ53: 0 | DK53: 0 | DL53: 0 | DM53: 0 | DN53: 0 | DO53: 0 | DP53: 0 | DQ53: 0 | DR53: 0 | DS53: 0 | DT53: 0 | DU53: 0 | DV53: 0 | DW53: 0 | DX53: 0 | DY53: 0 | DZ53: 0 | EA53: 0 | EB53: 0
A54: 24 | B54: 24 | C54: Opel Diplomat | D54: 233 | E54: 324 | F54: 392 | G54: 311 | H54: 244 | I54: 462 | J54: 458 | K54: 428 | L54: 338 | M54: 417 | N54: 134 | O54: 285 | P54: 446 | Q54: 123 | R54: 375 | S54: 242 | T54: 483 | U54: 447 | V54: 113 | W54: 304 | X54: 225 | Y54: 102 | Z54: 281 | AA54: 165 | AB54: 173 | AC54: 187 | AD54: 440 | AE54: 455 | AF54: 391 | AG54: 432 | AH54: 178 | AI54: 435 | AJ54: 177 | AK54: 489 | AL54: 153 | AM54: 265 | AN54: 393 | AO54: 442 | AP54: 331 | AQ54: 375 | AR54: 421 | AS54: 370 | AT54: 101 | AU54: 130 | AV54: 312 | AW54: 483 | AX54: 250 | AY54: 155 | AZ54: 441 | BA54: 207 | BB54: 402 | BC54: 470 | BD54: 413 | BE54: 409 | BF54: 356 | BG54: 472 | BH54: 124 | BI54: 294 | BJ54: 146 | BK54: 412 | BL54: 448 | BM54: 381 | BN54: 198 | BO54: 166 | BP54: 238 | BQ54: 122 | BR54: 165 | BS54: 397 | BT54: 210 | BU54: 128 | BV54: 180 | BW54: 467 | BX54: 304 | BY54: 455 | BZ54: 123 | CA54: 348 | CB54: 189 | CC54: 418 | CD54: 329 | CE54: 459 | CF54: 400 | CG54: 473 | CH54: 190 | CI54: 398 | CJ54: 0 | CK54: 0 | CL54: 0 | CM54: 0 | CN54: 0 | CO54: 0 | CP54: 0 | CQ54: 0 | CR54: 0 | CS54: 0 | CT54: 0 | CU54: 0 | CV54: 0 | CW54: 0 | CX54: 0 | CY54: 0 | CZ54: 0 | DA54: 0 | DB54: 0 | DC54: 0 | DD54: 0 | DE54: 0 | DF54: 0 | DG54: 0 | DH54: 0 | DI54: 0 | DJ54: 0 | DK54: 0 | DL54: 0 | DM54: 0 | DN54: 0 | DO54: 0 | DP54: 0 | DQ54: 0 | DR54: 0 | DS54: 0 | DT54: 0 | DU54: 0 | DV54: 0 | DW54: 0 | DX54: 0 | DY54: 0 | DZ54: 0 | EA54: 0 | EB54: 0
A55: 25 | B55: 25 | C55: Opel Frontera A | D55: 355 | E55: =INDIRECT($C$33&E$32&ROW()-$C$34) -> 409 | F55: 123 | G55: 408 | H55: 259 | I55: 491 | J55: 131 | K55: 351 | L55: 138 | M55: 471 | N55: 300 | O55: =INDIRECT($C$33&O$32&ROW()-$C$34) -> 162 | P55: 436 | Q55: 271 | R55: 359 | S55: 222 | T55: 178 | U55: 445 | V55: 332 | W55: 462 | X55: 370 | Y55: =INDIRECT($C$33&Y$32&ROW()-$C$34) -> 387 | Z55: 198 | AA55: 363 | AB55: 190 | AC55: 447 | AD55: 177 | AE55: 385 | AF55: 134 | AG55: 348 | AH55: 253 | AI55: =INDIRECT($C$33&AI$32&ROW()-$C$34) -> 287 | AJ55: 352 | AK55: 147 | AL55: 267 | AM55: 415 | AN55: 231 | AO55: 294 | AP55: 254 | AQ55: 301 | AR55: 293 | AS55: =INDIRECT($C$33&AS$32&ROW()-$C$34) -> 440 | AT55: 282 | AU55: 496 | AV55: 162 | AW55: 175 | AX55: 106 | AY55: 116 | AZ55: 130 | BA55: 258 | BB55: 484 | BC55: =INDIRECT($C$33&BC$32&ROW()-$C$34) -> 430 | BD55: 405 | BE55: 125 | BF55: 204 | BG55: 153 | BH55: 211 | BI55: 241 | BJ55: 329 | BK55: 103 | BL55: 163 | BM55: =INDIRECT($C$33&BM$32&ROW()-$C$34) -> 475 | BN55: 425 | BO55: 279 | BP55: 172 | BQ55: 422 | BR55: 149 | BS55: 458 | BT55: 362 | BU55: 279 | BV55: 360 | BW55: =INDIRECT($C$33&BW$32&ROW()-$C$34) -> 208 | BX55: 215 | BY55: 432 | BZ55: 476 | CA55: 473 | CB55: 199 | CC55: 240 | CD55: 304 | CE55: 103 | CF55: 412 | CG55: =INDIRECT($C$33&CG$32&ROW()-$C$34) -> 175 | CH55: 183 | CI55: 481 | CJ55: 0 | CK55: 0 | CL55: 0 | CM55: 0 | CN55: 0 | CO55: 0 | CP55: 0 | CQ55: =INDIRECT($C$33&CQ$32&ROW()-$C$34) -> 0 | CR55: 0 | CS55: 0 | CT55: 0 | CU55: 0 | CV55: 0 | CW55: 0 | CX55: 0 | CY55: 0 | CZ55: 0 | DA55: 0 | DB55: 0 | DC55: 0 | DD55: 0 | DE55: 0 | DF55: 0 | DG55: 0 | DH55: 0 | DI55: 0 | DJ55: 0 | DK55: 0 | DL55: 0 | DM55: 0 | DN55: 0 | DO55: 0 | DP55: 0 | DQ55: 0 | DR55: 0 | DS55: 0 | DT55: 0 | DU55: 0 | DV55: 0 | DW55: 0 | DX55: 0 | DY55: 0 | DZ55: 0 | EA55: 0 | EB55: 0
A56: 26 | B56: 26 | C56: =INDIRECT($C$33&C$32&ROW()-$C$34) -> Opel Frontera B | D56: 427 | E56: 224 | F56: 221 | G56: 164 | H56: 205 | I56: 459 | J56: 191 | K56: 186 | L56: 299 | M56: 222 | N56: 413 | O56: 105 | P56: 380 | Q56: 339 | R56: 262 | S56: 355 | T56: 317 | U56: 490 | V56: 232 | W56: 322 | X56: 103 | Y56: 195 | Z56: 346 | AA56: 467 | AB56: 375 | AC56: 306 | AD56: 416 | AE56: 169 | AF56: 237 | AG56: 319 | AH56: 167 | AI56: 358 | AJ56: 311 | AK56: 422 | AL56: 374 | AM56: 306 | AN56: 128 | AO56: 385 | AP56: 106 | AQ56: 107 | AR56: 317 | AS56: 274 | AT56: 379 | AU56: 184 | AV56: 101 | AW56: 226 | AX56: 258 | AY56: 265 | AZ56: 384 | BA56: 352 | BB56: 459 | BC56: 104 | BD56: 154 | BE56: 409 | BF56: 374 | BG56: 223 | BH56: 486 | BI56: 168 | BJ56: 126 | BK56: 453 | BL56: 453 | BM56: 362 | BN56: 246 | BO56: 363 | BP56: 454 | BQ56: 267 | BR56: 164 | BS56: 345 | BT56: 345 | BU56: 250 | BV56: 217 | BW56: 469 | BX56: 188 | BY56: 157 | BZ56: 165 | CA56: 136 | CB56: 380 | CC56: 373 | CD56: 429 | CE56: 222 | CF56: 348 | CG56: 102 | CH56: 417 | CI56: 200 | CJ56: 0 | CK56: 0 | CL56: 0 | CM56: 0 | CN56: 0 | CO56: 0 | CP56: 0 | CQ56: 0 | CR56: 0 | CS56: 0 | CT56: 0 | CU56: 0 | CV56: 0 | CW56: 0 | CX56: 0 | CY56: 0 | CZ56: 0 | DA56: 0 | DB56: 0 | DC56: 0 | DD56: 0 | DE56: 0 | DF56: 0 | DG56: 0 | DH56: 0 | DI56: 0 | DJ56: 0 | DK56: 0 | DL56: 0 | DM56: 0 | DN56: 0 | DO56: 0 | DP56: 0 | DQ56: 0 | DR56: 0 | DS56: 0 | DT56: 0 | DU56: 0 | DV56: 0 | DW56: 0 | DX56: 0 | DY56: 0 | DZ56: 0 | EA56: 0 | EB56: 0
A57: 27 | B57: 27 | C57: Opel GT | D57: 257 | E57: 146 | F57: 228 | G57: 235 | H57: 225 | I57: 367 | J57: 323 | K57: 130 | L57: 400 | M57: 228 | N57: 186 | O57: 168 | P57: 413 | Q57: 279 | R57: 220 | S57: 161 | T57: 112 | U57: 129 | V57: 253 | W57: 418 | X57: 494 | Y57: 100 | Z57: 134 | AA57: 287 | AB57: 334 | AC57: 289 | AD57: 186 | AE57: 437 | AF57: 186 | AG57: 312 | AH57: 311 | AI57: 183 | AJ57: 410 | AK57: 298 | AL57: 259 | AM57: 457 | AN57: 446 | AO57: 159 | AP57: 451 | AQ57: 127 | AR57: 271 | AS57: 252 | AT57: 418 | AU57: 261 | AV57: 235 | AW57: 310 | AX57: 249 | AY57: 370 | AZ57: 127 | BA57: 202 | BB57: 378 | BC57: 313 | BD57: 196 | BE57: 268 | BF57: 211 | BG57: 448 | BH57: 266 | BI57: 277 | BJ57: 201 | BK57: 383 | BL57: 157 | BM57: 252 | BN57: 314 | BO57: 187 | BP57: 133 | BQ57: 216 | BR57: 129 | BS57: 136 | BT57: 351 | BU57: 350 | BV57: 431 | BW57: 383 | BX57: 433 | BY57: 273 | BZ57: 202 | CA57: 196 | CB57: 190 | CC57: 161 | CD57: 320 | CE57: 405 | CF57: 295 | CG57: 306 | CH57: 100 | CI57: 234 | CJ57: 0 | CK57: 0 | CL57: 0 | CM57: 0 | CN57: 0 | CO57: 0 | CP57: 0 | CQ57: 0 | CR57: 0 | CS57: 0 | CT57: 0 | CU57: 0 | CV57: 0 | CW57: 0 | CX57: 0 | CY57: 0 | CZ57: 0 | DA57: 0 | DB57: 0 | DC57: 0 | DD57: 0 | DE57: 0 | DF57: 0 | DG57: 0 | DH57: 0 | DI57: 0 | DJ57: 0 | DK57: 0 | DL57: 0 | DM57: 0 | DN57: 0 | DO57: 0 | DP57: 0 | DQ57: 0 | DR57: 0 | DS57: 0 | DT57: 0 | DU57: 0 | DV57: 0 | DW57: 0 | DX57: 0 | DY57: 0 | DZ57: 0 | EA57: 0 | EB57: 0
A58: 28 | B58: 28 | C58: Opel Insignia | D58: 134 | E58: 470 | F58: 489 | G58: 119 | H58: 213 | I58: 310 | J58: 161 | K58: 302 | L58: 384 | M58: 216 | N58: 228 | O58: 202 | P58: 248 | Q58: 145 | R58: 154 | S58: 467 | T58: 300 | U58: 430 | V58: 486 | W58: 425 | X58: 404 | Y58: 273 | Z58: 301 | AA58: 315 | AB58: 423 | AC58: 260 | AD58: 456 | AE58: 446 | AF58: 170 | AG58: 211 | AH58: 139 | AI58: 245 | AJ58: 112 | AK58: 344 | AL58: 102 | AM58: 329 | AN58: 425 | AO58: 393 | AP58: 272 | AQ58: 412 | AR58: 204 | AS58: 173 | AT58: 354 | AU58: 186 | AV58: 356 | AW58: 251 | AX58: 332 | AY58: 307 | AZ58: 128 | BA58: 300 | BB58: 343 | BC58: 311 | BD58: 343 | BE58: 265 | BF58: 360 | BG58: 238 | BH58: 324 | BI58: 293 | BJ58: 289 | BK58: 130 | BL58: 188 | BM58: 200 | BN58: 337 | BO58: 157 | BP58: 189 | BQ58: 338 | BR58: 407 | BS58: 102 | BT58: 292 | BU58: 309 | BV58: 362 | BW58: 414 | BX58: 260 | BY58: 232 | BZ58: 256 | CA58: 158 | CB58: 102 | CC58: 483 | CD58: 367 | CE58: 175 | CF58: 299 | CG58: 290 | CH58: 166 | CI58: 241 | CJ58: 0 | CK58: 0 | CL58: 0 | CM58: 0 | CN58: 0 | CO58: 0 | CP58: 0 | CQ58: 0 | CR58: 0 | CS58: 0 | CT58: 0 | CU58: 0 | CV58: 0 | CW58: 0 | CX58: 0 | CY58: 0 | CZ58: 0 | DA58: 0 | DB58: 0 | DC58: 0 | DD58: 0 | DE58: 0 | DF58: 0 | DG58: 0 | DH58: 0 | DI58: 0 | DJ58: 0 | DK58: 0 | DL58: 0 | DM58: 0 | DN58: 0 | DO58: 0 | DP58: 0 | DQ58: 0 | DR58: 0 | DS58: 0 | DT58: 0 | DU58: 0 | DV58: 0 | DW58: 0 | DX58: 0 | DY58: 0 | DZ58: 0 | EA58: 0 | EB58: 0
A59: 29 | B59: 29 | C59: Opel Insignia Country Tourer | D59: 389 | E59: 324 | F59: 438 | G59: 121 | H59: 145 | I59: 497 | J59: 211 | K59: 212 | L59: 130 | M59: 173 | N59: 357 | O59: 463 | P59: 306 | Q59: 157 | R59: 480 | S59: 432 | T59: 228 | U59: 403 | V59: 489 | W59: 320 | X59: 221 | Y59: 321 | Z59: 266 | AA59: 129 | AB59: 180 | AC59: 264 | AD59: 268 | AE59: 329 | AF59: 494 | AG59: 267 | AH59: 306 | AI59: 214 | AJ59: 375 | AK59: 397 | AL59: 147 | AM59: 382 | AN59: 137 | AO59: 194 | AP59: 135 | AQ59: 297 | AR59: 390 | AS59: 299 | AT59: 420 | AU59: 107 | AV59: 478 | AW59: 351 | AX59: 263 | AY59: 169 | AZ59: 138 | BA59: 152 | BB59: 431 | BC59: 455 | BD59: 477 | BE59: 250 | BF59: 303 | BG59: 323 | BH59: 443 | BI59: 486 | BJ59: 359 | BK59: 475 | BL59: 130 | BM59: 146 | BN59: 434 | BO59: 431 | BP59: 209 | BQ59: 338 | BR59: 177 | BS59: 439 | BT59: 124 | BU59: 232 | BV59: 264 | BW59: 495 | BX59: 365 | BY59: 208 | BZ59: 166 | CA59: 342 | CB59: 299 | CC59: 146 | CD59: 336 | CE59: 193 | CF59: 189 | CG59: 151 | CH59: 319 | CI59: 163 | CJ59: 0 | CK59: 0 | CL59: 0 | CM59: 0 | CN59: 0 | CO59: 0 | CP59: 0 | CQ59: 0 | CR59: 0 | CS59: 0 | CT59: 0 | CU59: 0 | CV59: 0 | CW59: 0 | CX59: 0 | CY59: 0 | CZ59: 0 | DA59: 0 | DB59: 0 | DC59: 0 | DD59: 0 | DE59: 0 | DF59: 0 | DG59: 0 | DH59: 0 | DI59: 0 | DJ59: 0 | DK59: 0 | DL59: 0 | DM59: 0 | DN59: 0 | DO59: 0 | DP59: 0 | DQ59: 0 | DR59: 0 | DS59: 0 | DT59: 0 | DU59: 0 | DV59: 0 | DW59: 0 | DX59: 0 | DY59: 0 | DZ59: 0 | EA59: 0 | EB59: 0
A60: 30 | B60: 30 | C60: Opel Insignia Hatchback | D60: 406 | E60: 253 | F60: 380 | G60: 352 | H60: 417 | I60: 444 | J60: 120 | K60: 232 | L60: 493 | M60: 181 | N60: 461 | O60: 292 | P60: 280 | Q60: 479 | R60: 112 | S60: 365 | T60: 399 | U60: 212 | V60: 368 | W60: 193 | X60: 218 | Y60: 387 | Z60: 385 | AA60: 411 | AB60: 381 | AC60: 115 | AD60: 374 | AE60: 335 | AF60: 314 | AG60: 409 | AH60: 202 | AI60: 161 | AJ60: 491 | AK60: 174 | AL60: 250 | AM60: 462 | AN60: 352 | AO60: 316 | AP60: 410 | AQ60: 409 | AR60: 308 | AS60: 304 | AT60: 308 | AU60: 332 | AV60: 112 | AW60: 452 | AX60: 179 | AY60: 316 | AZ60: 438 | BA60: 404 | BB60: 109 | BC60: 199 | BD60: 363 | BE60: 360 | BF60: 346 | BG60: 103 | BH60: 325 | BI60: 236 | BJ60: 130 | BK60: 337 | BL60: 169 | BM60: 189 | BN60: 416 | BO60: 203 | BP60: 394 | BQ60: 114 | BR60: 342 | BS60: 483 | BT60: 366 | BU60: 358 | BV60: 144 | BW60: 427 | BX60: 253 | BY60: 387 | BZ60: 471 | CA60: 168 | CB60: 181 | CC60: 228 | CD60: 487 | CE60: 361 | CF60: 492 | CG60: 305 | CH60: 361 | CI60: 172 | CJ60: 0 | CK60: 0 | CL60: 0 | CM60: 0 | CN60: 0 | CO60: 0 | CP60: 0 | CQ60: 0 | CR60: 0 | CS60: 0 | CT60: 0 | CU60: 0 | CV60: 0 | CW60: 0 | CX60: 0 | CY60: 0 | CZ60: 0 | DA60: 0 | DB60: 0 | DC60: 0 | DD60: 0 | DE60: 0 | DF60: 0 | DG60: 0 | DH60: 0 | DI60: 0 | DJ60: 0 | DK60: 0 | DL60: 0 | DM60: 0 | DN60: 0 | DO60: 0 | DP60: 0 | DQ60: 0 | DR60: 0 | DS60: 0 | DT60: 0 | DU60: 0 | DV60: 0 | DW60: 0 | DX60: 0 | DY60: 0 | DZ60: 0 | EA60: 0 | EB60: 0
A61: 31 | B61: 31 | C61: Opel Insignia OPC | D61: 325 | E61: 269 | F61: 295 | G61: 366 | H61: 155 | I61: 350 | J61: 454 | K61: 328 | L61: 211 | M61: 436 | N61: 357 | O61: 232 | P61: 189 | Q61: 218 | R61: 462 | S61: 210 | T61: 134 | U61: 373 | V61: 285 | W61: 341 | X61: 496 | Y61: 470 | Z61: 462 | AA61: 322 | AB61: 231 | AC61: 284 | AD61: 488 | AE61: 362 | AF61: 489 | AG61: 430 | AH61: 266 | AI61: 154 | AJ61: 463 | AK61: 497 | AL61: 390 | AM61: 120 | AN61: 496 | AO61: 354 | AP61: 284 | AQ61: 174 | AR61: 126 | AS61: 418 | AT61: 138 | AU61: 396 | AV61: 342 | AW61: 225 | AX61: 484 | AY61: 440 | AZ61: 480 | BA61: 472 | BB61: 445 | BC61: 425 | BD61: 216 | BE61: 104 | BF61: 346 | BG61: 107 | BH61: 160 | BI61: 161 | BJ61: 164 | BK61: 326 | BL61: 477 | BM61: 393 | BN61: 436 | BO61: 304 | BP61: 135 | BQ61: 125 | BR61: 246 | BS61: 417 | BT61: 149 | BU61: 470 | BV61: 276 | BW61: 149 | BX61: 266 | BY61: 259 | BZ61: 205 | CA61: 178 | CB61: 317 | CC61: 248 | CD61: 274 | CE61: 319 | CF61: 408 | CG61: 421 | CH61: 219 | CI61: 410 | CJ61: 0 | CK61: 0 | CL61: 0 | CM61: 0 | CN61: 0 | CO61: 0 | CP61: 0 | CQ61: 0 | CR61: 0 | CS61: 0 | CT61: 0 | CU61: 0 | CV61: 0 | CW61: 0 | CX61: 0 | CY61: 0 | CZ61: 0 | DA61: 0 | DB61: 0 | DC61: 0 | DD61: 0 | DE61: 0 | DF61: 0 | DG61: 0 | DH61: 0 | DI61: 0 | DJ61: 0 | DK61: 0 | DL61: 0 | DM61: 0 | DN61: 0 | DO61: 0 | DP61: 0 | DQ61: 0 | DR61: 0 | DS61: 0 | DT61: 0 | DU61: 0 | DV61: 0 | DW61: 0 | DX61: 0 | DY61: 0 | DZ61: 0 | EA61: 0 | EB61: 0
A62: 32 | B62: 32 | C62: Opel Insignia OPC Tourer Sports | D62: 125 | E62: 218 | F62: 155 | G62: 117 | H62: 321 | I62: 293 | J62: 256 | K62: 321 | L62: 486 | M62: 419 | N62: 163 | O62: 237 | P62: 263 | Q62: 123 | R62: 335 | S62: 171 | T62: 236 | U62: 130 | V62: 389 | W62: 395 | X62: 439 | Y62: 183 | Z62: 112 | AA62: 398 | AB62: 447 | AC62: 431 | AD62: 271 | AE62: 482 | AF62: 173 | AG62: 488 | AH62: 237 | AI62: 269 | AJ62: 440 | AK62: 148 | AL62: 293 | AM62: 378 | AN62: 380 | AO62: 275 | AP62: 138 | AQ62: 367 | AR62: 415 | AS62: 222 | AT62: 261 | AU62: 374 | AV62: 185 | AW62: 363 | AX62: 189 | AY62: 245 | AZ62: 211 | BA62: 242 | BB62: 270 | BC62: 425 | BD62: 336 | BE62: 342 | BF62: 286 | BG62: 205 | BH62: 401 | BI62: 287 | BJ62: 232 | BK62: 159 | BL62: 296 | BM62: 118 | BN62: 203 | BO62: 425 | BP62: 377 | BQ62: 494 | BR62: 143 | BS62: 267 | BT62: 172 | BU62: 319 | BV62: 416 | BW62: 399 | BX62: 499 | BY62: 330 | BZ62: 189 | CA62: 103 | CB62: 127 | CC62: 192 | CD62: 116 | CE62: 398 | CF62: 242 | CG62: 224 | CH62: 320 | CI62: 102 | CJ62: 0 | CK62: 0 | CL62: 0 | CM62: 0 | CN62: 0 | CO62: 0 | CP62: 0 | CQ62: 0 | CR62: 0 | CS62: 0 | CT62: 0 | CU62: 0 | CV62: 0 | CW62: 0 | CX62: 0 | CY62: 0 | CZ62: 0 | DA62: 0 | DB62: 0 | DC62: 0 | DD62: 0 | DE62: 0 | DF62: 0 | DG62: 0 | DH62: 0 | DI62: 0 | DJ62: 0 | DK62: 0 | DL62: 0 | DM62: 0 | DN62: 0 | DO62: 0 | DP62: 0 | DQ62: 0 | DR62: 0 | DS62: 0 | DT62: 0 | DU62: 0 | DV62: 0 | DW62: 0 | DX62: 0 | DY62: 0 | DZ62: 0 | EA62: 0 | EB62: 0
A63: 33 | B63: 33 | C63: Opel Insignia Sports Tourer | D63: 487 | E63: 461 | F63: 119 | G63: 485 | H63: 202 | I63: 199 | J63: 236 | K63: 182 | L63: 334 | M63: 425 | N63: 368 | O63: 205 | P63: 483 | Q63: 368 | R63: 288 | S63: 478 | T63: 153 | U63: 477 | V63: 216 | W63: 450 | X63: 479 | Y63: 294 | Z63: 200 | AA63: 486 | AB63: 466 | AC63: 251 | AD63: 319 | AE63: 381 | AF63: 459 | AG63: 340 | AH63: 469 | AI63: 398 | AJ63: 299 | AK63: 195 | AL63: 298 | AM63: 279 | AN63: 203 | AO63: 329 | AP63: 418 | AQ63: 260 | AR63: 102 | AS63: 245 | AT63: 382 | AU63: 245 | AV63: 211 | AW63: 397 | AX63: 321 | AY63: 401 | AZ63: 427 | BA63: 374 | BB63: 301 | BC63: 172 | BD63: 330 | BE63: 411 | BF63: 469 | BG63: 196 | BH63: 192 | BI63: 441 | BJ63: 114 | BK63: 348 | BL63: 429 | BM63: 452 | BN63: 102 | BO63: 210 | BP63: 423 | BQ63: 328 | BR63: 210 | BS63: 102 | BT63: 283 | BU63: 260 | BV63: 342 | BW63: 355 | BX63: 194 | BY63: 236 | BZ63: 160 | CA63: 489 | CB63: 261 | CC63: 461 | CD63: 414 | CE63: 147 | CF63: 188 | CG63: 174 | CH63: 465 | CI63: 388 | CJ63: 0 | CK63: 0 | CL63: 0 | CM63: 0 | CN63: 0 | CO63: 0 | CP63: 0 | CQ63: 0 | CR63: 0 | CS63: 0 | CT63: 0 | CU63: 0 | CV63: 0 | CW63: 0 | CX63: 0 | CY63: 0 | CZ63: 0 | DA63: 0 | DB63: 0 | DC63: 0 | DD63: 0 | DE63: 0 | DF63: 0 | DG63: 0 | DH63: 0 | DI63: 0 | DJ63: 0 | DK63: 0 | DL63: 0 | DM63: 0 | DN63: 0 | DO63: 0 | DP63: 0 | DQ63: 0 | DR63: 0 | DS63: 0 | DT63: 0 | DU63: 0 | DV63: 0 | DW63: 0 | DX63: 0 | DY63: 0 | DZ63: 0 | EA63: 0 | EB63: 0
A64: 34 | B64: 34 | C64: Opel Kadett | D64: 464 | E64: 163 | F64: 402 | G64: 495 | H64: 405 | I64: 116 | J64: 290 | K64: 470 | L64: 103 | M64: 362 | N64: 166 | O64: 404 | P64: 143 | Q64: 175 | R64: 352 | S64: 159 | T64: 272 | U64: 421 | V64: 386 | W64: 260 | X64: 407 | Y64: 249 | Z64: 368 | AA64: 104 | AB64: 125 | AC64: 278 | AD64: 294 | AE64: 398 | AF64: 152 | AG64: 290 | AH64: 269 | AI64: 284 | AJ64: 367 | AK64: 487 | AL64: 402 | AM64: 130 | AN64: 208 | AO64: 266 | AP64: 100 | AQ64: 467 | AR64: 130 | AS64: 323 | AT64: 247 | AU64: 288 | AV64: 261 | AW64: 355 | AX64: 283 | AY64: 395 | AZ64: 380 | BA64: 130 | BB64: 252 | BC64: 144 | BD64: 313 | BE64: 302 | BF64: 363 | BG64: 331 | BH64: 361 | BI64: 219 | BJ64: 394 | BK64: 257 | BL64: 201 | BM64: 342 | BN64: 171 | BO64: 127 | BP64: 453 | BQ64: 176 | BR64: 280 | BS64: 321 | BT64: 280 | BU64: 467 | BV64: 158 | BW64: 289 | BX64: 376 | BY64: 324 | BZ64: 216 | CA64: 233 | CB64: 250 | CC64: 489 | CD64: 152 | CE64: 424 | CF64: 471 | CG64: 473 | CH64: 317 | CI64: 472 | CJ64: 0 | CK64: 0 | CL64: 0 | CM64: 0 | CN64: 0 | CO64: 0 | CP64: 0 | CQ64: 0 | CR64: 0 | CS64: 0 | CT64: 0 | CU64: 0 | CV64: 0 | CW64: 0 | CX64: 0 | CY64: 0 | CZ64: 0 | DA64: 0 | DB64: 0 | DC64: 0 | DD64: 0 | DE64: 0 | DF64: 0 | DG64: 0 | DH64: 0 | DI64: 0 | DJ64: 0 | DK64: 0 | DL64: 0 | DM64: 0 | DN64: 0 | DO64: 0 | DP64: 0 | DQ64: 0 | DR64: 0 | DS64: 0 | DT64: 0 | DU64: 0 | DV64: 0 | DW64: 0 | DX64: 0 | DY64: 0 | DZ64: 0 | EA64: 0 | EB64: 0
A65: 35 | B65: 35 | C65: Opel Kapitan | D65: 201 | E65: =INDIRECT($C$33&E$32&ROW()-$C$34) -> 469 | F65: 312 | G65: 139 | H65: 165 | I65: 361 | J65: 279 | K65: 418 | L65: 137 | M65: 185 | N65: 354 | O65: =INDIRECT($C$33&O$32&ROW()-$C$34) -> 277 | P65: 322 | Q65: 303 | R65: 398 | S65: 389 | T65: 373 | U65: 438 | V65: 415 | W65: 167 | X65: 122 | Y65: =INDIRECT($C$33&Y$32&ROW()-$C$34) -> 266 | Z65: 500 | AA65: 357 | AB65: 257 | AC65: 484 | AD65: 328 | AE65: 340 | AF65: 195 | AG65: 431 | AH65: 397 | AI65: =INDIRECT($C$33&AI$32&ROW()-$C$34) -> 484 | AJ65: 382 | AK65: 474 | AL65: 244 | AM65: 145 | AN65: 369 | AO65: 138 | AP65: 438 | AQ65: 442 | AR65: 483 | AS65: =INDIRECT($C$33&AS$32&ROW()-$C$34) -> 300 | AT65: 216 | AU65: 302 | AV65: 102 | AW65: 452 | AX65: 391 | AY65: 200 | AZ65: 415 | BA65: 424 | BB65: 177 | BC65: =INDIRECT($C$33&BC$32&ROW()-$C$34) -> 389 | BD65: 452 | BE65: 349 | BF65: 147 | BG65: 315 | BH65: 357 | BI65: 236 | BJ65: 236 | BK65: 330 | BL65: 430 | BM65: =INDIRECT($C$33&BM$32&ROW()-$C$34) -> 194 | BN65: 184 | BO65: 484 | BP65: 499 | BQ65: 428 | BR65: 332 | BS65: 292 | BT65: 324 | BU65: 356 | BV65: 259 | BW65: =INDIRECT($C$33&BW$32&ROW()-$C$34) -> 487 | BX65: 193 | BY65: 335 | BZ65: 354 | CA65: 372 | CB65: 244 | CC65: 376 | CD65: 177 | CE65: 349 | CF65: 478 | CG65: =INDIRECT($C$33&CG$32&ROW()-$C$34) -> 214 | CH65: 412 | CI65: 426 | CJ65: 0 | CK65: 0 | CL65: 0 | CM65: 0 | CN65: 0 | CO65: 0 | CP65: 0 | CQ65: =INDIRECT($C$33&CQ$32&ROW()-$C$34) -> 0 | CR65: 0 | CS65: 0 | CT65: 0 | CU65: 0 | CV65: 0 | CW65: 0 | CX65: 0 | CY65: 0 | CZ65: 0 | DA65: 0 | DB65: 0 | DC65: 0 | DD65: 0 | DE65: 0 | DF65: 0 | DG65: 0 | DH65: 0 | DI65: 0 | DJ65: 0 | DK65: 0 | DL65: 0 | DM65: 0 | DN65: 0 | DO65: 0 | DP65: 0 | DQ65: 0 | DR65: 0 | DS65: 0 | DT65: 0 | DU65: 0 | DV65: 0 | DW65: 0 | DX65: 0 | DY65: 0 | DZ65: 0 | EA65: 0 | EB65: 0
A66: 36 | B66: 36 | C66: Opel Manta | D66: 346 | E66: 239 | F66: 246 | G66: 177 | H66: 418 | I66: 196 | J66: 271 | K66: 382 | L66: 210 | M66: 234 | N66: 105 | O66: 352 | P66: 150 | Q66: 199 | R66: 133 | S66: 285 | T66: 106 | U66: 148 | V66: 460 | W66: 209 | X66: 481 | Y66: 107 | Z66: 444 | AA66: 465 | AB66: 151 | AC66: 371 | AD66: 482 | AE66: 325 | AF66: 176 | AG66: 481 | AH66: 435 | AI66: 438 | AJ66: 156 | AK66: 464 | AL66: 285 | AM66: 110 | AN66: 306 | AO66: 478 | AP66: 206 | AQ66: 424 | AR66: 171 | AS66: 360 | AT66: 359 | AU66: 376 | AV66: 200 | AW66: 345 | AX66: 341 | AY66: 122 | AZ66: 357 | BA66: 453 | BB66: 277 | BC66: 292 | BD66: 205 | BE66: 310 | BF66: 154 | BG66: 104 | BH66: 139 | BI66: 268 | BJ66: 497 | BK66: 258 | BL66: 196 | BM66: 106 | BN66: 170 | BO66: 117 | BP66: 367 | BQ66: 239 | BR66: 316 | BS66: 134 | BT66: 380 | BU66: 235 | BV66: 205 | BW66: 140 | BX66: 307 | BY66: 218 | BZ66: 354 | CA66: 214 | CB66: 391 | CC66: 165 | CD66: 370 | CE66: 451 | CF66: 108 | CG66: 323 | CH66: 292 | CI66: 266 | CJ66: 0 | CK66: 0 | CL66: 0 | CM66: 0 | CN66: 0 | CO66: 0 | CP66: 0 | CQ66: 0 | CR66: 0 | CS66: 0 | CT66: 0 | CU66: 0 | CV66: 0 | CW66: 0 | CX66: 0 | CY66: 0 | CZ66: 0 | DA66: 0 | DB66: 0 | DC66: 0 | DD66: 0 | DE66: 0 | DF66: 0 | DG66: 0 | DH66: 0 | DI66: 0 | DJ66: 0 | DK66: 0 | DL66: 0 | DM66: 0 | DN66: 0 | DO66: 0 | DP66: 0 | DQ66: 0 | DR66: 0 | DS66: 0 | DT66: 0 | DU66: 0 | DV66: 0 | DW66: 0 | DX66: 0 | DY66: 0 | DZ66: 0 | EA66: 0 | EB66: 0
A67: 37 | B67: 37 | C67: Opel Meriva | D67: 452 | E67: 176 | F67: 444 | G67: 450 | H67: 344 | I67: 242 | J67: 359 | K67: 275 | L67: 234 | M67: 385 | N67: 182 | O67: 212 | P67: 123 | Q67: 395 | R67: 194 | S67: 195 | T67: 358 | U67: 477 | V67: 285 | W67: 404 | X67: 422 | Y67: 329 | Z67: 246 | AA67: 263 | AB67: 431 | AC67: 164 | AD67: 326 | AE67: 331 | AF67: 456 | AG67: 123 | AH67: 498 | AI67: 210 | AJ67: 496 | AK67: 408 | AL67: 287 | AM67: 243 | AN67: 178 | AO67: 420 | AP67: 371 | AQ67: 111 | AR67: 421 | AS67: 362 | AT67: 189 | AU67: 347 | AV67: 159 | AW67: 371 | AX67: 249 | AY67: 495 | AZ67: 450 | BA67: 384 | BB67: 425 | BC67: 480 | BD67: 391 | BE67: 387 | BF67: 192 | BG67: 169 | BH67: 207 | BI67: 274 | BJ67: 498 | BK67: 254 | BL67: 250 | BM67: 264 | BN67: 173 | BO67: 165 | BP67: 360 | BQ67: 490 | BR67: 292 | BS67: 243 | BT67: 465 | BU67: 445 | BV67: 150 | BW67: 398 | BX67: 475 | BY67: 264 | BZ67: 459 | CA67: 179 | CB67: 311 | CC67: 155 | CD67: 480 | CE67: 482 | CF67: 456 | CG67: 245 | CH67: 432 | CI67: 185 | CJ67: 0 | CK67: 0 | CL67: 0 | CM67: 0 | CN67: 0 | CO67: 0 | CP67: 0 | CQ67: 0 | CR67: 0 | CS67: 0 | CT67: 0 | CU67: 0 | CV67: 0 | CW67: 0 | CX67: 0 | CY67: 0 | CZ67: 0 | DA67: 0 | DB67: 0 | DC67: =INDIRECT($C$33&DC$32&ROW()-$C$34) -> 0 | DD67: 0 | DE67: 0 | DF67: 0 | DG67: 0 | DH67: 0 | DI67: 0 | DJ67: 0 | DK67: 0 | DL67: 0 | DM67: 0 | DN67: 0 | DO67: 0 | DP67: 0 | DQ67: 0 | DR67: 0 | DS67: 0 | DT67: =INDIRECT($C$33&DT$32&ROW()-$C$34) -> 0 | DU67: 0 | DV67: 0 | DW67: 0 | DX67: 0 | DY67: 0 | DZ67: 0 | EA67: 0 | EB67: 0
A68: 38 | B68: =IF(LEN(C68)>1,A68,0) -> 38 | C68: Opel Meriva OPC | D68: 110 | E68: 351 | F68: 150 | G68: 299 | H68: 258 | I68: 303 | J68: 457 | K68: 286 | L68: 249 | M68: 162 | N68: 302 | O68: 473 | P68: 231 | Q68: 278 | R68: 101 | S68: 178 | T68: 233 | U68: 463 | V68: 344 | W68: 421 | X68: 220 | Y68: 353 | Z68: 102 | AA68: 374 | AB68: 164 | AC68: 308 | AD68: 311 | AE68: 112 | AF68: 243 | AG68: 242 | AH68: 138 | AI68: 400 | AJ68: 386 | AK68: 333 | AL68: 428 | AM68: 423 | AN68: 361 | AO68: 266 | AP68: 453 | AQ68: 114 | AR68: 283 | AS68: 233 | AT68: 305 | AU68: 183 | AV68: 189 | AW68: 186 | AX68: 414 | AY68: 468 | AZ68: 395 | BA68: 323 | BB68: 170 | BC68: 369 | BD68: 371 | BE68: 199 | BF68: 295 | BG68: 194 | BH68: 340 | BI68: 452 | BJ68: 131 | BK68: 171 | BL68: 190 | BM68: 480 | BN68: 229 | BO68: 328 | BP68: 145 | BQ68: 117 | BR68: 142 | BS68: 327 | BT68: 126 | BU68: 259 | BV68: 188 | BW68: 243 | BX68: 160 | BY68: 473 | BZ68: 308 | CA68: 467 | CB68: 294 | CC68: 222 | CD68: 135 | CE68: 451 | CF68: 316 | CG68: 312 | CH68: 278 | CI68: 389 | CJ68: 0 | CK68: 0 | CL68: 0 | CM68: 0 | CN68: 0 | CO68: 0 | CP68: 0 | CQ68: 0 | CR68: 0 | CS68: 0 | CT68: 0 | CU68: 0 | CV68: 0 | CW68: 0 | CX68: 0 | CY68: 0 | CZ68: 0 | DA68: 0 | DB68: 0 | DC68: 0 | DD68: 0 | DE68: 0 | DF68: 0 | DG68: 0 | DH68: 0 | DI68: 0 | DJ68: 0 | DK68: 0 | DL68: 0 | DM68: 0 | DN68: 0 | DO68: 0 | DP68: 0 | DQ68: 0 | DR68: 0 | DS68: 0 | DT68: 0 | DU68: 0 | DV68: 0 | DW68: 0 | DX68: 0 | DY68: 0 | DZ68: 0 | EA68: 0 | EB68: 0
A69: 39 | B69: 39 | C69: Opel Mokka | D69: 488 | E69: 450 | F69: 216 | G69: 271 | H69: 285 | I69: 384 | J69: 333 | K69: 198 | L69: 256 | M69: 170 | N69: 195 | O69: 114 | P69: 145 | Q69: 493 | R69: 345 | S69: 106 | T69: 139 | U69: 406 | V69: 175 | W69: 305 | X69: 419 | Y69: 463 | Z69: 467 | AA69: 453 | AB69: 284 | AC69: 420 | AD69: 430 | AE69: 334 | AF69: 499 | AG69: 132 | AH69: 115 | AI69: 191 | AJ69: 462 | AK69: 163 | AL69: 201 | AM69: 344 | AN69: 200 | AO69: 374 | AP69: 145 | AQ69: 301 | AR69: 313 | AS69: 163 | AT69: 118 | AU69: 413 | AV69: 268 | AW69: 375 | AX69: 380 | AY69: 224 | AZ69: 110 | BA69: 402 | BB69: 290 | BC69: 195 | BD69: 252 | BE69: 475 | BF69: 304 | BG69: 471 | BH69: 285 | BI69: 145 | BJ69: 307 | BK69: 270 | BL69: 110 | BM69: 182 | BN69: 312 | BO69: 329 | BP69: 338 | BQ69: 174 | BR69: 154 | BS69: 151 | BT69: 497 | BU69: 433 | BV69: 476 | BW69: 445 | BX69: 165 | BY69: 354 | BZ69: 203 | CA69: 104 | CB69: 433 | CC69: 283 | CD69: 121 | CE69: 401 | CF69: 454 | CG69: 268 | CH69: 469 | CI69: 434 | CJ69: 0 | CK69: 0 | CL69: 0 | CM69: 0 | CN69: 0 | CO69: 0 | CP69: 0 | CQ69: 0 | CR69: 0 | CS69: 0 | CT69: 0 | CU69: 0 | CV69: 0 | CW69: 0 | CX69: 0 | CY69: 0 | CZ69: 0 | DA69: 0 | DB69: 0 | DC69: 0 | DD69: 0 | DE69: 0 | DF69: 0 | DG69: 0 | DH69: 0 | DI69: 0 | DJ69: 0 | DK69: 0 | DL69: 0 | DM69: 0 | DN69: 0 | DO69: 0 | DP69: 0 | DQ69: 0 | DR69: 0 | DS69: 0 | DT69: 0 | DU69: 0 | DV69: 0 | DW69: 0 | DX69: 0 | DY69: 0 | DZ69: 0 | EA69: 0 | EB69: 0
A70: 40 | B70: 40 | C70: Opel Monterey | D70: 129 | E70: 224 | F70: 149 | G70: 468 | H70: 279 | I70: 381 | J70: 309 | K70: 323 | L70: 327 | M70: 196 | N70: 320 | O70: 496 | P70: 112 | Q70: 355 | R70: 491 | S70: 426 | T70: 431 | U70: 303 | V70: 240 | W70: 348 | X70: 233 | Y70: 443 | Z70: 382 | AA70: 262 | AB70: 392 | AC70: 250 | AD70: 479 | AE70: 330 | AF70: 160 | AG70: 433 | AH70: 169 | AI70: 369 | AJ70: 224 | AK70: 372 | AL70: 390 | AM70: 230 | AN70: 493 | AO70: 480 | AP70: 453 | AQ70: 173 | AR70: 439 | AS70: 488 | AT70: 461 | AU70: 336 | AV70: 163 | AW70: 445 | AX70: 232 | AY70: 281 | AZ70: 226 | BA70: 253 | BB70: 172 | BC70: 476 | BD70: 466 | BE70: 160 | BF70: 402 | BG70: 346 | BH70: 215 | BI70: 222 | BJ70: 381 | BK70: 464 | BL70: 145 | BM70: 408 | BN70: 309 | BO70: 104 | BP70: 432 | BQ70: 224 | BR70: 444 | BS70: 332 | BT70: 223 | BU70: 341 | BV70: 159 | BW70: 444 | BX70: 437 | BY70: 160 | BZ70: 493 | CA70: 489 | CB70: 215 | CC70: 194 | CD70: 314 | CE70: 181 | CF70: 175 | CG70: 378 | CH70: 306 | CI70: 230 | CJ70: 0 | CK70: 0 | CL70: 0 | CM70: 0 | CN70: 0 | CO70: 0 | CP70: 0 | CQ70: 0 | CR70: 0 | CS70: 0 | CT70: 0 | CU70: 0 | CV70: 0 | CW70: 0 | CX70: 0 | CY70: 0 | CZ70: 0 | DA70: 0 | DB70: 0 | DC70: 0 | DD70: 0 | DE70: 0 | DF70: 0 | DG70: 0 | DH70: 0 | DI70: 0 | DJ70: 0 | DK70: 0 | DL70: 0 | DM70: 0 | DN70: 0 | DO70: 0 | DP70: 0 | DQ70: 0 | DR70: 0 | DS70: 0 | DT70: 0 | DU70: 0 | DV70: 0 | DW70: 0 | DX70: 0 | DY70: 0 | DZ70: 0 | EA70: 0 | EB70: 0
A71: 41 | B71: 41 | C71: Opel Monza | D71: 305 | E71: 337 | F71: 220 | G71: 478 | H71: 155 | I71: 328 | J71: 123 | K71: 274 | L71: 183 | M71: 272 | N71: 497 | O71: 205 | P71: 407 | Q71: 449 | R71: 163 | S71: 341 | T71: 342 | U71: 141 | V71: 298 | W71: 483 | X71: 200 | Y71: 146 | Z71: 360 | AA71: 321 | AB71: 369 | AC71: 253 | AD71: 444 | AE71: 331 | AF71: 312 | AG71: 251 | AH71: 483 | AI71: 367 | AJ71: 354 | AK71: 477 | AL71: 188 | AM71: 273 | AN71: 119 | AO71: 498 | AP71: 310 | AQ71: 109 | AR71: 443 | AS71: 261 | AT71: 390 | AU71: 259 | AV71: 114 | AW71: 221 | AX71: 362 | AY71: 130 | AZ71: 400 | BA71: 332 | BB71: 249 | BC71: 302 | BD71: 436 | BE71: 395 | BF71: 452 | BG71: 270 | BH71: 171 | BI71: 410 | BJ71: 169 | BK71: 466 | BL71: 342 | BM71: 398 | BN71: 149 | BO71: 143 | BP71: 248 | BQ71: 235 | BR71: 392 | BS71: 474 | BT71: 297 | BU71: 332 | BV71: 236 | BW71: 422 | BX71: 442 | BY71: 450 | BZ71: 486 | CA71: 315 | CB71: 338 | CC71: 421 | CD71: 108 | CE71: 224 | CF71: 127 | CG71: 208 | CH71: 453 | CI71: 229 | CJ71: 0 | CK71: 0 | CL71: 0 | CM71: 0 | CN71: 0 | CO71: 0 | CP71: 0 | CQ71: 0 | CR71: 0 | CS71: 0 | CT71: 0 | CU71: 0 | CV71: 0 | CW71: 0 | CX71: 0 | CY71: 0 | CZ71: 0 | DA71: 0 | DB71: 0 | DC71: 0 | DD71: 0 | DE71: 0 | DF71: 0 | DG71: 0 | DH71: 0 | DI71: 0 | DJ71: 0 | DK71: 0 | DL71: 0 | DM71: 0 | DN71: 0 | DO71: 0 | DP71: 0 | DQ71: 0 | DR71: 0 | DS71: 0 | DT71: 0 | DU71: 0 | DV71: 0 | DW71: 0 | DX71: 0 | DY71: 0 | DZ71: 0 | EA71: 0 | EB71: 0
A72: 42 | B72: 42 | C72: Opel Movano | D72: 307 | E72: 153 | F72: 287 | G72: 149 | H72: 253 | I72: 332 | J72: 493 | K72: 204 | L72: 489 | M72: 347 | N72: 331 | O72: 482 | P72: 427 | Q72: 229 | R72: 198 | S72: 428 | T72: 127 | U72: 498 | V72: 366 | W72: 341 | X72: 488 | Y72: 225 | Z72: 425 | AA72: 472 | AB72: 168 | AC72: 177 | AD72: 379 | AE72: 134 | AF72: 225 | AG72: 311 | AH72: 101 | AI72: 246 | AJ72: 211 | AK72: 405 | AL72: 316 | AM72: 227 | AN72: 243 | AO72: 294 | AP72: 466 | AQ72: 288 | AR72: 104 | AS72: 176 | AT72: 481 | AU72: 458 | AV72: 349 | AW72: 244 | AX72: 359 | AY72: 113 | AZ72: 435 | BA72: 350 | BB72: 292 | BC72: 331 | BD72: 481 | BE72: 185 | BF72: 344 | BG72: 388 | BH72: 326 | BI72: 230 | BJ72: 225 | BK72: 384 | BL72: 491 | BM72: 160 | BN72: 249 | BO72: 210 | BP72: 263 | BQ72: 416 | BR72: 455 | BS72: 325 | BT72: 151 | BU72: 127 | BV72: 221 | BW72: 379 | BX72: 408 | BY72: 325 | BZ72: 183 | CA72: 215 | CB72: 478 | CC72: 448 | CD72: 350 | CE72: 113 | CF72: 320 | CG72: 337 | CH72: 403 | CI72: 175 | CJ72: 0 | CK72: 0 | CL72: 0 | CM72: 0 | CN72: 0 | CO72: 0 | CP72: 0 | CQ72: 0 | CR72: 0 | CS72: 0 | CT72: 0 | CU72: 0 | CV72: 0 | CW72: 0 | CX72: 0 | CY72: 0 | CZ72: 0 | DA72: 0 | DB72: 0 | DC72: 0 | DD72: 0 | DE72: 0 | DF72: 0 | DG72: 0 | DH72: 0 | DI72: 0 | DJ72: 0 | DK72: 0 | DL72: 0 | DM72: 0 | DN72: 0 | DO72: 0 | DP72: 0 | DQ72: 0 | DR72: 0 | DS72: 0 | DT72: 0 | DU72: 0 | DV72: 0 | DW72: 0 | DX72: 0 | DY72: 0 | DZ72: 0 | EA72: 0 | EB72: 0
A73: 43 | B73: 43 | C73: Opel Olympia | D73: 264 | E73: 214 | F73: 477 | G73: 330 | H73: 343 | I73: 474 | J73: 180 | K73: 178 | L73: 254 | M73: 479 | N73: 456 | O73: 103 | P73: 307 | Q73: 188 | R73: 406 | S73: 373 | T73: 366 | U73: 109 | V73: 213 | W73: 421 | X73: 130 | Y73: 338 | Z73: 389 | AA73: 272 | AB73: 446 | AC73: 273 | AD73: 360 | AE73: 420 | AF73: 435 | AG73: 381 | AH73: 334 | AI73: 232 | AJ73: 349 | AK73: 148 | AL73: 365 | AM73: 291 | AN73: 168 | AO73: 414 | AP73: 291 | AQ73: 188 | AR73: 184 | AS73: 180 | AT73: 148 | AU73: 392 | AV73: 486 | AW73: 130 | AX73: 411 | AY73: 369 | AZ73: 402 | BA73: 306 | BB73: 465 | BC73: 173 | BD73: 339 | BE73: 440 | BF73: 356 | BG73: 184 | BH73: 241 | BI73: 232 | BJ73: 496 | BK73: 364 | BL73: 436 | BM73: 300 | BN73: 124 | BO73: 426 | BP73: 181 | BQ73: 375 | BR73: 421 | BS73: 148 | BT73: 252 | BU73: 463 | BV73: 377 | BW73: 293 | BX73: 409 | BY73: 139 | BZ73: 376 | CA73: 454 | CB73: 166 | CC73: 412 | CD73: 263 | CE73: 125 | CF73: 444 | CG73: 234 | CH73: 400 | CI73: 281 | CJ73: 0 | CK73: 0 | CL73: 0 | CM73: 0 | CN73: 0 | CO73: 0 | CP73: 0 | CQ73: 0 | CR73: 0 | CS73: 0 | CT73: 0 | CU73: 0 | CV73: 0 | CW73: 0 | CX73: 0 | CY73: 0 | CZ73: 0 | DA73: 0 | DB73: 0 | DC73: 0 | DD73: 0 | DE73: 0 | DF73: 0 | DG73: 0 | DH73: 0 | DI73: 0 | DJ73: 0 | DK73: 0 | DL73: 0 | DM73: 0 | DN73: 0 | DO73: 0 | DP73: 0 | DQ73: 0 | DR73: 0 | DS73: 0 | DT73: 0 | DU73: 0 | DV73: 0 | DW73: 0 | DX73: 0 | DY73: 0 | DZ73: 0 | EA73: 0 | EB73: 0
A74: 44 | B74: 44 | C74: Opel Olympia Rekord | D74: 393 | E74: 198 | F74: 267 | G74: 418 | H74: 181 | I74: 283 | J74: 329 | K74: 352 | L74: 271 | M74: 227 | N74: 267 | O74: 361 | P74: 245 | Q74: 134 | R74: 436 | S74: 269 | T74: 391 | U74: 217 | V74: 196 | W74: 151 | X74: 433 | Y74: 148 | Z74: 259 | AA74: 268 | AB74: 149 | AC74: 314 | AD74: 239 | AE74: 256 | AF74: 255 | AG74: 306 | AH74: 431 | AI74: 379 | AJ74: 451 | AK74: 291 | AL74: 237 | AM74: 144 | AN74: 189 | AO74: 435 | AP74: 308 | AQ74: 321 | AR74: 322 | AS74: 285 | AT74: 210 | AU74: 172 | AV74: 119 | AW74: 458 | AX74: 484 | AY74: 350 | AZ74: 489 | BA74: 381 | BB74: 339 | BC74: 376 | BD74: 294 | BE74: 144 | BF74: 459 | BG74: 160 | BH74: 324 | BI74: 463 | BJ74: 142 | BK74: 184 | BL74: 371 | BM74: 469 | BN74: 180 | BO74: 164 | BP74: 113 | BQ74: 177 | BR74: 235 | BS74: 287 | BT74: 203 | BU74: 340 | BV74: 413 | BW74: 340 | BX74: 398 | BY74: 146 | BZ74: 365 | CA74: 370 | CB74: 353 | CC74: 458 | CD74: 237 | CE74: 229 | CF74: 223 | CG74: 258 | CH74: 414 | CI74: 307 | CJ74: 0 | CK74: 0 | CL74: 0 | CM74: 0 | CN74: 0 | CO74: 0 | CP74: 0 | CQ74: 0 | CR74: 0 | CS74: 0 | CT74: 0 | CU74: 0 | CV74: 0 | CW74: 0 | CX74: 0 | CY74: 0 | CZ74: 0 | DA74: 0 | DB74: 0 | DC74: 0 | DD74: 0 | DE74: 0 | DF74: 0 | DG74: 0 | DH74: 0 | DI74: 0 | DJ74: 0 | DK74: 0 | DL74: 0 | DM74: 0 | DN74: 0 | DO74: 0 | DP74: 0 | DQ74: 0 | DR74: 0 | DS74: 0 | DT74: 0 | DU74: 0 | DV74: 0 | DW74: 0 | DX74: 0 | DY74: 0 | DZ74: 0 | EA74: 0 | EB74: 0
A75: 45 | B75: 45 | C75: Opel Omega | D75: 386 | E75: =INDIRECT($C$33&E$32&ROW()-$C$34) -> 217 | F75: 388 | G75: 327 | H75: 470 | I75: 371 | J75: 344 | K75: 250 | L75: 332 | M75: 401 | N75: 396 | O75: =INDIRECT($C$33&O$32&ROW()-$C$34) -> 102 | P75: 326 | Q75: 261 | R75: 407 | S75: 145 | T75: 104 | U75: 413 | V75: 221 | W75: 245 | X75: 376 | Y75: =INDIRECT($C$33&Y$32&ROW()-$C$34) -> 491 | Z75: 445 | AA75: 186 | AB75: 450 | AC75: 244 | AD75: 334 | AE75: 346 | AF75: 191 | AG75: 425 | AH75: 371 | AI75: =INDIRECT($C$33&AI$32&ROW()-$C$34) -> 428 | AJ75: 484 | AK75: 329 | AL75: 469 | AM75: 320 | AN75: 299 | AO75: 206 | AP75: 475 | AQ75: 494 | AR75: 404 | AS75: =INDIRECT($C$33&AS$32&ROW()-$C$34) -> 355 | AT75: 333 | AU75: 368 | AV75: 206 | AW75: 435 | AX75: 380 | AY75: 398 | AZ75: 135 | BA75: 290 | BB75: 418 | BC75: =INDIRECT($C$33&BC$32&ROW()-$C$34) -> 165 | BD75: 203 | BE75: 474 | BF75: 455 | BG75: 477 | BH75: 110 | BI75: 321 | BJ75: 463 | BK75: 396 | BL75: 394 | BM75: =INDIRECT($C$33&BM$32&ROW()-$C$34) -> 149 | BN75: 265 | BO75: 229 | BP75: 267 | BQ75: 371 | BR75: 310 | BS75: 379 | BT75: 111 | BU75: 375 | BV75: 297 | BW75: =INDIRECT($C$33&BW$32&ROW()-$C$34) -> 416 | BX75: 204 | BY75: 185 | BZ75: 364 | CA75: 200 | CB75: 146 | CC75: 133 | CD75: 324 | CE75: 439 | CF75: 314 | CG75: =INDIRECT($C$33&CG$32&ROW()-$C$34) -> 247 | CH75: 411 | CI75: 361 | CJ75: 0 | CK75: 0 | CL75: 0 | CM75: 0 | CN75: 0 | CO75: 0 | CP75: 0 | CQ75: =INDIRECT($C$33&CQ$32&ROW()-$C$34) -> 0 | CR75: 0 | CS75: 0 | CT75: 0 | CU75: 0 | CV75: 0 | CW75: 0 | CX75: 0 | CY75: 0 | CZ75: 0 | DA75: 0 | DB75: 0 | DC75: 0 | DD75: 0 | DE75: 0 | DF75: 0 | DG75: 0 | DH75: 0 | DI75: 0 | DJ75: 0 | DK75: 0 | DL75: 0 | DM75: 0 | DN75: 0 | DO75: 0 | DP75: 0 | DQ75: 0 | DR75: 0 | DS75: 0 | DT75: 0 | DU75: 0 | DV75: 0 | DW75: 0 | DX75: 0 | DY75: 0 | DZ75: 0 | EA75: 0 | EB75: 0
A76: 46 | B76: 46 | C76: =INDIRECT($C$33&C$32&ROW()-$C$34) -> Opel Rekord | D76: 154 | E76: 299 | F76: 346 | G76: 334 | H76: 124 | I76: 340 | J76: 217 | K76: 475 | L76: 169 | M76: 200 | N76: 121 | O76: 142 | P76: 435 | Q76: 197 | R76: 263 | S76: 249 | T76: 384 | U76: 302 | V76: 302 | W76: 377 | X76: 167 | Y76: 192 | Z76: 116 | AA76: 226 | AB76: 350 | AC76: 304 | AD76: 337 | AE76: 154 | AF76: 474 | AG76: 415 | AH76: 363 | AI76: 296 | AJ76: 190 | AK76: 195 | AL76: 456 | AM76: 481 | AN76: 371 | AO76: 430 | AP76: 147 | AQ76: 308 | AR76: 492 | AS76: 193 | AT76: 197 | AU76: 373 | AV76: 366 | AW76: 338 | AX76: 299 | AY76: 499 | AZ76: 379 | BA76: 500 | BB76: 214 | BC76: 120 | BD76: 220 | BE76: 433 | BF76: 300 | BG76: 276 | BH76: 307 | BI76: 288 | BJ76: 412 | BK76: 395 | BL76: 304 | BM76: 471 | BN76: 221 | BO76: 177 | BP76: 410 | BQ76: 230 | BR76: 449 | BS76: 154 | BT76: 105 | BU76: 204 | BV76: 473 | BW76: 324 | BX76: 466 | BY76: 358 | BZ76: 146 | CA76: 420 | CB76: 229 | CC76: 237 | CD76: 340 | CE76: 451 | CF76: 345 | CG76: 241 | CH76: 230 | CI76: 454 | CJ76: 0 | CK76: 0 | CL76: 0 | CM76: 0 | CN76: 0 | CO76: 0 | CP76: 0 | CQ76: 0 | CR76: 0 | CS76: 0 | CT76: 0 | CU76: 0 | CV76: 0 | CW76: 0 | CX76: 0 | CY76: 0 | CZ76: 0 | DA76: 0 | DB76: 0 | DC76: 0 | DD76: 0 | DE76: 0 | DF76: 0 | DG76: 0 | DH76: 0 | DI76: 0 | DJ76: 0 | DK76: 0 | DL76: 0 | DM76: 0 | DN76: 0 | DO76: 0 | DP76: 0 | DQ76: 0 | DR76: 0 | DS76: 0 | DT76: 0 | DU76: 0 | DV76: 0 | DW76: 0 | DX76: 0 | DY76: 0 | DZ76: 0 | EA76: 0 | EB76: 0
A77: 47 | B77: 47 | C77: Opel Senator | D77: 365 | E77: 304 | F77: 298 | G77: 134 | H77: 322 | I77: 287 | J77: 333 | K77: 395 | L77: 338 | M77: 278 | N77: 238 | O77: 116 | P77: 413 | Q77: 248 | R77: 265 | S77: 239 | T77: 495 | U77: 288 | V77: 373 | W77: 472 | X77: 272 | Y77: 282 | Z77: 159 | AA77: 253 | AB77: 197 | AC77: 195 | AD77: 334 | AE77: 163 | AF77: 271 | AG77: 282 | AH77: 301 | AI77: 389 | AJ77: 182 | AK77: 346 | AL77: 226 | AM77: 408 | AN77: 193 | AO77: 107 | AP77: 416 | AQ77: 355 | AR77: 438 | AS77: 321 | AT77: 398 | AU77: 373 | AV77: 112 | AW77: 210 | AX77: 426 | AY77: 120 | AZ77: 214 | BA77: 394 | BB77: 259 | BC77: 176 | BD77: 396 | BE77: 413 | BF77: 164 | BG77: 494 | BH77: 119 | BI77: 425 | BJ77: 382 | BK77: 200 | BL77: 393 | BM77: 215 | BN77: 483 | BO77: 160 | BP77: 275 | BQ77: 408 | BR77: 391 | BS77: 214 | BT77: 115 | BU77: 349 | BV77: 300 | BW77: 316 | BX77: 475 | BY77: 195 | BZ77: 494 | CA77: 248 | CB77: 145 | CC77: 263 | CD77: 205 | CE77: 414 | CF77: 106 | CG77: 280 | CH77: 128 | CI77: 421 | CJ77: 0 | CK77: 0 | CL77: 0 | CM77: 0 | CN77: 0 | CO77: 0 | CP77: 0 | CQ77: 0 | CR77: 0 | CS77: 0 | CT77: 0 | CU77: 0 | CV77: 0 | CW77: 0 | CX77: 0 | CY77: 0 | CZ77: 0 | DA77: 0 | DB77: 0 | DC77: 0 | DD77: 0 | DE77: 0 | DF77: 0 | DG77: 0 | DH77: 0 | DI77: 0 | DJ77: 0 | DK77: 0 | DL77: 0 | DM77: 0 | DN77: 0 | DO77: 0 | DP77: 0 | DQ77: 0 | DR77: 0 | DS77: 0 | DT77: 0 | DU77: 0 | DV77: 0 | DW77: 0 | DX77: 0 | DY77: 0 | DZ77: 0 | EA77: 0 | EB77: 0
A78: 48 | B78: 48 | C78: Opel Signum | D78: 107 | E78: 226 | F78: 263 | G78: 202 | H78: 183 | I78: 133 | J78: 203 | K78: 425 | L78: 206 | M78: 382 | N78: 187 | O78: 203 | P78: 163 | Q78: 432 | R78: 319 | S78: 268 | T78: 234 | U78: 209 | V78: 122 | W78: 178 | X78: 211 | Y78: 488 | Z78: 126 | AA78: 142 | AB78: 189 | AC78: 307 | AD78: 183 | AE78: 376 | AF78: 248 | AG78: 305 | AH78: 176 | AI78: 487 | AJ78: 350 | AK78: 171 | AL78: 118 | AM78: 481 | AN78: 340 | AO78: 471 | AP78: 258 | AQ78: 399 | AR78: 333 | AS78: 209 | AT78: 438 | AU78: 319 | AV78: 238 | AW78: 339 | AX78: 194 | AY78: 160 | AZ78: 478 | BA78: 384 | BB78: 293 | BC78: 344 | BD78: 271 | BE78: 207 | BF78: 222 | BG78: 268 | BH78: 356 | BI78: 430 | BJ78: 334 | BK78: 181 | BL78: 374 | BM78: 309 | BN78: 340 | BO78: 119 | BP78: 474 | BQ78: 180 | BR78: 329 | BS78: 469 | BT78: 229 | BU78: 170 | BV78: 429 | BW78: 122 | BX78: 111 | BY78: 461 | BZ78: 374 | CA78: 169 | CB78: 230 | CC78: 434 | CD78: 116 | CE78: 147 | CF78: 474 | CG78: 220 | CH78: 242 | CI78: 303 | CJ78: 0 | CK78: 0 | CL78: 0 | CM78: 0 | CN78: 0 | CO78: 0 | CP78: 0 | CQ78: 0 | CR78: 0 | CS78: 0 | CT78: 0 | CU78: 0 | CV78: 0 | CW78: 0 | CX78: 0 | CY78: 0 | CZ78: 0 | DA78: 0 | DB78: 0 | DC78: 0 | DD78: 0 | DE78: 0 | DF78: 0 | DG78: 0 | DH78: 0 | DI78: 0 | DJ78: 0 | DK78: 0 | DL78: 0 | DM78: 0 | DN78: 0 | DO78: 0 | DP78: 0 | DQ78: 0 | DR78: 0 | DS78: 0 | DT78: 0 | DU78: 0 | DV78: 0 | DW78: 0 | DX78: 0 | DY78: 0 | DZ78: 0 | EA78: 0 | EB78: 0
A79: 49 | B79: 49 | C79: Opel Sintra | D79: 275 | E79: 261 | F79: 302 | G79: 329 | H79: 224 | I79: 163 | J79: 106 | K79: 497 | L79: 253 | M79: 165 | N79: 374 | O79: 128 | P79: 258 | Q79: 394 | R79: 296 | S79: 205 | T79: 262 | U79: 361 | V79: 158 | W79: 121 | X79: 233 | Y79: 291 | Z79: 363 | AA79: 158 | AB79: 451 | AC79: 391 | AD79: 345 | AE79: 217 | AF79: 319 | AG79: 259 | AH79: 441 | AI79: 444 | AJ79: 420 | AK79: 286 | AL79: 149 | AM79: 466 | AN79: 180 | AO79: 195 | AP79: 119 | AQ79: 141 | AR79: 406 | AS79: 213 | AT79: 277 | AU79: 349 | AV79: 235 | AW79: 364 | AX79: 330 | AY79: 432 | AZ79: 127 | BA79: 445 | BB79: 446 | BC79: 250 | BD79: 148 | BE79: 342 | BF79: 460 | BG79: 317 | BH79: 378 | BI79: 243 | BJ79: 247 | BK79: 165 | BL79: 125 | BM79: 161 | BN79: 121 | BO79: 471 | BP79: 269 | BQ79: 465 | BR79: 241 | BS79: 286 | BT79: 106 | BU79: 499 | BV79: 117 | BW79: 334 | BX79: 360 | BY79: 227 | BZ79: 421 | CA79: 106 | CB79: 100 | CC79: 353 | CD79: 231 | CE79: 278 | CF79: 227 | CG79: 309 | CH79: 197 | CI79: 474 | CJ79: 0 | CK79: 0 | CL79: 0 | CM79: 0 | CN79: 0 | CO79: 0 | CP79: 0 | CQ79: 0 | CR79: 0 | CS79: 0 | CT79: 0 | CU79: 0 | CV79: 0 | CW79: 0 | CX79: 0 | CY79: 0 | CZ79: 0 | DA79: 0 | DB79: 0 | DC79: 0 | DD79: 0 | DE79: 0 | DF79: 0 | DG79: 0 | DH79: 0 | DI79: 0 | DJ79: 0 | DK79: 0 | DL79: 0 | DM79: 0 | DN79: 0 | DO79: 0 | DP79: 0 | DQ79: 0 | DR79: 0 | DS79: 0 | DT79: 0 | DU79: 0 | DV79: 0 | DW79: 0 | DX79: 0 | DY79: 0 | DZ79: 0 | EA79: 0 | EB79: 0
A80: 50 | B80: 50 | C80: Opel Speedster | D80: 111 | E80: 383 | F80: 403 | G80: 256 | H80: 407 | I80: 198 | J80: 466 | K80: 265 | L80: 488 | M80: 405 | N80: 101 | O80: 246 | P80: 453 | Q80: 186 | R80: 336 | S80: 117 | T80: 427 | U80: 480 | V80: 191 | W80: 341 | X80: 145 | Y80: 423 | Z80: 237 | AA80: 197 | AB80: 179 | AC80: 392 | AD80: 233 | AE80: 371 | AF80: 139 | AG80: 390 | AH80: 372 | AI80: 385 | AJ80: 338 | AK80: 367 | AL80: 179 | AM80: 319 | AN80: 278 | AO80: 497 | AP80: 105 | AQ80: 456 | AR80: 239 | AS80: 158 | AT80: 111 | AU80: 341 | AV80: 470 | AW80: 276 | AX80: 341 | AY80: 277 | AZ80: 344 | BA80: 246 | BB80: 229 | BC80: 436 | BD80: 341 | BE80: 375 | BF80: 159 | BG80: 188 | BH80: 303 | BI80: 248 | BJ80: 350 | BK80: 107 | BL80: 296 | BM80: 411 | BN80: 476 | BO80: 446 | BP80: 331 | BQ80: 256 | BR80: 366 | BS80: 194 | BT80: 136 | BU80: 474 | BV80: 256 | BW80: 341 | BX80: 249 | BY80: 209 | BZ80: 475 | CA80: 156 | CB80: 131 | CC80: 250 | CD80: 360 | CE80: 391 | CF80: 353 | CG80: 339 | CH80: 340 | CI80: 278 | CJ80: 0 | CK80: 0 | CL80: 0 | CM80: 0 | CN80: 0 | CO80: 0 | CP80: 0 | CQ80: 0 | CR80: 0 | CS80: 0 | CT80: 0 | CU80: 0 | CV80: 0 | CW80: 0 | CX80: 0 | CY80: 0 | CZ80: 0 | DA80: 0 | DB80: 0 | DC80: 0 | DD80: 0 | DE80: 0 | DF80: 0 | DG80: 0 | DH80: 0 | DI80: 0 | DJ80: 0 | DK80: 0 | DL80: 0 | DM80: 0 | DN80: 0 | DO80: 0 | DP80: 0 | DQ80: 0 | DR80: 0 | DS80: 0 | DT80: 0 | DU80: 0 | DV80: 0 | DW80: 0 | DX80: 0 | DY80: 0 | DZ80: 0 | EA80: 0 | EB80: 0
A81: 51 | B81: 51 | C81: Opel Super Six | D81: 128 | E81: 106 | F81: 175 | G81: 322 | H81: 191 | I81: 336 | J81: 493 | K81: 130 | L81: 362 | M81: 129 | N81: 226 | O81: 172 | P81: 360 | Q81: 203 | R81: 365 | S81: 497 | T81: 118 | U81: 409 | V81: 368 | W81: 310 | X81: 478 | Y81: 297 | Z81: 346 | AA81: 304 | AB81: 436 | AC81: 161 | AD81: 124 | AE81: 179 | AF81: 155 | AG81: 333 | AH81: 489 | AI81: 380 | AJ81: 412 | AK81: 448 | AL81: 267 | AM81: 383 | AN81: 361 | AO81: 446 | AP81: 227 | AQ81: 316 | AR81: 234 | AS81: 119 | AT81: 174 | AU81: 243 | AV81: 211 | AW81: 112 | AX81: 241 | AY81: 345 | AZ81: 146 | BA81: 489 | BB81: 286 | BC81: 486 | BD81: 365 | BE81: 399 | BF81: 342 | BG81: 156 | BH81: 337 | BI81: 288 | BJ81: 364 | BK81: 348 | BL81: 414 | BM81: 491 | BN81: 390 | BO81: 229 | BP81: 332 | BQ81: 117 | BR81: 183 | BS81: 116 | BT81: 495 | BU81: 234 | BV81: 412 | BW81: 378 | BX81: 297 | BY81: 460 | BZ81: 214 | CA81: 447 | CB81: 465 | CC81: 284 | CD81: 251 | CE81: 364 | CF81: 333 | CG81: 282 | CH81: 145 | CI81: 374 | CJ81: 0 | CK81: 0 | CL81: 0 | CM81: 0 | CN81: 0 | CO81: 0 | CP81: 0 | CQ81: 0 | CR81: 0 | CS81: 0 | CT81: 0 | CU81: 0 | CV81: 0 | CW81: 0 | CX81: 0 | CY81: 0 | CZ81: 0 | DA81: 0 | DB81: 0 | DC81: 0 | DD81: 0 | DE81: 0 | DF81: 0 | DG81: 0 | DH81: 0 | DI81: 0 | DJ81: 0 | DK81: 0 | DL81: 0 | DM81: 0 | DN81: 0 | DO81: 0 | DP81: 0 | DQ81: 0 | DR81: 0 | DS81: 0 | DT81: 0 | DU81: 0 | DV81: 0 | DW81: 0 | DX81: 0 | DY81: 0 | DZ81: 0 | EA81: 0 | EB81: 0
A82: 52 | B82: 52 | C82: Opel Tigra | D82: 410 | E82: 240 | F82: 219 | G82: 376 | H82: 392 | I82: 212 | J82: 315 | K82: 136 | L82: 192 | M82: 320 | N82: 246 | O82: 467 | P82: 413 | Q82: 439 | R82: 114 | S82: 335 | T82: 490 | U82: 489 | V82: 166 | W82: 204 | X82: 403 | Y82: 132 | Z82: 247 | AA82: 441 | AB82: 331 | AC82: 423 | AD82: 373 | AE82: 247 | AF82: 374 | AG82: 295 | AH82: 404 | AI82: 276 | AJ82: 359 | AK82: 238 | AL82: 198 | AM82: 374 | AN82: 269 | AO82: 131 | AP82: 211 | AQ82: 367 | AR82: 201 | AS82: 182 | AT82: 468 | AU82: 460 | AV82: 205 | AW82: 125 | AX82: 180 | AY82: 267 | AZ82: 171 | BA82: 485 | BB82: 147 | BC82: 151 | BD82: 427 | BE82: 239 | BF82: 235 | BG82: 471 | BH82: 423 | BI82: 460 | BJ82: 138 | BK82: 376 | BL82: 357 | BM82: 273 | BN82: 389 | BO82: 297 | BP82: 254 | BQ82: 491 | BR82: 151 | BS82: 444 | BT82: 181 | BU82: 213 | BV82: 130 | BW82: 392 | BX82: 487 | BY82: 215 | BZ82: 366 | CA82: 120 | CB82: 254 | CC82: 495 | CD82: 404 | CE82: 409 | CF82: 401 | CG82: 429 | CH82: 277 | CI82: 350 | CJ82: 0 | CK82: 0 | CL82: 0 | CM82: 0 | CN82: 0 | CO82: 0 | CP82: 0 | CQ82: 0 | CR82: 0 | CS82: 0 | CT82: 0 | CU82: 0 | CV82: 0 | CW82: 0 | CX82: 0 | CY82: 0 | CZ82: 0 | DA82: 0 | DB82: 0 | DC82: 0 | DD82: 0 | DE82: 0 | DF82: 0 | DG82: 0 | DH82: 0 | DI82: 0 | DJ82: 0 | DK82: 0 | DL82: 0 | DM82: 0 | DN82: 0 | DO82: 0 | DP82: 0 | DQ82: 0 | DR82: 0 | DS82: 0 | DT82: 0 | DU82: 0 | DV82: 0 | DW82: 0 | DX82: 0 | DY82: 0 | DZ82: 0 | EA82: 0 | EB82: 0
A83: 53 | B83: 53 | C83: Opel Tigra TwinTop | D83: 332 | E83: 469 | F83: 203 | G83: 233 | H83: 388 | I83: 316 | J83: 274 | K83: 416 | L83: 146 | M83: 299 | N83: 260 | O83: 298 | P83: 125 | Q83: 239 | R83: 126 | S83: 419 | T83: 412 | U83: 213 | V83: 188 | W83: 477 | X83: 224 | Y83: 296 | Z83: 373 | AA83: 144 | AB83: 171 | AC83: 411 | AD83: 355 | AE83: 347 | AF83: 476 | AG83: 432 | AH83: 385 | AI83: 115 | AJ83: 402 | AK83: 136 | AL83: 153 | AM83: 184 | AN83: 159 | AO83: 227 | AP83: 108 | AQ83: 295 | AR83: 494 | AS83: 150 | AT83: 321 | AU83: 334 | AV83: 252 | AW83: 111 | AX83: 192 | AY83: 339 | AZ83: 379 | BA83: 384 | BB83: 316 | BC83: 125 | BD83: 128 | BE83: 261 | BF83: 125 | BG83: 354 | BH83: 404 | BI83: 417 | BJ83: 165 | BK83: 477 | BL83: 304 | BM83: 396 | BN83: 400 | BO83: 472 | BP83: 411 | BQ83: 106 | BR83: 366 | BS83: 133 | BT83: 280 | BU83: 182 | BV83: 248 | BW83: 494 | BX83: 431 | BY83: 254 | BZ83: 221 | CA83: 357 | CB83: 426 | CC83: 114 | CD83: 111 | CE83: 205 | CF83: 438 | CG83: 436 | CH83: 240 | CI83: 332 | CJ83: 0 | CK83: 0 | CL83: 0 | CM83: 0 | CN83: 0 | CO83: 0 | CP83: 0 | CQ83: 0 | CR83: 0 | CS83: 0 | CT83: 0 | CU83: 0 | CV83: 0 | CW83: 0 | CX83: 0 | CY83: 0 | CZ83: 0 | DA83: 0 | DB83: 0 | DC83: =INDIRECT($C$33&DC$32&ROW()-$C$34) -> 0 | DD83: 0 | DE83: 0 | DF83: 0 | DG83: 0 | DH83: 0 | DI83: 0 | DJ83: 0 | DK83: 0 | DL83: 0 | DM83: 0 | DN83: 0 | DO83: 0 | DP83: 0 | DQ83: 0 | DR83: 0 | DS83: 0 | DT83: =INDIRECT($C$33&DT$32&ROW()-$C$34) -> 0 | DU83: 0 | DV83: 0 | DW83: 0 | DX83: 0 | DY83: 0 | DZ83: 0 | EA83: 0 | EB83: 0
A84: 54 | B84: 54 | C84: Opel Vectra | D84: 444 | E84: 214 | F84: 407 | G84: 464 | H84: 218 | I84: 132 | J84: 475 | K84: 171 | L84: 429 | M84: 408 | N84: 130 | O84: 332 | P84: 441 | Q84: 328 | R84: 133 | S84: 329 | T84: 117 | U84: 393 | V84: 162 | W84: 366 | X84: 231 | Y84: 213 | Z84: 358 | AA84: 229 | AB84: 303 | AC84: 487 | AD84: 282 | AE84: 418 | AF84: 111 | AG84: 265 | AH84: 162 | AI84: 248 | AJ84: 268 | AK84: 207 | AL84: 358 | AM84: 210 | AN84: 462 | AO84: 469 | AP84: 385 | AQ84: 215 | AR84: 127 | AS84: 312 | AT84: 126 | AU84: 329 | AV84: 295 | AW84: 171 | AX84: 369 | AY84: 127 | AZ84: 142 | BA84: 337 | BB84: 139 | BC84: 444 | BD84: 199 | BE84: 353 | BF84: 467 | BG84: 197 | BH84: 383 | BI84: 313 | BJ84: 312 | BK84: 497 | BL84: 290 | BM84: 406 | BN84: 335 | BO84: 326 | BP84: 104 | BQ84: 295 | BR84: 430 | BS84: 172 | BT84: 424 | BU84: 284 | BV84: 478 | BW84: 216 | BX84: 130 | BY84: 334 | BZ84: 467 | CA84: 278 | CB84: 343 | CC84: 311 | CD84: 446 | CE84: 405 | CF84: 185 | CG84: 124 | CH84: 220 | CI84: 412 | CJ84: 0 | CK84: 0 | CL84: 0 | CM84: 0 | CN84: 0 | CO84: 0 | CP84: 0 | CQ84: 0 | CR84: 0 | CS84: 0 | CT84: 0 | CU84: 0 | CV84: 0 | CW84: 0 | CX84: 0 | CY84: 0 | CZ84: 0 | DA84: 0 | DB84: 0 | DC84: 0 | DD84: 0 | DE84: 0 | DF84: 0 | DG84: 0 | DH84: 0 | DI84: 0 | DJ84: 0 | DK84: 0 | DL84: 0 | DM84: 0 | DN84: 0 | DO84: 0 | DP84: 0 | DQ84: 0 | DR84: 0 | DS84: 0 | DT84: 0 | DU84: 0 | DV84: 0 | DW84: 0 | DX84: 0 | DY84: 0 | DZ84: 0 | EA84: 0 | EB84: 0
A85: 55 | B85: 55 | C85: Opel Vectra OPC | D85: 147 | E85: =INDIRECT($C$33&E$32&ROW()-$C$34) -> 106 | F85: 209 | G85: 174 | H85: 410 | I85: 118 | J85: 200 | K85: 256 | L85: 431 | M85: 214 | N85: 407 | O85: =INDIRECT($C$33&O$32&ROW()-$C$34) -> 243 | P85: 484 | Q85: 239 | R85: 293 | S85: 435 | T85: 300 | U85: 359 | V85: 400 | W85: 432 | X85: 125 | Y85: =INDIRECT($C$33&Y$32&ROW()-$C$34) -> 436 | Z85: 280 | AA85: 217 | AB85: 128 | AC85: 456 | AD85: 285 | AE85: 104 | AF85: 423 | AG85: 189 | AH85: 161 | AI85: =INDIRECT($C$33&AI$32&ROW()-$C$34) -> 359 | AJ85: 290 | AK85: 158 | AL85: 426 | AM85: 420 | AN85: 286 | AO85: 245 | AP85: 139 | AQ85: 150 | AR85: 421 | AS85: =INDIRECT($C$33&AS$32&ROW()-$C$34) -> 153 | AT85: 204 | AU85: 326 | AV85: 336 | AW85: 154 | AX85: 202 | AY85: 225 | AZ85: 232 | BA85: 236 | BB85: 283 | BC85: =INDIRECT($C$33&BC$32&ROW()-$C$34) -> 422 | BD85: 433 | BE85: 139 | BF85: 366 | BG85: 272 | BH85: 314 | BI85: 426 | BJ85: 406 | BK85: 405 | BL85: 229 | BM85: =INDIRECT($C$33&BM$32&ROW()-$C$34) -> 450 | BN85: 500 | BO85: 183 | BP85: 256 | BQ85: 160 | BR85: 184 | BS85: 434 | BT85: 400 | BU85: 363 | BV85: 375 | BW85: =INDIRECT($C$33&BW$32&ROW()-$C$34) -> 269 | BX85: 166 | BY85: 255 | BZ85: 481 | CA85: 168 | CB85: 327 | CC85: 213 | CD85: 436 | CE85: 334 | CF85: 367 | CG85: =INDIRECT($C$33&CG$32&ROW()-$C$34) -> 456 | CH85: 235 | CI85: 306 | CJ85: 0 | CK85: 0 | CL85: 0 | CM85: 0 | CN85: 0 | CO85: 0 | CP85: 0 | CQ85: =INDIRECT($C$33&CQ$32&ROW()-$C$34) -> 0 | CR85: 0 | CS85: 0 | CT85: 0 | CU85: 0 | CV85: 0 | CW85: 0 | CX85: 0 | CY85: 0 | CZ85: 0 | DA85: 0 | DB85: 0 | DC85: 0 | DD85: 0 | DE85: 0 | DF85: 0 | DG85: 0 | DH85: 0 | DI85: 0 | DJ85: 0 | DK85: 0 | DL85: 0 | DM85: 0 | DN85: 0 | DO85: 0 | DP85: 0 | DQ85: 0 | DR85: 0 | DS85: 0 | DT85: 0 | DU85: 0 | DV85: 0 | DW85: 0 | DX85: 0 | DY85: 0 | DZ85: 0 | EA85: 0 | EB85: 0
A86: 56 | B86: 56 | C86: Opel Vita | D86: 216 | E86: 314 | F86: 415 | G86: 124 | H86: 181 | I86: 268 | J86: 333 | K86: 465 | L86: 306 | M86: 478 | N86: 210 | O86: 242 | P86: 220 | Q86: 226 | R86: 171 | S86: 244 | T86: 182 | U86: 107 | V86: 343 | W86: 414 | X86: 106 | Y86: 461 | Z86: 328 | AA86: 371 | AB86: 370 | AC86: 451 | AD86: 297 | AE86: 485 | AF86: 480 | AG86: 299 | AH86: 110 | AI86: 191 | AJ86: 289 | AK86: 277 | AL86: 481 | AM86: 354 | AN86: 201 | AO86: 404 | AP86: 222 | AQ86: 163 | AR86: 309 | AS86: 201 | AT86: 439 | AU86: 206 | AV86: 288 | AW86: 417 | AX86: 452 | AY86: 150 | AZ86: 305 | BA86: 326 | BB86: 290 | BC86: 472 | BD86: 105 | BE86: 286 | BF86: 261 | BG86: 418 | BH86: 182 | BI86: 235 | BJ86: 496 | BK86: 369 | BL86: 391 | BM86: 247 | BN86: 494 | BO86: 150 | BP86: 355 | BQ86: 410 | BR86: 169 | BS86: 237 | BT86: 389 | BU86: 208 | BV86: 239 | BW86: 407 | BX86: 144 | BY86: 159 | BZ86: 130 | CA86: 373 | CB86: 303 | CC86: 441 | CD86: 288 | CE86: 322 | CF86: 203 | CG86: 500 | CH86: 214 | CI86: 499 | CJ86: 0 | CK86: 0 | CL86: 0 | CM86: 0 | CN86: 0 | CO86: 0 | CP86: 0 | CQ86: 0 | CR86: 0 | CS86: 0 | CT86: 0 | CU86: 0 | CV86: 0 | CW86: 0 | CX86: 0 | CY86: 0 | CZ86: 0 | DA86: 0 | DB86: 0 | DC86: 0 | DD86: 0 | DE86: 0 | DF86: 0 | DG86: 0 | DH86: 0 | DI86: 0 | DJ86: 0 | DK86: 0 | DL86: 0 | DM86: 0 | DN86: 0 | DO86: 0 | DP86: 0 | DQ86: 0 | DR86: 0 | DS86: 0 | DT86: 0 | DU86: 0 | DV86: 0 | DW86: 0 | DX86: 0 | DY86: 0 | DZ86: 0 | EA86: 0 | EB86: 0
A87: 57 | B87: 57 | C87: Opel Vivaro | D87: 213 | E87: 263 | F87: 354 | G87: 382 | H87: 141 | I87: 109 | J87: 150 | K87: 315 | L87: 173 | M87: 155 | N87: 225 | O87: 355 | P87: 379 | Q87: 272 | R87: 491 | S87: 160 | T87: 479 | U87: 227 | V87: 474 | W87: 278 | X87: 278 | Y87: 469 | Z87: 116 | AA87: 224 | AB87: 129 | AC87: 116 | AD87: 112 | AE87: 178 | AF87: 481 | AG87: 371 | AH87: 444 | AI87: 210 | AJ87: 474 | AK87: 413 | AL87: 117 | AM87: 256 | AN87: 282 | AO87: 443 | AP87: 486 | AQ87: 101 | AR87: 411 | AS87: 428 | AT87: 436 | AU87: 108 | AV87: 344 | AW87: 207 | AX87: 228 | AY87: 281 | AZ87: 471 | BA87: 495 | BB87: 243 | BC87: 189 | BD87: 380 | BE87: 433 | BF87: 434 | BG87: 153 | BH87: 416 | BI87: 454 | BJ87: 188 | BK87: 325 | BL87: 268 | BM87: 445 | BN87: 143 | BO87: 242 | BP87: 465 | BQ87: 361 | BR87: 202 | BS87: 415 | BT87: 384 | BU87: 247 | BV87: 475 | BW87: 386 | BX87: 347 | BY87: 454 | BZ87: 363 | CA87: 161 | CB87: 295 | CC87: 412 | CD87: 479 | CE87: 467 | CF87: 231 | CG87: 367 | CH87: 390 | CI87: 490 | CJ87: 0 | CK87: 0 | CL87: 0 | CM87: 0 | CN87: 0 | CO87: 0 | CP87: 0 | CQ87: 0 | CR87: 0 | CS87: 0 | CT87: 0 | CU87: 0 | CV87: 0 | CW87: 0 | CX87: 0 | CY87: 0 | CZ87: 0 | DA87: 0 | DB87: 0 | DC87: 0 | DD87: 0 | DE87: 0 | DF87: 0 | DG87: 0 | DH87: 0 | DI87: 0 | DJ87: 0 | DK87: 0 | DL87: 0 | DM87: 0 | DN87: 0 | DO87: 0 | DP87: 0 | DQ87: 0 | DR87: 0 | DS87: 0 | DT87: 0 | DU87: 0 | DV87: 0 | DW87: 0 | DX87: 0 | DY87: 0 | DZ87: 0 | EA87: 0 | EB87: 0
A88: 58 | B88: 58 | C88: Opel Zafira | D88: 231 | E88: 302 | F88: 243 | G88: 483 | H88: 124 | I88: 352 | J88: 175 | K88: 154 | L88: 185 | M88: 161 | N88: 378 | O88: 151 | P88: 282 | Q88: 454 | R88: 175 | S88: 216 | T88: 231 | U88: 305 | V88: 226 | W88: 171 | X88: 135 | Y88: 356 | Z88: 161 | AA88: 436 | AB88: 242 | AC88: 258 | AD88: 153 | AE88: 337 | AF88: 242 | AG88: 386 | AH88: 318 | AI88: 135 | AJ88: 307 | AK88: 233 | AL88: 500 | AM88: 258 | AN88: 195 | AO88: 494 | AP88: 223 | AQ88: 184 | AR88: 127 | AS88: 143 | AT88: 184 | AU88: 295 | AV88: 285 | AW88: 451 | AX88: 234 | AY88: 167 | AZ88: 458 | BA88: 197 | BB88: 227 | BC88: 320 | BD88: 278 | BE88: 353 | BF88: 245 | BG88: 113 | BH88: 468 | BI88: 151 | BJ88: 124 | BK88: 132 | BL88: 420 | BM88: 269 | BN88: 199 | BO88: 168 | BP88: 421 | BQ88: 496 | BR88: 302 | BS88: 453 | BT88: 234 | BU88: 256 | BV88: 268 | BW88: 313 | BX88: 456 | BY88: 221 | BZ88: 371 | CA88: 395 | CB88: 183 | CC88: 220 | CD88: 200 | CE88: 458 | CF88: 147 | CG88: 272 | CH88: 235 | CI88: 171 | CJ88: 0 | CK88: 0 | CL88: 0 | CM88: 0 | CN88: 0 | CO88: 0 | CP88: 0 | CQ88: 0 | CR88: 0 | CS88: 0 | CT88: 0 | CU88: 0 | CV88: 0 | CW88: 0 | CX88: 0 | CY88: 0 | CZ88: 0 | DA88: 0 | DB88: 0 | DC88: 0 | DD88: 0 | DE88: 0 | DF88: 0 | DG88: 0 | DH88: 0 | DI88: 0 | DJ88: 0 | DK88: 0 | DL88: 0 | DM88: 0 | DN88: 0 | DO88: 0 | DP88: 0 | DQ88: 0 | DR88: 0 | DS88: 0 | DT88: 0 | DU88: 0 | DV88: 0 | DW88: 0 | DX88: 0 | DY88: 0 | DZ88: 0 | EA88: 0 | EB88: 0
A89: 59 | B89: 59 | C89: Opel Zafira OPC | D89: 446 | E89: 205 | F89: 484 | G89: 468 | H89: 152 | I89: 449 | J89: 253 | K89: 410 | L89: 230 | M89: 311 | N89: 269 | O89: 394 | P89: 305 | Q89: 216 | R89: 109 | S89: 326 | T89: 125 | U89: 446 | V89: 441 | W89: 410 | X89: 387 | Y89: 274 | Z89: 496 | AA89: 470 | AB89: 424 | AC89: 121 | AD89: 237 | AE89: 188 | AF89: 278 | AG89: 270 | AH89: 164 | AI89: 181 | AJ89: 420 | AK89: 418 | AL89: 396 | AM89: 297 | AN89: 134 | AO89: 349 | AP89: 486 | AQ89: 395 | AR89: 333 | AS89: 310 | AT89: 277 | AU89: 306 | AV89: 348 | AW89: 475 | AX89: 403 | AY89: 332 | AZ89: 325 | BA89: 392 | BB89: 143 | BC89: 307 | BD89: 348 | BE89: 242 | BF89: 394 | BG89: 116 | BH89: 415 | BI89: 448 | BJ89: 212 | BK89: 314 | BL89: 269 | BM89: 216 | BN89: 438 | BO89: 188 | BP89: 177 | BQ89: 228 | BR89: 297 | BS89: 482 | BT89: 188 | BU89: 314 | BV89: 221 | BW89: 275 | BX89: 108 | BY89: 168 | BZ89: 430 | CA89: 290 | CB89: 266 | CC89: 123 | CD89: 301 | CE89: 401 | CF89: 377 | CG89: 329 | CH89: 270 | CI89: 460 | CJ89: 0 | CK89: 0 | CL89: 0 | CM89: 0 | CN89: 0 | CO89: 0 | CP89: 0 | CQ89: 0 | CR89: 0 | CS89: 0 | CT89: 0 | CU89: 0 | CV89: 0 | CW89: 0 | CX89: 0 | CY89: 0 | CZ89: 0 | DA89: 0 | DB89: 0 | DC89: 0 | DD89: 0 | DE89: 0 | DF89: 0 | DG89: 0 | DH89: 0 | DI89: 0 | DJ89: 0 | DK89: 0 | DL89: 0 | DM89: 0 | DN89: 0 | DO89: 0 | DP89: 0 | DQ89: 0 | DR89: 0 | DS89: 0 | DT89: 0 | DU89: 0 | DV89: 0 | DW89: 0 | DX89: 0 | DY89: 0 | DZ89: 0 | EA89: 0 | EB89: 0
A90: 60 | B90: 0 | C90: 0 | D90: 0 | E90: 0 | F90: 0 | G90: 0 | H90: 0 | I90: 0 | J90: 0 | K90: 0 | L90: 0 | M90: 0 | N90: 0 | O90: 0 | P90: 0 | Q90: 0 | R90: 0 | S90: 0 | T90: 0 | U90: 0 | V90: 0 | W90: 0 | X90: 0 | Y90: 0 | Z90: 0 | AA90: 0 | AB90: 0 | AC90: 0 | AD90: 0 | AE90: 0 | AF90: 0 | AG90: 0 | AH90: 0 | AI90: 0 | AJ90: 0 | AK90: 0 | AL90: 0 | AM90: 0 | AN90: 0 | AO90: 0 | AP90: 0 | AQ90: 0 | AR90: 0 | AS90: 0 | AT90: 0 | AU90: 0 | AV90: 0 | AW90: 0 | AX90: 0 | AY90: 0 | AZ90: 0 | BA90: 0 | BB90: 0 | BC90: 0 | BD90: 0 | BE90: 0 | BF90: 0 | BG90: 0 | BH90: 0 | BI90: 0 | BJ90: 0 | BK90: 0 | BL90: 0 | BM90: 0 | BN90: 0 | BO90: 0 | BP90: 0 | BQ90: 0 | BR90: 0 | BS90: 0 | BT90: 0 | BU90: 0 | BV90: 0 | BW90: 0 | BX90: 0 | BY90: 0 | BZ90: 0 | CA90: 0 | CB90: 0 | CC90: 0 | CD90: 0 | CE90: 0 | CF90: 0 | CG90: 0 | CH90: 0 | CI90: 0 | CJ90: 0 | CK90: 0 | CL90: 0 | CM90: 0 | CN90: 0 | CO90: 0 | CP90: 0 | CQ90: 0 | CR90: 0 | CS90: 0 | CT90: 0 | CU90: 0 | CV90: 0 | CW90: 0 | CX90: 0 | CY90: 0 | CZ90: 0 | DA90: 0 | DB90: 0 | DC90: 0 | DD90: 0 | DE90: 0 | DF90: 0 | DG90: 0 | DH90: 0 | DI90: 0 | DJ90: 0 | DK90: 0 | DL90: 0 | DM90: 0 | DN90: 0 | DO90: 0 | DP90: 0 | DQ90: 0 | DR90: 0 | DS90: 0 | DT90: 0 | DU90: 0 | DV90: 0 | DW90: 0 | DX90: 0 | DY90: 0 | DZ90: 0 | EA90: 0 | EB90: 0
A91: 61 | B91: 0 | C91: 0 | D91: 0 | E91: 0 | F91: 0 | G91: 0 | H91: 0 | I91: 0 | J91: 0 | K91: 0 | L91: 0 | M91: 0 | N91: 0 | O91: 0 | P91: 0 | Q91: 0 | R91: 0 | S91: 0 | T91: 0 | U91: 0 | V91: 0 | W91: 0 | X91: 0 | Y91: 0 | Z91: 0 | AA91: 0 | AB91: 0 | AC91: 0 | AD91: 0 | AE91: 0 | AF91: 0 | AG91: 0 | AH91: 0 | AI91: 0 | AJ91: 0 | AK91: 0 | AL91: 0 | AM91: 0 | AN91: 0 | AO91: 0 | AP91: 0 | AQ91: 0 | AR91: 0 | AS91: 0 | AT91: 0 | AU91: 0 | AV91: 0 | AW91: 0 | AX91: 0 | AY91: 0 | AZ91: 0 | BA91: 0 | BB91: 0 | BC91: 0 | BD91: 0 | BE91: 0 | BF91: 0 | BG91: 0 | BH91: 0 | BI91: 0 | BJ91: 0 | BK91: 0 | BL91: 0 | BM91: 0 | BN91: 0 | BO91: 0 | BP91: 0 | BQ91: 0 | BR91: 0 | BS91: 0 | BT91: 0 | BU91: 0 | BV91: 0 | BW91: 0 | BX91: 0 | BY91: 0 | BZ91: 0 | CA91: 0 | CB91: 0 | CC91: 0 | CD91: 0 | CE91: 0 | CF91: 0 | CG91: 0 | CH91: 0 | CI91: 0 | CJ91: 0 | CK91: 0 | CL91: 0 | CM91: 0 | CN91: 0 | CO91: 0 | CP91: 0 | CQ91: 0 | CR91: 0 | CS91: 0 | CT91: 0 | CU91: 0 | CV91: 0 | CW91: 0 | CX91: 0 | CY91: 0 | CZ91: 0 | DA91: 0 | DB91: 0 | DC91: 0 | DD91: 0 | DE91: 0 | DF91: 0 | DG91: 0 | DH91: 0 | DI91: 0 | DJ91: 0 | DK91: 0 | DL91: 0 | DM91: 0 | DN91: 0 | DO91: 0 | DP91: 0 | DQ91: 0 | DR91: 0 | DS91: 0 | DT91: 0 | DU91: 0 | DV91: 0 | DW91: 0 | DX91: 0 | DY91: 0 | DZ91: 0 | EA91: 0 | EB91: 0
A92: 62 | B92: 0 | C92: 0 | D92: 0 | E92: 0 | F92: 0 | G92: 0 | H92: 0 | I92: 0 | J92: 0 | K92: 0 | L92: 0 | M92: 0 | N92: 0 | O92: 0 | P92: 0 | Q92: 0 | R92: 0 | S92: 0 | T92: 0 | U92: 0 | V92: 0 | W92: 0 | X92: 0 | Y92: 0 | Z92: 0 | AA92: 0 | AB92: 0 | AC92: 0 | AD92: 0 | AE92: 0 | AF92: 0 | AG92: 0 | AH92: 0 | AI92: 0 | AJ92: 0 | AK92: 0 | AL92: 0 | AM92: 0 | AN92: 0 | AO92: 0 | AP92: 0 | AQ92: 0 | AR92: 0 | AS92: 0 | AT92: 0 | AU92: 0 | AV92: 0 | AW92: 0 | AX92: 0 | AY92: 0 | AZ92: 0 | BA92: 0 | BB92: 0 | BC92: 0 | BD92: 0 | BE92: 0 | BF92: 0 | BG92: 0 | BH92: 0 | BI92: 0 | BJ92: 0 | BK92: 0 | BL92: 0 | BM92: 0 | BN92: 0 | BO92: 0 | BP92: 0 | BQ92: 0 | BR92: 0 | BS92: 0 | BT92: 0 | BU92: 0 | BV92: 0 | BW92: 0 | BX92: 0 | BY92: 0 | BZ92: 0 | CA92: 0 | CB92: 0 | CC92: 0 | CD92: 0 | CE92: 0 | CF92: 0 | CG92: 0 | CH92: 0 | CI92: 0 | CJ92: 0 | CK92: 0 | CL92: 0 | CM92: 0 | CN92: 0 | CO92: 0 | CP92: 0 | CQ92: 0 | CR92: 0 | CS92: 0 | CT92: 0 | CU92: 0 | CV92: 0 | CW92: 0 | CX92: 0 | CY92: 0 | CZ92: 0 | DA92: 0 | DB92: 0 | DC92: 0 | DD92: 0 | DE92: 0 | DF92: 0 | DG92: 0 | DH92: 0 | DI92: 0 | DJ92: 0 | DK92: 0 | DL92: 0 | DM92: 0 | DN92: 0 | DO92: 0 | DP92: 0 | DQ92: 0 | DR92: 0 | DS92: 0 | DT92: 0 | DU92: 0 | DV92: 0 | DW92: 0 | DX92: 0 | DY92: 0 | DZ92: 0 | EA92: 0 | EB92: 0
A93: 63 | B93: 0 | C93: 0 | D93: 0 | E93: 0 | F93: 0 | G93: 0 | H93: 0 | I93: 0 | J93: 0 | K93: 0 | L93: 0 | M93: 0 | N93: 0 | O93: 0 | P93: 0 | Q93: 0 | R93: 0 | S93: 0 | T93: 0 | U93: 0 | V93: 0 | W93: 0 | X93: 0 | Y93: 0 | Z93: 0 | AA93: 0 | AB93: 0 | AC93: 0 | AD93: 0 | AE93: 0 | AF93: 0 | AG93: 0 | AH93: 0 | AI93: 0 | AJ93: 0 | AK93: 0 | AL93: 0 | AM93: 0 | AN93: 0 | AO93: 0 | AP93: 0 | AQ93: 0 | AR93: 0 | AS93: 0 | AT93: 0 | AU93: 0 | AV93: 0 | AW93: 0 | AX93: 0 | AY93: 0 | AZ93: 0 | BA93: 0 | BB93: 0 | BC93: 0 | BD93: 0 | BE93: 0 | BF93: 0 | BG93: 0 | BH93: 0 | BI93: 0 | BJ93: 0 | BK93: 0 | BL93: 0 | BM93: 0 | BN93: 0 | BO93: 0 | BP93: 0 | BQ93: 0 | BR93: 0 | BS93: 0 | BT93: 0 | BU93: 0 | BV93: 0 | BW93: 0 | BX93: 0 | BY93: 0 | BZ93: 0 | CA93: 0 | CB93: 0 | CC93: 0 | CD93: 0 | CE93: 0 | CF93: 0 | CG93: 0 | CH93: 0 | CI93: 0 | CJ93: 0 | CK93: 0 | CL93: 0 | CM93: 0 | CN93: 0 | CO93: 0 | CP93: 0 | CQ93: 0 | CR93: 0 | CS93: 0 | CT93: 0 | CU93: 0 | CV93: 0 | CW93: 0 | CX93: 0 | CY93: 0 | CZ93: 0 | DA93: 0 | DB93: 0 | DC93: 0 | DD93: 0 | DE93: 0 | DF93: 0 | DG93: 0 | DH93: 0 | DI93: 0 | DJ93: 0 | DK93: 0 | DL93: 0 | DM93: 0 | DN93: 0 | DO93: 0 | DP93: 0 | DQ93: 0 | DR93: 0 | DS93: 0 | DT93: 0 | DU93: 0 | DV93: 0 | DW93: 0 | DX93: 0 | DY93: 0 | DZ93: 0 | EA93: 0 | EB93: 0
A94: 64 | B94: 0 | C94: 0 | D94: 0 | E94: 0 | F94: 0 | G94: 0 | H94: 0 | I94: 0 | J94: 0 | K94: 0 | L94: 0 | M94: 0 | N94: 0 | O94: 0 | P94: 0 | Q94: 0 | R94: 0 | S94: 0 | T94: 0 | U94: 0 | V94: 0 | W94: 0 | X94: 0 | Y94: 0 | Z94: 0 | AA94: 0 | AB94: 0 | AC94: 0 | AD94: 0 | AE94: 0 | AF94: 0 | AG94: 0 | AH94: 0 | AI94: 0 | AJ94: 0 | AK94: 0 | AL94: 0 | AM94: 0 | AN94: 0 | AO94: 0 | AP94: 0 | AQ94: 0 | AR94: 0 | AS94: 0 | AT94: 0 | AU94: 0 | AV94: 0 | AW94: 0 | AX94: 0 | AY94: 0 | AZ94: 0 | BA94: 0 | BB94: 0 | BC94: 0 | BD94: 0 | BE94: 0 | BF94: 0 | BG94: 0 | BH94: 0 | BI94: 0 | BJ94: 0 | BK94: 0 | BL94: 0 | BM94: 0 | BN94: 0 | BO94: 0 | BP94: 0 | BQ94: 0 | BR94: 0 | BS94: 0 | BT94: 0 | BU94: 0 | BV94: 0 | BW94: 0 | BX94: 0 | BY94: 0 | BZ94: 0 | CA94: 0 | CB94: 0 | CC94: 0 | CD94: 0 | CE94: 0 | CF94: 0 | CG94: 0 | CH94: 0 | CI94: 0 | CJ94: 0 | CK94: 0 | CL94: 0 | CM94: 0 | CN94: 0 | CO94: 0 | CP94: 0 | CQ94: 0 | CR94: 0 | CS94: 0 | CT94: 0 | CU94: 0 | CV94: 0 | CW94: 0 | CX94: 0 | CY94: 0 | CZ94: 0 | DA94: 0 | DB94: 0 | DC94: 0 | DD94: 0 | DE94: 0 | DF94: 0 | DG94: 0 | DH94: 0 | DI94: 0 | DJ94: 0 | DK94: 0 | DL94: 0 | DM94: 0 | DN94: 0 | DO94: 0 | DP94: 0 | DQ94: 0 | DR94: 0 | DS94: 0 | DT94: 0 | DU94: 0 | DV94: 0 | DW94: 0 | DX94: 0 | DY94: 0 | DZ94: 0 | EA94: 0 | EB94: 0
A95: 65 | B95: 0 | C95: 0 | D95: 0 | E95: =INDIRECT($C$33&E$32&ROW()-$C$34) -> 0 | F95: 0 | G95: 0 | H95: 0 | I95: 0 | J95: 0 | K95: 0 | L95: 0 | M95: 0 | N95: 0 | O95: =INDIRECT($C$33&O$32&ROW()-$C$34) -> 0 | P95: 0 | Q95: 0 | R95: 0 | S95: 0 | T95: 0 | U95: 0 | V95: 0 | W95: 0 | X95: 0 | Y95: =INDIRECT($C$33&Y$32&ROW()-$C$34) -> 0 | Z95: 0 | AA95: 0 | AB95: 0 | AC95: 0 | AD95: 0 | AE95: 0 | AF95: 0 | AG95: 0 | AH95: 0 | AI95: =INDIRECT($C$33&AI$32&ROW()-$C$34) -> 0 | AJ95: 0 | AK95: 0 | AL95: 0 | AM95: 0 | AN95: 0 | AO95: 0 | AP95: 0 | AQ95: 0 | AR95: 0 | AS95: =INDIRECT($C$33&AS$32&ROW()-$C$34) -> 0 | AT95: 0 | AU95: 0 | AV95: 0 | AW95: 0 | AX95: 0 | AY95: 0 | AZ95: 0 | BA95: 0 | BB95: 0 | BC95: =INDIRECT($C$33&BC$32&ROW()-$C$34) -> 0 | BD95: 0 | BE95: 0 | BF95: 0 | BG95: 0 | BH95: 0 | BI95: 0 | BJ95: 0 | BK95: 0 | BL95: 0 | BM95: =INDIRECT($C$33&BM$32&ROW()-$C$34) -> 0 | BN95: 0 | BO95: 0 | BP95: 0 | BQ95: 0 | BR95: 0 | BS95: 0 | BT95: 0 | BU95: 0 | BV95: 0 | BW95: =INDIRECT($C$33&BW$32&ROW()-$C$34) -> 0 | BX95: 0 | BY95: 0 | BZ95: 0 | CA95: 0 | CB95: 0 | CC95: 0 | CD95: 0 | CE95: 0 | CF95: 0 | CG95: =INDIRECT($C$33&CG$32&ROW()-$C$34) -> 0 | CH95: 0 | CI95: 0 | CJ95: 0 | CK95: 0 | CL95: 0 | CM95: 0 | CN95: 0 | CO95: 0 | CP95: 0 | CQ95: =INDIRECT($C$33&CQ$32&ROW()-$C$34) -> 0 | CR95: 0 | CS95: 0 | CT95: 0 | CU95: 0 | CV95: 0 | CW95: 0 | CX95: 0 | CY95: 0 | CZ95: 0 | DA95: 0 | DB95: 0 | DC95: 0 | DD95: 0 | DE95: 0 | DF95: 0 | DG95: 0 | DH95: 0 | DI95: 0 | DJ95: 0 | DK95: 0 | DL95: 0 | DM95: 0 | DN95: 0 | DO95: 0 | DP95: 0 | DQ95: 0 | DR95: 0 | DS95: 0 | DT95: 0 | DU95: 0 | DV95: 0 | DW95: 0 | DX95: 0 | DY95: 0 | DZ95: 0 | EA95: 0 | EB95: 0
A96: 66 | B96: 0 | C96: =INDIRECT($C$33&C$32&ROW()-$C$34) -> 0 | D96: 0 | E96: 0 | F96: 0 | G96: 0 | H96: 0 | I96: 0 | J96: 0 | K96: 0 | L96: 0 | M96: 0 | N96: 0 | O96: 0 | P96: 0 | Q96: 0 | R96: 0 | S96: 0 | T96: 0 | U96: 0 | V96: 0 | W96: 0 | X96: 0 | Y96: 0 | Z96: 0 | AA96: 0 | AB96: 0 | AC96: 0 | AD96: 0 | AE96: 0 | AF96: 0 | AG96: 0 | AH96: 0 | AI96: 0 | AJ96: 0 | AK96: 0 | AL96: 0 | AM96: 0 | AN96: 0 | AO96: 0 | AP96: 0 | AQ96: 0 | AR96: 0 | AS96: 0 | AT96: 0 | AU96: 0 | AV96: 0 | AW96: 0 | AX96: 0 | AY96: 0 | AZ96: 0 | BA96: 0 | BB96: 0 | BC96: 0 | BD96: 0 | BE96: 0 | BF96: 0 | BG96: 0 | BH96: 0 | BI96: 0 | BJ96: 0 | BK96: 0 | BL96: 0 | BM96: 0 | BN96: 0 | BO96: 0 | BP96: 0 | BQ96: 0 | BR96: 0 | BS96: 0 | BT96: 0 | BU96: 0 | BV96: 0 | BW96: 0 | BX96: 0 | BY96: 0 | BZ96: 0 | CA96: 0 | CB96: 0 | CC96: 0 | CD96: 0 | CE96: 0 | CF96: 0 | CG96: 0 | CH96: 0 | CI96: 0 | CJ96: 0 | CK96: 0 | CL96: 0 | CM96: 0 | CN96: 0 | CO96: 0 | CP96: 0 | CQ96: 0 | CR96: 0 | CS96: 0 | CT96: 0 | CU96: 0 | CV96: 0 | CW96: 0 | CX96: 0 | CY96: 0 | CZ96: 0 | DA96: 0 | DB96: 0 | DC96: 0 | DD96: 0 | DE96: 0 | DF96: 0 | DG96: 0 | DH96: 0 | DI96: 0 | DJ96: 0 | DK96: 0 | DL96: 0 | DM96: 0 | DN96: 0 | DO96: 0 | DP96: 0 | DQ96: 0 | DR96: 0 | DS96: 0 | DT96: 0 | DU96: 0 | DV96: 0 | DW96: 0 | DX96: 0 | DY96: 0 | DZ96: 0 | EA96: 0 | EB96: 0
A97: =A96+1 -> 67 | B97: 0 | C97: 0 | D97: 0 | E97: 0 | F97: 0 | G97: 0 | H97: 0 | I97: 0 | J97: 0 | K97: 0 | L97: 0 | M97: 0 | N97: 0 | O97: 0 | P97: 0 | Q97: 0 | R97: 0 | S97: 0 | T97: 0 | U97: 0 | V97: 0 | W97: 0 | X97: 0 | Y97: 0 | Z97: 0 | AA97: 0 | AB97: 0 | AC97: 0 | AD97: 0 | AE97: 0 | AF97: 0 | AG97: 0 | AH97: 0 | AI97: 0 | AJ97: 0 | AK97: 0 | AL97: 0 | AM97: 0 | AN97: 0 | AO97: 0 | AP97: 0 | AQ97: 0 | AR97: 0 | AS97: 0 | AT97: 0 | AU97: 0 | AV97: 0 | AW97: 0 | AX97: 0 | AY97: 0 | AZ97: 0 | BA97: 0 | BB97: 0 | BC97: 0 | BD97: 0 | BE97: 0 | BF97: 0 | BG97: 0 | BH97: 0 | BI97: 0 | BJ97: 0 | BK97: 0 | BL97: 0 | BM97: 0 | BN97: 0 | BO97: 0 | BP97: 0 | BQ97: 0 | BR97: 0 | BS97: 0 | BT97: 0 | BU97: 0 | BV97: 0 | BW97: 0 | BX97: 0 | BY97: 0 | BZ97: 0 | CA97: 0 | CB97: 0 | CC97: 0 | CD97: 0 | CE97: 0 | CF97: 0 | CG97: 0 | CH97: 0 | CI97: 0 | CJ97: 0 | CK97: 0 | CL97: 0 | CM97: 0 | CN97: 0 | CO97: 0 | CP97: 0 | CQ97: 0 | CR97: 0 | CS97: 0 | CT97: 0 | CU97: 0 | CV97: 0 | CW97: 0 | CX97: 0 | CY97: 0 | CZ97: 0 | DA97: 0 | DB97: 0 | DC97: 0 | DD97: 0 | DE97: 0 | DF97: 0 | DG97: 0 | DH97: 0 | DI97: 0 | DJ97: 0 | DK97: 0 | DL97: 0 | DM97: 0 | DN97: 0 | DO97: 0 | DP97: 0 | DQ97: 0 | DR97: 0 | DS97: 0 | DT97: 0 | DU97: 0 | DV97: 0 | DW97: 0 | DX97: 0 | DY97: 0 | DZ97: 0 | EA97: 0 | EB97: 0
A98: 68 | B98: 0 | C98: 0 | D98: 0 | E98: 0 | F98: 0 | G98: 0 | H98: 0 | I98: 0 | J98: 0 | K98: 0 | L98: 0 | M98: 0 | N98: 0 | O98: 0 | P98: 0 | Q98: 0 | R98: 0 | S98: 0 | T98: 0 | U98: 0 | V98: 0 | W98: 0 | X98: 0 | Y98: 0 | Z98: 0 | AA98: 0 | AB98: 0 | AC98: 0 | AD98: 0 | AE98: 0 | AF98: 0 | AG98: 0 | AH98: 0 | AI98: 0 | AJ98: 0 | AK98: 0 | AL98: 0 | AM98: 0 | AN98: 0 | AO98: 0 | AP98: 0 | AQ98: 0 | AR98: 0 | AS98: 0 | AT98: 0 | AU98: 0 | AV98: 0 | AW98: 0 | AX98: 0 | AY98: 0 | AZ98: 0 | BA98: 0 | BB98: 0 | BC98: 0 | BD98: 0 | BE98: 0 | BF98: 0 | BG98: 0 | BH98: 0 | BI98: 0 | BJ98: 0 | BK98: 0 | BL98: 0 | BM98: 0 | BN98: 0 | BO98: 0 | BP98: 0 | BQ98: 0 | BR98: 0 | BS98: 0 | BT98: 0 | BU98: 0 | BV98: 0 | BW98: 0 | BX98: 0 | BY98: 0 | BZ98: 0 | CA98: 0 | CB98: 0 | CC98: 0 | CD98: 0 | CE98: 0 | CF98: 0 | CG98: 0 | CH98: 0 | CI98: 0 | CJ98: 0 | CK98: 0 | CL98: 0 | CM98: 0 | CN98: 0 | CO98: 0 | CP98: 0 | CQ98: 0 | CR98: 0 | CS98: 0 | CT98: 0 | CU98: 0 | CV98: 0 | CW98: 0 | CX98: 0 | CY98: 0 | CZ98: 0 | DA98: 0 | DB98: 0 | DC98: 0 | DD98: 0 | DE98: 0 | DF98: 0 | DG98: 0 | DH98: 0 | DI98: 0 | DJ98: 0 | DK98: 0 | DL98: 0 | DM98: 0 | DN98: 0 | DO98: 0 | DP98: 0 | DQ98: 0 | DR98: 0 | DS98: 0 | DT98: 0 | DU98: 0 | DV98: 0 | DW98: 0 | DX98: 0 | DY98: 0 | DZ98: 0 | EA98: 0 | EB98: 0
A99: 69 | B99: 0 | C99: 0 | D99: 0 | E99: 0 | F99: 0 | G99: 0 | H99: 0 | I99: 0 | J99: 0 | K99: 0 | L99: 0 | M99: 0 | N99: 0 | O99: 0 | P99: 0 | Q99: 0 | R99: 0 | S99: 0 | T99: 0 | U99: 0 | V99: 0 | W99: 0 | X99: 0 | Y99: 0 | Z99: 0 | AA99: 0 | AB99: 0 | AC99: 0 | AD99: 0 | AE99: 0 | AF99: 0 | AG99: 0 | AH99: 0 | AI99: 0 | AJ99: 0 | AK99: 0 | AL99: 0 | AM99: 0 | AN99: 0 | AO99: 0 | AP99: 0 | AQ99: 0 | AR99: 0 | AS99: 0 | AT99: 0 | AU99: 0 | AV99: 0 | AW99: 0 | AX99: 0 | AY99: 0 | AZ99: 0 | BA99: 0 | BB99: 0 | BC99: 0 | BD99: 0 | BE99: 0 | BF99: 0 | BG99: 0 | BH99: 0 | BI99: 0 | BJ99: 0 | BK99: 0 | BL99: 0 | BM99: 0 | BN99: 0 | BO99: 0 | BP99: 0 | BQ99: 0 | BR99: 0 | BS99: 0 | BT99: 0 | BU99: 0 | BV99: 0 | BW99: 0 | BX99: 0 | BY99: 0 | BZ99: 0 | CA99: 0 | CB99: 0 | CC99: 0 | CD99: 0 | CE99: 0 | CF99: 0 | CG99: 0 | CH99: 0 | CI99: 0 | CJ99: 0 | CK99: 0 | CL99: 0 | CM99: 0 | CN99: 0 | CO99: 0 | CP99: 0 | CQ99: 0 | CR99: 0 | CS99: 0 | CT99: 0 | CU99: 0 | CV99: 0 | CW99: 0 | CX99: 0 | CY99: 0 | CZ99: 0 | DA99: 0 | DB99: 0 | DC99: =INDIRECT($C$33&DC$32&ROW()-$C$34) -> 0 | DD99: 0 | DE99: 0 | DF99: 0 | DG99: 0 | DH99: 0 | DI99: 0 | DJ99: 0 | DK99: 0 | DL99: 0 | DM99: 0 | DN99: 0 | DO99: 0 | DP99: 0 | DQ99: 0 | DR99: 0 | DS99: 0 | DT99: =INDIRECT($C$33&DT$32&ROW()-$C$34) -> 0 | DU99: 0 | DV99: 0 | DW99: 0 | DX99: 0 | DY99: 0 | DZ99: 0 | EA99: 0 | EB99: 0
A100: 70 | B100: =IF(LEN(C100)>1,A100,0) -> 0 | C100: 0 | D100: 0 | E100: 0 | F100: 0 | G100: 0 | H100: 0 | I100: 0 | J100: 0 | K100: 0 | L100: 0 | M100: 0 | N100: 0 | O100: 0 | P100: 0 | Q100: 0 | R100: 0 | S100: 0 | T100: 0 | U100: 0 | V100: 0 | W100: 0 | X100: 0 | Y100: 0 | Z100: 0 | AA100: 0 | AB100: 0 | AC100: 0 | AD100: 0 | AE100: 0 | AF100: 0 | AG100: 0 | AH100: 0 | AI100: 0 | AJ100: 0 | AK100: 0 | AL100: 0 | AM100: 0 | AN100: 0 | AO100: 0 | AP100: 0 | AQ100: 0 | AR100: 0 | AS100: 0 | AT100: 0 | AU100: 0 | AV100: 0 | AW100: 0 | AX100: 0 | AY100: 0 | AZ100: 0 | BA100: 0 | BB100: 0 | BC100: 0 | BD100: 0 | BE100: 0 | BF100: 0 | BG100: 0 | BH100: 0 | BI100: 0 | BJ100: 0 | BK100: 0 | BL100: 0 | BM100: 0 | BN100: 0 | BO100: 0 | BP100: 0 | BQ100: 0 | BR100: 0 | BS100: 0 | BT100: 0 | BU100: 0 | BV100: 0 | BW100: 0 | BX100: 0 | BY100: 0 | BZ100: 0 | CA100: 0 | CB100: 0 | CC100: 0 | CD100: 0 | CE100: 0 | CF100: 0 | CG100: 0 | CH100: 0 | CI100: 0 | CJ100: 0 | CK100: 0 | CL100: 0 | CM100: 0 | CN100: 0 | CO100: 0 | CP100: 0 | CQ100: 0 | CR100: 0 | CS100: 0 | CT100: 0 | CU100: 0 | CV100: 0 | CW100: 0 | CX100: 0 | CY100: 0 | CZ100: 0 | DA100: 0 | DB100: 0 | DC100: 0 | DD100: 0 | DE100: 0 | DF100: 0 | DG100: 0 | DH100: 0 | DI100: 0 | DJ100: 0 | DK100: 0 | DL100: 0 | DM100: 0 | DN100: 0 | DO100: 0 | DP100: 0 | DQ100: 0 | DR100: 0 | DS100: 0 | DT100: 0 | DU100: 0 | DV100: 0 | DW100: 0 | DX100: 0 | DY100: 0 | DZ100: 0 | EA100: 0 | EB100: 0
A101: 71 | B101: 0 | C101: 0 | D101: 0 | E101: 0 | F101: 0 | G101: 0 | H101: 0 | I101: 0 | J101: 0 | K101: 0 | L101: 0 | M101: 0 | N101: 0 | O101: 0 | P101: 0 | Q101: 0 | R101: 0 | S101: 0 | T101: 0 | U101: 0 | V101: 0 | W101: 0 | X101: 0 | Y101: 0 | Z101: 0 | AA101: 0 | AB101: 0 | AC101: 0 | AD101: 0 | AE101: 0 | AF101: 0 | AG101: 0 | AH101: 0 | AI101: 0 | AJ101: 0 | AK101: 0 | AL101: 0 | AM101: 0 | AN101: 0 | AO101: 0 | AP101: 0 | AQ101: 0 | AR101: 0 | AS101: 0 | AT101: 0 | AU101: 0 | AV101: 0 | AW101: 0 | AX101: 0 | AY101: 0 | AZ101: 0 | BA101: 0 | BB101: 0 | BC101: 0 | BD101: 0 | BE101: 0 | BF101: 0 | BG101: 0 | BH101: 0 | BI101: 0 | BJ101: 0 | BK101: 0 | BL101: 0 | BM101: 0 | BN101: 0 | BO101: 0 | BP101: 0 | BQ101: 0 | BR101: 0 | BS101: 0 | BT101: 0 | BU101: 0 | BV101: 0 | BW101: 0 | BX101: 0 | BY101: 0 | BZ101: 0 | CA101: 0 | CB101: 0 | CC101: 0 | CD101: 0 | CE101: 0 | CF101: 0 | CG101: 0 | CH101: 0 | CI101: 0 | CJ101: 0 | CK101: 0 | CL101: 0 | CM101: 0 | CN101: 0 | CO101: 0 | CP101: 0 | CQ101: 0 | CR101: 0 | CS101: 0 | CT101: 0 | CU101: 0 | CV101: 0 | CW101: 0 | CX101: 0 | CY101: 0 | CZ101: 0 | DA101: 0 | DB101: 0 | DC101: 0 | DD101: 0 | DE101: 0 | DF101: 0 | DG101: 0 | DH101: 0 | DI101: 0 | DJ101: 0 | DK101: 0 | DL101: 0 | DM101: 0 | DN101: 0 | DO101: 0 | DP101: 0 | DQ101: 0 | DR101: 0 | DS101: 0 | DT101: 0 | DU101: 0 | DV101: 0 | DW101: 0 | DX101: 0 | DY101: 0 | DZ101: 0 | EA101: 0 | EB101: 0
A102: 72 | B102: 0 | C102: 0 | D102: 0 | E102: 0 | F102: 0 | G102: 0 | H102: 0 | I102: 0 | J102: 0 | K102: 0 | L102: 0 | M102: 0 | N102: 0 | O102: 0 | P102: 0 | Q102: 0 | R102: 0 | S102: 0 | T102: 0 | U102: 0 | V102: 0 | W102: 0 | X102: 0 | Y102: 0 | Z102: 0 | AA102: 0 | AB102: 0 | AC102: 0 | AD102: 0 | AE102: 0 | AF102: 0 | AG102: 0 | AH102: 0 | AI102: 0 | AJ102: 0 | AK102: 0 | AL102: 0 | AM102: 0 | AN102: 0 | AO102: 0 | AP102: 0 | AQ102: 0 | AR102: 0 | AS102: 0 | AT102: 0 | AU102: 0 | AV102: 0 | AW102: 0 | AX102: 0 | AY102: 0 | AZ102: 0 | BA102: 0 | BB102: 0 | BC102: 0 | BD102: 0 | BE102: 0 | BF102: 0 | BG102: 0 | BH102: 0 | BI102: 0 | BJ102: 0 | BK102: 0 | BL102: 0 | BM102: 0 | BN102: 0 | BO102: 0 | BP102: 0 | BQ102: 0 | BR102: 0 | BS102: 0 | BT102: 0 | BU102: 0 | BV102: 0 | BW102: 0 | BX102: 0 | BY102: 0 | BZ102: 0 | CA102: 0 | CB102: 0 | CC102: 0 | CD102: 0 | CE102: 0 | CF102: 0 | CG102: 0 | CH102: 0 | CI102: 0 | CJ102: 0 | CK102: 0 | CL102: 0 | CM102: 0 | CN102: 0 | CO102: 0 | CP102: 0 | CQ102: 0 | CR102: 0 | CS102: 0 | CT102: 0 | CU102: 0 | CV102: 0 | CW102: 0 | CX102: 0 | CY102: 0 | CZ102: 0 | DA102: 0 | DB102: 0 | DC102: 0 | DD102: 0 | DE102: 0 | DF102: 0 | DG102: 0 | DH102: 0 | DI102: 0 | DJ102: 0 | DK102: 0 | DL102: 0 | DM102: 0 | DN102: 0 | DO102: 0 | DP102: 0 | DQ102: 0 | DR102: 0 | DS102: 0 | DT102: 0 | DU102: 0 | DV102: 0 | DW102: 0 | DX102: 0 | DY102: 0 | DZ102: 0 | EA102: 0 | EB102: 0
A103: 73 | B103: 0 | C103: 0 | D103: 0 | E103: 0 | F103: 0 | G103: 0 | H103: 0 | I103: 0 | J103: 0 | K103: 0 | L103: 0 | M103: 0 | N103: 0 | O103: 0 | P103: 0 | Q103: 0 | R103: 0 | S103: 0 | T103: 0 | U103: 0 | V103: 0 | W103: 0 | X103: 0 | Y103: 0 | Z103: 0 | AA103: 0 | AB103: 0 | AC103: 0 | AD103: 0 | AE103: 0 | AF103: 0 | AG103: 0 | AH103: 0 | AI103: 0 | AJ103: 0 | AK103: 0 | AL103: 0 | AM103: 0 | AN103: 0 | AO103: 0 | AP103: 0 | AQ103: 0 | AR103: 0 | AS103: 0 | AT103: 0 | AU103: 0 | AV103: 0 | AW103: 0 | AX103: 0 | AY103: 0 | AZ103: 0 | BA103: 0 | BB103: 0 | BC103: 0 | BD103: 0 | BE103: 0 | BF103: 0 | BG103: 0 | BH103: 0 | BI103: 0 | BJ103: 0 | BK103: 0 | BL103: 0 | BM103: 0 | BN103: 0 | BO103: 0 | BP103: 0 | BQ103: 0 | BR103: 0 | BS103: 0 | BT103: 0 | BU103: 0 | BV103: 0 | BW103: 0 | BX103: 0 | BY103: 0 | BZ103: 0 | CA103: 0 | CB103: 0 | CC103: 0 | CD103: 0 | CE103: 0 | CF103: 0 | CG103: 0 | CH103: 0 | CI103: 0 | CJ103: 0 | CK103: 0 | CL103: 0 | CM103: 0 | CN103: 0 | CO103: 0 | CP103: 0 | CQ103: 0 | CR103: 0 | CS103: 0 | CT103: 0 | CU103: 0 | CV103: 0 | CW103: 0 | CX103: 0 | CY103: 0 | CZ103: 0 | DA103: 0 | DB103: 0 | DC103: 0 | DD103: 0 | DE103: 0 | DF103: 0 | DG103: 0 | DH103: 0 | DI103: 0 | DJ103: 0 | DK103: 0 | DL103: 0 | DM103: 0 | DN103: 0 | DO103: 0 | DP103: 0 | DQ103: 0 | DR103: 0 | DS103: 0 | DT103: 0 | DU103: 0 | DV103: 0 | DW103: 0 | DX103: 0 | DY103: 0 | DZ103: 0 | EA103: 0 | EB103: 0
A104: 74 | B104: 0 | C104: 0 | D104: 0 | E104: 0 | F104: 0 | G104: 0 | H104: 0 | I104: 0 | J104: 0 | K104: 0 | L104: 0 | M104: 0 | N104: 0 | O104: 0 | P104: 0 | Q104: 0 | R104: 0 | S104: 0 | T104: 0 | U104: 0 | V104: 0 | W104: 0 | X104: 0 | Y104: 0 | Z104: 0 | AA104: 0 | AB104: 0 | AC104: 0 | AD104: 0 | AE104: 0 | AF104: 0 | AG104: 0 | AH104: 0 | AI104: 0 | AJ104: 0 | AK104: 0 | AL104: 0 | AM104: 0 | AN104: 0 | AO104: 0 | AP104: 0 | AQ104: 0 | AR104: 0 | AS104: 0 | AT104: 0 | AU104: 0 | AV104: 0 | AW104: 0 | AX104: 0 | AY104: 0 | AZ104: 0 | BA104: 0 | BB104: 0 | BC104: 0 | BD104: 0 | BE104: 0 | BF104: 0 | BG104: 0 | BH104: 0 | BI104: 0 | BJ104: 0 | BK104: 0 | BL104: 0 | BM104: 0 | BN104: 0 | BO104: 0 | BP104: 0 | BQ104: 0 | BR104: 0 | BS104: 0 | BT104: 0 | BU104: 0 | BV104: 0 | BW104: 0 | BX104: 0 | BY104: 0 | BZ104: 0 | CA104: 0 | CB104: 0 | CC104: 0 | CD104: 0 | CE104: 0 | CF104: 0 | CG104: 0 | CH104: 0 | CI104: 0 | CJ104: 0 | CK104: 0 | CL104: 0 | CM104: 0 | CN104: 0 | CO104: 0 | CP104: 0 | CQ104: 0 | CR104: 0 | CS104: 0 | CT104: 0 | CU104: 0 | CV104: 0 | CW104: 0 | CX104: 0 | CY104: 0 | CZ104: 0 | DA104: 0 | DB104: 0 | DC104: 0 | DD104: 0 | DE104: 0 | DF104: 0 | DG104: 0 | DH104: 0 | DI104: 0 | DJ104: 0 | DK104: 0 | DL104: 0 | DM104: 0 | DN104: 0 | DO104: 0 | DP104: 0 | DQ104: 0 | DR104: 0 | DS104: 0 | DT104: 0 | DU104: 0 | DV104: 0 | DW104: 0 | DX104: 0 | DY104: 0 | DZ104: 0 | EA104: 0 | EB104: 0
A105: 75 | B105: 0 | C105: 0 | D105: 0 | E105: =INDIRECT($C$33&E$32&ROW()-$C$34) -> 0 | F105: 0 | G105: 0 | H105: 0 | I105: 0 | J105: 0 | K105: 0 | L105: 0 | M105: 0 | N105: 0 | O105: =INDIRECT($C$33&O$32&ROW()-$C$34) -> 0 | P105: 0 | Q105: 0 | R105: 0 | S105: 0 | T105: 0 | U105: 0 | V105: 0 | W105: 0 | X105: 0 | Y105: =INDIRECT($C$33&Y$32&ROW()-$C$34) -> 0 | Z105: 0 | AA105: 0 | AB105: 0 | AC105: 0 | AD105: 0 | AE105: 0 | AF105: 0 | AG105: 0 | AH105: 0 | AI105: =INDIRECT($C$33&AI$32&ROW()-$C$34) -> 0 | AJ105: 0 | AK105: 0 | AL105: 0 | AM105: 0 | AN105: 0 | AO105: 0 | AP105: 0 | AQ105: 0 | AR105: 0 | AS105: =INDIRECT($C$33&AS$32&ROW()-$C$34) -> 0 | AT105: 0 | AU105: 0 | AV105: 0 | AW105: 0 | AX105: 0 | AY105: 0 | AZ105: 0 | BA105: 0 | BB105: 0 | BC105: =INDIRECT($C$33&BC$32&ROW()-$C$34) -> 0 | BD105: 0 | BE105: 0 | BF105: 0 | BG105: 0 | BH105: 0 | BI105: 0 | BJ105: 0 | BK105: 0 | BL105: 0 | BM105: =INDIRECT($C$33&BM$32&ROW()-$C$34) -> 0 | BN105: 0 | BO105: 0 | BP105: 0 | BQ105: 0 | BR105: 0 | BS105: 0 | BT105: 0 | BU105: 0 | BV105: 0 | BW105: =INDIRECT($C$33&BW$32&ROW()-$C$34) -> 0 | BX105: 0 | BY105: 0 | BZ105: 0 | CA105: 0 | CB105: 0 | CC105: 0 | CD105: 0 | CE105: 0 | CF105: 0 | CG105: =INDIRECT($C$33&CG$32&ROW()-$C$34) -> 0 | CH105: 0 | CI105: 0 | CJ105: 0 | CK105: 0 | CL105: 0 | CM105: 0 | CN105: 0 | CO105: 0 | CP105: 0 | CQ105: =INDIRECT($C$33&CQ$32&ROW()-$C$34) -> 0 | CR105: 0 | CS105: 0 | CT105: 0 | CU105: 0 | CV105: 0 | CW105: 0 | CX105: 0 | CY105: 0 | CZ105: 0 | DA105: 0 | DB105: 0 | DC105: 0 | DD105: 0 | DE105: 0 | DF105: 0 | DG105: 0 | DH105: 0 | DI105: 0 | DJ105: 0 | DK105: 0 | DL105: 0 | DM105: 0 | DN105: 0 | DO105: 0 | DP105: 0 | DQ105: 0 | DR105: 0 | DS105: 0 | DT105: 0 | DU105: 0 | DV105: 0 | DW105: 0 | DX105: 0 | DY105: 0 | DZ105: 0 | EA105: 0 | EB105: 0
A106: 76 | B106: 0 | C106: 0 | D106: 0 | E106: 0 | F106: 0 | G106: 0 | H106: 0 | I106: 0 | J106: 0 | K106: 0 | L106: 0 | M106: 0 | N106: 0 | O106: 0 | P106: 0 | Q106: 0 | R106: 0 | S106: 0 | T106: 0 | U106: 0 | V106: 0 | W106: 0 | X106: 0 | Y106: 0 | Z106: 0 | AA106: 0 | AB106: 0 | AC106: 0 | AD106: 0 | AE106: 0 | AF106: 0 | AG106: 0 | AH106: 0 | AI106: 0 | AJ106: 0 | AK106: 0 | AL106: 0 | AM106: 0 | AN106: 0 | AO106: 0 | AP106: 0 | AQ106: 0 | AR106: 0 | AS106: 0 | AT106: 0 | AU106: 0 | AV106: 0 | AW106: 0 | AX106: 0 | AY106: 0 | AZ106: 0 | BA106: 0 | BB106: 0 | BC106: 0 | BD106: 0 | BE106: 0 | BF106: 0 | BG106: 0 | BH106: 0 | BI106: 0 | BJ106: 0 | BK106: 0 | BL106: 0 | BM106: 0 | BN106: 0 | BO106: 0 | BP106: 0 | BQ106: 0 | BR106: 0 | BS106: 0 | BT106: 0 | BU106: 0 | BV106: 0 | BW106: 0 | BX106: 0 | BY106: 0 | BZ106: 0 | CA106: 0 | CB106: 0 | CC106: 0 | CD106: 0 | CE106: 0 | CF106: 0 | CG106: 0 | CH106: 0 | CI106: 0 | CJ106: 0 | CK106: 0 | CL106: 0 | CM106: 0 | CN106: 0 | CO106: 0 | CP106: 0 | CQ106: 0 | CR106: 0 | CS106: 0 | CT106: 0 | CU106: 0 | CV106: 0 | CW106: 0 | CX106: 0 | CY106: 0 | CZ106: 0 | DA106: 0 | DB106: 0 | DC106: 0 | DD106: 0 | DE106: 0 | DF106: 0 | DG106: 0 | DH106: 0 | DI106: 0 | DJ106: 0 | DK106: 0 | DL106: 0 | DM106: 0 | DN106: 0 | DO106: 0 | DP106: 0 | DQ106: 0 | DR106: 0 | DS106: 0 | DT106: 0 | DU106: 0 | DV106: 0 | DW106: 0 | DX106: 0 | DY106: 0 | DZ106: 0 | EA106: 0 | EB106: 0
A107: 77 | B107: 0 | C107: 0 | D107: 0 | E107: 0 | F107: 0 | G107: 0 | H107: 0 | I107: 0 | J107: 0 | K107: 0 | L107: 0 | M107: 0 | N107: 0 | O107: 0 | P107: 0 | Q107: 0 | R107: 0 | S107: 0 | T107: 0 | U107: 0 | V107: 0 | W107: 0 | X107: 0 | Y107: 0 | Z107: 0 | AA107: 0 | AB107: 0 | AC107: 0 | AD107: 0 | AE107: 0 | AF107: 0 | AG107: 0 | AH107: 0 | AI107: 0 | AJ107: 0 | AK107: 0 | AL107: 0 | AM107: 0 | AN107: 0 | AO107: 0 | AP107: 0 | AQ107: 0 | AR107: 0 | AS107: 0 | AT107: 0 | AU107: 0 | AV107: 0 | AW107: 0 | AX107: 0 | AY107: 0 | AZ107: 0 | BA107: 0 | BB107: 0 | BC107: 0 | BD107: 0 | BE107: 0 | BF107: 0 | BG107: 0 | BH107: 0 | BI107: 0 | BJ107: 0 | BK107: 0 | BL107: 0 | BM107: 0 | BN107: 0 | BO107: 0 | BP107: 0 | BQ107: 0 | BR107: 0 | BS107: 0 | BT107: 0 | BU107: 0 | BV107: 0 | BW107: 0 | BX107: 0 | BY107: 0 | BZ107: 0 | CA107: 0 | CB107: 0 | CC107: 0 | CD107: 0 | CE107: 0 | CF107: 0 | CG107: 0 | CH107: 0 | CI107: 0 | CJ107: 0 | CK107: 0 | CL107: 0 | CM107: 0 | CN107: 0 | CO107: 0 | CP107: 0 | CQ107: 0 | CR107: 0 | CS107: 0 | CT107: 0 | CU107: 0 | CV107: 0 | CW107: 0 | CX107: 0 | CY107: 0 | CZ107: 0 | DA107: 0 | DB107: 0 | DC107: 0 | DD107: 0 | DE107: 0 | DF107: 0 | DG107: 0 | DH107: 0 | DI107: 0 | DJ107: 0 | DK107: 0 | DL107: 0 | DM107: 0 | DN107: 0 | DO107: 0 | DP107: 0 | DQ107: 0 | DR107: 0 | DS107: 0 | DT107: 0 | DU107: 0 | DV107: 0 | DW107: 0 | DX107: 0 | DY107: 0 | DZ107: 0 | EA107: 0 | EB107: 0
A108: 78 | B108: 0 | C108: 0 | D108: 0 | E108: 0 | F108: 0 | G108: 0 | H108: 0 | I108: 0 | J108: 0 | K108: 0 | L108: 0 | M108: 0 | N108: 0 | O108: 0 | P108: 0 | Q108: 0 | R108: 0 | S108: 0 | T108: 0 | U108: 0 | V108: 0 | W108: 0 | X108: 0 | Y108: 0 | Z108: 0 | AA108: 0 | AB108: 0 | AC108: 0 | AD108: 0 | AE108: 0 | AF108: 0 | AG108: 0 | AH108: 0 | AI108: 0 | AJ108: 0 | AK108: 0 | AL108: 0 | AM108: 0 | AN108: 0 | AO108: 0 | AP108: 0 | AQ108: 0 | AR108: 0 | AS108: 0 | AT108: 0 | AU108: 0 | AV108: 0 | AW108: 0 | AX108: 0 | AY108: 0 | AZ108: 0 | BA108: 0 | BB108: 0 | BC108: 0 | BD108: 0 | BE108: 0 | BF108: 0 | BG108: 0 | BH108: 0 | BI108: 0 | BJ108: 0 | BK108: 0 | BL108: 0 | BM108: 0 | BN108: 0 | BO108: 0 | BP108: 0 | BQ108: 0 | BR108: 0 | BS108: 0 | BT108: 0 | BU108: 0 | BV108: 0 | BW108: 0 | BX108: 0 | BY108: 0 | BZ108: 0 | CA108: 0 | CB108: 0 | CC108: 0 | CD108: 0 | CE108: 0 | CF108: 0 | CG108: 0 | CH108: 0 | CI108: 0 | CJ108: 0 | CK108: 0 | CL108: 0 | CM108: 0 | CN108: 0 | CO108: 0 | CP108: 0 | CQ108: 0 | CR108: 0 | CS108: 0 | CT108: 0 | CU108: 0 | CV108: 0 | CW108: 0 | CX108: 0 | CY108: 0 | CZ108: 0 | DA108: 0 | DB108: 0 | DC108: 0 | DD108: 0 | DE108: 0 | DF108: 0 | DG108: 0 | DH108: 0 | DI108: 0 | DJ108: 0 | DK108: 0 | DL108: 0 | DM108: 0 | DN108: 0 | DO108: 0 | DP108: 0 | DQ108: 0 | DR108: 0 | DS108: 0 | DT108: 0 | DU108: 0 | DV108: 0 | DW108: 0 | DX108: 0 | DY108: 0 | DZ108: 0 | EA108: 0 | EB108: 0
A109: 79 | B109: 0 | C109: 0 | D109: 0 | E109: 0 | F109: 0 | G109: 0 | H109: 0 | I109: 0 | J109: 0 | K109: 0 | L109: 0 | M109: 0 | N109: 0 | O109: 0 | P109: 0 | Q109: 0 | R109: 0 | S109: 0 | T109: 0 | U109: 0 | V109: 0 | W109: 0 | X109: 0 | Y109: 0 | Z109: 0 | AA109: 0 | AB109: 0 | AC109: 0 | AD109: 0 | AE109: 0 | AF109: 0 | AG109: 0 | AH109: 0 | AI109: 0 | AJ109: 0 | AK109: 0 | AL109: 0 | AM109: 0 | AN109: 0 | AO109: 0 | AP109: 0 | AQ109: 0 | AR109: 0 | AS109: 0 | AT109: 0 | AU109: 0 | AV109: 0 | AW109: 0 | AX109: 0 | AY109: 0 | AZ109: 0 | BA109: 0 | BB109: 0 | BC109: 0 | BD109: 0 | BE109: 0 | BF109: 0 | BG109: 0 | BH109: 0 | BI109: 0 | BJ109: 0 | BK109: 0 | BL109: 0 | BM109: 0 | BN109: 0 | BO109: 0 | BP109: 0 | BQ109: 0 | BR109: 0 | BS109: 0 | BT109: 0 | BU109: 0 | BV109: 0 | BW109: 0 | BX109: 0 | BY109: 0 | BZ109: 0 | CA109: 0 | CB109: 0 | CC109: 0 | CD109: 0 | CE109: 0 | CF109: 0 | CG109: 0 | CH109: 0 | CI109: 0 | CJ109: 0 | CK109: 0 | CL109: 0 | CM109: 0 | CN109: 0 | CO109: 0 | CP109: 0 | CQ109: 0 | CR109: 0 | CS109: 0 | CT109: 0 | CU109: 0 | CV109: 0 | CW109: 0 | CX109: 0 | CY109: 0 | CZ109: 0 | DA109: 0 | DB109: 0 | DC109: 0 | DD109: 0 | DE109: 0 | DF109: 0 | DG109: 0 | DH109: 0 | DI109: 0 | DJ109: 0 | DK109: 0 | DL109: 0 | DM109: 0 | DN109: 0 | DO109: 0 | DP109: 0 | DQ109: 0 | DR109: 0 | DS109: 0 | DT109: 0 | DU109: 0 | DV109: 0 | DW109: 0 | DX109: 0 | DY109: 0 | DZ109: 0 | EA109: 0 | EB109: 0
A110: 80 | B110: 0 | C110: 0 | D110: 0 | E110: 0 | F110: 0 | G110: 0 | H110: 0 | I110: 0 | J110: 0 | K110: 0 | L110: 0 | M110: 0 | N110: 0 | O110: 0 | P110: 0 | Q110: 0 | R110: 0 | S110: 0 | T110: 0 | U110: 0 | V110: 0 | W110: 0 | X110: 0 | Y110: 0 | Z110: 0 | AA110: 0 | AB110: 0 | AC110: 0 | AD110: 0 | AE110: 0 | AF110: 0 | AG110: 0 | AH110: 0 | AI110: 0 | AJ110: 0 | AK110: 0 | AL110: 0 | AM110: 0 | AN110: 0 | AO110: 0 | AP110: 0 | AQ110: 0 | AR110: 0 | AS110: 0 | AT110: 0 | AU110: 0 | AV110: 0 | AW110: 0 | AX110: 0 | AY110: 0 | AZ110: 0 | BA110: 0 | BB110: 0 | BC110: 0 | BD110: 0 | BE110: 0 | BF110: 0 | BG110: 0 | BH110: 0 | BI110: 0 | BJ110: 0 | BK110: 0 | BL110: 0 | BM110: 0 | BN110: 0 | BO110: 0 | BP110: 0 | BQ110: 0 | BR110: 0 | BS110: 0 | BT110: 0 | BU110: 0 | BV110: 0 | BW110: 0 | BX110: 0 | BY110: 0 | BZ110: 0 | CA110: 0 | CB110: 0 | CC110: 0 | CD110: 0 | CE110: 0 | CF110: 0 | CG110: 0 | CH110: 0 | CI110: 0 | CJ110: 0 | CK110: 0 | CL110: 0 | CM110: 0 | CN110: 0 | CO110: 0 | CP110: 0 | CQ110: 0 | CR110: 0 | CS110: 0 | CT110: 0 | CU110: 0 | CV110: 0 | CW110: 0 | CX110: 0 | CY110: 0 | CZ110: 0 | DA110: 0 | DB110: 0 | DC110: 0 | DD110: 0 | DE110: 0 | DF110: 0 | DG110: 0 | DH110: 0 | DI110: 0 | DJ110: 0 | DK110: 0 | DL110: 0 | DM110: 0 | DN110: 0 | DO110: 0 | DP110: 0 | DQ110: 0 | DR110: 0 | DS110: 0 | DT110: 0 | DU110: 0 | DV110: 0 | DW110: 0 | DX110: 0 | DY110: 0 | DZ110: 0 | EA110: 0 | EB110: 0
A111: 81 | B111: 0 | C111: 0 | D111: 0 | E111: 0 | F111: 0 | G111: 0 | H111: 0 | I111: 0 | J111: 0 | K111: 0 | L111: 0 | M111: 0 | N111: 0 | O111: 0 | P111: 0 | Q111: 0 | R111: 0 | S111: 0 | T111: 0 | U111: 0 | V111: 0 | W111: 0 | X111: 0 | Y111: 0 | Z111: 0 | AA111: 0 | AB111: 0 | AC111: 0 | AD111: 0 | AE111: 0 | AF111: 0 | AG111: 0 | AH111: 0 | AI111: 0 | AJ111: 0 | AK111: 0 | AL111: 0 | AM111: 0 | AN111: 0 | AO111: 0 | AP111: 0 | AQ111: 0 | AR111: 0 | AS111: 0 | AT111: 0 | AU111: 0 | AV111: 0 | AW111: 0 | AX111: 0 | AY111: 0 | AZ111: 0 | BA111: 0 | BB111: 0 | BC111: 0 | BD111: 0 | BE111: 0 | BF111: 0 | BG111: 0 | BH111: 0 | BI111: 0 | BJ111: 0 | BK111: 0 | BL111: 0 | BM111: 0 | BN111: 0 | BO111: 0 | BP111: 0 | BQ111: 0 | BR111: 0 | BS111: 0 | BT111: 0 | BU111: 0 | BV111: 0 | BW111: 0 | BX111: 0 | BY111: 0 | BZ111: 0 | CA111: 0 | CB111: 0 | CC111: 0 | CD111: 0 | CE111: 0 | CF111: 0 | CG111: 0 | CH111: 0 | CI111: 0 | CJ111: 0 | CK111: 0 | CL111: 0 | CM111: 0 | CN111: 0 | CO111: 0 | CP111: 0 | CQ111: 0 | CR111: 0 | CS111: 0 | CT111: 0 | CU111: 0 | CV111: 0 | CW111: 0 | CX111: 0 | CY111: 0 | CZ111: 0 | DA111: 0 | DB111: 0 | DC111: 0 | DD111: 0 | DE111: 0 | DF111: 0 | DG111: 0 | DH111: 0 | DI111: 0 | DJ111: 0 | DK111: 0 | DL111: 0 | DM111: 0 | DN111: 0 | DO111: 0 | DP111: 0 | DQ111: 0 | DR111: 0 | DS111: 0 | DT111: 0 | DU111: 0 | DV111: 0 | DW111: 0 | DX111: 0 | DY111: 0 | DZ111: 0 | EA111: 0 | EB111: 0
A112: 82 | B112: 0 | C112: 0 | D112: 0 | E112: 0 | F112: 0 | G112: 0 | H112: 0 | I112: 0 | J112: 0 | K112: 0 | L112: 0 | M112: 0 | N112: 0 | O112: 0 | P112: 0 | Q112: 0 | R112: 0 | S112: 0 | T112: 0 | U112: 0 | V112: 0 | W112: 0 | X112: 0 | Y112: 0 | Z112: 0 | AA112: 0 | AB112: 0 | AC112: 0 | AD112: 0 | AE112: 0 | AF112: 0 | AG112: 0 | AH112: 0 | AI112: 0 | AJ112: 0 | AK112: 0 | AL112: 0 | AM112: 0 | AN112: 0 | AO112: 0 | AP112: 0 | AQ112: 0 | AR112: 0 | AS112: 0 | AT112: 0 | AU112: 0 | AV112: 0 | AW112: 0 | AX112: 0 | AY112: 0 | AZ112: 0 | BA112: 0 | BB112: 0 | BC112: 0 | BD112: 0 | BE112: 0 | BF112: 0 | BG112: 0 | BH112: 0 | BI112: 0 | BJ112: 0 | BK112: 0 | BL112: 0 | BM112: 0 | BN112: 0 | BO112: 0 | BP112: 0 | BQ112: 0 | BR112: 0 | BS112: 0 | BT112: 0 | BU112: 0 | BV112: 0 | BW112: 0 | BX112: 0 | BY112: 0 | BZ112: 0 | CA112: 0 | CB112: 0 | CC112: 0 | CD112: 0 | CE112: 0 | CF112: 0 | CG112: 0 | CH112: 0 | CI112: 0 | CJ112: 0 | CK112: 0 | CL112: 0 | CM112: 0 | CN112: 0 | CO112: 0 | CP112: 0 | CQ112: 0 | CR112: 0 | CS112: 0 | CT112: 0 | CU112: 0 | CV112: 0 | CW112: 0 | CX112: 0 | CY112: 0 | CZ112: 0 | DA112: 0 | DB112: 0 | DC112: 0 | DD112: 0 | DE112: 0 | DF112: 0 | DG112: 0 | DH112: 0 | DI112: 0 | DJ112: 0 | DK112: 0 | DL112: 0 | DM112: 0 | DN112: 0 | DO112: 0 | DP112: 0 | DQ112: 0 | DR112: 0 | DS112: 0 | DT112: 0 | DU112: 0 | DV112: 0 | DW112: 0 | DX112: 0 | DY112: 0 | DZ112: 0 | EA112: 0 | EB112: 0
A113: 83 | B113: 0 | C113: 0 | D113: 0 | E113: 0 | F113: 0 | G113: 0 | H113: 0 | I113: 0 | J113: 0 | K113: 0 | L113: 0 | M113: 0 | N113: 0 | O113: 0 | P113: 0 | Q113: 0 | R113: 0 | S113: 0 | T113: 0 | U113: 0 | V113: 0 | W113: 0 | X113: 0 | Y113: 0 | Z113: 0 | AA113: 0 | AB113: 0 | AC113: 0 | AD113: 0 | AE113: 0 | AF113: 0 | AG113: 0 | AH113: 0 | AI113: 0 | AJ113: 0 | AK113: 0 | AL113: 0 | AM113: 0 | AN113: 0 | AO113: 0 | AP113: 0 | AQ113: 0 | AR113: 0 | AS113: 0 | AT113: 0 | AU113: 0 | AV113: 0 | AW113: 0 | AX113: 0 | AY113: 0 | AZ113: 0 | BA113: 0 | BB113: 0 | BC113: 0 | BD113: 0 | BE113: 0 | BF113: 0 | BG113: 0 | BH113: 0 | BI113: 0 | BJ113: 0 | BK113: 0 | BL113: 0 | BM113: 0 | BN113: 0 | BO113: 0 | BP113: 0 | BQ113: 0 | BR113: 0 | BS113: 0 | BT113: 0 | BU113: 0 | BV113: 0 | BW113: 0 | BX113: 0 | BY113: 0 | BZ113: 0 | CA113: 0 | CB113: 0 | CC113: 0 | CD113: 0 | CE113: 0 | CF113: 0 | CG113: 0 | CH113: 0 | CI113: 0 | CJ113: 0 | CK113: 0 | CL113: 0 | CM113: 0 | CN113: 0 | CO113: 0 | CP113: 0 | CQ113: 0 | CR113: 0 | CS113: 0 | CT113: 0 | CU113: 0 | CV113: 0 | CW113: 0 | CX113: 0 | CY113: 0 | CZ113: 0 | DA113: 0 | DB113: 0 | DC113: 0 | DD113: 0 | DE113: 0 | DF113: 0 | DG113: 0 | DH113: 0 | DI113: 0 | DJ113: 0 | DK113: 0 | DL113: 0 | DM113: 0 | DN113: 0 | DO113: 0 | DP113: 0 | DQ113: 0 | DR113: 0 | DS113: 0 | DT113: 0 | DU113: 0 | DV113: 0 | DW113: 0 | DX113: 0 | DY113: 0 | DZ113: 0 | EA113: 0 | EB113: 0
A114: 84 | B114: 0 | C114: 0 | D114: 0 | E114: 0 | F114: 0 | G114: 0 | H114: 0 | I114: 0 | J114: 0 | K114: 0 | L114: 0 | M114: 0 | N114: 0 | O114: 0 | P114: 0 | Q114: 0 | R114: 0 | S114: 0 | T114: 0 | U114: 0 | V114: 0 | W114: 0 | X114: 0 | Y114: 0 | Z114: 0 | AA114: 0 | AB114: 0 | AC114: 0 | AD114: 0 | AE114: 0 | AF114: 0 | AG114: 0 | AH114: 0 | AI114: 0 | AJ114: 0 | AK114: 0 | AL114: 0 | AM114: 0 | AN114: 0 | AO114: 0 | AP114: 0 | AQ114: 0 | AR114: 0 | AS114: 0 | AT114: 0 | AU114: 0 | AV114: 0 | AW114: 0 | AX114: 0 | AY114: 0 | AZ114: 0 | BA114: 0 | BB114: 0 | BC114: 0 | BD114: 0 | BE114: 0 | BF114: 0 | BG114: 0 | BH114: 0 | BI114: 0 | BJ114: 0 | BK114: 0 | BL114: 0 | BM114: 0 | BN114: 0 | BO114: 0 | BP114: 0 | BQ114: 0 | BR114: 0 | BS114: 0 | BT114: 0 | BU114: 0 | BV114: 0 | BW114: 0 | BX114: 0 | BY114: 0 | BZ114: 0 | CA114: 0 | CB114: 0 | CC114: 0 | CD114: 0 | CE114: 0 | CF114: 0 | CG114: 0 | CH114: 0 | CI114: 0 | CJ114: 0 | CK114: 0 | CL114: 0 | CM114: 0 | CN114: 0 | CO114: 0 | CP114: 0 | CQ114: 0 | CR114: 0 | CS114: 0 | CT114: 0 | CU114: 0 | CV114: 0 | CW114: 0 | CX114: 0 | CY114: 0 | CZ114: 0 | DA114: 0 | DB114: 0 | DC114: 0 | DD114: 0 | DE114: 0 | DF114: 0 | DG114: 0 | DH114: 0 | DI114: 0 | DJ114: 0 | DK114: 0 | DL114: 0 | DM114: 0 | DN114: 0 | DO114: 0 | DP114: 0 | DQ114: 0 | DR114: 0 | DS114: 0 | DT114: 0 | DU114: 0 | DV114: 0 | DW114: 0 | DX114: 0 | DY114: 0 | DZ114: 0 | EA114: 0 | EB114: 0
A115: 85 | B115: 0 | C115: 0 | D115: 0 | E115: =INDIRECT($C$33&E$32&ROW()-$C$34) -> 0 | F115: 0 | G115: 0 | H115: 0 | I115: 0 | J115: 0 | K115: 0 | L115: 0 | M115: 0 | N115: 0 | O115: =INDIRECT($C$33&O$32&ROW()-$C$34) -> 0 | P115: 0 | Q115: 0 | R115: 0 | S115: 0 | T115: 0 | U115: 0 | V115: 0 | W115: 0 | X115: 0 | Y115: =INDIRECT($C$33&Y$32&ROW()-$C$34) -> 0 | Z115: 0 | AA115: 0 | AB115: 0 | AC115: 0 | AD115: 0 | AE115: 0 | AF115: 0 | AG115: 0 | AH115: 0 | AI115: =INDIRECT($C$33&AI$32&ROW()-$C$34) -> 0 | AJ115: 0 | AK115: 0 | AL115: 0 | AM115: 0 | AN115: 0 | AO115: 0 | AP115: 0 | AQ115: 0 | AR115: 0 | AS115: =INDIRECT($C$33&AS$32&ROW()-$C$34) -> 0 | AT115: 0 | AU115: 0 | AV115: 0 | AW115: 0 | AX115: 0 | AY115: 0 | AZ115: 0 | BA115: 0 | BB115: 0 | BC115: =INDIRECT($C$33&BC$32&ROW()-$C$34) -> 0 | BD115: 0 | BE115: 0 | BF115: 0 | BG115: 0 | BH115: 0 | BI115: 0 | BJ115: 0 | BK115: 0 | BL115: 0 | BM115: =INDIRECT($C$33&BM$32&ROW()-$C$34) -> 0 | BN115: 0 | BO115: 0 | BP115: 0 | BQ115: 0 | BR115: 0 | BS115: 0 | BT115: 0 | BU115: 0 | BV115: 0 | BW115: =INDIRECT($C$33&BW$32&ROW()-$C$34) -> 0 | BX115: 0 | BY115: 0 | BZ115: 0 | CA115: 0 | CB115: 0 | CC115: 0 | CD115: 0 | CE115: 0 | CF115: 0 | CG115: =INDIRECT($C$33&CG$32&ROW()-$C$34) -> 0 | CH115: 0 | CI115: 0 | CJ115: 0 | CK115: 0 | CL115: 0 | CM115: 0 | CN115: 0 | CO115: 0 | CP115: 0 | CQ115: =INDIRECT($C$33&CQ$32&ROW()-$C$34) -> 0 | CR115: 0 | CS115: 0 | CT115: 0 | CU115: 0 | CV115: 0 | CW115: 0 | CX115: 0 | CY115: 0 | CZ115: 0 | DA115: 0 | DB115: 0 | DC115: 0 | DD115: 0 | DE115: 0 | DF115: 0 | DG115: =INDIRECT($C$33&DG$32&ROW()-$C$34) -> 0 | DH115: 0 | DI115: 0 | DJ115: 0 | DK115: 0 | DL115: 0 | DM115: 0 | DN115: 0 | DO115: 0 | DP115: 0 | DQ115: 0 | DR115: 0 | DS115: 0 | DT115: =INDIRECT($C$33&DT$32&ROW()-$C$34) -> 0 | DU115: 0 | DV115: 0 | DW115: 0 | DX115: 0 | DY115: 0 | DZ115: 0 | EA115: 0 | EB115: 0
A116: 86 | B116: 0 | C116: =INDIRECT($C$33&C$32&ROW()-$C$34) -> 0 | D116: 0 | E116: 0 | F116: 0 | G116: 0 | H116: 0 | I116: 0 | J116: 0 | K116: 0 | L116: 0 | M116: 0 | N116: 0 | O116: 0 | P116: 0 | Q116: 0 | R116: 0 | S116: 0 | T116: 0 | U116: 0 | V116: 0 | W116: 0 | X116: 0 | Y116: 0 | Z116: 0 | AA116: 0 | AB116: 0 | AC116: 0 | AD116: 0 | AE116: 0 | AF116: 0 | AG116: 0 | AH116: 0 | AI116: 0 | AJ116: 0 | AK116: 0 | AL116: 0 | AM116: 0 | AN116: 0 | AO116: 0 | AP116: 0 | AQ116: 0 | AR116: 0 | AS116: 0 | AT116: 0 | AU116: 0 | AV116: 0 | AW116: 0 | AX116: 0 | AY116: 0 | AZ116: 0 | BA116: 0 | BB116: 0 | BC116: 0 | BD116: 0 | BE116: 0 | BF116: 0 | BG116: 0 | BH116: 0 | BI116: 0 | BJ116: 0 | BK116: 0 | BL116: 0 | BM116: 0 | BN116: 0 | BO116: 0 | BP116: 0 | BQ116: 0 | BR116: 0 | BS116: 0 | BT116: 0 | BU116: 0 | BV116: 0 | BW116: 0 | BX116: 0 | BY116: 0 | BZ116: 0 | CA116: 0 | CB116: 0 | CC116: 0 | CD116: 0 | CE116: 0 | CF116: 0 | CG116: 0 | CH116: 0 | CI116: 0 | CJ116: 0 | CK116: 0 | CL116: 0 | CM116: 0 | CN116: 0 | CO116: 0 | CP116: 0 | CQ116: 0 | CR116: 0 | CS116: 0 | CT116: 0 | CU116: 0 | CV116: 0 | CW116: 0 | CX116: 0 | CY116: 0 | CZ116: 0 | DA116: 0 | DB116: 0 | DC116: 0 | DD116: 0 | DE116: 0 | DF116: 0 | DG116: 0 | DH116: 0 | DI116: 0 | DJ116: 0 | DK116: 0 | DL116: 0 | DM116: 0 | DN116: 0 | DO116: 0 | DP116: 0 | DQ116: 0 | DR116: 0 | DS116: 0 | DT116: 0 | DU116: 0 | DV116: 0 | DW116: 0 | DX116: 0 | DY116: 0 | DZ116: 0 | EA116: 0 | EB116: 0
A117: 87 | B117: 0 | C117: 0 | D117: 0 | E117: 0 | F117: 0 | G117: 0 | H117: 0 | I117: 0 | J117: 0 | K117: 0 | L117: 0 | M117: 0 | N117: 0 | O117: 0 | P117: 0 | Q117: 0 | R117: 0 | S117: 0 | T117: 0 | U117: 0 | V117: 0 | W117: 0 | X117: 0 | Y117: 0 | Z117: 0 | AA117: 0 | AB117: 0 | AC117: 0 | AD117: 0 | AE117: 0 | AF117: 0 | AG117: 0 | AH117: 0 | AI117: 0 | AJ117: 0 | AK117: 0 | AL117: 0 | AM117: 0 | AN117: 0 | AO117: 0 | AP117: 0 | AQ117: 0 | AR117: 0 | AS117: 0 | AT117: 0 | AU117: 0 | AV117: 0 | AW117: 0 | AX117: 0 | AY117: 0 | AZ117: 0 | BA117: 0 | BB117: 0 | BC117: 0 | BD117: 0 | BE117: 0 | BF117: 0 | BG117: 0 | BH117: 0 | BI117: 0 | BJ117: 0 | BK117: 0 | BL117: 0 | BM117: 0 | BN117: 0 | BO117: 0 | BP117: 0 | BQ117: 0 | BR117: 0 | BS117: 0 | BT117: 0 | BU117: 0 | BV117: 0 | BW117: 0 | BX117: 0 | BY117: 0 | BZ117: 0 | CA117: 0 | CB117: 0 | CC117: 0 | CD117: 0 | CE117: 0 | CF117: 0 | CG117: 0 | CH117: 0 | CI117: 0 | CJ117: 0 | CK117: 0 | CL117: 0 | CM117: 0 | CN117: 0 | CO117: 0 | CP117: 0 | CQ117: 0 | CR117: 0 | CS117: 0 | CT117: 0 | CU117: 0 | CV117: 0 | CW117: 0 | CX117: 0 | CY117: 0 | CZ117: 0 | DA117: 0 | DB117: 0 | DC117: 0 | DD117: 0 | DE117: 0 | DF117: 0 | DG117: 0 | DH117: 0 | DI117: 0 | DJ117: 0 | DK117: 0 | DL117: 0 | DM117: 0 | DN117: 0 | DO117: 0 | DP117: 0 | DQ117: 0 | DR117: 0 | DS117: 0 | DT117: 0 | DU117: 0 | DV117: 0 | DW117: 0 | DX117: 0 | DY117: 0 | DZ117: 0 | EA117: 0 | EB117: 0
A118: 88 | B118: 0 | C118: 0 | D118: 0 | E118: 0 | F118: 0 | G118: 0 | H118: 0 | I118: 0 | J118: 0 | K118: 0 | L118: 0 | M118: 0 | N118: 0 | O118: 0 | P118: 0 | Q118: 0 | R118: 0 | S118: 0 | T118: 0 | U118: 0 | V118: 0 | W118: 0 | X118: 0 | Y118: 0 | Z118: 0 | AA118: 0 | AB118: 0 | AC118: 0 | AD118: 0 | AE118: 0 | AF118: 0 | AG118: 0 | AH118: 0 | AI118: 0 | AJ118: 0 | AK118: 0 | AL118: 0 | AM118: 0 | AN118: 0 | AO118: 0 | AP118: 0 | AQ118: 0 | AR118: 0 | AS118: 0 | AT118: 0 | AU118: 0 | AV118: 0 | AW118: 0 | AX118: 0 | AY118: 0 | AZ118: 0 | BA118: 0 | BB118: 0 | BC118: 0 | BD118: 0 | BE118: 0 | BF118: 0 | BG118: 0 | BH118: 0 | BI118: 0 | BJ118: 0 | BK118: 0 | BL118: 0 | BM118: 0 | BN118: 0 | BO118: 0 | BP118: 0 | BQ118: 0 | BR118: 0 | BS118: 0 | BT118: 0 | BU118: 0 | BV118: 0 | BW118: 0 | BX118: 0 | BY118: 0 | BZ118: 0 | CA118: 0 | CB118: 0 | CC118: 0 | CD118: 0 | CE118: 0 | CF118: 0 | CG118: 0 | CH118: 0 | CI118: 0 | CJ118: 0 | CK118: 0 | CL118: 0 | CM118: 0 | CN118: 0 | CO118: 0 | CP118: 0 | CQ118: 0 | CR118: 0 | CS118: 0 | CT118: 0 | CU118: 0 | CV118: 0 | CW118: 0 | CX118: 0 | CY118: 0 | CZ118: 0 | DA118: 0 | DB118: 0 | DC118: 0 | DD118: 0 | DE118: 0 | DF118: 0 | DG118: 0 | DH118: 0 | DI118: 0 | DJ118: 0 | DK118: 0 | DL118: 0 | DM118: 0 | DN118: 0 | DO118: 0 | DP118: 0 | DQ118: 0 | DR118: 0 | DS118: 0 | DT118: 0 | DU118: 0 | DV118: 0 | DW118: 0 | DX118: 0 | DY118: 0 | DZ118: 0 | EA118: 0 | EB118: 0
A119: 89 | B119: 0 | C119: 0 | D119: 0 | E119: 0 | F119: 0 | G119: 0 | H119: 0 | I119: 0 | J119: 0 | K119: 0 | L119: 0 | M119: 0 | N119: 0 | O119: 0 | P119: 0 | Q119: 0 | R119: 0 | S119: 0 | T119: 0 | U119: 0 | V119: 0 | W119: 0 | X119: 0 | Y119: 0 | Z119: 0 | AA119: 0 | AB119: 0 | AC119: 0 | AD119: 0 | AE119: 0 | AF119: 0 | AG119: 0 | AH119: 0 | AI119: 0 | AJ119: 0 | AK119: 0 | AL119: 0 | AM119: 0 | AN119: 0 | AO119: 0 | AP119: 0 | AQ119: 0 | AR119: 0 | AS119: 0 | AT119: 0 | AU119: 0 | AV119: 0 | AW119: 0 | AX119: 0 | AY119: 0 | AZ119: 0 | BA119: 0 | BB119: 0 | BC119: 0 | BD119: 0 | BE119: 0 | BF119: 0 | BG119: 0 | BH119: 0 | BI119: 0 | BJ119: 0 | BK119: 0 | BL119: 0 | BM119: 0 | BN119: 0 | BO119: 0 | BP119: 0 | BQ119: 0 | BR119: 0 | BS119: 0 | BT119: 0 | BU119: 0 | BV119: 0 | BW119: 0 | BX119: 0 | BY119: 0 | BZ119: 0 | CA119: 0 | CB119: 0 | CC119: 0 | CD119: 0 | CE119: 0 | CF119: 0 | CG119: 0 | CH119: 0 | CI119: 0 | CJ119: 0 | CK119: 0 | CL119: 0 | CM119: 0 | CN119: 0 | CO119: 0 | CP119: 0 | CQ119: 0 | CR119: 0 | CS119: 0 | CT119: 0 | CU119: 0 | CV119: 0 | CW119: 0 | CX119: 0 | CY119: 0 | CZ119: 0 | DA119: 0 | DB119: 0 | DC119: 0 | DD119: 0 | DE119: 0 | DF119: 0 | DG119: 0 | DH119: 0 | DI119: 0 | DJ119: 0 | DK119: 0 | DL119: 0 | DM119: 0 | DN119: 0 | DO119: 0 | DP119: 0 | DQ119: 0 | DR119: 0 | DS119: 0 | DT119: 0 | DU119: 0 | DV119: 0 | DW119: 0 | DX119: 0 | DY119: 0 | DZ119: 0 | EA119: 0 | EB119: 0
A120: 90 | B120: 0 | C120: 0 | D120: 0 | E120: 0 | F120: 0 | G120: 0 | H120: 0 | I120: 0 | J120: 0 | K120: 0 | L120: 0 | M120: 0 | N120: 0 | O120: 0 | P120: 0 | Q120: 0 | R120: 0 | S120: 0 | T120: 0 | U120: 0 | V120: 0 | W120: 0 | X120: 0 | Y120: 0 | Z120: 0 | AA120: 0 | AB120: 0 | AC120: 0 | AD120: 0 | AE120: 0 | AF120: 0 | AG120: 0 | AH120: 0 | AI120: 0 | AJ120: 0 | AK120: 0 | AL120: 0 | AM120: 0 | AN120: 0 | AO120: 0 | AP120: 0 | AQ120: 0 | AR120: 0 | AS120: 0 | AT120: 0 | AU120: 0 | AV120: 0 | AW120: 0 | AX120: 0 | AY120: 0 | AZ120: 0 | BA120: 0 | BB120: 0 | BC120: 0 | BD120: 0 | BE120: 0 | BF120: 0 | BG120: 0 | BH120: 0 | BI120: 0 | BJ120: 0 | BK120: 0 | BL120: 0 | BM120: 0 | BN120: 0 | BO120: 0 | BP120: 0 | BQ120: 0 | BR120: 0 | BS120: 0 | BT120: 0 | BU120: 0 | BV120: 0 | BW120: 0 | BX120: 0 | BY120: 0 | BZ120: 0 | CA120: 0 | CB120: 0 | CC120: 0 | CD120: 0 | CE120: 0 | CF120: 0 | CG120: 0 | CH120: 0 | CI120: 0 | CJ120: 0 | CK120: 0 | CL120: 0 | CM120: 0 | CN120: 0 | CO120: 0 | CP120: 0 | CQ120: 0 | CR120: 0 | CS120: 0 | CT120: 0 | CU120: 0 | CV120: 0 | CW120: 0 | CX120: 0 | CY120: 0 | CZ120: 0 | DA120: 0 | DB120: 0 | DC120: 0 | DD120: 0 | DE120: 0 | DF120: 0 | DG120: 0 | DH120: 0 | DI120: 0 | DJ120: 0 | DK120: 0 | DL120: 0 | DM120: 0 | DN120: 0 | DO120: 0 | DP120: 0 | DQ120: 0 | DR120: 0 | DS120: 0 | DT120: 0 | DU120: 0 | DV120: 0 | DW120: 0 | DX120: 0 | DY120: 0 | DZ120: 0 | EA120: 0 | EB120: 0
A121: 91 | B121: 0 | C121: 0 | D121: 0 | E121: 0 | F121: 0 | G121: 0 | H121: 0 | I121: 0 | J121: 0 | K121: 0 | L121: 0 | M121: 0 | N121: 0 | O121: 0 | P121: 0 | Q121: 0 | R121: 0 | S121: 0 | T121: 0 | U121: 0 | V121: 0 | W121: 0 | X121: 0 | Y121: 0 | Z121: 0 | AA121: 0 | AB121: 0 | AC121: 0 | AD121: 0 | AE121: 0 | AF121: 0 | AG121: 0 | AH121: 0 | AI121: 0 | AJ121: 0 | AK121: 0 | AL121: 0 | AM121: 0 | AN121: 0 | AO121: 0 | AP121: 0 | AQ121: 0 | AR121: 0 | AS121: 0 | AT121: 0 | AU121: 0 | AV121: 0 | AW121: 0 | AX121: 0 | AY121: 0 | AZ121: 0 | BA121: 0 | BB121: 0 | BC121: 0 | BD121: 0 | BE121: 0 | BF121: 0 | BG121: 0 | BH121: 0 | BI121: 0 | BJ121: 0 | BK121: 0 | BL121: 0 | BM121: 0 | BN121: 0 | BO121: 0 | BP121: 0 | BQ121: 0 | BR121: 0 | BS121: 0 | BT121: 0 | BU121: 0 | BV121: 0 | BW121: 0 | BX121: 0 | BY121: 0 | BZ121: 0 | CA121: 0 | CB121: 0 | CC121: 0 | CD121: 0 | CE121: 0 | CF121: 0 | CG121: 0 | CH121: 0 | CI121: 0 | CJ121: 0 | CK121: 0 | CL121: 0 | CM121: 0 | CN121: 0 | CO121: 0 | CP121: 0 | CQ121: 0 | CR121: 0 | CS121: 0 | CT121: 0 | CU121: 0 | CV121: 0 | CW121: 0 | CX121: 0 | CY121: 0 | CZ121: 0 | DA121: 0 | DB121: 0 | DC121: 0 | DD121: 0 | DE121: 0 | DF121: 0 | DG121: 0 | DH121: 0 | DI121: 0 | DJ121: 0 | DK121: 0 | DL121: 0 | DM121: 0 | DN121: 0 | DO121: 0 | DP121: 0 | DQ121: 0 | DR121: 0 | DS121: 0 | DT121: 0 | DU121: 0 | DV121: 0 | DW121: 0 | DX121: 0 | DY121: 0 | DZ121: 0 | EA121: 0 | EB121: 0
A122: 92 | B122: 0 | C122: 0 | D122: 0 | E122: 0 | F122: 0 | G122: 0 | H122: 0 | I122: 0 | J122: 0 | K122: 0 | L122: 0 | M122: 0 | N122: 0 | O122: 0 | P122: 0 | Q122: 0 | R122: 0 | S122: 0 | T122: 0 | U122: 0 | V122: 0 | W122: 0 | X122: 0 | Y122: 0 | Z122: 0 | AA122: 0 | AB122: 0 | AC122: 0 | AD122: 0 | AE122: 0 | AF122: 0 | AG122: 0 | AH122: 0 | AI122: 0 | AJ122: 0 | AK122: 0 | AL122: 0 | AM122: 0 | AN122: 0 | AO122: 0 | AP122: 0 | AQ122: 0 | AR122: 0 | AS122: 0 | AT122: 0 | AU122: 0 | AV122: 0 | AW122: 0 | AX122: 0 | AY122: 0 | AZ122: 0 | BA122: 0 | BB122: 0 | BC122: 0 | BD122: 0 | BE122: 0 | BF122: 0 | BG122: 0 | BH122: 0 | BI122: 0 | BJ122: 0 | BK122: 0 | BL122: 0 | BM122: 0 | BN122: 0 | BO122: 0 | BP122: 0 | BQ122: 0 | BR122: 0 | BS122: 0 | BT122: 0 | BU122: 0 | BV122: 0 | BW122: 0 | BX122: 0 | BY122: 0 | BZ122: 0 | CA122: 0 | CB122: 0 | CC122: 0 | CD122: 0 | CE122: 0 | CF122: 0 | CG122: 0 | CH122: 0 | CI122: 0 | CJ122: 0 | CK122: 0 | CL122: 0 | CM122: 0 | CN122: 0 | CO122: 0 | CP122: 0 | CQ122: 0 | CR122: 0 | CS122: 0 | CT122: 0 | CU122: 0 | CV122: 0 | CW122: 0 | CX122: 0 | CY122: 0 | CZ122: 0 | DA122: 0 | DB122: 0 | DC122: 0 | DD122: 0 | DE122: 0 | DF122: 0 | DG122: 0 | DH122: 0 | DI122: 0 | DJ122: 0 | DK122: 0 | DL122: 0 | DM122: 0 | DN122: 0 | DO122: 0 | DP122: 0 | DQ122: 0 | DR122: 0 | DS122: 0 | DT122: 0 | DU122: 0 | DV122: 0 | DW122: 0 | DX122: 0 | DY122: 0 | DZ122: 0 | EA122: 0 | EB122: 0
A123: 93 | B123: 0 | C123: 0 | D123: 0 | E123: 0 | F123: 0 | G123: 0 | H123: 0 | I123: 0 | J123: 0 | K123: 0 | L123: 0 | M123: 0 | N123: 0 | O123: 0 | P123: 0 | Q123: 0 | R123: 0 | S123: 0 | T123: 0 | U123: 0 | V123: 0 | W123: 0 | X123: 0 | Y123: 0 | Z123: 0 | AA123: 0 | AB123: 0 | AC123: 0 | AD123: 0 | AE123: 0 | AF123: 0 | AG123: 0 | AH123: 0 | AI123: 0 | AJ123: 0 | AK123: 0 | AL123: 0 | AM123: 0 | AN123: 0 | AO123: 0 | AP123: 0 | AQ123: 0 | AR123: 0 | AS123: 0 | AT123: 0 | AU123: 0 | AV123: 0 | AW123: 0 | AX123: 0 | AY123: 0 | AZ123: 0 | BA123: 0 | BB123: 0 | BC123: 0 | BD123: 0 | BE123: 0 | BF123: 0 | BG123: 0 | BH123: 0 | BI123: 0 | BJ123: 0 | BK123: 0 | BL123: 0 | BM123: 0 | BN123: 0 | BO123: 0 | BP123: 0 | BQ123: 0 | BR123: 0 | BS123: 0 | BT123: 0 | BU123: 0 | BV123: 0 | BW123: 0 | BX123: 0 | BY123: 0 | BZ123: 0 | CA123: 0 | CB123: 0 | CC123: 0 | CD123: 0 | CE123: 0 | CF123: 0 | CG123: 0 | CH123: 0 | CI123: 0 | CJ123: 0 | CK123: 0 | CL123: 0 | CM123: 0 | CN123: 0 | CO123: 0 | CP123: 0 | CQ123: 0 | CR123: 0 | CS123: 0 | CT123: 0 | CU123: 0 | CV123: 0 | CW123: 0 | CX123: 0 | CY123: 0 | CZ123: 0 | DA123: 0 | DB123: 0 | DC123: 0 | DD123: 0 | DE123: 0 | DF123: 0 | DG123: 0 | DH123: 0 | DI123: 0 | DJ123: 0 | DK123: 0 | DL123: 0 | DM123: 0 | DN123: 0 | DO123: 0 | DP123: 0 | DQ123: 0 | DR123: 0 | DS123: 0 | DT123: 0 | DU123: 0 | DV123: 0 | DW123: 0 | DX123: 0 | DY123: 0 | DZ123: 0 | EA123: 0 | EB123: 0
A124: 94 | B124: 0 | C124: 0 | D124: 0 | E124: 0 | F124: 0 | G124: 0 | H124: 0 | I124: 0 | J124: 0 | K124: 0 | L124: 0 | M124: 0 | N124: 0 | O124: 0 | P124: 0 | Q124: 0 | R124: 0 | S124: 0 | T124: 0 | U124: 0 | V124: 0 | W124: 0 | X124: 0 | Y124: 0 | Z124: 0 | AA124: 0 | AB124: 0 | AC124: 0 | AD124: 0 | AE124: 0 | AF124: 0 | AG124: 0 | AH124: 0 | AI124: 0 | AJ124: 0 | AK124: 0 | AL124: 0 | AM124: 0 | AN124: 0 | AO124: 0 | AP124: 0 | AQ124: 0 | AR124: 0 | AS124: 0 | AT124: 0 | AU124: 0 | AV124: 0 | AW124: 0 | AX124: 0 | AY124: 0 | AZ124: 0 | BA124: 0 | BB124: 0 | BC124: 0 | BD124: 0 | BE124: 0 | BF124: 0 | BG124: 0 | BH124: 0 | BI124: 0 | BJ124: 0 | BK124: 0 | BL124: 0 | BM124: 0 | BN124: 0 | BO124: 0 | BP124: 0 | BQ124: 0 | BR124: 0 | BS124: 0 | BT124: 0 | BU124: 0 | BV124: 0 | BW124: 0 | BX124: 0 | BY124: 0 | BZ124: 0 | CA124: 0 | CB124: 0 | CC124: 0 | CD124: 0 | CE124: 0 | CF124: 0 | CG124: 0 | CH124: 0 | CI124: 0 | CJ124: 0 | CK124: 0 | CL124: 0 | CM124: 0 | CN124: 0 | CO124: 0 | CP124: 0 | CQ124: 0 | CR124: 0 | CS124: 0 | CT124: 0 | CU124: 0 | CV124: 0 | CW124: 0 | CX124: 0 | CY124: 0 | CZ124: 0 | DA124: 0 | DB124: 0 | DC124: 0 | DD124: 0 | DE124: 0 | DF124: 0 | DG124: 0 | DH124: 0 | DI124: 0 | DJ124: 0 | DK124: 0 | DL124: 0 | DM124: 0 | DN124: 0 | DO124: 0 | DP124: 0 | DQ124: 0 | DR124: 0 | DS124: 0 | DT124: 0 | DU124: 0 | DV124: 0 | DW124: 0 | DX124: 0 | DY124: 0 | DZ124: 0 | EA124: 0 | EB124: 0
A125: 95 | B125: 0 | C125: 0 | D125: 0 | E125: =INDIRECT($C$33&E$32&ROW()-$C$34) -> 0 | F125: 0 | G125: 0 | H125: 0 | I125: 0 | J125: 0 | K125: 0 | L125: 0 | M125: 0 | N125: 0 | O125: =INDIRECT($C$33&O$32&ROW()-$C$34) -> 0 | P125: 0 | Q125: 0 | R125: 0 | S125: 0 | T125: 0 | U125: 0 | V125: 0 | W125: 0 | X125: 0 | Y125: =INDIRECT($C$33&Y$32&ROW()-$C$34) -> 0 | Z125: 0 | AA125: 0 | AB125: 0 | AC125: 0 | AD125: 0 | AE125: 0 | AF125: 0 | AG125: 0 | AH125: 0 | AI125: =INDIRECT($C$33&AI$32&ROW()-$C$34) -> 0 | AJ125: 0 | AK125: 0 | AL125: 0 | AM125: 0 | AN125: 0 | AO125: 0 | AP125: 0 | AQ125: 0 | AR125: 0 | AS125: =INDIRECT($C$33&AS$32&ROW()-$C$34) -> 0 | AT125: 0 | AU125: 0 | AV125: 0 | AW125: 0 | AX125: 0 | AY125: 0 | AZ125: 0 | BA125: 0 | BB125: 0 | BC125: =INDIRECT($C$33&BC$32&ROW()-$C$34) -> 0 | BD125: 0 | BE125: 0 | BF125: 0 | BG125: 0 | BH125: 0 | BI125: 0 | BJ125: 0 | BK125: 0 | BL125: 0 | BM125: =INDIRECT($C$33&BM$32&ROW()-$C$34) -> 0 | BN125: 0 | BO125: 0 | BP125: 0 | BQ125: 0 | BR125: 0 | BS125: 0 | BT125: 0 | BU125: 0 | BV125: 0 | BW125: =INDIRECT($C$33&BW$32&ROW()-$C$34) -> 0 | BX125: 0 | BY125: 0 | BZ125: 0 | CA125: 0 | CB125: 0 | CC125: 0 | CD125: 0 | CE125: 0 | CF125: 0 | CG125: =INDIRECT($C$33&CG$32&ROW()-$C$34) -> 0 | CH125: 0 | CI125: 0 | CJ125: 0 | CK125: 0 | CL125: 0 | CM125: 0 | CN125: 0 | CO125: 0 | CP125: 0 | CQ125: =INDIRECT($C$33&CQ$32&ROW()-$C$34) -> 0 | CR125: 0 | CS125: 0 | CT125: 0 | CU125: 0 | CV125: 0 | CW125: 0 | CX125: 0 | CY125: 0 | CZ125: 0 | DA125: 0 | DB125: 0 | DC125: 0 | DD125: 0 | DE125: 0 | DF125: 0 | DG125: 0 | DH125: 0 | DI125: 0 | DJ125: 0 | DK125: 0 | DL125: 0 | DM125: 0 | DN125: 0 | DO125: 0 | DP125: 0 | DQ125: 0 | DR125: 0 | DS125: 0 | DT125: 0 | DU125: 0 | DV125: 0 | DW125: 0 | DX125: 0 | DY125: 0 | DZ125: 0 | EA125: 0 | EB125: 0
A126: 96 | B126: 0 | C126: 0 | D126: 0 | E126: 0 | F126: 0 | G126: 0 | H126: 0 | I126: 0 | J126: 0 | K126: 0 | L126: 0 | M126: 0 | N126: 0 | O126: 0 | P126: 0 | Q126: 0 | R126: 0 | S126: 0 | T126: 0 | U126: 0 | V126: 0 | W126: 0 | X126: 0 | Y126: 0 | Z126: 0 | AA126: 0 | AB126: 0 | AC126: 0 | AD126: 0 | AE126: 0 | AF126: 0 | AG126: 0 | AH126: 0 | AI126: 0 | AJ126: 0 | AK126: 0 | AL126: 0 | AM126: 0 | AN126: 0 | AO126: 0 | AP126: 0 | AQ126: 0 | AR126: 0 | AS126: 0 | AT126: 0 | AU126: 0 | AV126: 0 | AW126: 0 | AX126: 0 | AY126: 0 | AZ126: 0 | BA126: 0 | BB126: 0 | BC126: 0 | BD126: 0 | BE126: 0 | BF126: 0 | BG126: 0 | BH126: 0 | BI126: 0 | BJ126: 0 | BK126: 0 | BL126: 0 | BM126: 0 | BN126: 0 | BO126: 0 | BP126: 0 | BQ126: 0 | BR126: 0 | BS126: 0 | BT126: 0 | BU126: 0 | BV126: 0 | BW126: 0 | BX126: 0 | BY126: 0 | BZ126: 0 | CA126: 0 | CB126: 0 | CC126: 0 | CD126: 0 | CE126: 0 | CF126: 0 | CG126: 0 | CH126: 0 | CI126: 0 | CJ126: 0 | CK126: 0 | CL126: 0 | CM126: 0 | CN126: 0 | CO126: 0 | CP126: 0 | CQ126: 0 | CR126: 0 | CS126: 0 | CT126: 0 | CU126: 0 | CV126: 0 | CW126: 0 | CX126: 0 | CY126: 0 | CZ126: 0 | DA126: 0 | DB126: 0 | DC126: 0 | DD126: 0 | DE126: 0 | DF126: 0 | DG126: 0 | DH126: 0 | DI126: 0 | DJ126: 0 | DK126: 0 | DL126: 0 | DM126: 0 | DN126: 0 | DO126: 0 | DP126: 0 | DQ126: 0 | DR126: 0 | DS126: 0 | DT126: 0 | DU126: 0 | DV126: 0 | DW126: 0 | DX126: 0 | DY126: 0 | DZ126: 0 | EA126: 0 | EB126: 0
A127: 97 | B127: 0 | C127: 0 | D127: 0 | E127: 0 | F127: 0 | G127: 0 | H127: 0 | I127: 0 | J127: 0 | K127: 0 | L127: 0 | M127: 0 | N127: 0 | O127: 0 | P127: 0 | Q127: 0 | R127: 0 | S127: 0 | T127: 0 | U127: 0 | V127: 0 | W127: 0 | X127: 0 | Y127: 0 | Z127: 0 | AA127: 0 | AB127: 0 | AC127: 0 | AD127: 0 | AE127: 0 | AF127: 0 | AG127: 0 | AH127: 0 | AI127: 0 | AJ127: 0 | AK127: 0 | AL127: 0 | AM127: 0 | AN127: 0 | AO127: 0 | AP127: 0 | AQ127: 0 | AR127: 0 | AS127: 0 | AT127: 0 | AU127: 0 | AV127: 0 | AW127: 0 | AX127: 0 | AY127: 0 | AZ127: 0 | BA127: 0 | BB127: 0 | BC127: 0 | BD127: 0 | BE127: 0 | BF127: 0 | BG127: 0 | BH127: 0 | BI127: 0 | BJ127: 0 | BK127: 0 | BL127: 0 | BM127: 0 | BN127: 0 | BO127: 0 | BP127: 0 | BQ127: 0 | BR127: 0 | BS127: 0 | BT127: 0 | BU127: 0 | BV127: 0 | BW127: 0 | BX127: 0 | BY127: 0 | BZ127: 0 | CA127: 0 | CB127: 0 | CC127: 0 | CD127: 0 | CE127: 0 | CF127: 0 | CG127: 0 | CH127: 0 | CI127: 0 | CJ127: 0 | CK127: 0 | CL127: 0 | CM127: 0 | CN127: 0 | CO127: 0 | CP127: 0 | CQ127: 0 | CR127: 0 | CS127: 0 | CT127: 0 | CU127: 0 | CV127: 0 | CW127: 0 | CX127: 0 | CY127: 0 | CZ127: 0 | DA127: 0 | DB127: 0 | DC127: 0 | DD127: 0 | DE127: 0 | DF127: 0 | DG127: 0 | DH127: 0 | DI127: 0 | DJ127: 0 | DK127: 0 | DL127: 0 | DM127: 0 | DN127: 0 | DO127: 0 | DP127: 0 | DQ127: 0 | DR127: 0 | DS127: 0 | DT127: 0 | DU127: 0 | DV127: 0 | DW127: 0 | DX127: 0 | DY127: 0 | DZ127: 0 | EA127: 0 | EB127: 0
A128: 98 | B128: 0 | C128: 0 | D128: 0 | E128: 0 | F128: 0 | G128: 0 | H128: 0 | I128: 0 | J128: 0 | K128: 0 | L128: 0 | M128: 0 | N128: 0 | O128: 0 | P128: 0 | Q128: 0 | R128: 0 | S128: 0 | T128: 0 | U128: 0 | V128: 0 | W128: 0 | X128: 0 | Y128: 0 | Z128: 0 | AA128: 0 | AB128: 0 | AC128: 0 | AD128: 0 | AE128: 0 | AF128: 0 | AG128: 0 | AH128: 0 | AI128: 0 | AJ128: 0 | AK128: 0 | AL128: 0 | AM128: 0 | AN128: 0 | AO128: 0 | AP128: 0 | AQ128: 0 | AR128: 0 | AS128: 0 | AT128: 0 | AU128: 0 | AV128: 0 | AW128: 0 | AX128: 0 | AY128: 0 | AZ128: 0 | BA128: 0 | BB128: 0 | BC128: 0 | BD128: 0 | BE128: 0 | BF128: 0 | BG128: 0 | BH128: 0 | BI128: 0 | BJ128: 0 | BK128: 0 | BL128: 0 | BM128: 0 | BN128: 0 | BO128: 0 | BP128: 0 | BQ128: 0 | BR128: 0 | BS128: 0 | BT128: 0 | BU128: 0 | BV128: 0 | BW128: 0 | BX128: 0 | BY128: 0 | BZ128: 0 | CA128: 0 | CB128: 0 | CC128: 0 | CD128: 0 | CE128: 0 | CF128: 0 | CG128: 0 | CH128: 0 | CI128: 0 | CJ128: 0 | CK128: 0 | CL128: 0 | CM128: 0 | CN128: 0 | CO128: 0 | CP128: 0 | CQ128: 0 | CR128: 0 | CS128: 0 | CT128: 0 | CU128: 0 | CV128: 0 | CW128: 0 | CX128: 0 | CY128: 0 | CZ128: 0 | DA128: 0 | DB128: 0 | DC128: 0 | DD128: 0 | DE128: 0 | DF128: 0 | DG128: 0 | DH128: 0 | DI128: 0 | DJ128: 0 | DK128: 0 | DL128: 0 | DM128: 0 | DN128: 0 | DO128: 0 | DP128: 0 | DQ128: 0 | DR128: 0 | DS128: 0 | DT128: 0 | DU128: 0 | DV128: 0 | DW128: 0 | DX128: 0 | DY128: 0 | DZ128: 0 | EA128: 0 | EB128: 0
A129: 99 | B129: 0 | C129: 0 | D129: 0 | E129: 0 | F129: 0 | G129: 0 | H129: 0 | I129: 0 | J129: 0 | K129: 0 | L129: 0 | M129: 0 | N129: 0 | O129: 0 | P129: 0 | Q129: 0 | R129: 0 | S129: 0 | T129: 0 | U129: 0 | V129: 0 | W129: 0 | X129: 0 | Y129: 0 | Z129: 0 | AA129: 0 | AB129: 0 | AC129: 0 | AD129: 0 | AE129: 0 | AF129: 0 | AG129: 0 | AH129: 0 | AI129: 0 | AJ129: 0 | AK129: 0 | AL129: 0 | AM129: 0 | AN129: 0 | AO129: 0 | AP129: 0 | AQ129: 0 | AR129: 0 | AS129: 0 | AT129: 0 | AU129: 0 | AV129: 0 | AW129: 0 | AX129: 0 | AY129: 0 | AZ129: 0 | BA129: 0 | BB129: 0 | BC129: 0 | BD129: 0 | BE129: 0 | BF129: 0 | BG129: 0 | BH129: 0 | BI129: 0 | BJ129: 0 | BK129: 0 | BL129: 0 | BM129: 0 | BN129: 0 | BO129: 0 | BP129: 0 | BQ129: 0 | BR129: 0 | BS129: 0 | BT129: 0 | BU129: 0 | BV129: 0 | BW129: 0 | BX129: 0 | BY129: 0 | BZ129: 0 | CA129: 0 | CB129: 0 | CC129: 0 | CD129: 0 | CE129: 0 | CF129: 0 | CG129: 0 | CH129: 0 | CI129: 0 | CJ129: 0 | CK129: 0 | CL129: 0 | CM129: 0 | CN129: 0 | CO129: 0 | CP129: 0 | CQ129: 0 | CR129: 0 | CS129: 0 | CT129: 0 | CU129: 0 | CV129: 0 | CW129: 0 | CX129: 0 | CY129: 0 | CZ129: 0 | DA129: 0 | DB129: 0 | DC129: 0 | DD129: 0 | DE129: 0 | DF129: 0 | DG129: 0 | DH129: 0 | DI129: 0 | DJ129: 0 | DK129: 0 | DL129: 0 | DM129: 0 | DN129: 0 | DO129: 0 | DP129: 0 | DQ129: 0 | DR129: 0 | DS129: 0 | DT129: 0 | DU129: 0 | DV129: 0 | DW129: 0 | DX129: 0 | DY129: 0 | DZ129: 0 | EA129: 0 | EB129: 0
A130: 100 | B130: 0 | C130: 0 | D130: 0 | E130: 0 | F130: 0 | G130: 0 | H130: 0 | I130: 0 | J130: 0 | K130: 0 | L130: 0 | M130: 0 | N130: 0 | O130: 0 | P130: 0 | Q130: 0 | R130: 0 | S130: 0 | T130: 0 | U130: 0 | V130: 0 | W130: 0 | X130: 0 | Y130: 0 | Z130: 0 | AA130: 0 | AB130: 0 | AC130: 0 | AD130: 0 | AE130: 0 | AF130: 0 | AG130: 0 | AH130: 0 | AI130: 0 | AJ130: 0 | AK130: 0 | AL130: 0 | AM130: 0 | AN130: 0 | AO130: 0 | AP130: 0 | AQ130: 0 | AR130: 0 | AS130: 0 | AT130: 0 | AU130: 0 | AV130: 0 | AW130: 0 | AX130: 0 | AY130: 0 | AZ130: 0 | BA130: 0 | BB130: 0 | BC130: 0 | BD130: 0 | BE130: 0 | BF130: 0 | BG130: 0 | BH130: 0 | BI130: 0 | BJ130: 0 | BK130: 0 | BL130: 0 | BM130: 0 | BN130: 0 | BO130: 0 | BP130: 0 | BQ130: 0 | BR130: 0 | BS130: 0 | BT130: 0 | BU130: 0 | BV130: 0 | BW130: 0 | BX130: 0 | BY130: 0 | BZ130: 0 | CA130: 0 | CB130: 0 | CC130: 0 | CD130: 0 | CE130: 0 | CF130: 0 | CG130: 0 | CH130: 0 | CI130: 0 | CJ130: 0 | CK130: 0 | CL130: 0 | CM130: 0 | CN130: 0 | CO130: 0 | CP130: 0 | CQ130: 0 | CR130: 0 | CS130: 0 | CT130: 0 | CU130: 0 | CV130: 0 | CW130: 0 | CX130: 0 | CY130: 0 | CZ130: 0 | DA130: 0 | DB130: 0 | DC130: 0 | DD130: 0 | DE130: 0 | DF130: 0 | DG130: 0 | DH130: 0 | DI130: 0 | DJ130: 0 | DK130: 0 | DL130: 0 | DM130: 0 | DN130: 0 | DO130: 0 | DP130: 0 | DQ130: 0 | DR130: 0 | DS130: 0 | DT130: 0 | DU130: 0 | DV130: 0 | DW130: 0 | DX130: 0 | DY130: 0 | DZ130: 0 | EA130: 0 | EB130: 0
A131: 101 | B131: 0 | C131: 0 | D131: 0 | E131: 0 | F131: 0 | G131: 0 | H131: 0 | I131: 0 | J131: 0 | K131: 0 | L131: 0 | M131: 0 | N131: 0 | O131: 0 | P131: 0 | Q131: 0 | R131: 0 | S131: 0 | T131: 0 | U131: 0 | V131: 0 | W131: 0 | X131: 0 | Y131: 0 | Z131: 0 | AA131: 0 | AB131: 0 | AC131: 0 | AD131: 0 | AE131: 0 | AF131: 0 | AG131: 0 | AH131: 0 | AI131: 0 | AJ131: 0 | AK131: 0 | AL131: 0 | AM131: 0 | AN131: 0 | AO131: 0 | AP131: 0 | AQ131: 0 | AR131: 0 | AS131: 0 | AT131: 0 | AU131: 0 | AV131: 0 | AW131: 0 | AX131: 0 | AY131: 0 | AZ131: 0 | BA131: 0 | BB131: 0 | BC131: 0 | BD131: 0 | BE131: 0 | BF131: 0 | BG131: 0 | BH131: 0 | BI131: 0 | BJ131: 0 | BK131: 0 | BL131: 0 | BM131: 0 | BN131: 0 | BO131: 0 | BP131: 0 | BQ131: 0 | BR131: 0 | BS131: 0 | BT131: 0 | BU131: 0 | BV131: 0 | BW131: 0 | BX131: 0 | BY131: 0 | BZ131: 0 | CA131: 0 | CB131: 0 | CC131: 0 | CD131: 0 | CE131: 0 | CF131: 0 | CG131: 0 | CH131: 0 | CI131: 0 | CJ131: 0 | CK131: 0 | CL131: 0 | CM131: 0 | CN131: 0 | CO131: 0 | CP131: 0 | CQ131: 0 | CR131: 0 | CS131: 0 | CT131: 0 | CU131: 0 | CV131: 0 | CW131: 0 | CX131: 0 | CY131: 0 | CZ131: 0 | DA131: 0 | DB131: 0 | DC131: =INDIRECT($C$33&DC$32&ROW()-$C$34) -> 0 | DD131: 0 | DE131: 0 | DF131: 0 | DG131: 0 | DH131: 0 | DI131: 0 | DJ131: 0 | DK131: 0 | DL131: 0 | DM131: 0 | DN131: 0 | DO131: 0 | DP131: 0 | DQ131: 0 | DR131: 0 | DS131: 0 | DT131: =INDIRECT($C$33&DT$32&ROW()-$C$34) -> 0 | DU131: 0 | DV131: 0 | DW131: 0 | DX131: 0 | DY131: 0 | DZ131: 0 | EA131: 0 | EB131: 0
A132: 102 | B132: =IF(LEN(C132)>1,A132,0) -> 0 | C132: 0 | D132: 0 | E132: 0 | F132: 0 | G132: 0 | H132: 0 | I132: 0 | J132: 0 | K132: 0 | L132: 0 | M132: 0 | N132: 0 | O132: 0 | P132: 0 | Q132: 0 | R132: 0 | S132: 0 | T132: 0 | U132: 0 | V132: 0 | W132: 0 | X132: 0 | Y132: 0 | Z132: 0 | AA132: 0 | AB132: 0 | AC132: 0 | AD132: 0 | AE132: 0 | AF132: 0 | AG132: 0 | AH132: 0 | AI132: 0 | AJ132: 0 | AK132: 0 | AL132: 0 | AM132: 0 | AN132: 0 | AO132: 0 | AP132: 0 | AQ132: 0 | AR132: 0 | AS132: 0 | AT132: 0 | AU132: 0 | AV132: 0 | AW132: 0 | AX132: 0 | AY132: 0 | AZ132: 0 | BA132: 0 | BB132: 0 | BC132: 0 | BD132: 0 | BE132: 0 | BF132: 0 | BG132: 0 | BH132: 0 | BI132: 0 | BJ132: 0 | BK132: 0 | BL132: 0 | BM132: 0 | BN132: 0 | BO132: 0 | BP132: 0 | BQ132: 0 | BR132: 0 | BS132: 0 | BT132: 0 | BU132: 0 | BV132: 0 | BW132: 0 | BX132: 0 | BY132: 0 | BZ132: 0 | CA132: 0 | CB132: 0 | CC132: 0 | CD132: 0 | CE132: 0 | CF132: 0 | CG132: 0 | CH132: 0 | CI132: 0 | CJ132: 0 | CK132: 0 | CL132: 0 | CM132: 0 | CN132: 0 | CO132: 0 | CP132: 0 | CQ132: 0 | CR132: 0 | CS132: 0 | CT132: 0 | CU132: 0 | CV132: 0 | CW132: 0 | CX132: 0 | CY132: 0 | CZ132: 0 | DA132: 0 | DB132: 0 | DC132: 0 | DD132: 0 | DE132: 0 | DF132: 0 | DG132: 0 | DH132: 0 | DI132: 0 | DJ132: 0 | DK132: 0 | DL132: 0 | DM132: 0 | DN132: 0 | DO132: 0 | DP132: 0 | DQ132: 0 | DR132: 0 | DS132: 0 | DT132: 0 | DU132: 0 | DV132: 0 | DW132: 0 | DX132: 0 | DY132: 0 | DZ132: 0 | EA132: 0 | EB132: 0
A133: 103 | B133: 0 | C133: 0 | D133: 0 | E133: 0 | F133: 0 | G133: 0 | H133: 0 | I133: 0 | J133: 0 | K133: 0 | L133: 0 | M133: 0 | N133: 0 | O133: 0 | P133: 0 | Q133: 0 | R133: 0 | S133: 0 | T133: 0 | U133: 0 | V133: 0 | W133: 0 | X133: 0 | Y133: 0 | Z133: 0 | AA133: 0 | AB133: 0 | AC133: 0 | AD133: 0 | AE133: 0 | AF133: 0 | AG133: 0 | AH133: 0 | AI133: 0 | AJ133: 0 | AK133: 0 | AL133: 0 | AM133: 0 | AN133: 0 | AO133: 0 | AP133: 0 | AQ133: 0 | AR133: 0 | AS133: 0 | AT133: 0 | AU133: 0 | AV133: 0 | AW133: 0 | AX133: 0 | AY133: 0 | AZ133: 0 | BA133: 0 | BB133: 0 | BC133: 0 | BD133: 0 | BE133: 0 | BF133: 0 | BG133: 0 | BH133: 0 | BI133: 0 | BJ133: 0 | BK133: 0 | BL133: 0 | BM133: 0 | BN133: 0 | BO133: 0 | BP133: 0 | BQ133: 0 | BR133: 0 | BS133: 0 | BT133: 0 | BU133: 0 | BV133: 0 | BW133: 0 | BX133: 0 | BY133: 0 | BZ133: 0 | CA133: 0 | CB133: 0 | CC133: 0 | CD133: 0 | CE133: 0 | CF133: 0 | CG133: 0 | CH133: 0 | CI133: 0 | CJ133: 0 | CK133: 0 | CL133: 0 | CM133: 0 | CN133: 0 | CO133: 0 | CP133: 0 | CQ133: 0 | CR133: 0 | CS133: 0 | CT133: 0 | CU133: 0 | CV133: 0 | CW133: 0 | CX133: 0 | CY133: 0 | CZ133: 0 | DA133: 0 | DB133: 0 | DC133: 0 | DD133: 0 | DE133: 0 | DF133: 0 | DG133: 0 | DH133: 0 | DI133: 0 | DJ133: 0 | DK133: 0 | DL133: 0 | DM133: 0 | DN133: 0 | DO133: 0 | DP133: 0 | DQ133: 0 | DR133: 0 | DS133: 0 | DT133: 0 | DU133: 0 | DV133: 0 | DW133: 0 | DX133: 0 | DY133: 0 | DZ133: 0 | EA133: 0 | EB133: 0
A134: 104 | B134: 0 | C134: 0 | D134: 0 | E134: 0 | F134: 0 | G134: 0 | H134: 0 | I134: 0 | J134: 0 | K134: 0 | L134: 0 | M134: 0 | N134: 0 | O134: 0 | P134: 0 | Q134: 0 | R134: 0 | S134: 0 | T134: 0 | U134: 0 | V134: 0 | W134: 0 | X134: 0 | Y134: 0 | Z134: 0 | AA134: 0 | AB134: 0 | AC134: 0 | AD134: 0 | AE134: 0 | AF134: 0 | AG134: 0 | AH134: 0 | AI134: 0 | AJ134: 0 | AK134: 0 | AL134: 0 | AM134: 0 | AN134: 0 | AO134: 0 | AP134: 0 | AQ134: 0 | AR134: 0 | AS134: 0 | AT134: 0 | AU134: 0 | AV134: 0 | AW134: 0 | AX134: 0 | AY134: 0 | AZ134: 0 | BA134: 0 | BB134: 0 | BC134: 0 | BD134: 0 | BE134: 0 | BF134: 0 | BG134: 0 | BH134: 0 | BI134: 0 | BJ134: 0 | BK134: 0 | BL134: 0 | BM134: 0 | BN134: 0 | BO134: 0 | BP134: 0 | BQ134: 0 | BR134: 0 | BS134: 0 | BT134: 0 | BU134: 0 | BV134: 0 | BW134: 0 | BX134: 0 | BY134: 0 | BZ134: 0 | CA134: 0 | CB134: 0 | CC134: 0 | CD134: 0 | CE134: 0 | CF134: 0 | CG134: 0 | CH134: 0 | CI134: 0 | CJ134: 0 | CK134: 0 | CL134: 0 | CM134: 0 | CN134: 0 | CO134: 0 | CP134: 0 | CQ134: 0 | CR134: 0 | CS134: 0 | CT134: 0 | CU134: 0 | CV134: 0 | CW134: 0 | CX134: 0 | CY134: 0 | CZ134: 0 | DA134: 0 | DB134: 0 | DC134: 0 | DD134: 0 | DE134: 0 | DF134: 0 | DG134: 0 | DH134: 0 | DI134: 0 | DJ134: 0 | DK134: 0 | DL134: 0 | DM134: 0 | DN134: 0 | DO134: 0 | DP134: 0 | DQ134: 0 | DR134: 0 | DS134: 0 | DT134: 0 | DU134: 0 | DV134: 0 | DW134: 0 | DX134: 0 | DY134: 0 | DZ134: 0 | EA134: 0 | EB134: 0
A135: 105 | B135: 0 | C135: 0 | D135: 0 | E135: =INDIRECT($C$33&E$32&ROW()-$C$34) -> 0 | F135: 0 | G135: 0 | H135: 0 | I135: 0 | J135: 0 | K135: 0 | L135: 0 | M135: 0 | N135: 0 | O135: =INDIRECT($C$33&O$32&ROW()-$C$34) -> 0 | P135: 0 | Q135: 0 | R135: 0 | S135: 0 | T135: 0 | U135: 0 | V135: 0 | W135: 0 | X135: 0 | Y135: =INDIRECT($C$33&Y$32&ROW()-$C$34) -> 0 | Z135: 0 | AA135: 0 | AB135: 0 | AC135: 0 | AD135: 0 | AE135: 0 | AF135: 0 | AG135: 0 | AH135: 0 | AI135: =INDIRECT($C$33&AI$32&ROW()-$C$34) -> 0 | AJ135: 0 | AK135: 0 | AL135: 0 | AM135: 0 | AN135: 0 | AO135: 0 | AP135: 0 | AQ135: 0 | AR135: 0 | AS135: =INDIRECT($C$33&AS$32&ROW()-$C$34) -> 0 | AT135: 0 | AU135: 0 | AV135: 0 | AW135: 0 | AX135: 0 | AY135: 0 | AZ135: 0 | BA135: 0 | BB135: 0 | BC135: =INDIRECT($C$33&BC$32&ROW()-$C$34) -> 0 | BD135: 0 | BE135: 0 | BF135: 0 | BG135: 0 | BH135: 0 | BI135: 0 | BJ135: 0 | BK135: 0 | BL135: 0 | BM135: =INDIRECT($C$33&BM$32&ROW()-$C$34) -> 0 | BN135: 0 | BO135: 0 | BP135: 0 | BQ135: 0 | BR135: 0 | BS135: 0 | BT135: 0 | BU135: 0 | BV135: 0 | BW135: =INDIRECT($C$33&BW$32&ROW()-$C$34) -> 0 | BX135: 0 | BY135: 0 | BZ135: 0 | CA135: 0 | CB135: 0 | CC135: 0 | CD135: 0 | CE135: 0 | CF135: 0 | CG135: =INDIRECT($C$33&CG$32&ROW()-$C$34) -> 0 | CH135: 0 | CI135: 0 | CJ135: 0 | CK135: 0 | CL135: 0 | CM135: 0 | CN135: 0 | CO135: 0 | CP135: 0 | CQ135: =INDIRECT($C$33&CQ$32&ROW()-$C$34) -> 0 | CR135: 0 | CS135: 0 | CT135: 0 | CU135: 0 | CV135: 0 | CW135: 0 | CX135: 0 | CY135: 0 | CZ135: 0 | DA135: 0 | DB135: 0 | DC135: 0 | DD135: 0 | DE135: 0 | DF135: 0 | DG135: 0 | DH135: 0 | DI135: 0 | DJ135: 0 | DK135: 0 | DL135: 0 | DM135: 0 | DN135: 0 | DO135: 0 | DP135: 0 | DQ135: 0 | DR135: 0 | DS135: 0 | DT135: 0 | DU135: 0 | DV135: 0 | DW135: 0 | DX135: 0 | DY135: 0 | DZ135: 0 | EA135: 0 | EB135: 0
A136: 106 | B136: 0 | C136: =INDIRECT($C$33&C$32&ROW()-$C$34) -> 0 | D136: 0 | E136: 0 | F136: 0 | G136: 0 | H136: 0 | I136: 0 | J136: 0 | K136: 0 | L136: 0 | M136: 0 | N136: 0 | O136: 0 | P136: 0 | Q136: 0 | R136: 0 | S136: 0 | T136: 0 | U136: 0 | V136: 0 | W136: 0 | X136: 0 | Y136: 0 | Z136: 0 | AA136: 0 | AB136: 0 | AC136: 0 | AD136: 0 | AE136: 0 | AF136: 0 | AG136: 0 | AH136: 0 | AI136: 0 | AJ136: 0 | AK136: 0 | AL136: 0 | AM136: 0 | AN136: 0 | AO136: 0 | AP136: 0 | AQ136: 0 | AR136: 0 | AS136: 0 | AT136: 0 | AU136: 0 | AV136: 0 | AW136: 0 | AX136: 0 | AY136: 0 | AZ136: 0 | BA136: 0 | BB136: 0 | BC136: 0 | BD136: 0 | BE136: 0 | BF136: 0 | BG136: 0 | BH136: 0 | BI136: 0 | BJ136: 0 | BK136: 0 | BL136: 0 | BM136: 0 | BN136: 0 | BO136: 0 | BP136: 0 | BQ136: 0 | BR136: 0 | BS136: 0 | BT136: 0 | BU136: 0 | BV136: 0 | BW136: 0 | BX136: 0 | BY136: 0 | BZ136: 0 | CA136: 0 | CB136: 0 | CC136: 0 | CD136: 0 | CE136: 0 | CF136: 0 | CG136: 0 | CH136: 0 | CI136: 0 | CJ136: 0 | CK136: 0 | CL136: 0 | CM136: 0 | CN136: 0 | CO136: 0 | CP136: 0 | CQ136: 0 | CR136: 0 | CS136: 0 | CT136: 0 | CU136: 0 | CV136: 0 | CW136: 0 | CX136: 0 | CY136: 0 | CZ136: 0 | DA136: 0 | DB136: 0 | DC136: 0 | DD136: 0 | DE136: 0 | DF136: 0 | DG136: 0 | DH136: 0 | DI136: 0 | DJ136: 0 | DK136: 0 | DL136: 0 | DM136: 0 | DN136: 0 | DO136: 0 | DP136: 0 | DQ136: 0 | DR136: 0 | DS136: 0 | DT136: 0 | DU136: 0 | DV136: 0 | DW136: 0 | DX136: 0 | DY136: 0 | DZ136: 0 | EA136: 0 | EB136: 0
A137: 107 | B137: 0 | C137: 0 | D137: 0 | E137: 0 | F137: 0 | G137: 0 | H137: 0 | I137: 0 | J137: 0 | K137: 0 | L137: 0 | M137: 0 | N137: 0 | O137: 0 | P137: 0 | Q137: 0 | R137: 0 | S137: 0 | T137: 0 | U137: 0 | V137: 0 | W137: 0 | X137: 0 | Y137: 0 | Z137: 0 | AA137: 0 | AB137: 0 | AC137: 0 | AD137: 0 | AE137: 0 | AF137: 0 | AG137: 0 | AH137: 0 | AI137: 0 | AJ137: 0 | AK137: 0 | AL137: 0 | AM137: 0 | AN137: 0 | AO137: 0 | AP137: 0 | AQ137: 0 | AR137: 0 | AS137: 0 | AT137: 0 | AU137: 0 | AV137: 0 | AW137: 0 | AX137: 0 | AY137: 0 | AZ137: 0 | BA137: 0 | BB137: 0 | BC137: 0 | BD137: 0 | BE137: 0 | BF137: 0 | BG137: 0 | BH137: 0 | BI137: 0 | BJ137: 0 | BK137: 0 | BL137: 0 | BM137: 0 | BN137: 0 | BO137: 0 | BP137: 0 | BQ137: 0 | BR137: 0 | BS137: 0 | BT137: 0 | BU137: 0 | BV137: 0 | BW137: 0 | BX137: 0 | BY137: 0 | BZ137: 0 | CA137: 0 | CB137: 0 | CC137: 0 | CD137: 0 | CE137: 0 | CF137: 0 | CG137: 0 | CH137: 0 | CI137: 0 | CJ137: 0 | CK137: 0 | CL137: 0 | CM137: 0 | CN137: 0 | CO137: 0 | CP137: 0 | CQ137: 0 | CR137: 0 | CS137: 0 | CT137: 0 | CU137: 0 | CV137: 0 | CW137: 0 | CX137: 0 | CY137: 0 | CZ137: 0 | DA137: 0 | DB137: 0 | DC137: 0 | DD137: 0 | DE137: 0 | DF137: 0 | DG137: 0 | DH137: 0 | DI137: 0 | DJ137: 0 | DK137: 0 | DL137: 0 | DM137: 0 | DN137: 0 | DO137: 0 | DP137: 0 | DQ137: 0 | DR137: 0 | DS137: 0 | DT137: 0 | DU137: 0 | DV137: 0 | DW137: 0 | DX137: 0 | DY137: 0 | DZ137: 0 | EA137: 0 | EB137: 0
A138: 108 | B138: 0 | C138: 0 | D138: 0 | E138: 0 | F138: 0 | G138: 0 | H138: 0 | I138: 0 | J138: 0 | K138: 0 | L138: 0 | M138: 0 | N138: 0 | O138: 0 | P138: 0 | Q138: 0 | R138: 0 | S138: 0 | T138: 0 | U138: 0 | V138: 0 | W138: 0 | X138: 0 | Y138: 0 | Z138: 0 | AA138: 0 | AB138: 0 | AC138: 0 | AD138: 0 | AE138: 0 | AF138: 0 | AG138: 0 | AH138: 0 | AI138: 0 | AJ138: 0 | AK138: 0 | AL138: 0 | AM138: 0 | AN138: 0 | AO138: 0 | AP138: 0 | AQ138: 0 | AR138: 0 | AS138: 0 | AT138: 0 | AU138: 0 | AV138: 0 | AW138: 0 | AX138: 0 | AY138: 0 | AZ138: 0 | BA138: 0 | BB138: 0 | BC138: 0 | BD138: 0 | BE138: 0 | BF138: 0 | BG138: 0 | BH138: 0 | BI138: 0 | BJ138: 0 | BK138: 0 | BL138: 0 | BM138: 0 | BN138: 0 | BO138: 0 | BP138: 0 | BQ138: 0 | BR138: 0 | BS138: 0 | BT138: 0 | BU138: 0 | BV138: 0 | BW138: 0 | BX138: 0 | BY138: 0 | BZ138: 0 | CA138: 0 | CB138: 0 | CC138: 0 | CD138: 0 | CE138: 0 | CF138: 0 | CG138: 0 | CH138: 0 | CI138: 0 | CJ138: 0 | CK138: 0 | CL138: 0 | CM138: 0 | CN138: 0 | CO138: 0 | CP138: 0 | CQ138: 0 | CR138: 0 | CS138: 0 | CT138: 0 | CU138: 0 | CV138: 0 | CW138: 0 | CX138: 0 | CY138: 0 | CZ138: 0 | DA138: 0 | DB138: 0 | DC138: 0 | DD138: 0 | DE138: 0 | DF138: 0 | DG138: 0 | DH138: 0 | DI138: 0 | DJ138: 0 | DK138: 0 | DL138: 0 | DM138: 0 | DN138: 0 | DO138: 0 | DP138: 0 | DQ138: 0 | DR138: 0 | DS138: 0 | DT138: 0 | DU138: 0 | DV138: 0 | DW138: 0 | DX138: 0 | DY138: 0 | DZ138: 0 | EA138: 0 | EB138: 0
A139: 109 | B139: 0 | C139: 0 | D139: 0 | E139: 0 | F139: 0 | G139: 0 | H139: 0 | I139: 0 | J139: 0 | K139: 0 | L139: 0 | M139: 0 | N139: 0 | O139: 0 | P139: 0 | Q139: 0 | R139: 0 | S139: 0 | T139: 0 | U139: 0 | V139: 0 | W139: 0 | X139: 0 | Y139: 0 | Z139: 0 | AA139: 0 | AB139: 0 | AC139: 0 | AD139: 0 | AE139: 0 | AF139: 0 | AG139: 0 | AH139: 0 | AI139: 0 | AJ139: 0 | AK139: 0 | AL139: 0 | AM139: 0 | AN139: 0 | AO139: 0 | AP139: 0 | AQ139: 0 | AR139: 0 | AS139: 0 | AT139: 0 | AU139: 0 | AV139: 0 | AW139: 0 | AX139: 0 | AY139: 0 | AZ139: 0 | BA139: 0 | BB139: 0 | BC139: 0 | BD139: 0 | BE139: 0 | BF139: 0 | BG139: 0 | BH139: 0 | BI139: 0 | BJ139: 0 | BK139: 0 | BL139: 0 | BM139: 0 | BN139: 0 | BO139: 0 | BP139: 0 | BQ139: 0 | BR139: 0 | BS139: 0 | BT139: 0 | BU139: 0 | BV139: 0 | BW139: 0 | BX139: 0 | BY139: 0 | BZ139: 0 | CA139: 0 | CB139: 0 | CC139: 0 | CD139: 0 | CE139: 0 | CF139: 0 | CG139: 0 | CH139: 0 | CI139: 0 | CJ139: 0 | CK139: 0 | CL139: 0 | CM139: 0 | CN139: 0 | CO139: 0 | CP139: 0 | CQ139: 0 | CR139: 0 | CS139: 0 | CT139: 0 | CU139: 0 | CV139: 0 | CW139: 0 | CX139: 0 | CY139: 0 | CZ139: 0 | DA139: 0 | DB139: 0 | DC139: 0 | DD139: 0 | DE139: 0 | DF139: 0 | DG139: 0 | DH139: 0 | DI139: 0 | DJ139: 0 | DK139: 0 | DL139: 0 | DM139: 0 | DN139: 0 | DO139: 0 | DP139: 0 | DQ139: 0 | DR139: 0 | DS139: 0 | DT139: 0 | DU139: 0 | DV139: 0 | DW139: 0 | DX139: 0 | DY139: 0 | DZ139: 0 | EA139: 0 | EB139: 0
A140: 110 | B140: 0 | C140: 0 | D140: 0 | E140: 0 | F140: 0 | G140: 0 | H140: 0 | I140: 0 | J140: 0 | K140: 0 | L140: 0 | M140: 0 | N140: 0 | O140: 0 | P140: 0 | Q140: 0 | R140: 0 | S140: 0 | T140: 0 | U140: 0 | V140: 0 | W140: 0 | X140: 0 | Y140: 0 | Z140: 0 | AA140: 0 | AB140: 0 | AC140: 0 | AD140: 0 | AE140: 0 | AF140: 0 | AG140: 0 | AH140: 0 | AI140: 0 | AJ140: 0 | AK140: 0 | AL140: 0 | AM140: 0 | AN140: 0 | AO140: 0 | AP140: 0 | AQ140: 0 | AR140: 0 | AS140: 0 | AT140: 0 | AU140: 0 | AV140: 0 | AW140: 0 | AX140: 0 | AY140: 0 | AZ140: 0 | BA140: 0 | BB140: 0 | BC140: 0 | BD140: 0 | BE140: 0 | BF140: 0 | BG140: 0 | BH140: 0 | BI140: 0 | BJ140: 0 | BK140: 0 | BL140: 0 | BM140: 0 | BN140: 0 | BO140: 0 | BP140: 0 | BQ140: 0 | BR140: 0 | BS140: 0 | BT140: 0 | BU140: 0 | BV140: 0 | BW140: 0 | BX140: 0 | BY140: 0 | BZ140: 0 | CA140: 0 | CB140: 0 | CC140: 0 | CD140: 0 | CE140: 0 | CF140: 0 | CG140: 0 | CH140: 0 | CI140: 0 | CJ140: 0 | CK140: 0 | CL140: 0 | CM140: 0 | CN140: 0 | CO140: 0 | CP140: 0 | CQ140: 0 | CR140: 0 | CS140: 0 | CT140: 0 | CU140: 0 | CV140: 0 | CW140: 0 | CX140: 0 | CY140: 0 | CZ140: 0 | DA140: 0 | DB140: 0 | DC140: 0 | DD140: 0 | DE140: 0 | DF140: 0 | DG140: 0 | DH140: 0 | DI140: 0 | DJ140: 0 | DK140: 0 | DL140: 0 | DM140: 0 | DN140: 0 | DO140: 0 | DP140: 0 | DQ140: 0 | DR140: 0 | DS140: 0 | DT140: 0 | DU140: 0 | DV140: 0 | DW140: 0 | DX140: 0 | DY140: 0 | DZ140: 0 | EA140: 0 | EB140: 0
A141: 111 | B141: 0 | C141: 0 | D141: 0 | E141: 0 | F141: 0 | G141: 0 | H141: 0 | I141: 0 | J141: 0 | K141: 0 | L141: 0 | M141: 0 | N141: 0 | O141: 0 | P141: 0 | Q141: 0 | R141: 0 | S141: 0 | T141: 0 | U141: 0 | V141: 0 | W141: 0 | X141: 0 | Y141: 0 | Z141: 0 | AA141: 0 | AB141: 0 | AC141: 0 | AD141: 0 | AE141: 0 | AF141: 0 | AG141: 0 | AH141: 0 | AI141: 0 | AJ141: 0 | AK141: 0 | AL141: 0 | AM141: 0 | AN141: 0 | AO141: 0 | AP141: 0 | AQ141: 0 | AR141: 0 | AS141: 0 | AT141: 0 | AU141: 0 | AV141: 0 | AW141: 0 | AX141: 0 | AY141: 0 | AZ141: 0 | BA141: 0 | BB141: 0 | BC141: 0 | BD141: 0 | BE141: 0 | BF141: 0 | BG141: 0 | BH141: 0 | BI141: 0 | BJ141: 0 | BK141: 0 | BL141: 0 | BM141: 0 | BN141: 0 | BO141: 0 | BP141: 0 | BQ141: 0 | BR141: 0 | BS141: 0 | BT141: 0 | BU141: 0 | BV141: 0 | BW141: 0 | BX141: 0 | BY141: 0 | BZ141: 0 | CA141: 0 | CB141: 0 | CC141: 0 | CD141: 0 | CE141: 0 | CF141: 0 | CG141: 0 | CH141: 0 | CI141: 0 | CJ141: 0 | CK141: 0 | CL141: 0 | CM141: 0 | CN141: 0 | CO141: 0 | CP141: 0 | CQ141: 0 | CR141: 0 | CS141: 0 | CT141: 0 | CU141: 0 | CV141: 0 | CW141: 0 | CX141: 0 | CY141: 0 | CZ141: 0 | DA141: 0 | DB141: 0 | DC141: 0 | DD141: 0 | DE141: 0 | DF141: 0 | DG141: 0 | DH141: 0 | DI141: 0 | DJ141: 0 | DK141: 0 | DL141: 0 | DM141: 0 | DN141: 0 | DO141: 0 | DP141: 0 | DQ141: 0 | DR141: 0 | DS141: 0 | DT141: 0 | DU141: 0 | DV141: 0 | DW141: 0 | DX141: 0 | DY141: 0 | DZ141: 0 | EA141: 0 | EB141: 0
A142: 112 | B142: 0 | C142: 0 | D142: 0 | E142: 0 | F142: 0 | G142: 0 | H142: 0 | I142: 0 | J142: 0 | K142: 0 | L142: 0 | M142: 0 | N142: 0 | O142: 0 | P142: 0 | Q142: 0 | R142: 0 | S142: 0 | T142: 0 | U142: 0 | V142: 0 | W142: 0 | X142: 0 | Y142: 0 | Z142: 0 | AA142: 0 | AB142: 0 | AC142: 0 | AD142: 0 | AE142: 0 | AF142: 0 | AG142: 0 | AH142: 0 | AI142: 0 | AJ142: 0 | AK142: 0 | AL142: 0 | AM142: 0 | AN142: 0 | AO142: 0 | AP142: 0 | AQ142: 0 | AR142: 0 | AS142: 0 | AT142: 0 | AU142: 0 | AV142: 0 | AW142: 0 | AX142: 0 | AY142: 0 | AZ142: 0 | BA142: 0 | BB142: 0 | BC142: 0 | BD142: 0 | BE142: 0 | BF142: 0 | BG142: 0 | BH142: 0 | BI142: 0 | BJ142: 0 | BK142: 0 | BL142: 0 | BM142: 0 | BN142: 0 | BO142: 0 | BP142: 0 | BQ142: 0 | BR142: 0 | BS142: 0 | BT142: 0 | BU142: 0 | BV142: 0 | BW142: 0 | BX142: 0 | BY142: 0 | BZ142: 0 | CA142: 0 | CB142: 0 | CC142: 0 | CD142: 0 | CE142: 0 | CF142: 0 | CG142: 0 | CH142: 0 | CI142: 0 | CJ142: 0 | CK142: 0 | CL142: 0 | CM142: 0 | CN142: 0 | CO142: 0 | CP142: 0 | CQ142: 0 | CR142: 0 | CS142: 0 | CT142: 0 | CU142: 0 | CV142: 0 | CW142: 0 | CX142: 0 | CY142: 0 | CZ142: 0 | DA142: 0 | DB142: 0 | DC142: 0 | DD142: 0 | DE142: 0 | DF142: 0 | DG142: 0 | DH142: 0 | DI142: 0 | DJ142: 0 | DK142: 0 | DL142: 0 | DM142: 0 | DN142: 0 | DO142: 0 | DP142: 0 | DQ142: 0 | DR142: 0 | DS142: 0 | DT142: 0 | DU142: 0 | DV142: 0 | DW142: 0 | DX142: 0 | DY142: 0 | DZ142: 0 | EA142: 0 | EB142: 0
A143: 113 | B143: 0 | C143: 0 | D143: 0 | E143: 0 | F143: 0 | G143: 0 | H143: 0 | I143: 0 | J143: 0 | K143: 0 | L143: 0 | M143: 0 | N143: 0 | O143: 0 | P143: 0 | Q143: 0 | R143: 0 | S143: 0 | T143: 0 | U143: 0 | V143: 0 | W143: 0 | X143: 0 | Y143: 0 | Z143: 0 | AA143: 0 | AB143: 0 | AC143: 0 | AD143: 0 | AE143: 0 | AF143: 0 | AG143: 0 | AH143: 0 | AI143: 0 | AJ143: 0 | AK143: 0 | AL143: 0 | AM143: 0 | AN143: 0 | AO143: 0 | AP143: 0 | AQ143: 0 | AR143: 0 | AS143: 0 | AT143: 0 | AU143: 0 | AV143: 0 | AW143: 0 | AX143: 0 | AY143: 0 | AZ143: 0 | BA143: 0 | BB143: 0 | BC143: 0 | BD143: 0 | BE143: 0 | BF143: 0 | BG143: 0 | BH143: 0 | BI143: 0 | BJ143: 0 | BK143: 0 | BL143: 0 | BM143: 0 | BN143: 0 | BO143: 0 | BP143: 0 | BQ143: 0 | BR143: 0 | BS143: 0 | BT143: 0 | BU143: 0 | BV143: 0 | BW143: 0 | BX143: 0 | BY143: 0 | BZ143: 0 | CA143: 0 | CB143: 0 | CC143: 0 | CD143: 0 | CE143: 0 | CF143: 0 | CG143: 0 | CH143: 0 | CI143: 0 | CJ143: 0 | CK143: 0 | CL143: 0 | CM143: 0 | CN143: 0 | CO143: 0 | CP143: 0 | CQ143: 0 | CR143: 0 | CS143: 0 | CT143: 0 | CU143: 0 | CV143: 0 | CW143: 0 | CX143: 0 | CY143: 0 | CZ143: 0 | DA143: 0 | DB143: 0 | DC143: 0 | DD143: 0 | DE143: 0 | DF143: 0 | DG143: 0 | DH143: 0 | DI143: 0 | DJ143: 0 | DK143: 0 | DL143: 0 | DM143: 0 | DN143: 0 | DO143: 0 | DP143: 0 | DQ143: 0 | DR143: 0 | DS143: 0 | DT143: 0 | DU143: 0 | DV143: 0 | DW143: 0 | DX143: 0 | DY143: 0 | DZ143: 0 | EA143: 0 | EB143: 0
A144: 114 | B144: 0 | C144: 0 | D144: 0 | E144: 0 | F144: 0 | G144: 0 | H144: 0 | I144: 0 | J144: 0 | K144: 0 | L144: 0 | M144: 0 | N144: 0 | O144: 0 | P144: 0 | Q144: 0 | R144: 0 | S144: 0 | T144: 0 | U144: 0 | V144: 0 | W144: 0 | X144: 0 | Y144: 0 | Z144: 0 | AA144: 0 | AB144: 0 | AC144: 0 | AD144: 0 | AE144: 0 | AF144: 0 | AG144: 0 | AH144: 0 | AI144: 0 | AJ144: 0 | AK144: 0 | AL144: 0 | AM144: 0 | AN144: 0 | AO144: 0 | AP144: 0 | AQ144: 0 | AR144: 0 | AS144: 0 | AT144: 0 | AU144: 0 | AV144: 0 | AW144: 0 | AX144: 0 | AY144: 0 | AZ144: 0 | BA144: 0 | BB144: 0 | BC144: 0 | BD144: 0 | BE144: 0 | BF144: 0 | BG144: 0 | BH144: 0 | BI144: 0 | BJ144: 0 | BK144: 0 | BL144: 0 | BM144: 0 | BN144: 0 | BO144: 0 | BP144: 0 | BQ144: 0 | BR144: 0 | BS144: 0 | BT144: 0 | BU144: 0 | BV144: 0 | BW144: 0 | BX144: 0 | BY144: 0 | BZ144: 0 | CA144: 0 | CB144: 0 | CC144: 0 | CD144: 0 | CE144: 0 | CF144: 0 | CG144: 0 | CH144: 0 | CI144: 0 | CJ144: 0 | CK144: 0 | CL144: 0 | CM144: 0 | CN144: 0 | CO144: 0 | CP144: 0 | CQ144: 0 | CR144: 0 | CS144: 0 | CT144: 0 | CU144: 0 | CV144: 0 | CW144: 0 | CX144: 0 | CY144: 0 | CZ144: 0 | DA144: 0 | DB144: 0 | DC144: 0 | DD144: 0 | DE144: 0 | DF144: 0 | DG144: 0 | DH144: 0 | DI144: 0 | DJ144: 0 | DK144: 0 | DL144: 0 | DM144: 0 | DN144: 0 | DO144: 0 | DP144: 0 | DQ144: 0 | DR144: 0 | DS144: 0 | DT144: 0 | DU144: 0 | DV144: 0 | DW144: 0 | DX144: 0 | DY144: 0 | DZ144: 0 | EA144: 0 | EB144: 0
A145: 115 | B145: 0 | C145: 0 | D145: 0 | E145: =INDIRECT($C$33&E$32&ROW()-$C$34) -> 0 | F145: 0 | G145: 0 | H145: 0 | I145: 0 | J145: 0 | K145: 0 | L145: 0 | M145: 0 | N145: 0 | O145: =INDIRECT($C$33&O$32&ROW()-$C$34) -> 0 | P145: 0 | Q145: 0 | R145: 0 | S145: 0 | T145: 0 | U145: 0 | V145: 0 | W145: 0 | X145: 0 | Y145: =INDIRECT($C$33&Y$32&ROW()-$C$34) -> 0 | Z145: 0 | AA145: 0 | AB145: 0 | AC145: 0 | AD145: 0 | AE145: 0 | AF145: 0 | AG145: 0 | AH145: 0 | AI145: =INDIRECT($C$33&AI$32&ROW()-$C$34) -> 0 | AJ145: 0 | AK145: 0 | AL145: 0 | AM145: 0 | AN145: 0 | AO145: 0 | AP145: 0 | AQ145: 0 | AR145: 0 | AS145: =INDIRECT($C$33&AS$32&ROW()-$C$34) -> 0 | AT145: 0 | AU145: 0 | AV145: 0 | AW145: 0 | AX145: 0 | AY145: 0 | AZ145: 0 | BA145: 0 | BB145: 0 | BC145: =INDIRECT($C$33&BC$32&ROW()-$C$34) -> 0 | BD145: 0 | BE145: 0 | BF145: 0 | BG145: 0 | BH145: 0 | BI145: 0 | BJ145: 0 | BK145: 0 | BL145: 0 | BM145: =INDIRECT($C$33&BM$32&ROW()-$C$34) -> 0 | BN145: 0 | BO145: 0 | BP145: 0 | BQ145: 0 | BR145: 0 | BS145: 0 | BT145: 0 | BU145: 0 | BV145: 0 | BW145: =INDIRECT($C$33&BW$32&ROW()-$C$34) -> 0 | BX145: 0 | BY145: 0 | BZ145: 0 | CA145: 0 | CB145: 0 | CC145: 0 | CD145: 0 | CE145: 0 | CF145: 0 | CG145: =INDIRECT($C$33&CG$32&ROW()-$C$34) -> 0 | CH145: 0 | CI145: 0 | CJ145: 0 | CK145: 0 | CL145: 0 | CM145: 0 | CN145: 0 | CO145: 0 | CP145: 0 | CQ145: =INDIRECT($C$33&CQ$32&ROW()-$C$34) -> 0 | CR145: 0 | CS145: 0 | CT145: 0 | CU145: 0 | CV145: 0 | CW145: 0 | CX145: 0 | CY145: 0 | CZ145: 0 | DA145: 0 | DB145: 0 | DC145: 0 | DD145: 0 | DE145: 0 | DF145: 0 | DG145: 0 | DH145: 0 | DI145: 0 | DJ145: 0 | DK145: 0 | DL145: 0 | DM145: 0 | DN145: 0 | DO145: 0 | DP145: 0 | DQ145: 0 | DR145: 0 | DS145: 0 | DT145: 0 | DU145: 0 | DV145: 0 | DW145: 0 | DX145: 0 | DY145: 0 | DZ145: 0 | EA145: 0 | EB145: 0
A146: 116 | B146: 0 | C146: 0 | D146: 0 | E146: 0 | F146: 0 | G146: 0 | H146: 0 | I146: 0 | J146: 0 | K146: 0 | L146: 0 | M146: 0 | N146: 0 | O146: 0 | P146: 0 | Q146: 0 | R146: 0 | S146: 0 | T146: 0 | U146: 0 | V146: 0 | W146: 0 | X146: 0 | Y146: 0 | Z146: 0 | AA146: 0 | AB146: 0 | AC146: 0 | AD146: 0 | AE146: 0 | AF146: 0 | AG146: 0 | AH146: 0 | AI146: 0 | AJ146: 0 | AK146: 0 | AL146: 0 | AM146: 0 | AN146: 0 | AO146: 0 | AP146: 0 | AQ146: 0 | AR146: 0 | AS146: 0 | AT146: 0 | AU146: 0 | AV146: 0 | AW146: 0 | AX146: 0 | AY146: 0 | AZ146: 0 | BA146: 0 | BB146: 0 | BC146: 0 | BD146: 0 | BE146: 0 | BF146: 0 | BG146: 0 | BH146: 0 | BI146: 0 | BJ146: 0 | BK146: 0 | BL146: 0 | BM146: 0 | BN146: 0 | BO146: 0 | BP146: 0 | BQ146: 0 | BR146: 0 | BS146: 0 | BT146: 0 | BU146: 0 | BV146: 0 | BW146: 0 | BX146: 0 | BY146: 0 | BZ146: 0 | CA146: 0 | CB146: 0 | CC146: 0 | CD146: 0 | CE146: 0 | CF146: 0 | CG146: 0 | CH146: 0 | CI146: 0 | CJ146: 0 | CK146: 0 | CL146: 0 | CM146: 0 | CN146: 0 | CO146: 0 | CP146: 0 | CQ146: 0 | CR146: 0 | CS146: 0 | CT146: 0 | CU146: 0 | CV146: 0 | CW146: 0 | CX146: 0 | CY146: 0 | CZ146: 0 | DA146: 0 | DB146: 0 | DC146: 0 | DD146: 0 | DE146: 0 | DF146: 0 | DG146: 0 | DH146: 0 | DI146: 0 | DJ146: 0 | DK146: 0 | DL146: 0 | DM146: 0 | DN146: 0 | DO146: 0 | DP146: 0 | DQ146: 0 | DR146: 0 | DS146: 0 | DT146: 0 | DU146: 0 | DV146: 0 | DW146: 0 | DX146: 0 | DY146: 0 | DZ146: 0 | EA146: 0 | EB146: 0
A147: 117 | B147: 0 | C147: 0 | D147: 0 | E147: 0 | F147: 0 | G147: 0 | H147: 0 | I147: 0 | J147: 0 | K147: 0 | L147: 0 | M147: 0 | N147: 0 | O147: 0 | P147: 0 | Q147: 0 | R147: 0 | S147: 0 | T147: 0 | U147: 0 | V147: 0 | W147: 0 | X147: 0 | Y147: 0 | Z147: 0 | AA147: 0 | AB147: 0 | AC147: 0 | AD147: 0 | AE147: 0 | AF147: 0 | AG147: 0 | AH147: 0 | AI147: 0 | AJ147: 0 | AK147: 0 | AL147: 0 | AM147: 0 | AN147: 0 | AO147: 0 | AP147: 0 | AQ147: 0 | AR147: 0 | AS147: 0 | AT147: 0 | AU147: 0 | AV147: 0 | AW147: 0 | AX147: 0 | AY147: 0 | AZ147: 0 | BA147: 0 | BB147: 0 | BC147: 0 | BD147: 0 | BE147: 0 | BF147: 0 | BG147: 0 | BH147: 0 | BI147: 0 | BJ147: 0 | BK147: 0 | BL147: 0 | BM147: 0 | BN147: 0 | BO147: 0 | BP147: 0 | BQ147: 0 | BR147: 0 | BS147: 0 | BT147: 0 | BU147: 0 | BV147: 0 | BW147: 0 | BX147: 0 | BY147: 0 | BZ147: 0 | CA147: 0 | CB147: 0 | CC147: 0 | CD147: 0 | CE147: 0 | CF147: 0 | CG147: 0 | CH147: 0 | CI147: 0 | CJ147: 0 | CK147: 0 | CL147: 0 | CM147: 0 | CN147: 0 | CO147: 0 | CP147: 0 | CQ147: 0 | CR147: 0 | CS147: 0 | CT147: 0 | CU147: 0 | CV147: 0 | CW147: 0 | CX147: 0 | CY147: 0 | CZ147: 0 | DA147: 0 | DB147: 0 | DC147: =INDIRECT($C$33&DC$32&ROW()-$C$34) -> 0 | DD147: 0 | DE147: 0 | DF147: 0 | DG147: 0 | DH147: 0 | DI147: 0 | DJ147: 0 | DK147: 0 | DL147: 0 | DM147: 0 | DN147: 0 | DO147: 0 | DP147: 0 | DQ147: 0 | DR147: 0 | DS147: 0 | DT147: =INDIRECT($C$33&DT$32&ROW()-$C$34) -> 0 | DU147: 0 | DV147: 0 | DW147: 0 | DX147: 0 | DY147: 0 | DZ147: 0 | EA147: 0 | EB147: 0
A148: 118 | B148: 0 | C148: 0 | D148: 0 | E148: 0 | F148: 0 | G148: 0 | H148: 0 | I148: 0 | J148: 0 | K148: 0 | L148: 0 | M148: 0 | N148: 0 | O148: 0 | P148: 0 | Q148: 0 | R148: 0 | S148: 0 | T148: 0 | U148: 0 | V148: 0 | W148: 0 | X148: 0 | Y148: 0 | Z148: 0 | AA148: 0 | AB148: 0 | AC148: 0 | AD148: 0 | AE148: 0 | AF148: 0 | AG148: 0 | AH148: 0 | AI148: 0 | AJ148: 0 | AK148: 0 | AL148: 0 | AM148: 0 | AN148: 0 | AO148: 0 | AP148: 0 | AQ148: 0 | AR148: 0 | AS148: 0 | AT148: 0 | AU148: 0 | AV148: 0 | AW148: 0 | AX148: 0 | AY148: 0 | AZ148: 0 | BA148: 0 | BB148: 0 | BC148: 0 | BD148: 0 | BE148: 0 | BF148: 0 | BG148: 0 | BH148: 0 | BI148: 0 | BJ148: 0 | BK148: 0 | BL148: 0 | BM148: 0 | BN148: 0 | BO148: 0 | BP148: 0 | BQ148: 0 | BR148: 0 | BS148: 0 | BT148: 0 | BU148: 0 | BV148: 0 | BW148: 0 | BX148: 0 | BY148: 0 | BZ148: 0 | CA148: 0 | CB148: 0 | CC148: 0 | CD148: 0 | CE148: 0 | CF148: 0 | CG148: 0 | CH148: 0 | CI148: 0 | CJ148: 0 | CK148: 0 | CL148: 0 | CM148: 0 | CN148: 0 | CO148: 0 | CP148: 0 | CQ148: 0 | CR148: 0 | CS148: 0 | CT148: 0 | CU148: 0 | CV148: 0 | CW148: 0 | CX148: 0 | CY148: 0 | CZ148: 0 | DA148: 0 | DB148: 0 | DC148: 0 | DD148: 0 | DE148: 0 | DF148: 0 | DG148: 0 | DH148: 0 | DI148: 0 | DJ148: 0 | DK148: 0 | DL148: 0 | DM148: 0 | DN148: 0 | DO148: 0 | DP148: 0 | DQ148: 0 | DR148: 0 | DS148: 0 | DT148: 0 | DU148: 0 | DV148: 0 | DW148: 0 | DX148: 0 | DY148: 0 | DZ148: 0 | EA148: 0 | EB148: 0
A149: 119 | B149: 0 | C149: 0 | D149: 0 | E149: 0 | F149: 0 | G149: 0 | H149: 0 | I149: 0 | J149: 0 | K149: 0 | L149: 0 | M149: 0 | N149: 0 | O149: 0 | P149: 0 | Q149: 0 | R149: 0 | S149: 0 | T149: 0 | U149: 0 | V149: 0 | W149: 0 | X149: 0 | Y149: 0 | Z149: 0 | AA149: 0 | AB149: 0 | AC149: 0 | AD149: 0 | AE149: 0 | AF149: 0 | AG149: 0 | AH149: 0 | AI149: 0 | AJ149: 0 | AK149: 0 | AL149: 0 | AM149: 0 | AN149: 0 | AO149: 0 | AP149: 0 | AQ149: 0 | AR149: 0 | AS149: 0 | AT149: 0 | AU149: 0 | AV149: 0 | AW149: 0 | AX149: 0 | AY149: 0 | AZ149: 0 | BA149: 0 | BB149: 0 | BC149: 0 | BD149: 0 | BE149: 0 | BF149: 0 | BG149: 0 | BH149: 0 | BI149: 0 | BJ149: 0 | BK149: 0 | BL149: 0 | BM149: 0 | BN149: 0 | BO149: 0 | BP149: 0 | BQ149: 0 | BR149: 0 | BS149: 0 | BT149: 0 | BU149: 0 | BV149: 0 | BW149: 0 | BX149: 0 | BY149: 0 | BZ149: 0 | CA149: 0 | CB149: 0 | CC149: 0 | CD149: 0 | CE149: 0 | CF149: 0 | CG149: 0 | CH149: 0 | CI149: 0 | CJ149: 0 | CK149: 0 | CL149: 0 | CM149: 0 | CN149: 0 | CO149: 0 | CP149: 0 | CQ149: 0 | CR149: 0 | CS149: 0 | CT149: 0 | CU149: 0 | CV149: 0 | CW149: 0 | CX149: 0 | CY149: 0 | CZ149: 0 | DA149: 0 | DB149: 0 | DC149: 0 | DD149: 0 | DE149: 0 | DF149: 0 | DG149: 0 | DH149: 0 | DI149: 0 | DJ149: 0 | DK149: 0 | DL149: 0 | DM149: 0 | DN149: 0 | DO149: 0 | DP149: 0 | DQ149: 0 | DR149: 0 | DS149: 0 | DT149: 0 | DU149: 0 | DV149: 0 | DW149: 0 | DX149: 0 | DY149: 0 | DZ149: 0 | EA149: 0 | EB149: 0
A150: 120 | B150: 0 | C150: 0 | D150: 0 | E150: 0 | F150: 0 | G150: 0 | H150: 0 | I150: 0 | J150: 0 | K150: 0 | L150: 0 | M150: 0 | N150: 0 | O150: 0 | P150: 0 | Q150: 0 | R150: 0 | S150: 0 | T150: 0 | U150: 0 | V150: 0 | W150: 0 | X150: 0 | Y150: 0 | Z150: 0 | AA150: 0 | AB150: 0 | AC150: 0 | AD150: 0 | AE150: 0 | AF150: 0 | AG150: 0 | AH150: 0 | AI150: 0 | AJ150: 0 | AK150: 0 | AL150: 0 | AM150: 0 | AN150: 0 | AO150: 0 | AP150: 0 | AQ150: 0 | AR150: 0 | AS150: 0 | AT150: 0 | AU150: 0 | AV150: 0 | AW150: 0 | AX150: 0 | AY150: 0 | AZ150: 0 | BA150: 0 | BB150: 0 | BC150: 0 | BD150: 0 | BE150: 0 | BF150: 0 | BG150: 0 | BH150: 0 | BI150: 0 | BJ150: 0 | BK150: 0 | BL150: 0 | BM150: 0 | BN150: 0 | BO150: 0 | BP150: 0 | BQ150: 0 | BR150: 0 | BS150: 0 | BT150: 0 | BU150: 0 | BV150: 0 | BW150: 0 | BX150: 0 | BY150: 0 | BZ150: 0 | CA150: 0 | CB150: 0 | CC150: 0 | CD150: 0 | CE150: 0 | CF150: 0 | CG150: 0 | CH150: 0 | CI150: 0 | CJ150: 0 | CK150: 0 | CL150: 0 | CM150: 0 | CN150: 0 | CO150: 0 | CP150: 0 | CQ150: 0 | CR150: 0 | CS150: 0 | CT150: 0 | CU150: 0 | CV150: 0 | CW150: 0 | CX150: 0 | CY150: 0 | CZ150: 0 | DA150: 0 | DB150: 0 | DC150: 0 | DD150: 0 | DE150: 0 | DF150: 0 | DG150: 0 | DH150: 0 | DI150: 0 | DJ150: 0 | DK150: 0 | DL150: 0 | DM150: 0 | DN150: 0 | DO150: 0 | DP150: 0 | DQ150: 0 | DR150: 0 | DS150: 0 | DT150: 0 | DU150: 0 | DV150: 0 | DW150: 0 | DX150: 0 | DY150: 0 | DZ150: 0 | EA150: 0 | EB150: 0
A151: 121 | B151: 0 | C151: 0 | D151: 0 | E151: 0 | F151: 0 | G151: 0 | H151: 0 | I151: 0 | J151: 0 | K151: 0 | L151: 0 | M151: 0 | N151: 0 | O151: 0 | P151: 0 | Q151: 0 | R151: 0 | S151: 0 | T151: 0 | U151: 0 | V151: 0 | W151: 0 | X151: 0 | Y151: 0 | Z151: 0 | AA151: 0 | AB151: 0 | AC151: 0 | AD151: 0 | AE151: 0 | AF151: 0 | AG151: 0 | AH151: 0 | AI151: 0 | AJ151: 0 | AK151: 0 | AL151: 0 | AM151: 0 | AN151: 0 | AO151: 0 | AP151: 0 | AQ151: 0 | AR151: 0 | AS151: 0 | AT151: 0 | AU151: 0 | AV151: 0 | AW151: 0 | AX151: 0 | AY151: 0 | AZ151: 0 | BA151: 0 | BB151: 0 | BC151: 0 | BD151: 0 | BE151: 0 | BF151: 0 | BG151: 0 | BH151: 0 | BI151: 0 | BJ151: 0 | BK151: 0 | BL151: 0 | BM151: 0 | BN151: 0 | BO151: 0 | BP151: 0 | BQ151: 0 | BR151: 0 | BS151: 0 | BT151: 0 | BU151: 0 | BV151: 0 | BW151: 0 | BX151: 0 | BY151: 0 | BZ151: 0 | CA151: 0 | CB151: 0 | CC151: 0 | CD151: 0 | CE151: 0 | CF151: 0 | CG151: 0 | CH151: 0 | CI151: 0 | CJ151: 0 | CK151: 0 | CL151: 0 | CM151: 0 | CN151: 0 | CO151: 0 | CP151: 0 | CQ151: 0 | CR151: 0 | CS151: 0 | CT151: 0 | CU151: 0 | CV151: 0 | CW151: 0 | CX151: 0 | CY151: 0 | CZ151: 0 | DA151: 0 | DB151: 0 | DC151: 0 | DD151: 0 | DE151: 0 | DF151: 0 | DG151: 0 | DH151: 0 | DI151: 0 | DJ151: 0 | DK151: 0 | DL151: 0 | DM151: 0 | DN151: 0 | DO151: 0 | DP151: 0 | DQ151: 0 | DR151: 0 | DS151: 0 | DT151: 0 | DU151: 0 | DV151: 0 | DW151: 0 | DX151: 0 | DY151: 0 | DZ151: 0 | EA151: 0 | EB151: 0
A152: 122 | B152: 0 | C152: 0 | D152: 0 | E152: 0 | F152: 0 | G152: 0 | H152: 0 | I152: 0 | J152: 0 | K152: 0 | L152: 0 | M152: 0 | N152: 0 | O152: 0 | P152: 0 | Q152: 0 | R152: 0 | S152: 0 | T152: 0 | U152: 0 | V152: 0 | W152: 0 | X152: 0 | Y152: 0 | Z152: 0 | AA152: 0 | AB152: 0 | AC152: 0 | AD152: 0 | AE152: 0 | AF152: 0 | AG152: 0 | AH152: 0 | AI152: 0 | AJ152: 0 | AK152: 0 | AL152: 0 | AM152: 0 | AN152: 0 | AO152: 0 | AP152: 0 | AQ152: 0 | AR152: 0 | AS152: 0 | AT152: 0 | AU152: 0 | AV152: 0 | AW152: 0 | AX152: 0 | AY152: 0 | AZ152: 0 | BA152: 0 | BB152: 0 | BC152: 0 | BD152: 0 | BE152: 0 | BF152: 0 | BG152: 0 | BH152: 0 | BI152: 0 | BJ152: 0 | BK152: 0 | BL152: 0 | BM152: 0 | BN152: 0 | BO152: 0 | BP152: 0 | BQ152: 0 | BR152: 0 | BS152: 0 | BT152: 0 | BU152: 0 | BV152: 0 | BW152: 0 | BX152: 0 | BY152: 0 | BZ152: 0 | CA152: 0 | CB152: 0 | CC152: 0 | CD152: 0 | CE152: 0 | CF152: 0 | CG152: 0 | CH152: 0 | CI152: 0 | CJ152: 0 | CK152: 0 | CL152: 0 | CM152: 0 | CN152: 0 | CO152: 0 | CP152: 0 | CQ152: 0 | CR152: 0 | CS152: 0 | CT152: 0 | CU152: 0 | CV152: 0 | CW152: 0 | CX152: 0 | CY152: 0 | CZ152: 0 | DA152: 0 | DB152: 0 | DC152: 0 | DD152: 0 | DE152: 0 | DF152: 0 | DG152: 0 | DH152: 0 | DI152: 0 | DJ152: 0 | DK152: 0 | DL152: 0 | DM152: 0 | DN152: 0 | DO152: 0 | DP152: 0 | DQ152: 0 | DR152: 0 | DS152: 0 | DT152: 0 | DU152: 0 | DV152: 0 | DW152: 0 | DX152: 0 | DY152: 0 | DZ152: 0 | EA152: 0 | EB152: 0
A153: 123 | B153: 0 | C153: 0 | D153: 0 | E153: 0 | F153: 0 | G153: 0 | H153: 0 | I153: 0 | J153: 0 | K153: 0 | L153: 0 | M153: 0 | N153: 0 | O153: 0 | P153: 0 | Q153: 0 | R153: 0 | S153: 0 | T153: 0 | U153: 0 | V153: 0 | W153: 0 | X153: 0 | Y153: 0 | Z153: 0 | AA153: 0 | AB153: 0 | AC153: 0 | AD153: 0 | AE153: 0 | AF153: 0 | AG153: 0 | AH153: 0 | AI153: 0 | AJ153: 0 | AK153: 0 | AL153: 0 | AM153: 0 | AN153: 0 | AO153: 0 | AP153: 0 | AQ153: 0 | AR153: 0 | AS153: 0 | AT153: 0 | AU153: 0 | AV153: 0 | AW153: 0 | AX153: 0 | AY153: 0 | AZ153: 0 | BA153: 0 | BB153: 0 | BC153: 0 | BD153: 0 | BE153: 0 | BF153: 0 | BG153: 0 | BH153: 0 | BI153: 0 | BJ153: 0 | BK153: 0 | BL153: 0 | BM153: 0 | BN153: 0 | BO153: 0 | BP153: 0 | BQ153: 0 | BR153: 0 | BS153: 0 | BT153: 0 | BU153: 0 | BV153: 0 | BW153: 0 | BX153: 0 | BY153: 0 | BZ153: 0 | CA153: 0 | CB153: 0 | CC153: 0 | CD153: 0 | CE153: 0 | CF153: 0 | CG153: 0 | CH153: 0 | CI153: 0 | CJ153: 0 | CK153: 0 | CL153: 0 | CM153: 0 | CN153: 0 | CO153: 0 | CP153: 0 | CQ153: 0 | CR153: 0 | CS153: 0 | CT153: 0 | CU153: 0 | CV153: 0 | CW153: 0 | CX153: 0 | CY153: 0 | CZ153: 0 | DA153: 0 | DB153: 0 | DC153: 0 | DD153: 0 | DE153: 0 | DF153: 0 | DG153: 0 | DH153: 0 | DI153: 0 | DJ153: 0 | DK153: 0 | DL153: 0 | DM153: 0 | DN153: 0 | DO153: 0 | DP153: 0 | DQ153: 0 | DR153: 0 | DS153: 0 | DT153: 0 | DU153: 0 | DV153: 0 | DW153: 0 | DX153: 0 | DY153: 0 | DZ153: 0 | EA153: 0 | EB153: 0
A154: 124 | B154: 0 | C154: 0 | D154: 0 | E154: 0 | F154: 0 | G154: 0 | H154: 0 | I154: 0 | J154: 0 | K154: 0 | L154: 0 | M154: 0 | N154: 0 | O154: 0 | P154: 0 | Q154: 0 | R154: 0 | S154: 0 | T154: 0 | U154: 0 | V154: 0 | W154: 0 | X154: 0 | Y154: 0 | Z154: 0 | AA154: 0 | AB154: 0 | AC154: 0 | AD154: 0 | AE154: 0 | AF154: 0 | AG154: 0 | AH154: 0 | AI154: 0 | AJ154: 0 | AK154: 0 | AL154: 0 | AM154: 0 | AN154: 0 | AO154: 0 | AP154: 0 | AQ154: 0 | AR154: 0 | AS154: 0 | AT154: 0 | AU154: 0 | AV154: 0 | AW154: 0 | AX154: 0 | AY154: 0 | AZ154: 0 | BA154: 0 | BB154: 0 | BC154: 0 | BD154: 0 | BE154: 0 | BF154: 0 | BG154: 0 | BH154: 0 | BI154: 0 | BJ154: 0 | BK154: 0 | BL154: 0 | BM154: 0 | BN154: 0 | BO154: 0 | BP154: 0 | BQ154: 0 | BR154: 0 | BS154: 0 | BT154: 0 | BU154: 0 | BV154: 0 | BW154: 0 | BX154: 0 | BY154: 0 | BZ154: 0 | CA154: 0 | CB154: 0 | CC154: 0 | CD154: 0 | CE154: 0 | CF154: 0 | CG154: 0 | CH154: 0 | CI154: 0 | CJ154: 0 | CK154: 0 | CL154: 0 | CM154: 0 | CN154: 0 | CO154: 0 | CP154: 0 | CQ154: 0 | CR154: 0 | CS154: 0 | CT154: 0 | CU154: 0 | CV154: 0 | CW154: 0 | CX154: 0 | CY154: 0 | CZ154: 0 | DA154: 0 | DB154: 0 | DC154: 0 | DD154: 0 | DE154: 0 | DF154: 0 | DG154: 0 | DH154: 0 | DI154: 0 | DJ154: 0 | DK154: 0 | DL154: 0 | DM154: 0 | DN154: 0 | DO154: 0 | DP154: 0 | DQ154: 0 | DR154: 0 | DS154: 0 | DT154: 0 | DU154: 0 | DV154: 0 | DW154: 0 | DX154: 0 | DY154: 0 | DZ154: 0 | EA154: 0 | EB154: 0
A155: 125 | B155: 0 | C155: 0 | D155: 0 | E155: =INDIRECT($C$33&E$32&ROW()-$C$34) -> 0 | F155: 0 | G155: 0 | H155: 0 | I155: 0 | J155: 0 | K155: 0 | L155: 0 | M155: 0 | N155: 0 | O155: =INDIRECT($C$33&O$32&ROW()-$C$34) -> 0 | P155: 0 | Q155: 0 | R155: 0 | S155: 0 | T155: 0 | U155: 0 | V155: 0 | W155: 0 | X155: 0 | Y155: =INDIRECT($C$33&Y$32&ROW()-$C$34) -> 0 | Z155: 0 | AA155: 0 | AB155: 0 | AC155: 0 | AD155: 0 | AE155: 0 | AF155: 0 | AG155: 0 | AH155: 0 | AI155: =INDIRECT($C$33&AI$32&ROW()-$C$34) -> 0 | AJ155: 0 | AK155: 0 | AL155: 0 | AM155: 0 | AN155: 0 | AO155: 0 | AP155: 0 | AQ155: 0 | AR155: 0 | AS155: =INDIRECT($C$33&AS$32&ROW()-$C$34) -> 0 | AT155: 0 | AU155: 0 | AV155: 0 | AW155: 0 | AX155: 0 | AY155: 0 | AZ155: 0 | BA155: 0 | BB155: 0 | BC155: =INDIRECT($C$33&BC$32&ROW()-$C$34) -> 0 | BD155: 0 | BE155: 0 | BF155: 0 | BG155: 0 | BH155: 0 | BI155: 0 | BJ155: 0 | BK155: 0 | BL155: 0 | BM155: =INDIRECT($C$33&BM$32&ROW()-$C$34) -> 0 | BN155: 0 | BO155: 0 | BP155: 0 | BQ155: 0 | BR155: 0 | BS155: 0 | BT155: 0 | BU155: 0 | BV155: 0 | BW155: =INDIRECT($C$33&BW$32&ROW()-$C$34) -> 0 | BX155: 0 | BY155: 0 | BZ155: 0 | CA155: 0 | CB155: 0 | CC155: 0 | CD155: 0 | CE155: 0 | CF155: 0 | CG155: =INDIRECT($C$33&CG$32&ROW()-$C$34) -> 0 | CH155: 0 | CI155: 0 | CJ155: 0 | CK155: 0 | CL155: 0 | CM155: 0 | CN155: 0 | CO155: 0 | CP155: 0 | CQ155: =INDIRECT($C$33&CQ$32&ROW()-$C$34) -> 0 | CR155: 0 | CS155: 0 | CT155: 0 | CU155: 0 | CV155: 0 | CW155: 0 | CX155: 0 | CY155: 0 | CZ155: 0 | DA155: 0 | DB155: 0 | DC155: 0 | DD155: 0 | DE155: 0 | DF155: 0 | DG155: 0 | DH155: 0 | DI155: 0 | DJ155: 0 | DK155: 0 | DL155: 0 | DM155: 0 | DN155: 0 | DO155: 0 | DP155: 0 | DQ155: 0 | DR155: 0 | DS155: 0 | DT155: 0 | DU155: 0 | DV155: 0 | DW155: 0 | DX155: 0 | DY155: 0 | DZ155: 0 | EA155: 0 | EB155: 0
A156: 126 | B156: 0 | C156: =INDIRECT($C$33&C$32&ROW()-$C$34) -> 0 | D156: 0 | E156: 0 | F156: 0 | G156: 0 | H156: 0 | I156: 0 | J156: 0 | K156: 0 | L156: 0 | M156: 0 | N156: 0 | O156: 0 | P156: 0 | Q156: 0 | R156: 0 | S156: 0 | T156: 0 | U156: 0 | V156: 0 | W156: 0 | X156: 0 | Y156: 0 | Z156: 0 | AA156: 0 | AB156: 0 | AC156: 0 | AD156: 0 | AE156: 0 | AF156: 0 | AG156: 0 | AH156: 0 | AI156: 0 | AJ156: 0 | AK156: 0 | AL156: 0 | AM156: 0 | AN156: 0 | AO156: 0 | AP156: 0 | AQ156: 0 | AR156: 0 | AS156: 0 | AT156: 0 | AU156: 0 | AV156: 0 | AW156: 0 | AX156: 0 | AY156: 0 | AZ156: 0 | BA156: 0 | BB156: 0 | BC156: 0 | BD156: 0 | BE156: 0 | BF156: 0 | BG156: 0 | BH156: 0 | BI156: 0 | BJ156: 0 | BK156: 0 | BL156: 0 | BM156: 0 | BN156: 0 | BO156: 0 | BP156: 0 | BQ156: 0 | BR156: 0 | BS156: 0 | BT156: 0 | BU156: 0 | BV156: 0 | BW156: 0 | BX156: 0 | BY156: 0 | BZ156: 0 | CA156: 0 | CB156: 0 | CC156: 0 | CD156: 0 | CE156: 0 | CF156: 0 | CG156: 0 | CH156: 0 | CI156: 0 | CJ156: 0 | CK156: 0 | CL156: 0 | CM156: 0 | CN156: 0 | CO156: 0 | CP156: 0 | CQ156: 0 | CR156: 0 | CS156: 0 | CT156: 0 | CU156: 0 | CV156: 0 | CW156: 0 | CX156: 0 | CY156: 0 | CZ156: 0 | DA156: 0 | DB156: 0 | DC156: 0 | DD156: 0 | DE156: 0 | DF156: 0 | DG156: 0 | DH156: 0 | DI156: 0 | DJ156: 0 | DK156: 0 | DL156: 0 | DM156: 0 | DN156: 0 | DO156: 0 | DP156: 0 | DQ156: 0 | DR156: 0 | DS156: 0 | DT156: 0 | DU156: 0 | DV156: 0 | DW156: 0 | DX156: 0 | DY156: 0 | DZ156: 0 | EA156: 0 | EB156: 0
A157: 127 | B157: 0 | C157: 0 | D157: 0 | E157: 0 | F157: 0 | G157: 0 | H157: 0 | I157: 0 | J157: 0 | K157: 0 | L157: 0 | M157: 0 | N157: 0 | O157: 0 | P157: 0 | Q157: 0 | R157: 0 | S157: 0 | T157: 0 | U157: 0 | V157: 0 | W157: 0 | X157: 0 | Y157: 0 | Z157: 0 | AA157: 0 | AB157: 0 | AC157: 0 | AD157: 0 | AE157: 0 | AF157: 0 | AG157: 0 | AH157: 0 | AI157: 0 | AJ157: 0 | AK157: 0 | AL157: 0 | AM157: 0 | AN157: 0 | AO157: 0 | AP157: 0 | AQ157: 0 | AR157: 0 | AS157: 0 | AT157: 0 | AU157: 0 | AV157: 0 | AW157: 0 | AX157: 0 | AY157: 0 | AZ157: 0 | BA157: 0 | BB157: 0 | BC157: 0 | BD157: 0 | BE157: 0 | BF157: 0 | BG157: 0 | BH157: 0 | BI157: 0 | BJ157: 0 | BK157: 0 | BL157: 0 | BM157: 0 | BN157: 0 | BO157: 0 | BP157: 0 | BQ157: 0 | BR157: 0 | BS157: 0 | BT157: 0 | BU157: 0 | BV157: 0 | BW157: 0 | BX157: 0 | BY157: 0 | BZ157: 0 | CA157: 0 | CB157: 0 | CC157: 0 | CD157: 0 | CE157: 0 | CF157: 0 | CG157: 0 | CH157: 0 | CI157: 0 | CJ157: 0 | CK157: 0 | CL157: 0 | CM157: 0 | CN157: 0 | CO157: 0 | CP157: 0 | CQ157: 0 | CR157: 0 | CS157: 0 | CT157: 0 | CU157: 0 | CV157: 0 | CW157: 0 | CX157: 0 | CY157: 0 | CZ157: 0 | DA157: 0 | DB157: 0 | DC157: 0 | DD157: 0 | DE157: 0 | DF157: 0 | DG157: 0 | DH157: 0 | DI157: 0 | DJ157: 0 | DK157: 0 | DL157: 0 | DM157: 0 | DN157: 0 | DO157: 0 | DP157: 0 | DQ157: 0 | DR157: 0 | DS157: 0 | DT157: 0 | DU157: 0 | DV157: 0 | DW157: 0 | DX157: 0 | DY157: 0 | DZ157: 0 | EA157: 0 | EB157: 0
A158: 128 | B158: 0 | C158: 0 | D158: 0 | E158: 0 | F158: 0 | G158: 0 | H158: 0 | I158: 0 | J158: 0 | K158: 0 | L158: 0 | M158: 0 | N158: 0 | O158: 0 | P158: 0 | Q158: 0 | R158: 0 | S158: 0 | T158: 0 | U158: 0 | V158: 0 | W158: 0 | X158: 0 | Y158: 0 | Z158: 0 | AA158: 0 | AB158: 0 | AC158: 0 | AD158: 0 | AE158: 0 | AF158: 0 | AG158: 0 | AH158: 0 | AI158: 0 | AJ158: 0 | AK158: 0 | AL158: 0 | AM158: 0 | AN158: 0 | AO158: 0 | AP158: 0 | AQ158: 0 | AR158: 0 | AS158: 0 | AT158: 0 | AU158: 0 | AV158: 0 | AW158: 0 | AX158: 0 | AY158: 0 | AZ158: 0 | BA158: 0 | BB158: 0 | BC158: 0 | BD158: 0 | BE158: 0 | BF158: 0 | BG158: 0 | BH158: 0 | BI158: 0 | BJ158: 0 | BK158: 0 | BL158: 0 | BM158: 0 | BN158: 0 | BO158: 0 | BP158: 0 | BQ158: 0 | BR158: 0 | BS158: 0 | BT158: 0 | BU158: 0 | BV158: 0 | BW158: 0 | BX158: 0 | BY158: 0 | BZ158: 0 | CA158: 0 | CB158: 0 | CC158: 0 | CD158: 0 | CE158: 0 | CF158: 0 | CG158: 0 | CH158: 0 | CI158: 0 | CJ158: 0 | CK158: 0 | CL158: 0 | CM158: 0 | CN158: 0 | CO158: 0 | CP158: 0 | CQ158: 0 | CR158: 0 | CS158: 0 | CT158: 0 | CU158: 0 | CV158: 0 | CW158: 0 | CX158: 0 | CY158: 0 | CZ158: 0 | DA158: 0 | DB158: 0 | DC158: 0 | DD158: 0 | DE158: 0 | DF158: 0 | DG158: 0 | DH158: 0 | DI158: 0 | DJ158: 0 | DK158: 0 | DL158: 0 | DM158: 0 | DN158: 0 | DO158: 0 | DP158: 0 | DQ158: 0 | DR158: 0 | DS158: 0 | DT158: 0 | DU158: 0 | DV158: 0 | DW158: 0 | DX158: 0 | DY158: 0 | DZ158: 0 | EA158: 0 | EB158: 0
A159: 129 | B159: 0 | C159: 0 | D159: 0 | E159: 0 | F159: 0 | G159: 0 | H159: 0 | I159: 0 | J159: 0 | K159: 0 | L159: 0 | M159: 0 | N159: 0 | O159: 0 | P159: 0 | Q159: 0 | R159: 0 | S159: 0 | T159: 0 | U159: 0 | V159: 0 | W159: 0 | X159: 0 | Y159: 0 | Z159: 0 | AA159: 0 | AB159: 0 | AC159: 0 | AD159: 0 | AE159: 0 | AF159: 0 | AG159: 0 | AH159: 0 | AI159: 0 | AJ159: 0 | AK159: 0 | AL159: 0 | AM159: 0 | AN159: 0 | AO159: 0 | AP159: 0 | AQ159: 0 | AR159: 0 | AS159: 0 | AT159: 0 | AU159: 0 | AV159: 0 | AW159: 0 | AX159: 0 | AY159: 0 | AZ159: 0 | BA159: 0 | BB159: 0 | BC159: 0 | BD159: 0 | BE159: 0 | BF159: 0 | BG159: 0 | BH159: 0 | BI159: 0 | BJ159: 0 | BK159: 0 | BL159: 0 | BM159: 0 | BN159: 0 | BO159: 0 | BP159: 0 | BQ159: 0 | BR159: 0 | BS159: 0 | BT159: 0 | BU159: 0 | BV159: 0 | BW159: 0 | BX159: 0 | BY159: 0 | BZ159: 0 | CA159: 0 | CB159: 0 | CC159: 0 | CD159: 0 | CE159: 0 | CF159: 0 | CG159: 0 | CH159: 0 | CI159: 0 | CJ159: 0 | CK159: 0 | CL159: 0 | CM159: 0 | CN159: 0 | CO159: 0 | CP159: 0 | CQ159: 0 | CR159: 0 | CS159: 0 | CT159: 0 | CU159: 0 | CV159: 0 | CW159: 0 | CX159: 0 | CY159: 0 | CZ159: 0 | DA159: 0 | DB159: 0 | DC159: 0 | DD159: 0 | DE159: 0 | DF159: 0 | DG159: 0 | DH159: 0 | DI159: 0 | DJ159: 0 | DK159: 0 | DL159: 0 | DM159: 0 | DN159: 0 | DO159: 0 | DP159: 0 | DQ159: 0 | DR159: 0 | DS159: 0 | DT159: 0 | DU159: 0 | DV159: 0 | DW159: 0 | DX159: 0 | DY159: 0 | DZ159: 0 | EA159: 0 | EB159: 0
A160: 130 | B160: 0 | C160: 0 | D160: 0 | E160: 0 | F160: 0 | G160: 0 | H160: 0 | I160: 0 | J160: 0 | K160: 0 | L160: 0 | M160: 0 | N160: 0 | O160: 0 | P160: 0 | Q160: 0 | R160: 0 | S160: 0 | T160: 0 | U160: 0 | V160: 0 | W160: 0 | X160: 0 | Y160: 0 | Z160: 0 | AA160: 0 | AB160: 0 | AC160: 0 | AD160: 0 | AE160: 0 | AF160: 0 | AG160: 0 | AH160: 0 | AI160: 0 | AJ160: 0 | AK160: 0 | AL160: 0 | AM160: 0 | AN160: 0 | AO160: 0 | AP160: 0 | AQ160: 0 | AR160: 0 | AS160: 0 | AT160: 0 | AU160: 0 | AV160: 0 | AW160: 0 | AX160: 0 | AY160: 0 | AZ160: 0 | BA160: 0 | BB160: 0 | BC160: 0 | BD160: 0 | BE160: 0 | BF160: 0 | BG160: 0 | BH160: 0 | BI160: 0 | BJ160: 0 | BK160: 0 | BL160: 0 | BM160: 0 | BN160: 0 | BO160: 0 | BP160: 0 | BQ160: 0 | BR160: 0 | BS160: 0 | BT160: 0 | BU160: 0 | BV160: 0 | BW160: 0 | BX160: 0 | BY160: 0 | BZ160: 0 | CA160: 0 | CB160: 0 | CC160: 0 | CD160: 0 | CE160: 0 | CF160: 0 | CG160: 0 | CH160: 0 | CI160: 0 | CJ160: 0 | CK160: 0 | CL160: 0 | CM160: 0 | CN160: 0 | CO160: 0 | CP160: 0 | CQ160: 0 | CR160: 0 | CS160: 0 | CT160: 0 | CU160: 0 | CV160: 0 | CW160: 0 | CX160: 0 | CY160: 0 | CZ160: 0 | DA160: 0 | DB160: 0 | DC160: 0 | DD160: 0 | DE160: 0 | DF160: 0 | DG160: 0 | DH160: 0 | DI160: 0 | DJ160: 0 | DK160: 0 | DL160: 0 | DM160: 0 | DN160: 0 | DO160: 0 | DP160: 0 | DQ160: 0 | DR160: 0 | DS160: 0 | DT160: 0 | DU160: 0 | DV160: 0 | DW160: 0 | DX160: 0 | DY160: 0 | DZ160: 0 | EA160: 0 | EB160: 0
A161: =A160+1 -> 131 | B161: 0 | C161: 0 | D161: 0 | E161: 0 | F161: 0 | G161: 0 | H161: 0 | I161: 0 | J161: 0 | K161: 0 | L161: 0 | M161: 0 | N161: 0 | O161: 0 | P161: 0 | Q161: 0 | R161: 0 | S161: 0 | T161: 0 | U161: 0 | V161: 0 | W161: 0 | X161: 0 | Y161: 0 | Z161: 0 | AA161: 0 | AB161: 0 | AC161: 0 | AD161: 0 | AE161: 0 | AF161: 0 | AG161: 0 | AH161: 0 | AI161: 0 | AJ161: 0 | AK161: 0 | AL161: 0 | AM161: 0 | AN161: 0 | AO161: 0 | AP161: 0 | AQ161: 0 | AR161: 0 | AS161: 0 | AT161: 0 | AU161: 0 | AV161: 0 | AW161: 0 | AX161: 0 | AY161: 0 | AZ161: 0 | BA161: 0 | BB161: 0 | BC161: 0 | BD161: 0 | BE161: 0 | BF161: 0 | BG161: 0 | BH161: 0 | BI161: 0 | BJ161: 0 | BK161: 0 | BL161: 0 | BM161: 0 | BN161: 0 | BO161: 0 | BP161: 0 | BQ161: 0 | BR161: 0 | BS161: 0 | BT161: 0 | BU161: 0 | BV161: 0 | BW161: 0 | BX161: 0 | BY161: 0 | BZ161: 0 | CA161: 0 | CB161: 0 | CC161: 0 | CD161: 0 | CE161: 0 | CF161: 0 | CG161: 0 | CH161: 0 | CI161: 0 | CJ161: 0 | CK161: 0 | CL161: 0 | CM161: 0 | CN161: 0 | CO161: 0 | CP161: 0 | CQ161: 0 | CR161: 0 | CS161: 0 | CT161: 0 | CU161: 0 | CV161: 0 | CW161: 0 | CX161: 0 | CY161: 0 | CZ161: 0 | DA161: 0 | DB161: 0 | DC161: 0 | DD161: 0 | DE161: 0 | DF161: 0 | DG161: 0 | DH161: 0 | DI161: 0 | DJ161: 0 | DK161: 0 | DL161: 0 | DM161: 0 | DN161: 0 | DO161: 0 | DP161: 0 | DQ161: 0 | DR161: 0 | DS161: 0 | DT161: 0 | DU161: 0 | DV161: 0 | DW161: 0 | DX161: 0 | DY161: 0 | DZ161: 0 | EA161: 0 | EB161: 0
A162: 132 | B162: 0 | C162: 0 | D162: 0 | E162: 0 | F162: 0 | G162: 0 | H162: 0 | I162: 0 | J162: 0 | K162: 0 | L162: 0 | M162: 0 | N162: 0 | O162: 0 | P162: 0 | Q162: 0 | R162: 0 | S162: 0 | T162: 0 | U162: 0 | V162: 0 | W162: 0 | X162: 0 | Y162: 0 | Z162: 0 | AA162: 0 | AB162: 0 | AC162: 0 | AD162: 0 | AE162: 0 | AF162: 0 | AG162: 0 | AH162: 0 | AI162: 0 | AJ162: 0 | AK162: 0 | AL162: 0 | AM162: 0 | AN162: 0 | AO162: 0 | AP162: 0 | AQ162: 0 | AR162: 0 | AS162: 0 | AT162: 0 | AU162: 0 | AV162: 0 | AW162: 0 | AX162: 0 | AY162: 0 | AZ162: 0 | BA162: 0 | BB162: 0 | BC162: 0 | BD162: 0 | BE162: 0 | BF162: 0 | BG162: 0 | BH162: 0 | BI162: 0 | BJ162: 0 | BK162: 0 | BL162: 0 | BM162: 0 | BN162: 0 | BO162: 0 | BP162: 0 | BQ162: 0 | BR162: 0 | BS162: 0 | BT162: 0 | BU162: 0 | BV162: 0 | BW162: 0 | BX162: 0 | BY162: 0 | BZ162: 0 | CA162: 0 | CB162: 0 | CC162: 0 | CD162: 0 | CE162: 0 | CF162: 0 | CG162: 0 | CH162: 0 | CI162: 0 | CJ162: 0 | CK162: 0 | CL162: 0 | CM162: 0 | CN162: 0 | CO162: 0 | CP162: 0 | CQ162: 0 | CR162: 0 | CS162: 0 | CT162: 0 | CU162: 0 | CV162: 0 | CW162: 0 | CX162: 0 | CY162: 0 | CZ162: 0 | DA162: 0 | DB162: 0 | DC162: 0 | DD162: 0 | DE162: 0 | DF162: 0 | DG162: 0 | DH162: 0 | DI162: 0 | DJ162: 0 | DK162: 0 | DL162: 0 | DM162: 0 | DN162: 0 | DO162: 0 | DP162: 0 | DQ162: 0 | DR162: 0 | DS162: 0 | DT162: 0 | DU162: 0 | DV162: 0 | DW162: 0 | DX162: 0 | DY162: 0 | DZ162: 0 | EA162: 0 | EB162: 0
A163: 133 | B163: 0 | C163: 0 | D163: 0 | E163: 0 | F163: 0 | G163: 0 | H163: 0 | I163: 0 | J163: 0 | K163: 0 | L163: 0 | M163: 0 | N163: 0 | O163: 0 | P163: 0 | Q163: 0 | R163: 0 | S163: 0 | T163: 0 | U163: 0 | V163: 0 | W163: 0 | X163: 0 | Y163: 0 | Z163: 0 | AA163: 0 | AB163: 0 | AC163: 0 | AD163: 0 | AE163: 0 | AF163: 0 | AG163: 0 | AH163: 0 | AI163: 0 | AJ163: 0 | AK163: 0 | AL163: 0 | AM163: 0 | AN163: 0 | AO163: 0 | AP163: 0 | AQ163: 0 | AR163: 0 | AS163: 0 | AT163: 0 | AU163: 0 | AV163: 0 | AW163: 0 | AX163: 0 | AY163: 0 | AZ163: 0 | BA163: 0 | BB163: 0 | BC163: 0 | BD163: 0 | BE163: 0 | BF163: 0 | BG163: 0 | BH163: 0 | BI163: 0 | BJ163: 0 | BK163: 0 | BL163: 0 | BM163: 0 | BN163: 0 | BO163: 0 | BP163: 0 | BQ163: 0 | BR163: 0 | BS163: 0 | BT163: 0 | BU163: 0 | BV163: 0 | BW163: 0 | BX163: 0 | BY163: 0 | BZ163: 0 | CA163: 0 | CB163: 0 | CC163: 0 | CD163: 0 | CE163: 0 | CF163: 0 | CG163: 0 | CH163: 0 | CI163: 0 | CJ163: 0 | CK163: 0 | CL163: 0 | CM163: 0 | CN163: 0 | CO163: 0 | CP163: 0 | CQ163: 0 | CR163: 0 | CS163: 0 | CT163: 0 | CU163: 0 | CV163: 0 | CW163: 0 | CX163: 0 | CY163: 0 | CZ163: 0 | DA163: 0 | DB163: 0 | DC163: =INDIRECT($C$33&DC$32&ROW()-$C$34) -> 0 | DD163: 0 | DE163: 0 | DF163: 0 | DG163: 0 | DH163: 0 | DI163: 0 | DJ163: 0 | DK163: 0 | DL163: 0 | DM163: 0 | DN163: 0 | DO163: 0 | DP163: 0 | DQ163: 0 | DR163: 0 | DS163: 0 | DT163: =INDIRECT($C$33&DT$32&ROW()-$C$34) -> 0 | DU163: 0 | DV163: 0 | DW163: 0 | DX163: 0 | DY163: 0 | DZ163: 0 | EA163: 0 | EB163: 0
A164: 134 | B164: =IF(LEN(C164)>1,A164,0) -> 0 | C164: 0 | D164: 0 | E164: 0 | F164: 0 | G164: 0 | H164: 0 | I164: 0 | J164: 0 | K164: 0 | L164: 0 | M164: 0 | N164: 0 | O164: 0 | P164: 0 | Q164: 0 | R164: 0 | S164: 0 | T164: 0 | U164: 0 | V164: 0 | W164: 0 | X164: 0 | Y164: 0 | Z164: 0 | AA164: 0 | AB164: 0 | AC164: 0 | AD164: 0 | AE164: 0 | AF164: 0 | AG164: 0 | AH164: 0 | AI164: 0 | AJ164: 0 | AK164: 0 | AL164: 0 | AM164: 0 | AN164: 0 | AO164: 0 | AP164: 0 | AQ164: 0 | AR164: 0 | AS164: 0 | AT164: 0 | AU164: 0 | AV164: 0 | AW164: 0 | AX164: 0 | AY164: 0 | AZ164: 0 | BA164: 0 | BB164: 0 | BC164: 0 | BD164: 0 | BE164: 0 | BF164: 0 | BG164: 0 | BH164: 0 | BI164: 0 | BJ164: 0 | BK164: 0 | BL164: 0 | BM164: 0 | BN164: 0 | BO164: 0 | BP164: 0 | BQ164: 0 | BR164: 0 | BS164: 0 | BT164: 0 | BU164: 0 | BV164: 0 | BW164: 0 | BX164: 0 | BY164: 0 | BZ164: 0 | CA164: 0 | CB164: 0 | CC164: 0 | CD164: 0 | CE164: 0 | CF164: 0 | CG164: 0 | CH164: 0 | CI164: 0 | CJ164: 0 | CK164: 0 | CL164: 0 | CM164: 0 | CN164: 0 | CO164: 0 | CP164: 0 | CQ164: 0 | CR164: 0 | CS164: 0 | CT164: 0 | CU164: 0 | CV164: 0 | CW164: 0 | CX164: 0 | CY164: 0 | CZ164: 0 | DA164: 0 | DB164: 0 | DC164: 0 | DD164: 0 | DE164: 0 | DF164: 0 | DG164: 0 | DH164: 0 | DI164: 0 | DJ164: 0 | DK164: 0 | DL164: 0 | DM164: 0 | DN164: 0 | DO164: 0 | DP164: 0 | DQ164: 0 | DR164: 0 | DS164: 0 | DT164: 0 | DU164: 0 | DV164: 0 | DW164: 0 | DX164: 0 | DY164: 0 | DZ164: 0 | EA164: 0 | EB164: 0
A165: 135 | B165: 0 | C165: 0 | D165: 0 | E165: =INDIRECT($C$33&E$32&ROW()-$C$34) -> 0 | F165: 0 | G165: 0 | H165: 0 | I165: 0 | J165: 0 | K165: 0 | L165: 0 | M165: 0 | N165: 0 | O165: =INDIRECT($C$33&O$32&ROW()-$C$34) -> 0 | P165: 0 | Q165: 0 | R165: 0 | S165: 0 | T165: 0 | U165: 0 | V165: 0 | W165: 0 | X165: 0 | Y165: =INDIRECT($C$33&Y$32&ROW()-$C$34) -> 0 | Z165: 0 | AA165: 0 | AB165: 0 | AC165: 0 | AD165: 0 | AE165: 0 | AF165: 0 | AG165: 0 | AH165: 0 | AI165: =INDIRECT($C$33&AI$32&ROW()-$C$34) -> 0 | AJ165: 0 | AK165: 0 | AL165: 0 | AM165: 0 | AN165: 0 | AO165: 0 | AP165: 0 | AQ165: 0 | AR165: 0 | AS165: =INDIRECT($C$33&AS$32&ROW()-$C$34) -> 0 | AT165: 0 | AU165: 0 | AV165: 0 | AW165: 0 | AX165: 0 | AY165: 0 | AZ165: 0 | BA165: 0 | BB165: 0 | BC165: =INDIRECT($C$33&BC$32&ROW()-$C$34) -> 0 | BD165: 0 | BE165: 0 | BF165: 0 | BG165: 0 | BH165: 0 | BI165: 0 | BJ165: 0 | BK165: 0 | BL165: 0 | BM165: =INDIRECT($C$33&BM$32&ROW()-$C$34) -> 0 | BN165: 0 | BO165: 0 | BP165: 0 | BQ165: 0 | BR165: 0 | BS165: 0 | BT165: 0 | BU165: 0 | BV165: 0 | BW165: =INDIRECT($C$33&BW$32&ROW()-$C$34) -> 0 | BX165: 0 | BY165: 0 | BZ165: 0 | CA165: 0 | CB165: 0 | CC165: 0 | CD165: 0 | CE165: 0 | CF165: 0 | CG165: =INDIRECT($C$33&CG$32&ROW()-$C$34) -> 0 | CH165: 0 | CI165: 0 | CJ165: 0 | CK165: 0 | CL165: 0 | CM165: 0 | CN165: 0 | CO165: 0 | CP165: 0 | CQ165: =INDIRECT($C$33&CQ$32&ROW()-$C$34) -> 0 | CR165: 0 | CS165: 0 | CT165: 0 | CU165: 0 | CV165: 0 | CW165: 0 | CX165: 0 | CY165: 0 | CZ165: 0 | DA165: 0 | DB165: 0 | DC165: 0 | DD165: 0 | DE165: 0 | DF165: 0 | DG165: 0 | DH165: 0 | DI165: 0 | DJ165: 0 | DK165: 0 | DL165: 0 | DM165: 0 | DN165: 0 | DO165: 0 | DP165: 0 | DQ165: 0 | DR165: 0 | DS165: 0 | DT165: 0 | DU165: 0 | DV165: 0 | DW165: 0 | DX165: 0 | DY165: 0 | DZ165: 0 | EA165: 0 | EB165: 0
A166: 136 | B166: 0 | C166: 0 | D166: 0 | E166: 0 | F166: 0 | G166: 0 | H166: 0 | I166: 0 | J166: 0 | K166: 0 | L166: 0 | M166: 0 | N166: 0 | O166: 0 | P166: 0 | Q166: 0 | R166: 0 | S166: 0 | T166: 0 | U166: 0 | V166: 0 | W166: 0 | X166: 0 | Y166: 0 | Z166: 0 | AA166: 0 | AB166: 0 | AC166: 0 | AD166: 0 | AE166: 0 | AF166: 0 | AG166: 0 | AH166: 0 | AI166: 0 | AJ166: 0 | AK166: 0 | AL166: 0 | AM166: 0 | AN166: 0 | AO166: 0 | AP166: 0 | AQ166: 0 | AR166: 0 | AS166: 0 | AT166: 0 | AU166: 0 | AV166: 0 | AW166: 0 | AX166: 0 | AY166: 0 | AZ166: 0 | BA166: 0 | BB166: 0 | BC166: 0 | BD166: 0 | BE166: 0 | BF166: 0 | BG166: 0 | BH166: 0 | BI166: 0 | BJ166: 0 | BK166: 0 | BL166: 0 | BM166: 0 | BN166: 0 | BO166: 0 | BP166: 0 | BQ166: 0 | BR166: 0 | BS166: 0 | BT166: 0 | BU166: 0 | BV166: 0 | BW166: 0 | BX166: 0 | BY166: 0 | BZ166: 0 | CA166: 0 | CB166: 0 | CC166: 0 | CD166: 0 | CE166: 0 | CF166: 0 | CG166: 0 | CH166: 0 | CI166: 0 | CJ166: 0 | CK166: 0 | CL166: 0 | CM166: 0 | CN166: 0 | CO166: 0 | CP166: 0 | CQ166: 0 | CR166: 0 | CS166: 0 | CT166: 0 | CU166: 0 | CV166: 0 | CW166: 0 | CX166: 0 | CY166: 0 | CZ166: 0 | DA166: 0 | DB166: 0 | DC166: 0 | DD166: 0 | DE166: 0 | DF166: 0 | DG166: 0 | DH166: 0 | DI166: 0 | DJ166: 0 | DK166: 0 | DL166: 0 | DM166: 0 | DN166: 0 | DO166: 0 | DP166: 0 | DQ166: 0 | DR166: 0 | DS166: 0 | DT166: 0 | DU166: 0 | DV166: 0 | DW166: 0 | DX166: 0 | DY166: 0 | DZ166: 0 | EA166: 0 | EB166: 0
A167: 137 | B167: 0 | C167: 0 | D167: 0 | E167: 0 | F167: 0 | G167: 0 | H167: 0 | I167: 0 | J167: 0 | K167: 0 | L167: 0 | M167: 0 | N167: 0 | O167: 0 | P167: 0 | Q167: 0 | R167: 0 | S167: 0 | T167: 0 | U167: 0 | V167: 0 | W167: 0 | X167: 0 | Y167: 0 | Z167: 0 | AA167: 0 | AB167: 0 | AC167: 0 | AD167: 0 | AE167: 0 | AF167: 0 | AG167: 0 | AH167: 0 | AI167: 0 | AJ167: 0 | AK167: 0 | AL167: 0 | AM167: 0 | AN167: 0 | AO167: 0 | AP167: 0 | AQ167: 0 | AR167: 0 | AS167: 0 | AT167: 0 | AU167: 0 | AV167: 0 | AW167: 0 | AX167: 0 | AY167: 0 | AZ167: 0 | BA167: 0 | BB167: 0 | BC167: 0 | BD167: 0 | BE167: 0 | BF167: 0 | BG167: 0 | BH167: 0 | BI167: 0 | BJ167: 0 | BK167: 0 | BL167: 0 | BM167: 0 | BN167: 0 | BO167: 0 | BP167: 0 | BQ167: 0 | BR167: 0 | BS167: 0 | BT167: 0 | BU167: 0 | BV167: 0 | BW167: 0 | BX167: 0 | BY167: 0 | BZ167: 0 | CA167: 0 | CB167: 0 | CC167: 0 | CD167: 0 | CE167: 0 | CF167: 0 | CG167: 0 | CH167: 0 | CI167: 0 | CJ167: 0 | CK167: 0 | CL167: 0 | CM167: 0 | CN167: 0 | CO167: 0 | CP167: 0 | CQ167: 0 | CR167: 0 | CS167: 0 | CT167: 0 | CU167: 0 | CV167: 0 | CW167: 0 | CX167: 0 | CY167: 0 | CZ167: 0 | DA167: 0 | DB167: 0 | DC167: 0 | DD167: 0 | DE167: 0 | DF167: 0 | DG167: 0 | DH167: 0 | DI167: 0 | DJ167: 0 | DK167: 0 | DL167: 0 | DM167: 0 | DN167: 0 | DO167: 0 | DP167: 0 | DQ167: 0 | DR167: 0 | DS167: 0 | DT167: 0 | DU167: 0 | DV167: 0 | DW167: 0 | DX167: 0 | DY167: 0 | DZ167: 0 | EA167: 0 | EB167: 0
A168: 138 | B168: 0 | C168: 0 | D168: 0 | E168: 0 | F168: 0 | G168: 0 | H168: 0 | I168: 0 | J168: 0 | K168: 0 | L168: 0 | M168: 0 | N168: 0 | O168: 0 | P168: 0 | Q168: 0 | R168: 0 | S168: 0 | T168: 0 | U168: 0 | V168: 0 | W168: 0 | X168: 0 | Y168: 0 | Z168: 0 | AA168: 0 | AB168: 0 | AC168: 0 | AD168: 0 | AE168: 0 | AF168: 0 | AG168: 0 | AH168: 0 | AI168: 0 | AJ168: 0 | AK168: 0 | AL168: 0 | AM168: 0 | AN168: 0 | AO168: 0 | AP168: 0 | AQ168: 0 | AR168: 0 | AS168: 0 | AT168: 0 | AU168: 0 | AV168: 0 | AW168: 0 | AX168: 0 | AY168: 0 | AZ168: 0 | BA168: 0 | BB168: 0 | BC168: 0 | BD168: 0 | BE168: 0 | BF168: 0 | BG168: 0 | BH168: 0 | BI168: 0 | BJ168: 0 | BK168: 0 | BL168: 0 | BM168: 0 | BN168: 0 | BO168: 0 | BP168: 0 | BQ168: 0 | BR168: 0 | BS168: 0 | BT168: 0 | BU168: 0 | BV168: 0 | BW168: 0 | BX168: 0 | BY168: 0 | BZ168: 0 | CA168: 0 | CB168: 0 | CC168: 0 | CD168: 0 | CE168: 0 | CF168: 0 | CG168: 0 | CH168: 0 | CI168: 0 | CJ168: 0 | CK168: 0 | CL168: 0 | CM168: 0 | CN168: 0 | CO168: 0 | CP168: 0 | CQ168: 0 | CR168: 0 | CS168: 0 | CT168: 0 | CU168: 0 | CV168: 0 | CW168: 0 | CX168: 0 | CY168: 0 | CZ168: 0 | DA168: 0 | DB168: 0 | DC168: 0 | DD168: 0 | DE168: 0 | DF168: 0 | DG168: 0 | DH168: 0 | DI168: 0 | DJ168: 0 | DK168: 0 | DL168: 0 | DM168: 0 | DN168: 0 | DO168: 0 | DP168: 0 | DQ168: 0 | DR168: 0 | DS168: 0 | DT168: 0 | DU168: 0 | DV168: 0 | DW168: 0 | DX168: 0 | DY168: 0 | DZ168: 0 | EA168: 0 | EB168: 0
A169: 139 | B169: 0 | C169: 0 | D169: 0 | E169: 0 | F169: 0 | G169: 0 | H169: 0 | I169: 0 | J169: 0 | K169: 0 | L169: 0 | M169: 0 | N169: 0 | O169: 0 | P169: 0 | Q169: 0 | R169: 0 | S169: 0 | T169: 0 | U169: 0 | V169: 0 | W169: 0 | X169: 0 | Y169: 0 | Z169: 0 | AA169: 0 | AB169: 0 | AC169: 0 | AD169: 0 | AE169: 0 | AF169: 0 | AG169: 0 | AH169: 0 | AI169: 0 | AJ169: 0 | AK169: 0 | AL169: 0 | AM169: 0 | AN169: 0 | AO169: 0 | AP169: 0 | AQ169: 0 | AR169: 0 | AS169: 0 | AT169: 0 | AU169: 0 | AV169: 0 | AW169: 0 | AX169: 0 | AY169: 0 | AZ169: 0 | BA169: 0 | BB169: 0 | BC169: 0 | BD169: 0 | BE169: 0 | BF169: 0 | BG169: 0 | BH169: 0 | BI169: 0 | BJ169: 0 | BK169: 0 | BL169: 0 | BM169: 0 | BN169: 0 | BO169: 0 | BP169: 0 | BQ169: 0 | BR169: 0 | BS169: 0 | BT169: 0 | BU169: 0 | BV169: 0 | BW169: 0 | BX169: 0 | BY169: 0 | BZ169: 0 | CA169: 0 | CB169: 0 | CC169: 0 | CD169: 0 | CE169: 0 | CF169: 0 | CG169: 0 | CH169: 0 | CI169: 0 | CJ169: 0 | CK169: 0 | CL169: 0 | CM169: 0 | CN169: 0 | CO169: 0 | CP169: 0 | CQ169: 0 | CR169: 0 | CS169: 0 | CT169: 0 | CU169: 0 | CV169: 0 | CW169: 0 | CX169: 0 | CY169: 0 | CZ169: 0 | DA169: 0 | DB169: 0 | DC169: 0 | DD169: 0 | DE169: 0 | DF169: 0 | DG169: 0 | DH169: 0 | DI169: 0 | DJ169: 0 | DK169: 0 | DL169: 0 | DM169: 0 | DN169: 0 | DO169: 0 | DP169: 0 | DQ169: 0 | DR169: 0 | DS169: 0 | DT169: 0 | DU169: 0 | DV169: 0 | DW169: 0 | DX169: 0 | DY169: 0 | DZ169: 0 | EA169: 0 | EB169: 0
A170: 140 | B170: 0 | C170: 0 | D170: 0 | E170: 0 | F170: 0 | G170: 0 | H170: 0 | I170: 0 | J170: 0 | K170: 0 | L170: 0 | M170: 0 | N170: 0 | O170: 0 | P170: 0 | Q170: 0 | R170: 0 | S170: 0 | T170: 0 | U170: 0 | V170: 0 | W170: 0 | X170: 0 | Y170: 0 | Z170: 0 | AA170: 0 | AB170: 0 | AC170: 0 | AD170: 0 | AE170: 0 | AF170: 0 | AG170: 0 | AH170: 0 | AI170: 0 | AJ170: 0 | AK170: 0 | AL170: 0 | AM170: 0 | AN170: 0 | AO170: 0 | AP170: 0 | AQ170: 0 | AR170: 0 | AS170: 0 | AT170: 0 | AU170: 0 | AV170: 0 | AW170: 0 | AX170: 0 | AY170: 0 | AZ170: 0 | BA170: 0 | BB170: 0 | BC170: 0 | BD170: 0 | BE170: 0 | BF170: 0 | BG170: 0 | BH170: 0 | BI170: 0 | BJ170: 0 | BK170: 0 | BL170: 0 | BM170: 0 | BN170: 0 | BO170: 0 | BP170: 0 | BQ170: 0 | BR170: 0 | BS170: 0 | BT170: 0 | BU170: 0 | BV170: 0 | BW170: 0 | BX170: 0 | BY170: 0 | BZ170: 0 | CA170: 0 | CB170: 0 | CC170: 0 | CD170: 0 | CE170: 0 | CF170: 0 | CG170: 0 | CH170: 0 | CI170: 0 | CJ170: 0 | CK170: 0 | CL170: 0 | CM170: 0 | CN170: 0 | CO170: 0 | CP170: 0 | CQ170: 0 | CR170: 0 | CS170: 0 | CT170: 0 | CU170: 0 | CV170: 0 | CW170: 0 | CX170: 0 | CY170: 0 | CZ170: 0 | DA170: 0 | DB170: 0 | DC170: 0 | DD170: 0 | DE170: 0 | DF170: 0 | DG170: 0 | DH170: 0 | DI170: 0 | DJ170: 0 | DK170: 0 | DL170: 0 | DM170: 0 | DN170: 0 | DO170: 0 | DP170: 0 | DQ170: 0 | DR170: 0 | DS170: 0 | DT170: 0 | DU170: 0 | DV170: 0 | DW170: 0 | DX170: 0 | DY170: 0 | DZ170: 0 | EA170: 0 | EB170: 0
A171: 141 | B171: 0 | C171: 0 | D171: 0 | E171: 0 | F171: 0 | G171: 0 | H171: 0 | I171: 0 | J171: 0 | K171: 0 | L171: 0 | M171: 0 | N171: 0 | O171: 0 | P171: 0 | Q171: 0 | R171: 0 | S171: 0 | T171: 0 | U171: 0 | V171: 0 | W171: 0 | X171: 0 | Y171: 0 | Z171: 0 | AA171: 0 | AB171: 0 | AC171: 0 | AD171: 0 | AE171: 0 | AF171: 0 | AG171: 0 | AH171: 0 | AI171: 0 | AJ171: 0 | AK171: 0 | AL171: 0 | AM171: 0 | AN171: 0 | AO171: 0 | AP171: 0 | AQ171: 0 | AR171: 0 | AS171: 0 | AT171: 0 | AU171: 0 | AV171: 0 | AW171: 0 | AX171: 0 | AY171: 0 | AZ171: 0 | BA171: 0 | BB171: 0 | BC171: 0 | BD171: 0 | BE171: 0 | BF171: 0 | BG171: 0 | BH171: 0 | BI171: 0 | BJ171: 0 | BK171: 0 | BL171: 0 | BM171: 0 | BN171: 0 | BO171: 0 | BP171: 0 | BQ171: 0 | BR171: 0 | BS171: 0 | BT171: 0 | BU171: 0 | BV171: 0 | BW171: 0 | BX171: 0 | BY171: 0 | BZ171: 0 | CA171: 0 | CB171: 0 | CC171: 0 | CD171: 0 | CE171: 0 | CF171: 0 | CG171: 0 | CH171: 0 | CI171: 0 | CJ171: 0 | CK171: 0 | CL171: 0 | CM171: 0 | CN171: 0 | CO171: 0 | CP171: 0 | CQ171: 0 | CR171: 0 | CS171: 0 | CT171: 0 | CU171: 0 | CV171: 0 | CW171: 0 | CX171: 0 | CY171: 0 | CZ171: 0 | DA171: 0 | DB171: 0 | DC171: 0 | DD171: 0 | DE171: 0 | DF171: 0 | DG171: 0 | DH171: 0 | DI171: 0 | DJ171: 0 | DK171: 0 | DL171: 0 | DM171: 0 | DN171: 0 | DO171: 0 | DP171: 0 | DQ171: 0 | DR171: 0 | DS171: 0 | DT171: 0 | DU171: 0 | DV171: 0 | DW171: 0 | DX171: 0 | DY171: 0 | DZ171: 0 | EA171: 0 | EB171: 0
A172: 142 | B172: 0 | C172: 0 | D172: 0 | E172: 0 | F172: 0 | G172: 0 | H172: 0 | I172: 0 | J172: 0 | K172: 0 | L172: 0 | M172: 0 | N172: 0 | O172: 0 | P172: 0 | Q172: 0 | R172: 0 | S172: 0 | T172: 0 | U172: 0 | V172: 0 | W172: 0 | X172: 0 | Y172: 0 | Z172: 0 | AA172: 0 | AB172: 0 | AC172: 0 | AD172: 0 | AE172: 0 | AF172: 0 | AG172: 0 | AH172: 0 | AI172: 0 | AJ172: 0 | AK172: 0 | AL172: 0 | AM172: 0 | AN172: 0 | AO172: 0 | AP172: 0 | AQ172: 0 | AR172: 0 | AS172: 0 | AT172: 0 | AU172: 0 | AV172: 0 | AW172: 0 | AX172: 0 | AY172: 0 | AZ172: 0 | BA172: 0 | BB172: 0 | BC172: 0 | BD172: 0 | BE172: 0 | BF172: 0 | BG172: 0 | BH172: 0 | BI172: 0 | BJ172: 0 | BK172: 0 | BL172: 0 | BM172: 0 | BN172: 0 | BO172: 0 | BP172: 0 | BQ172: 0 | BR172: 0 | BS172: 0 | BT172: 0 | BU172: 0 | BV172: 0 | BW172: 0 | BX172: 0 | BY172: 0 | BZ172: 0 | CA172: 0 | CB172: 0 | CC172: 0 | CD172: 0 | CE172: 0 | CF172: 0 | CG172: 0 | CH172: 0 | CI172: 0 | CJ172: 0 | CK172: 0 | CL172: 0 | CM172: 0 | CN172: 0 | CO172: 0 | CP172: 0 | CQ172: 0 | CR172: 0 | CS172: 0 | CT172: 0 | CU172: 0 | CV172: 0 | CW172: 0 | CX172: 0 | CY172: 0 | CZ172: 0 | DA172: 0 | DB172: 0 | DC172: 0 | DD172: 0 | DE172: 0 | DF172: 0 | DG172: 0 | DH172: 0 | DI172: 0 | DJ172: 0 | DK172: 0 | DL172: 0 | DM172: 0 | DN172: 0 | DO172: 0 | DP172: 0 | DQ172: 0 | DR172: 0 | DS172: 0 | DT172: 0 | DU172: 0 | DV172: 0 | DW172: 0 | DX172: 0 | DY172: 0 | DZ172: 0 | EA172: 0 | EB172: 0
A173: 143 | B173: 0 | C173: 0 | D173: 0 | E173: 0 | F173: 0 | G173: 0 | H173: 0 | I173: 0 | J173: 0 | K173: 0 | L173: 0 | M173: 0 | N173: 0 | O173: 0 | P173: 0 | Q173: 0 | R173: 0 | S173: 0 | T173: 0 | U173: 0 | V173: 0 | W173: 0 | X173: 0 | Y173: 0 | Z173: 0 | AA173: 0 | AB173: 0 | AC173: 0 | AD173: 0 | AE173: 0 | AF173: 0 | AG173: 0 | AH173: 0 | AI173: 0 | AJ173: 0 | AK173: 0 | AL173: 0 | AM173: 0 | AN173: 0 | AO173: 0 | AP173: 0 | AQ173: 0 | AR173: 0 | AS173: 0 | AT173: 0 | AU173: 0 | AV173: 0 | AW173: 0 | AX173: 0 | AY173: 0 | AZ173: 0 | BA173: 0 | BB173: 0 | BC173: 0 | BD173: 0 | BE173: 0 | BF173: 0 | BG173: 0 | BH173: 0 | BI173: 0 | BJ173: 0 | BK173: 0 | BL173: 0 | BM173: 0 | BN173: 0 | BO173: 0 | BP173: 0 | BQ173: 0 | BR173: 0 | BS173: 0 | BT173: 0 | BU173: 0 | BV173: 0 | BW173: 0 | BX173: 0 | BY173: 0 | BZ173: 0 | CA173: 0 | CB173: 0 | CC173: 0 | CD173: 0 | CE173: 0 | CF173: 0 | CG173: 0 | CH173: 0 | CI173: 0 | CJ173: 0 | CK173: 0 | CL173: 0 | CM173: 0 | CN173: 0 | CO173: 0 | CP173: 0 | CQ173: 0 | CR173: 0 | CS173: 0 | CT173: 0 | CU173: 0 | CV173: 0 | CW173: 0 | CX173: 0 | CY173: 0 | CZ173: 0 | DA173: 0 | DB173: 0 | DC173: 0 | DD173: 0 | DE173: 0 | DF173: 0 | DG173: 0 | DH173: 0 | DI173: 0 | DJ173: 0 | DK173: 0 | DL173: 0 | DM173: 0 | DN173: 0 | DO173: 0 | DP173: 0 | DQ173: 0 | DR173: 0 | DS173: 0 | DT173: 0 | DU173: 0 | DV173: 0 | DW173: 0 | DX173: 0 | DY173: 0 | DZ173: 0 | EA173: 0 | EB173: 0
A174: 144 | B174: 0 | C174: 0 | D174: 0 | E174: 0 | F174: 0 | G174: 0 | H174: 0 | I174: 0 | J174: 0 | K174: 0 | L174: 0 | M174: 0 | N174: 0 | O174: 0 | P174: 0 | Q174: 0 | R174: 0 | S174: 0 | T174: 0 | U174: 0 | V174: 0 | W174: 0 | X174: 0 | Y174: 0 | Z174: 0 | AA174: 0 | AB174: 0 | AC174: 0 | AD174: 0 | AE174: 0 | AF174: 0 | AG174: 0 | AH174: 0 | AI174: 0 | AJ174: 0 | AK174: 0 | AL174: 0 | AM174: 0 | AN174: 0 | AO174: 0 | AP174: 0 | AQ174: 0 | AR174: 0 | AS174: 0 | AT174: 0 | AU174: 0 | AV174: 0 | AW174: 0 | AX174: 0 | AY174: 0 | AZ174: 0 | BA174: 0 | BB174: 0 | BC174: 0 | BD174: 0 | BE174: 0 | BF174: 0 | BG174: 0 | BH174: 0 | BI174: 0 | BJ174: 0 | BK174: 0 | BL174: 0 | BM174: 0 | BN174: 0 | BO174: 0 | BP174: 0 | BQ174: 0 | BR174: 0 | BS174: 0 | BT174: 0 | BU174: 0 | BV174: 0 | BW174: 0 | BX174: 0 | BY174: 0 | BZ174: 0 | CA174: 0 | CB174: 0 | CC174: 0 | CD174: 0 | CE174: 0 | CF174: 0 | CG174: 0 | CH174: 0 | CI174: 0 | CJ174: 0 | CK174: 0 | CL174: 0 | CM174: 0 | CN174: 0 | CO174: 0 | CP174: 0 | CQ174: 0 | CR174: 0 | CS174: 0 | CT174: 0 | CU174: 0 | CV174: 0 | CW174: 0 | CX174: 0 | CY174: 0 | CZ174: 0 | DA174: 0 | DB174: 0 | DC174: 0 | DD174: 0 | DE174: 0 | DF174: 0 | DG174: 0 | DH174: 0 | DI174: 0 | DJ174: 0 | DK174: 0 | DL174: 0 | DM174: 0 | DN174: 0 | DO174: 0 | DP174: 0 | DQ174: 0 | DR174: 0 | DS174: 0 | DT174: 0 | DU174: 0 | DV174: 0 | DW174: 0 | DX174: 0 | DY174: 0 | DZ174: 0 | EA174: 0 | EB174: 0
A175: 145 | B175: 0 | C175: 0 | D175: 0 | E175: =INDIRECT($C$33&E$32&ROW()-$C$34) -> 0 | F175: 0 | G175: 0 | H175: 0 | I175: 0 | J175: 0 | K175: 0 | L175: 0 | M175: 0 | N175: 0 | O175: =INDIRECT($C$33&O$32&ROW()-$C$34) -> 0 | P175: 0 | Q175: 0 | R175: 0 | S175: 0 | T175: 0 | U175: 0 | V175: 0 | W175: 0 | X175: 0 | Y175: =INDIRECT($C$33&Y$32&ROW()-$C$34) -> 0 | Z175: 0 | AA175: 0 | AB175: 0 | AC175: 0 | AD175: 0 | AE175: 0 | AF175: 0 | AG175: 0 | AH175: 0 | AI175: =INDIRECT($C$33&AI$32&ROW()-$C$34) -> 0 | AJ175: 0 | AK175: 0 | AL175: 0 | AM175: 0 | AN175: 0 | AO175: 0 | AP175: 0 | AQ175: 0 | AR175: 0 | AS175: =INDIRECT($C$33&AS$32&ROW()-$C$34) -> 0 | AT175: 0 | AU175: 0 | AV175: 0 | AW175: 0 | AX175: 0 | AY175: 0 | AZ175: 0 | BA175: 0 | BB175: 0 | BC175: =INDIRECT($C$33&BC$32&ROW()-$C$34) -> 0 | BD175: 0 | BE175: 0 | BF175: 0 | BG175: 0 | BH175: 0 | BI175: 0 | BJ175: 0 | BK175: 0 | BL175: 0 | BM175: =INDIRECT($C$33&BM$32&ROW()-$C$34) -> 0 | BN175: 0 | BO175: 0 | BP175: 0 | BQ175: 0 | BR175: 0 | BS175: 0 | BT175: 0 | BU175: 0 | BV175: 0 | BW175: =INDIRECT($C$33&BW$32&ROW()-$C$34) -> 0 | BX175: 0 | BY175: 0 | BZ175: 0 | CA175: 0 | CB175: 0 | CC175: 0 | CD175: 0 | CE175: 0 | CF175: 0 | CG175: =INDIRECT($C$33&CG$32&ROW()-$C$34) -> 0 | CH175: 0 | CI175: 0 | CJ175: 0 | CK175: 0 | CL175: 0 | CM175: 0 | CN175: 0 | CO175: 0 | CP175: 0 | CQ175: =INDIRECT($C$33&CQ$32&ROW()-$C$34) -> 0 | CR175: 0 | CS175: 0 | CT175: 0 | CU175: 0 | CV175: 0 | CW175: 0 | CX175: 0 | CY175: 0 | CZ175: 0 | DA175: 0 | DB175: 0 | DC175: 0 | DD175: 0 | DE175: 0 | DF175: 0 | DG175: 0 | DH175: 0 | DI175: 0 | DJ175: 0 | DK175: 0 | DL175: 0 | DM175: 0 | DN175: 0 | DO175: 0 | DP175: 0 | DQ175: 0 | DR175: 0 | DS175: 0 | DT175: 0 | DU175: 0 | DV175: 0 | DW175: 0 | DX175: 0 | DY175: 0 | DZ175: 0 | EA175: 0 | EB175: 0
A176: 146 | B176: 0 | C176: =INDIRECT($C$33&C$32&ROW()-$C$34) -> 0 | D176: 0 | E176: 0 | F176: 0 | G176: 0 | H176: 0 | I176: 0 | J176: 0 | K176: 0 | L176: 0 | M176: 0 | N176: 0 | O176: 0 | P176: 0 | Q176: 0 | R176: 0 | S176: 0 | T176: 0 | U176: 0 | V176: 0 | W176: 0 | X176: 0 | Y176: 0 | Z176: 0 | AA176: 0 | AB176: 0 | AC176: 0 | AD176: 0 | AE176: 0 | AF176: 0 | AG176: 0 | AH176: 0 | AI176: 0 | AJ176: 0 | AK176: 0 | AL176: 0 | AM176: 0 | AN176: 0 | AO176: 0 | AP176: 0 | AQ176: 0 | AR176: 0 | AS176: 0 | AT176: 0 | AU176: 0 | AV176: 0 | AW176: 0 | AX176: 0 | AY176: 0 | AZ176: 0 | BA176: 0 | BB176: 0 | BC176: 0 | BD176: 0 | BE176: 0 | BF176: 0 | BG176: 0 | BH176: 0 | BI176: 0 | BJ176: 0 | BK176: 0 | BL176: 0 | BM176: 0 | BN176: 0 | BO176: 0 | BP176: 0 | BQ176: 0 | BR176: 0 | BS176: 0 | BT176: 0 | BU176: 0 | BV176: 0 | BW176: 0 | BX176: 0 | BY176: 0 | BZ176: 0 | CA176: 0 | CB176: 0 | CC176: 0 | CD176: 0 | CE176: 0 | CF176: 0 | CG176: 0 | CH176: 0 | CI176: 0 | CJ176: 0 | CK176: 0 | CL176: 0 | CM176: 0 | CN176: 0 | CO176: 0 | CP176: 0 | CQ176: 0 | CR176: 0 | CS176: 0 | CT176: 0 | CU176: 0 | CV176: 0 | CW176: 0 | CX176: 0 | CY176: 0 | CZ176: 0 | DA176: 0 | DB176: 0 | DC176: 0 | DD176: 0 | DE176: 0 | DF176: 0 | DG176: 0 | DH176: 0 | DI176: 0 | DJ176: 0 | DK176: 0 | DL176: 0 | DM176: 0 | DN176: 0 | DO176: 0 | DP176: 0 | DQ176: 0 | DR176: 0 | DS176: 0 | DT176: 0 | DU176: 0 | DV176: 0 | DW176: 0 | DX176: 0 | DY176: 0 | DZ176: 0 | EA176: 0 | EB176: 0
A177: 147 | B177: 0 | C177: 0 | D177: 0 | E177: 0 | F177: 0 | G177: 0 | H177: 0 | I177: 0 | J177: 0 | K177: 0 | L177: 0 | M177: 0 | N177: 0 | O177: 0 | P177: 0 | Q177: 0 | R177: 0 | S177: 0 | T177: 0 | U177: 0 | V177: 0 | W177: 0 | X177: 0 | Y177: 0 | Z177: 0 | AA177: 0 | AB177: 0 | AC177: 0 | AD177: 0 | AE177: 0 | AF177: 0 | AG177: 0 | AH177: 0 | AI177: 0 | AJ177: 0 | AK177: 0 | AL177: 0 | AM177: 0 | AN177: 0 | AO177: 0 | AP177: 0 | AQ177: 0 | AR177: 0 | AS177: 0 | AT177: 0 | AU177: 0 | AV177: 0 | AW177: 0 | AX177: 0 | AY177: 0 | AZ177: 0 | BA177: 0 | BB177: 0 | BC177: 0 | BD177: 0 | BE177: 0 | BF177: 0 | BG177: 0 | BH177: 0 | BI177: 0 | BJ177: 0 | BK177: 0 | BL177: 0 | BM177: 0 | BN177: 0 | BO177: 0 | BP177: 0 | BQ177: 0 | BR177: 0 | BS177: 0 | BT177: 0 | BU177: 0 | BV177: 0 | BW177: 0 | BX177: 0 | BY177: 0 | BZ177: 0 | CA177: 0 | CB177: 0 | CC177: 0 | CD177: 0 | CE177: 0 | CF177: 0 | CG177: 0 | CH177: 0 | CI177: 0 | CJ177: 0 | CK177: 0 | CL177: 0 | CM177: 0 | CN177: 0 | CO177: 0 | CP177: 0 | CQ177: 0 | CR177: 0 | CS177: 0 | CT177: 0 | CU177: 0 | CV177: 0 | CW177: 0 | CX177: 0 | CY177: 0 | CZ177: 0 | DA177: 0 | DB177: 0 | DC177: 0 | DD177: 0 | DE177: 0 | DF177: 0 | DG177: 0 | DH177: 0 | DI177: 0 | DJ177: 0 | DK177: 0 | DL177: 0 | DM177: 0 | DN177: 0 | DO177: 0 | DP177: 0 | DQ177: 0 | DR177: 0 | DS177: 0 | DT177: 0 | DU177: 0 | DV177: 0 | DW177: 0 | DX177: 0 | DY177: 0 | DZ177: 0 | EA177: 0 | EB177: 0
A178: 148 | B178: 0 | C178: 0 | D178: 0 | E178: 0 | F178: 0 | G178: 0 | H178: 0 | I178: 0 | J178: 0 | K178: 0 | L178: 0 | M178: 0 | N178: 0 | O178: 0 | P178: 0 | Q178: 0 | R178: 0 | S178: 0 | T178: 0 | U178: 0 | V178: 0 | W178: 0 | X178: 0 | Y178: 0 | Z178: 0 | AA178: 0 | AB178: 0 | AC178: 0 | AD178: 0 | AE178: 0 | AF178: 0 | AG178: 0 | AH178: 0 | AI178: 0 | AJ178: 0 | AK178: 0 | AL178: 0 | AM178: 0 | AN178: 0 | AO178: 0 | AP178: 0 | AQ178: 0 | AR178: 0 | AS178: 0 | AT178: 0 | AU178: 0 | AV178: 0 | AW178: 0 | AX178: 0 | AY178: 0 | AZ178: 0 | BA178: 0 | BB178: 0 | BC178: 0 | BD178: 0 | BE178: 0 | BF178: 0 | BG178: 0 | BH178: 0 | BI178: 0 | BJ178: 0 | BK178: 0 | BL178: 0 | BM178: 0 | BN178: 0 | BO178: 0 | BP178: 0 | BQ178: 0 | BR178: 0 | BS178: 0 | BT178: 0 | BU178: 0 | BV178: 0 | BW178: 0 | BX178: 0 | BY178: 0 | BZ178: 0 | CA178: 0 | CB178: 0 | CC178: 0 | CD178: 0 | CE178: 0 | CF178: 0 | CG178: 0 | CH178: 0 | CI178: 0 | CJ178: 0 | CK178: 0 | CL178: 0 | CM178: 0 | CN178: 0 | CO178: 0 | CP178: 0 | CQ178: 0 | CR178: 0 | CS178: 0 | CT178: 0 | CU178: 0 | CV178: 0 | CW178: 0 | CX178: 0 | CY178: 0 | CZ178: 0 | DA178: 0 | DB178: 0 | DC178: 0 | DD178: 0 | DE178: 0 | DF178: 0 | DG178: 0 | DH178: 0 | DI178: 0 | DJ178: 0 | DK178: 0 | DL178: 0 | DM178: 0 | DN178: 0 | DO178: 0 | DP178: 0 | DQ178: 0 | DR178: 0 | DS178: 0 | DT178: 0 | DU178: 0 | DV178: 0 | DW178: 0 | DX178: 0 | DY178: 0 | DZ178: 0 | EA178: 0 | EB178: 0
A179: 149 | B179: 0 | C179: 0 | D179: 0 | E179: 0 | F179: 0 | G179: 0 | H179: 0 | I179: 0 | J179: 0 | K179: 0 | L179: 0 | M179: 0 | N179: 0 | O179: 0 | P179: 0 | Q179: 0 | R179: 0 | S179: 0 | T179: 0 | U179: 0 | V179: 0 | W179: 0 | X179: 0 | Y179: 0 | Z179: 0 | AA179: 0 | AB179: 0 | AC179: 0 | AD179: 0 | AE179: 0 | AF179: 0 | AG179: 0 | AH179: 0 | AI179: 0 | AJ179: 0 | AK179: 0 | AL179: 0 | AM179: 0 | AN179: 0 | AO179: 0 | AP179: 0 | AQ179: 0 | AR179: 0 | AS179: 0 | AT179: 0 | AU179: 0 | AV179: 0 | AW179: 0 | AX179: 0 | AY179: 0 | AZ179: 0 | BA179: 0 | BB179: 0 | BC179: 0 | BD179: 0 | BE179: 0 | BF179: 0 | BG179: 0 | BH179: 0 | BI179: 0 | BJ179: 0 | BK179: 0 | BL179: 0 | BM179: 0 | BN179: 0 | BO179: 0 | BP179: 0 | BQ179: 0 | BR179: 0 | BS179: 0 | BT179: 0 | BU179: 0 | BV179: 0 | BW179: 0 | BX179: 0 | BY179: 0 | BZ179: 0 | CA179: 0 | CB179: 0 | CC179: 0 | CD179: 0 | CE179: 0 | CF179: 0 | CG179: 0 | CH179: 0 | CI179: 0 | CJ179: 0 | CK179: 0 | CL179: 0 | CM179: 0 | CN179: 0 | CO179: 0 | CP179: 0 | CQ179: 0 | CR179: 0 | CS179: 0 | CT179: 0 | CU179: 0 | CV179: 0 | CW179: 0 | CX179: 0 | CY179: 0 | CZ179: 0 | DA179: 0 | DB179: 0 | DC179: =INDIRECT($C$33&DC$32&ROW()-$C$34) -> 0 | DD179: 0 | DE179: 0 | DF179: 0 | DG179: 0 | DH179: 0 | DI179: 0 | DJ179: 0 | DK179: 0 | DL179: 0 | DM179: 0 | DN179: 0 | DO179: 0 | DP179: 0 | DQ179: 0 | DR179: 0 | DS179: 0 | DT179: =INDIRECT($C$33&DT$32&ROW()-$C$34) -> 0 | DU179: 0 | DV179: 0 | DW179: 0 | DX179: 0 | DY179: 0 | DZ179: 0 | EA179: 0 | EB179: 0
A180: 150 | B180: 0 | C180: 0 | D180: 0 | E180: 0 | F180: 0 | G180: 0 | H180: 0 | I180: 0 | J180: 0 | K180: 0 | L180: 0 | M180: 0 | N180: 0 | O180: 0 | P180: 0 | Q180: 0 | R180: 0 | S180: 0 | T180: 0 | U180: 0 | V180: 0 | W180: 0 | X180: 0 | Y180: 0 | Z180: 0 | AA180: 0 | AB180: 0 | AC180: 0 | AD180: 0 | AE180: 0 | AF180: 0 | AG180: 0 | AH180: 0 | AI180: 0 | AJ180: 0 | AK180: 0 | AL180: 0 | AM180: 0 | AN180: 0 | AO180: 0 | AP180: 0 | AQ180: 0 | AR180: 0 | AS180: 0 | AT180: 0 | AU180: 0 | AV180: 0 | AW180: 0 | AX180: 0 | AY180: 0 | AZ180: 0 | BA180: 0 | BB180: 0 | BC180: 0 | BD180: 0 | BE180: 0 | BF180: 0 | BG180: 0 | BH180: 0 | BI180: 0 | BJ180: 0 | BK180: 0 | BL180: 0 | BM180: 0 | BN180: 0 | BO180: 0 | BP180: 0 | BQ180: 0 | BR180: 0 | BS180: 0 | BT180: 0 | BU180: 0 | BV180: 0 | BW180: 0 | BX180: 0 | BY180: 0 | BZ180: 0 | CA180: 0 | CB180: 0 | CC180: 0 | CD180: 0 | CE180: 0 | CF180: 0 | CG180: 0 | CH180: 0 | CI180: 0 | CJ180: 0 | CK180: 0 | CL180: 0 | CM180: 0 | CN180: 0 | CO180: 0 | CP180: 0 | CQ180: 0 | CR180: 0 | CS180: 0 | CT180: 0 | CU180: 0 | CV180: 0 | CW180: 0 | CX180: 0 | CY180: 0 | CZ180: 0 | DA180: 0 | DB180: 0 | DC180: 0 | DD180: 0 | DE180: 0 | DF180: 0 | DG180: 0 | DH180: 0 | DI180: 0 | DJ180: 0 | DK180: 0 | DL180: 0 | DM180: 0 | DN180: 0 | DO180: 0 | DP180: 0 | DQ180: 0 | DR180: 0 | DS180: 0 | DT180: 0 | DU180: 0 | DV180: 0 | DW180: 0 | DX180: 0 | DY180: 0 | DZ180: 0 | EA180: 0 | EB180: 0
A181: 151 | B181: 0 | C181: 0 | D181: 0 | E181: 0 | F181: 0 | G181: 0 | H181: 0 | I181: 0 | J181: 0 | K181: 0 | L181: 0 | M181: 0 | N181: 0 | O181: 0 | P181: 0 | Q181: 0 | R181: 0 | S181: 0 | T181: 0 | U181: 0 | V181: 0 | W181: 0 | X181: 0 | Y181: 0 | Z181: 0 | AA181: 0 | AB181: 0 | AC181: 0 | AD181: 0 | AE181: 0 | AF181: 0 | AG181: 0 | AH181: 0 | AI181: 0 | AJ181: 0 | AK181: 0 | AL181: 0 | AM181: 0 | AN181: 0 | AO181: 0 | AP181: 0 | AQ181: 0 | AR181: 0 | AS181: 0 | AT181: 0 | AU181: 0 | AV181: 0 | AW181: 0 | AX181: 0 | AY181: 0 | AZ181: 0 | BA181: 0 | BB181: 0 | BC181: 0 | BD181: 0 | BE181: 0 | BF181: 0 | BG181: 0 | BH181: 0 | BI181: 0 | BJ181: 0 | BK181: 0 | BL181: 0 | BM181: 0 | BN181: 0 | BO181: 0 | BP181: 0 | BQ181: 0 | BR181: 0 | BS181: 0 | BT181: 0 | BU181: 0 | BV181: 0 | BW181: 0 | BX181: 0 | BY181: 0 | BZ181: 0 | CA181: 0 | CB181: 0 | CC181: 0 | CD181: 0 | CE181: 0 | CF181: 0 | CG181: 0 | CH181: 0 | CI181: 0 | CJ181: 0 | CK181: 0 | CL181: 0 | CM181: 0 | CN181: 0 | CO181: 0 | CP181: 0 | CQ181: 0 | CR181: 0 | CS181: 0 | CT181: 0 | CU181: 0 | CV181: 0 | CW181: 0 | CX181: 0 | CY181: 0 | CZ181: 0 | DA181: 0 | DB181: 0 | DC181: 0 | DD181: 0 | DE181: 0 | DF181: 0 | DG181: 0 | DH181: 0 | DI181: 0 | DJ181: 0 | DK181: 0 | DL181: 0 | DM181: 0 | DN181: 0 | DO181: 0 | DP181: 0 | DQ181: 0 | DR181: 0 | DS181: 0 | DT181: 0 | DU181: 0 | DV181: 0 | DW181: 0 | DX181: 0 | DY181: 0 | DZ181: 0 | EA181: 0 | EB181: 0
A182: 152 | B182: 0 | C182: 0 | D182: 0 | E182: 0 | F182: 0 | G182: 0 | H182: 0 | I182: 0 | J182: 0 | K182: 0 | L182: 0 | M182: 0 | N182: 0 | O182: 0 | P182: 0 | Q182: 0 | R182: 0 | S182: 0 | T182: 0 | U182: 0 | V182: 0 | W182: 0 | X182: 0 | Y182: 0 | Z182: 0 | AA182: 0 | AB182: 0 | AC182: 0 | AD182: 0 | AE182: 0 | AF182: 0 | AG182: 0 | AH182: 0 | AI182: 0 | AJ182: 0 | AK182: 0 | AL182: 0 | AM182: 0 | AN182: 0 | AO182: 0 | AP182: 0 | AQ182: 0 | AR182: 0 | AS182: 0 | AT182: 0 | AU182: 0 | AV182: 0 | AW182: 0 | AX182: 0 | AY182: 0 | AZ182: 0 | BA182: 0 | BB182: 0 | BC182: 0 | BD182: 0 | BE182: 0 | BF182: 0 | BG182: 0 | BH182: 0 | BI182: 0 | BJ182: 0 | BK182: 0 | BL182: 0 | BM182: 0 | BN182: 0 | BO182: 0 | BP182: 0 | BQ182: 0 | BR182: 0 | BS182: 0 | BT182: 0 | BU182: 0 | BV182: 0 | BW182: 0 | BX182: 0 | BY182: 0 | BZ182: 0 | CA182: 0 | CB182: 0 | CC182: 0 | CD182: 0 | CE182: 0 | CF182: 0 | CG182: 0 | CH182: 0 | CI182: 0 | CJ182: 0 | CK182: 0 | CL182: 0 | CM182: 0 | CN182: 0 | CO182: 0 | CP182: 0 | CQ182: 0 | CR182: 0 | CS182: 0 | CT182: 0 | CU182: 0 | CV182: 0 | CW182: 0 | CX182: 0 | CY182: 0 | CZ182: 0 | DA182: 0 | DB182: 0 | DC182: 0 | DD182: 0 | DE182: 0 | DF182: 0 | DG182: 0 | DH182: 0 | DI182: 0 | DJ182: 0 | DK182: 0 | DL182: 0 | DM182: 0 | DN182: 0 | DO182: 0 | DP182: 0 | DQ182: 0 | DR182: 0 | DS182: 0 | DT182: 0 | DU182: 0 | DV182: 0 | DW182: 0 | DX182: 0 | DY182: 0 | DZ182: 0 | EA182: 0 | EB182: 0
A183: 153 | B183: 0 | C183: 0 | D183: 0 | E183: 0 | F183: 0 | G183: 0 | H183: 0 | I183: 0 | J183: 0 | K183: 0 | L183: 0 | M183: 0 | N183: 0 | O183: 0 | P183: 0 | Q183: 0 | R183: 0 | S183: 0 | T183: 0 | U183: 0 | V183: 0 | W183: 0 | X183: 0 | Y183: 0 | Z183: 0 | AA183: 0 | AB183: 0 | AC183: 0 | AD183: 0 | AE183: 0 | AF183: 0 | AG183: 0 | AH183: 0 | AI183: 0 | AJ183: 0 | AK183: 0 | AL183: 0 | AM183: 0 | AN183: 0 | AO183: 0 | AP183: 0 | AQ183: 0 | AR183: 0 | AS183: 0 | AT183: 0 | AU183: 0 | AV183: 0 | AW183: 0 | AX183: 0 | AY183: 0 | AZ183: 0 | BA183: 0 | BB183: 0 | BC183: 0 | BD183: 0 | BE183: 0 | BF183: 0 | BG183: 0 | BH183: 0 | BI183: 0 | BJ183: 0 | BK183: 0 | BL183: 0 | BM183: 0 | BN183: 0 | BO183: 0 | BP183: 0 | BQ183: 0 | BR183: 0 | BS183: 0 | BT183: 0 | BU183: 0 | BV183: 0 | BW183: 0 | BX183: 0 | BY183: 0 | BZ183: 0 | CA183: 0 | CB183: 0 | CC183: 0 | CD183: 0 | CE183: 0 | CF183: 0 | CG183: 0 | CH183: 0 | CI183: 0 | CJ183: 0 | CK183: 0 | CL183: 0 | CM183: 0 | CN183: 0 | CO183: 0 | CP183: 0 | CQ183: 0 | CR183: 0 | CS183: 0 | CT183: 0 | CU183: 0 | CV183: 0 | CW183: 0 | CX183: 0 | CY183: 0 | CZ183: 0 | DA183: 0 | DB183: 0 | DC183: 0 | DD183: 0 | DE183: 0 | DF183: 0 | DG183: 0 | DH183: 0 | DI183: 0 | DJ183: 0 | DK183: 0 | DL183: 0 | DM183: 0 | DN183: 0 | DO183: 0 | DP183: 0 | DQ183: 0 | DR183: 0 | DS183: 0 | DT183: 0 | DU183: 0 | DV183: 0 | DW183: 0 | DX183: 0 | DY183: 0 | DZ183: 0 | EA183: 0 | EB183: 0
A184: 154 | B184: 0 | C184: 0 | D184: 0 | E184: 0 | F184: 0 | G184: 0 | H184: 0 | I184: 0 | J184: 0 | K184: 0 | L184: 0 | M184: 0 | N184: 0 | O184: 0 | P184: 0 | Q184: 0 | R184: 0 | S184: 0 | T184: 0 | U184: 0 | V184: 0 | W184: 0 | X184: 0 | Y184: 0 | Z184: 0 | AA184: 0 | AB184: 0 | AC184: 0 | AD184: 0 | AE184: 0 | AF184: 0 | AG184: 0 | AH184: 0 | AI184: 0 | AJ184: 0 | AK184: 0 | AL184: 0 | AM184: 0 | AN184: 0 | AO184: 0 | AP184: 0 | AQ184: 0 | AR184: 0 | AS184: 0 | AT184: 0 | AU184: 0 | AV184: 0 | AW184: 0 | AX184: 0 | AY184: 0 | AZ184: 0 | BA184: 0 | BB184: 0 | BC184: 0 | BD184: 0 | BE184: 0 | BF184: 0 | BG184: 0 | BH184: 0 | BI184: 0 | BJ184: 0 | BK184: 0 | BL184: 0 | BM184: 0 | BN184: 0 | BO184: 0 | BP184: 0 | BQ184: 0 | BR184: 0 | BS184: 0 | BT184: 0 | BU184: 0 | BV184: 0 | BW184: 0 | BX184: 0 | BY184: 0 | BZ184: 0 | CA184: 0 | CB184: 0 | CC184: 0 | CD184: 0 | CE184: 0 | CF184: 0 | CG184: 0 | CH184: 0 | CI184: 0 | CJ184: 0 | CK184: 0 | CL184: 0 | CM184: 0 | CN184: 0 | CO184: 0 | CP184: 0 | CQ184: 0 | CR184: 0 | CS184: 0 | CT184: 0 | CU184: 0 | CV184: 0 | CW184: 0 | CX184: 0 | CY184: 0 | CZ184: 0 | DA184: 0 | DB184: 0 | DC184: 0 | DD184: 0 | DE184: 0 | DF184: 0 | DG184: 0 | DH184: 0 | DI184: 0 | DJ184: 0 | DK184: 0 | DL184: 0 | DM184: 0 | DN184: 0 | DO184: 0 | DP184: 0 | DQ184: 0 | DR184: 0 | DS184: 0 | DT184: 0 | DU184: 0 | DV184: 0 | DW184: 0 | DX184: 0 | DY184: 0 | DZ184: 0 | EA184: 0 | EB184: 0
A185: 155 | B185: 0 | C185: 0 | D185: 0 | E185: 0 | F185: 0 | G185: 0 | H185: 0 | I185: 0 | J185: 0 | K185: 0 | L185: 0 | M185: 0 | N185: 0 | O185: 0 | P185: 0 | Q185: 0 | R185: 0 | S185: 0 | T185: 0 | U185: 0 | V185: 0 | W185: 0 | X185: 0 | Y185: 0 | Z185: 0 | AA185: 0 | AB185: 0 | AC185: 0 | AD185: 0 | AE185: 0 | AF185: 0 | AG185: 0 | AH185: 0 | AI185: 0 | AJ185: 0 | AK185: 0 | AL185: 0 | AM185: 0 | AN185: 0 | AO185: 0 | AP185: 0 | AQ185: 0 | AR185: 0 | AS185: 0 | AT185: 0 | AU185: 0 | AV185: 0 | AW185: 0 | AX185: 0 | AY185: 0 | AZ185: 0 | BA185: 0 | BB185: 0 | BC185: 0 | BD185: 0 | BE185: 0 | BF185: 0 | BG185: 0 | BH185: 0 | BI185: 0 | BJ185: 0 | BK185: 0 | BL185: 0 | BM185: 0 | BN185: 0 | BO185: 0 | BP185: 0 | BQ185: 0 | BR185: 0 | BS185: 0 | BT185: 0 | BU185: 0 | BV185: 0 | BW185: 0 | BX185: 0 | BY185: 0 | BZ185: 0 | CA185: 0 | CB185: 0 | CC185: 0 | CD185: 0 | CE185: 0 | CF185: 0 | CG185: 0 | CH185: 0 | CI185: 0 | CJ185: 0 | CK185: 0 | CL185: 0 | CM185: 0 | CN185: 0 | CO185: 0 | CP185: 0 | CQ185: 0 | CR185: 0 | CS185: 0 | CT185: 0 | CU185: 0 | CV185: 0 | CW185: 0 | CX185: 0 | CY185: 0 | CZ185: 0 | DA185: 0 | DB185: 0 | DC185: 0 | DD185: 0 | DE185: 0 | DF185: 0 | DG185: 0 | DH185: 0 | DI185: 0 | DJ185: 0 | DK185: 0 | DL185: 0 | DM185: 0 | DN185: 0 | DO185: 0 | DP185: 0 | DQ185: 0 | DR185: 0 | DS185: 0 | DT185: 0 | DU185: 0 | DV185: 0 | DW185: 0 | DX185: 0 | DY185: 0 | DZ185: 0 | EA185: 0 | EB185: 0
A186: 156 | B186: =IF(LEN(C186)>1,A186,0) -> 0 | C186: 0 | D186: 0 | E186: 0 | F186: 0 | G186: 0 | H186: 0 | I186: 0 | J186: 0 | K186: 0 | L186: 0 | M186: 0 | N186: 0 | O186: 0 | P186: 0 | Q186: 0 | R186: 0 | S186: 0 | T186: 0 | U186: 0 | V186: 0 | W186: 0 | X186: 0 | Y186: 0 | Z186: 0 | AA186: 0 | AB186: 0 | AC186: 0 | AD186: 0 | AE186: 0 | AF186: 0 | AG186: 0 | AH186: 0 | AI186: 0 | AJ186: 0 | AK186: 0 | AL186: 0 | AM186: 0 | AN186: 0 | AO186: 0 | AP186: 0 | AQ186: 0 | AR186: 0 | AS186: 0 | AT186: 0 | AU186: 0 | AV186: 0 | AW186: 0 | AX186: 0 | AY186: 0 | AZ186: 0 | BA186: 0 | BB186: 0 | BC186: 0 | BD186: 0 | BE186: 0 | BF186: 0 | BG186: 0 | BH186: 0 | BI186: 0 | BJ186: 0 | BK186: 0 | BL186: 0 | BM186: 0 | BN186: 0 | BO186: 0 | BP186: 0 | BQ186: 0 | BR186: 0 | BS186: 0 | BT186: 0 | BU186: 0 | BV186: 0 | BW186: 0 | BX186: 0 | BY186: 0 | BZ186: 0 | CA186: 0 | CB186: 0 | CC186: 0 | CD186: 0 | CE186: 0 | CF186: 0 | CG186: 0 | CH186: 0 | CI186: 0 | CJ186: 0 | CK186: 0 | CL186: 0 | CM186: 0 | CN186: 0 | CO186: 0 | CP186: 0 | CQ186: 0 | CR186: 0 | CS186: 0 | CT186: 0 | CU186: 0 | CV186: 0 | CW186: 0 | CX186: 0 | CY186: 0 | CZ186: 0 | DA186: 0 | DB186: 0 | DC186: 0 | DD186: 0 | DE186: 0 | DF186: 0 | DG186: 0 | DH186: 0 | DI186: 0 | DJ186: 0 | DK186: 0 | DL186: 0 | DM186: 0 | DN186: 0 | DO186: 0 | DP186: 0 | DQ186: 0 | DR186: 0 | DS186: 0 | DT186: 0 | DU186: 0 | DV186: 0 | DW186: 0 | DX186: 0 | DY186: 0 | DZ186: 0 | EA186: 0 | EB186: 0
A187: 157 | B187: 0 | C187: 0 | D187: 0 | E187: 0 | F187: 0 | G187: 0 | H187: 0 | I187: 0 | J187: 0 | K187: 0 | L187: 0 | M187: 0 | N187: 0 | O187: 0 | P187: 0 | Q187: 0 | R187: 0 | S187: 0 | T187: 0 | U187: 0 | V187: 0 | W187: 0 | X187: 0 | Y187: 0 | Z187: 0 | AA187: 0 | AB187: 0 | AC187: 0 | AD187: 0 | AE187: 0 | AF187: 0 | AG187: 0 | AH187: 0 | AI187: 0 | AJ187: 0 | AK187: 0 | AL187: 0 | AM187: 0 | AN187: 0 | AO187: 0 | AP187: 0 | AQ187: 0 | AR187: 0 | AS187: 0 | AT187: 0 | AU187: 0 | AV187: 0 | AW187: 0 | AX187: 0 | AY187: 0 | AZ187: 0 | BA187: 0 | BB187: 0 | BC187: 0 | BD187: 0 | BE187: 0 | BF187: 0 | BG187: 0 | BH187: 0 | BI187: 0 | BJ187: 0 | BK187: 0 | BL187: 0 | BM187: 0 | BN187: 0 | BO187: 0 | BP187: 0 | BQ187: 0 | BR187: 0 | BS187: 0 | BT187: 0 | BU187: 0 | BV187: 0 | BW187: 0 | BX187: 0 | BY187: 0 | BZ187: 0 | CA187: 0 | CB187: 0 | CC187: 0 | CD187: 0 | CE187: 0 | CF187: 0 | CG187: 0 | CH187: 0 | CI187: 0 | CJ187: 0 | CK187: 0 | CL187: 0 | CM187: 0 | CN187: 0 | CO187: 0 | CP187: 0 | CQ187: 0 | CR187: 0 | CS187: 0 | CT187: 0 | CU187: 0 | CV187: 0 | CW187: 0 | CX187: 0 | CY187: 0 | CZ187: 0 | DA187: 0 | DB187: 0 | DC187: 0 | DD187: 0 | DE187: 0 | DF187: 0 | DG187: 0 | DH187: 0 | DI187: 0 | DJ187: 0 | DK187: 0 | DL187: 0 | DM187: 0 | DN187: 0 | DO187: 0 | DP187: 0 | DQ187: 0 | DR187: 0 | DS187: 0 | DT187: 0 | DU187: 0 | DV187: 0 | DW187: 0 | DX187: 0 | DY187: 0 | DZ187: 0 | EA187: 0 | EB187: 0
A188: 158 | B188: 0 | C188: 0 | D188: 0 | E188: 0 | F188: 0 | G188: 0 | H188: 0 | I188: 0 | J188: 0 | K188: 0 | L188: 0 | M188: 0 | N188: 0 | O188: 0 | P188: 0 | Q188: 0 | R188: 0 | S188: 0 | T188: 0 | U188: 0 | V188: 0 | W188: 0 | X188: 0 | Y188: 0 | Z188: 0 | AA188: 0 | AB188: 0 | AC188: 0 | AD188: 0 | AE188: 0 | AF188: 0 | AG188: 0 | AH188: 0 | AI188: 0 | AJ188: 0 | AK188: 0 | AL188: 0 | AM188: 0 | AN188: 0 | AO188: 0 | AP188: 0 | AQ188: 0 | AR188: 0 | AS188: 0 | AT188: 0 | AU188: 0 | AV188: 0 | AW188: 0 | AX188: 0 | AY188: 0 | AZ188: 0 | BA188: 0 | BB188: 0 | BC188: 0 | BD188: 0 | BE188: 0 | BF188: 0 | BG188: 0 | BH188: 0 | BI188: 0 | BJ188: 0 | BK188: 0 | BL188: 0 | BM188: 0 | BN188: 0 | BO188: 0 | BP188: 0 | BQ188: 0 | BR188: 0 | BS188: 0 | BT188: 0 | BU188: 0 | BV188: 0 | BW188: 0 | BX188: 0 | BY188: 0 | BZ188: 0 | CA188: 0 | CB188: 0 | CC188: 0 | CD188: 0 | CE188: 0 | CF188: 0 | CG188: 0 | CH188: 0 | CI188: 0 | CJ188: 0 | CK188: 0 | CL188: 0 | CM188: 0 | CN188: 0 | CO188: 0 | CP188: 0 | CQ188: 0 | CR188: 0 | CS188: 0 | CT188: 0 | CU188: 0 | CV188: 0 | CW188: 0 | CX188: 0 | CY188: 0 | CZ188: 0 | DA188: 0 | DB188: 0 | DC188: 0 | DD188: 0 | DE188: 0 | DF188: 0 | DG188: 0 | DH188: 0 | DI188: 0 | DJ188: 0 | DK188: 0 | DL188: 0 | DM188: 0 | DN188: 0 | DO188: 0 | DP188: 0 | DQ188: 0 | DR188: 0 | DS188: 0 | DT188: 0 | DU188: 0 | DV188: 0 | DW188: 0 | DX188: 0 | DY188: 0 | DZ188: 0 | EA188: 0 | EB188: 0
A189: 159 | B189: 0 | C189: 0 | D189: 0 | E189: 0 | F189: 0 | G189: 0 | H189: 0 | I189: 0 | J189: 0 | K189: 0 | L189: 0 | M189: 0 | N189: 0 | O189: 0 | P189: 0 | Q189: 0 | R189: 0 | S189: 0 | T189: 0 | U189: 0 | V189: 0 | W189: 0 | X189: 0 | Y189: 0 | Z189: 0 | AA189: 0 | AB189: 0 | AC189: 0 | AD189: 0 | AE189: 0 | AF189: 0 | AG189: 0 | AH189: 0 | AI189: 0 | AJ189: 0 | AK189: 0 | AL189: 0 | AM189: 0 | AN189: 0 | AO189: 0 | AP189: 0 | AQ189: 0 | AR189: 0 | AS189: 0 | AT189: 0 | AU189: 0 | AV189: 0 | AW189: 0 | AX189: 0 | AY189: 0 | AZ189: 0 | BA189: 0 | BB189: 0 | BC189: 0 | BD189: 0 | BE189: 0 | BF189: 0 | BG189: 0 | BH189: 0 | BI189: 0 | BJ189: 0 | BK189: 0 | BL189: 0 | BM189: 0 | BN189: 0 | BO189: 0 | BP189: 0 | BQ189: 0 | BR189: 0 | BS189: 0 | BT189: 0 | BU189: 0 | BV189: 0 | BW189: 0 | BX189: 0 | BY189: 0 | BZ189: 0 | CA189: 0 | CB189: 0 | CC189: 0 | CD189: 0 | CE189: 0 | CF189: 0 | CG189: 0 | CH189: 0 | CI189: 0 | CJ189: 0 | CK189: 0 | CL189: 0 | CM189: 0 | CN189: 0 | CO189: 0 | CP189: 0 | CQ189: 0 | CR189: 0 | CS189: 0 | CT189: 0 | CU189: 0 | CV189: 0 | CW189: 0 | CX189: 0 | CY189: 0 | CZ189: 0 | DA189: 0 | DB189: 0 | DC189: 0 | DD189: 0 | DE189: 0 | DF189: 0 | DG189: 0 | DH189: 0 | DI189: 0 | DJ189: 0 | DK189: 0 | DL189: 0 | DM189: 0 | DN189: 0 | DO189: 0 | DP189: 0 | DQ189: 0 | DR189: 0 | DS189: 0 | DT189: 0 | DU189: 0 | DV189: 0 | DW189: 0 | DX189: 0 | DY189: 0 | DZ189: 0 | EA189: 0 | EB189: 0
A190: 160 | B190: 0 | C190: 0 | D190: 0 | E190: 0 | F190: 0 | G190: 0 | H190: 0 | I190: 0 | J190: 0 | K190: 0 | L190: 0 | M190: 0 | N190: 0 | O190: 0 | P190: 0 | Q190: 0 | R190: 0 | S190: 0 | T190: 0 | U190: 0 | V190: 0 | W190: 0 | X190: 0 | Y190: 0 | Z190: 0 | AA190: 0 | AB190: 0 | AC190: 0 | AD190: 0 | AE190: 0 | AF190: 0 | AG190: 0 | AH190: 0 | AI190: 0 | AJ190: 0 | AK190: 0 | AL190: 0 | AM190: 0 | AN190: 0 | AO190: 0 | AP190: 0 | AQ190: 0 | AR190: 0 | AS190: 0 | AT190: 0 | AU190: 0 | AV190: 0 | AW190: 0 | AX190: 0 | AY190: 0 | AZ190: 0 | BA190: 0 | BB190: 0 | BC190: 0 | BD190: 0 | BE190: 0 | BF190: 0 | BG190: 0 | BH190: 0 | BI190: 0 | BJ190: 0 | BK190: 0 | BL190: 0 | BM190: 0 | BN190: 0 | BO190: 0 | BP190: 0 | BQ190: 0 | BR190: 0 | BS190: 0 | BT190: 0 | BU190: 0 | BV190: 0 | BW190: 0 | BX190: 0 | BY190: 0 | BZ190: 0 | CA190: 0 | CB190: 0 | CC190: 0 | CD190: 0 | CE190: 0 | CF190: 0 | CG190: 0 | CH190: 0 | CI190: 0 | CJ190: 0 | CK190: 0 | CL190: 0 | CM190: 0 | CN190: 0 | CO190: 0 | CP190: 0 | CQ190: 0 | CR190: 0 | CS190: 0 | CT190: 0 | CU190: 0 | CV190: 0 | CW190: 0 | CX190: 0 | CY190: 0 | CZ190: 0 | DA190: 0 | DB190: 0 | DC190: 0 | DD190: 0 | DE190: 0 | DF190: 0 | DG190: 0 | DH190: 0 | DI190: 0 | DJ190: 0 | DK190: 0 | DL190: 0 | DM190: 0 | DN190: 0 | DO190: 0 | DP190: 0 | DQ190: 0 | DR190: 0 | DS190: 0 | DT190: 0 | DU190: 0 | DV190: 0 | DW190: 0 | DX190: 0 | DY190: 0 | DZ190: 0 | EA190: 0 | EB190: 0
A191: 161 | B191: 0 | C191: 0 | D191: 0 | E191: 0 | F191: 0 | G191: 0 | H191: 0 | I191: 0 | J191: 0 | K191: 0 | L191: 0 | M191: 0 | N191: 0 | O191: 0 | P191: 0 | Q191: 0 | R191: 0 | S191: =INDIRECT($C$33&S$32&ROW()-$C$34) -> 0 | T191: 0 | U191: 0 | V191: 0 | W191: 0 | X191: 0 | Y191: 0 | Z191: 0 | AA191: 0 | AB191: 0 | AC191: 0 | AD191: 0 | AE191: 0 | AF191: 0 | AG191: 0 | AH191: 0 | AI191: =INDIRECT($C$33&AI$32&ROW()-$C$34) -> 0 | AJ191: 0 | AK191: 0 | AL191: 0 | AM191: 0 | AN191: 0 | AO191: 0 | AP191: 0 | AQ191: 0 | AR191: 0 | AS191: 0 | AT191: 0 | AU191: 0 | AV191: 0 | AW191: 0 | AX191: 0 | AY191: =INDIRECT($C$33&AY$32&ROW()-$C$34) -> 0 | AZ191: 0 | BA191: 0 | BB191: 0 | BC191: 0 | BD191: 0 | BE191: 0 | BF191: 0 | BG191: 0 | BH191: 0 | BI191: 0 | BJ191: 0 | BK191: 0 | BL191: 0 | BM191: 0 | BN191: 0 | BO191: =INDIRECT($C$33&BO$32&ROW()-$C$34) -> 0 | BP191: 0 | BQ191: 0 | BR191: 0 | BS191: 0 | BT191: 0 | BU191: 0 | BV191: 0 | BW191: 0 | BX191: 0 | BY191: 0 | BZ191: 0 | CA191: 0 | CB191: 0 | CC191: 0 | CD191: 0 | CE191: =INDIRECT($C$33&CE$32&ROW()-$C$34) -> 0 | CF191: 0 | CG191: 0 | CH191: 0 | CI191: 0 | CJ191: 0 | CK191: 0 | CL191: 0 | CM191: 0 | CN191: 0 | CO191: 0 | CP191: 0 | CQ191: 0 | CR191: 0 | CS191: 0 | CT191: 0 | CU191: =INDIRECT($C$33&CU$32&ROW()-$C$34) -> 0 | CV191: 0 | CW191: 0 | CX191: 0 | CY191: 0 | CZ191: 0 | DA191: 0 | DB191: 0 | DC191: 0 | DD191: 0 | DE191: 0 | DF191: 0 | DG191: 0 | DH191: 0 | DI191: 0 | DJ191: 0 | DK191: 0 | DL191: 0 | DM191: 0 | DN191: 0 | DO191: 0 | DP191: 0 | DQ191: 0 | DR191: 0 | DS191: 0 | DT191: 0 | DU191: 0 | DV191: 0 | DW191: 0 | DX191: 0 | DY191: 0 | DZ191: 0 | EA191: 0 | EB191: 0
A192: 162 | B192: 0 | C192: =INDIRECT($C$33&C$32&ROW()-$C$34) -> 0 | D192: 0 | E192: 0 | F192: 0 | G192: 0 | H192: 0 | I192: 0 | J192: 0 | K192: 0 | L192: 0 | M192: 0 | N192: 0 | O192: 0 | P192: 0 | Q192: 0 | R192: 0 | S192: 0 | T192: 0 | U192: 0 | V192: 0 | W192: 0 | X192: 0 | Y192: 0 | Z192: 0 | AA192: 0 | AB192: 0 | AC192: 0 | AD192: 0 | AE192: 0 | AF192: 0 | AG192: 0 | AH192: 0 | AI192: 0 | AJ192: 0 | AK192: 0 | AL192: 0 | AM192: 0 | AN192: 0 | AO192: 0 | AP192: 0 | AQ192: 0 | AR192: 0 | AS192: 0 | AT192: 0 | AU192: 0 | AV192: 0 | AW192: 0 | AX192: 0 | AY192: 0 | AZ192: 0 | BA192: 0 | BB192: 0 | BC192: 0 | BD192: 0 | BE192: 0 | BF192: 0 | BG192: 0 | BH192: 0 | BI192: 0 | BJ192: 0 | BK192: 0 | BL192: 0 | BM192: 0 | BN192: 0 | BO192: 0 | BP192: 0 | BQ192: 0 | BR192: 0 | BS192: 0 | BT192: 0 | BU192: 0 | BV192: 0 | BW192: 0 | BX192: 0 | BY192: 0 | BZ192: 0 | CA192: 0 | CB192: 0 | CC192: 0 | CD192: 0 | CE192: 0 | CF192: 0 | CG192: 0 | CH192: 0 | CI192: 0 | CJ192: 0 | CK192: 0 | CL192: 0 | CM192: 0 | CN192: 0 | CO192: 0 | CP192: 0 | CQ192: 0 | CR192: 0 | CS192: 0 | CT192: 0 | CU192: 0 | CV192: 0 | CW192: 0 | CX192: 0 | CY192: 0 | CZ192: 0 | DA192: 0 | DB192: 0 | DC192: 0 | DD192: 0 | DE192: 0 | DF192: 0 | DG192: 0 | DH192: 0 | DI192: 0 | DJ192: 0 | DK192: 0 | DL192: 0 | DM192: 0 | DN192: 0 | DO192: 0 | DP192: 0 | DQ192: 0 | DR192: 0 | DS192: 0 | DT192: 0 | DU192: 0 | DV192: 0 | DW192: 0 | DX192: 0 | DY192: 0 | DZ192: 0 | EA192: 0 | EB192: 0
A193: 163 | B193: 0 | C193: 0 | D193: 0 | E193: 0 | F193: 0 | G193: 0 | H193: 0 | I193: 0 | J193: 0 | K193: 0 | L193: 0 | M193: 0 | N193: 0 | O193: 0 | P193: 0 | Q193: 0 | R193: 0 | S193: 0 | T193: 0 | U193: 0 | V193: 0 | W193: 0 | X193: 0 | Y193: 0 | Z193: 0 | AA193: 0 | AB193: 0 | AC193: 0 | AD193: 0 | AE193: 0 | AF193: 0 | AG193: 0 | AH193: 0 | AI193: 0 | AJ193: 0 | AK193: 0 | AL193: 0 | AM193: 0 | AN193: 0 | AO193: 0 | AP193: 0 | AQ193: 0 | AR193: 0 | AS193: 0 | AT193: 0 | AU193: 0 | AV193: 0 | AW193: 0 | AX193: 0 | AY193: 0 | AZ193: 0 | BA193: 0 | BB193: 0 | BC193: 0 | BD193: 0 | BE193: 0 | BF193: 0 | BG193: 0 | BH193: 0 | BI193: 0 | BJ193: 0 | BK193: 0 | BL193: 0 | BM193: 0 | BN193: 0 | BO193: 0 | BP193: 0 | BQ193: 0 | BR193: 0 | BS193: 0 | BT193: 0 | BU193: 0 | BV193: 0 | BW193: 0 | BX193: 0 | BY193: 0 | BZ193: 0 | CA193: 0 | CB193: 0 | CC193: 0 | CD193: 0 | CE193: 0 | CF193: 0 | CG193: 0 | CH193: 0 | CI193: 0 | CJ193: 0 | CK193: 0 | CL193: 0 | CM193: 0 | CN193: 0 | CO193: 0 | CP193: 0 | CQ193: 0 | CR193: 0 | CS193: 0 | CT193: 0 | CU193: 0 | CV193: 0 | CW193: 0 | CX193: 0 | CY193: 0 | CZ193: 0 | DA193: 0 | DB193: 0 | DC193: 0 | DD193: 0 | DE193: 0 | DF193: 0 | DG193: 0 | DH193: 0 | DI193: 0 | DJ193: 0 | DK193: 0 | DL193: 0 | DM193: 0 | DN193: 0 | DO193: 0 | DP193: 0 | DQ193: 0 | DR193: 0 | DS193: 0 | DT193: 0 | DU193: 0 | DV193: 0 | DW193: 0 | DX193: 0 | DY193: 0 | DZ193: 0 | EA193: 0 | EB193: 0
A194: 164 | B194: 0 | C194: 0 | D194: 0 | E194: 0 | F194: 0 | G194: 0 | H194: 0 | I194: 0 | J194: 0 | K194: 0 | L194: 0 | M194: 0 | N194: 0 | O194: 0 | P194: 0 | Q194: 0 | R194: 0 | S194: 0 | T194: 0 | U194: 0 | V194: 0 | W194: 0 | X194: 0 | Y194: 0 | Z194: 0 | AA194: 0 | AB194: 0 | AC194: 0 | AD194: 0 | AE194: 0 | AF194: 0 | AG194: 0 | AH194: 0 | AI194: 0 | AJ194: 0 | AK194: 0 | AL194: 0 | AM194: 0 | AN194: 0 | AO194: 0 | AP194: 0 | AQ194: 0 | AR194: 0 | AS194: 0 | AT194: 0 | AU194: 0 | AV194: 0 | AW194: 0 | AX194: 0 | AY194: 0 | AZ194: 0 | BA194: 0 | BB194: 0 | BC194: 0 | BD194: 0 | BE194: 0 | BF194: 0 | BG194: 0 | BH194: 0 | BI194: 0 | BJ194: 0 | BK194: 0 | BL194: 0 | BM194: 0 | BN194: 0 | BO194: 0 | BP194: 0 | BQ194: 0 | BR194: 0 | BS194: 0 | BT194: 0 | BU194: 0 | BV194: 0 | BW194: 0 | BX194: 0 | BY194: 0 | BZ194: 0 | CA194: 0 | CB194: 0 | CC194: 0 | CD194: 0 | CE194: 0 | CF194: 0 | CG194: 0 | CH194: 0 | CI194: 0 | CJ194: 0 | CK194: 0 | CL194: 0 | CM194: 0 | CN194: 0 | CO194: 0 | CP194: 0 | CQ194: 0 | CR194: 0 | CS194: 0 | CT194: 0 | CU194: 0 | CV194: 0 | CW194: 0 | CX194: 0 | CY194: 0 | CZ194: 0 | DA194: 0 | DB194: 0 | DC194: 0 | DD194: 0 | DE194: 0 | DF194: 0 | DG194: 0 | DH194: 0 | DI194: 0 | DJ194: 0 | DK194: 0 | DL194: 0 | DM194: 0 | DN194: 0 | DO194: 0 | DP194: 0 | DQ194: =INDIRECT($C$33&DQ$32&ROW()-$C$34) -> 0 | DR194: 0 | DS194: 0 | DT194: 0 | DU194: 0 | DV194: 0 | DW194: 0 | DX194: 0 | DY194: 0 | DZ194: 0 | EA194: 0 | EB194: 0
A195: 165 | B195: 0 | C195: 0 | D195: 0 | E195: 0 | F195: 0 | G195: 0 | H195: 0 | I195: 0 | J195: 0 | K195: 0 | L195: 0 | M195: 0 | N195: 0 | O195: 0 | P195: 0 | Q195: 0 | R195: 0 | S195: 0 | T195: 0 | U195: 0 | V195: 0 | W195: 0 | X195: 0 | Y195: 0 | Z195: 0 | AA195: 0 | AB195: 0 | AC195: 0 | AD195: 0 | AE195: 0 | AF195: 0 | AG195: 0 | AH195: 0 | AI195: 0 | AJ195: 0 | AK195: 0 | AL195: 0 | AM195: 0 | AN195: 0 | AO195: 0 | AP195: 0 | AQ195: 0 | AR195: 0 | AS195: 0 | AT195: 0 | AU195: 0 | AV195: 0 | AW195: 0 | AX195: 0 | AY195: 0 | AZ195: 0 | BA195: 0 | BB195: 0 | BC195: 0 | BD195: 0 | BE195: 0 | BF195: 0 | BG195: 0 | BH195: 0 | BI195: 0 | BJ195: 0 | BK195: 0 | BL195: 0 | BM195: 0 | BN195: 0 | BO195: 0 | BP195: 0 | BQ195: 0 | BR195: 0 | BS195: 0 | BT195: 0 | BU195: 0 | BV195: 0 | BW195: 0 | BX195: 0 | BY195: 0 | BZ195: 0 | CA195: 0 | CB195: 0 | CC195: 0 | CD195: 0 | CE195: 0 | CF195: 0 | CG195: 0 | CH195: 0 | CI195: 0 | CJ195: 0 | CK195: 0 | CL195: 0 | CM195: 0 | CN195: 0 | CO195: 0 | CP195: 0 | CQ195: 0 | CR195: 0 | CS195: 0 | CT195: 0 | CU195: 0 | CV195: 0 | CW195: 0 | CX195: 0 | CY195: 0 | CZ195: 0 | DA195: 0 | DB195: 0 | DC195: 0 | DD195: 0 | DE195: 0 | DF195: 0 | DG195: 0 | DH195: 0 | DI195: 0 | DJ195: 0 | DK195: 0 | DL195: 0 | DM195: 0 | DN195: 0 | DO195: 0 | DP195: 0 | DQ195: 0 | DR195: 0 | DS195: =INDIRECT($C$33&DS$32&ROW()-$C$34) -> 0 | DT195: 0 | DU195: 0 | DV195: 0 | DW195: 0 | DX195: 0 | DY195: 0 | DZ195: 0 | EA195: 0 | EB195: 0
A196: 166 | B196: 0 | C196: 0 | D196: 0 | E196: 0 | F196: 0 | G196: 0 | H196: 0 | I196: 0 | J196: 0 | K196: 0 | L196: 0 | M196: 0 | N196: 0 | O196: 0 | P196: 0 | Q196: 0 | R196: 0 | S196: 0 | T196: 0 | U196: 0 | V196: 0 | W196: 0 | X196: 0 | Y196: 0 | Z196: 0 | AA196: 0 | AB196: 0 | AC196: 0 | AD196: 0 | AE196: 0 | AF196: 0 | AG196: 0 | AH196: 0 | AI196: 0 | AJ196: 0 | AK196: 0 | AL196: 0 | AM196: 0 | AN196: 0 | AO196: 0 | AP196: 0 | AQ196: 0 | AR196: 0 | AS196: 0 | AT196: 0 | AU196: 0 | AV196: 0 | AW196: 0 | AX196: 0 | AY196: 0 | AZ196: 0 | BA196: 0 | BB196: 0 | BC196: 0 | BD196: 0 | BE196: 0 | BF196: 0 | BG196: 0 | BH196: 0 | BI196: 0 | BJ196: 0 | BK196: 0 | BL196: 0 | BM196: 0 | BN196: 0 | BO196: 0 | BP196: 0 | BQ196: 0 | BR196: 0 | BS196: 0 | BT196: 0 | BU196: 0 | BV196: 0 | BW196: 0 | BX196: 0 | BY196: 0 | BZ196: 0 | CA196: 0 | CB196: 0 | CC196: 0 | CD196: 0 | CE196: 0 | CF196: 0 | CG196: 0 | CH196: 0 | CI196: 0 | CJ196: 0 | CK196: 0 | CL196: 0 | CM196: 0 | CN196: 0 | CO196: 0 | CP196: 0 | CQ196: 0 | CR196: 0 | CS196: 0 | CT196: 0 | CU196: 0 | CV196: 0 | CW196: 0 | CX196: 0 | CY196: 0 | CZ196: 0 | DA196: 0 | DB196: 0 | DC196: 0 | DD196: 0 | DE196: 0 | DF196: 0 | DG196: 0 | DH196: 0 | DI196: 0 | DJ196: 0 | DK196: 0 | DL196: 0 | DM196: 0 | DN196: 0 | DO196: 0 | DP196: 0 | DQ196: 0 | DR196: 0 | DS196: 0 | DT196: 0 | DU196: 0 | DV196: 0 | DW196: 0 | DX196: 0 | DY196: 0 | DZ196: 0 | EA196: 0 | EB196: 0
A197: 167 | B197: 0 | C197: 0 | D197: 0 | E197: 0 | F197: 0 | G197: 0 | H197: 0 | I197: 0 | J197: 0 | K197: 0 | L197: 0 | M197: 0 | N197: 0 | O197: 0 | P197: 0 | Q197: 0 | R197: 0 | S197: 0 | T197: 0 | U197: 0 | V197: 0 | W197: 0 | X197: 0 | Y197: 0 | Z197: 0 | AA197: 0 | AB197: 0 | AC197: 0 | AD197: 0 | AE197: 0 | AF197: 0 | AG197: 0 | AH197: 0 | AI197: 0 | AJ197: 0 | AK197: 0 | AL197: 0 | AM197: 0 | AN197: 0 | AO197: 0 | AP197: 0 | AQ197: 0 | AR197: 0 | AS197: 0 | AT197: 0 | AU197: 0 | AV197: 0 | AW197: 0 | AX197: 0 | AY197: 0 | AZ197: 0 | BA197: 0 | BB197: 0 | BC197: 0 | BD197: 0 | BE197: 0 | BF197: 0 | BG197: 0 | BH197: 0 | BI197: 0 | BJ197: 0 | BK197: 0 | BL197: 0 | BM197: 0 | BN197: 0 | BO197: 0 | BP197: 0 | BQ197: 0 | BR197: 0 | BS197: 0 | BT197: 0 | BU197: 0 | BV197: 0 | BW197: 0 | BX197: 0 | BY197: 0 | BZ197: 0 | CA197: 0 | CB197: 0 | CC197: 0 | CD197: 0 | CE197: 0 | CF197: 0 | CG197: 0 | CH197: 0 | CI197: 0 | CJ197: 0 | CK197: 0 | CL197: 0 | CM197: 0 | CN197: 0 | CO197: 0 | CP197: 0 | CQ197: 0 | CR197: 0 | CS197: 0 | CT197: 0 | CU197: 0 | CV197: 0 | CW197: 0 | CX197: 0 | CY197: 0 | CZ197: 0 | DA197: 0 | DB197: 0 | DC197: 0 | DD197: 0 | DE197: 0 | DF197: 0 | DG197: 0 | DH197: 0 | DI197: 0 | DJ197: 0 | DK197: 0 | DL197: 0 | DM197: 0 | DN197: 0 | DO197: 0 | DP197: 0 | DQ197: 0 | DR197: 0 | DS197: 0 | DT197: 0 | DU197: 0 | DV197: 0 | DW197: 0 | DX197: 0 | DY197: 0 | DZ197: 0 | EA197: 0 | EB197: 0
A198: 168 | B198: 0 | C198: 0 | D198: 0 | E198: 0 | F198: 0 | G198: 0 | H198: 0 | I198: 0 | J198: 0 | K198: 0 | L198: 0 | M198: 0 | N198: 0 | O198: 0 | P198: 0 | Q198: 0 | R198: 0 | S198: 0 | T198: 0 | U198: 0 | V198: 0 | W198: 0 | X198: 0 | Y198: 0 | Z198: 0 | AA198: 0 | AB198: 0 | AC198: 0 | AD198: 0 | AE198: 0 | AF198: 0 | AG198: 0 | AH198: 0 | AI198: 0 | AJ198: 0 | AK198: 0 | AL198: 0 | AM198: 0 | AN198: 0 | AO198: 0 | AP198: 0 | AQ198: 0 | AR198: 0 | AS198: 0 | AT198: 0 | AU198: 0 | AV198: 0 | AW198: 0 | AX198: 0 | AY198: 0 | AZ198: 0 | BA198: 0 | BB198: 0 | BC198: 0 | BD198: 0 | BE198: 0 | BF198: 0 | BG198: 0 | BH198: 0 | BI198: 0 | BJ198: 0 | BK198: 0 | BL198: 0 | BM198: 0 | BN198: 0 | BO198: 0 | BP198: 0 | BQ198: 0 | BR198: 0 | BS198: 0 | BT198: 0 | BU198: 0 | BV198: 0 | BW198: 0 | BX198: 0 | BY198: 0 | BZ198: 0 | CA198: 0 | CB198: 0 | CC198: 0 | CD198: 0 | CE198: 0 | CF198: 0 | CG198: 0 | CH198: 0 | CI198: 0 | CJ198: 0 | CK198: 0 | CL198: 0 | CM198: 0 | CN198: 0 | CO198: 0 | CP198: 0 | CQ198: 0 | CR198: 0 | CS198: 0 | CT198: 0 | CU198: 0 | CV198: 0 | CW198: 0 | CX198: 0 | CY198: 0 | CZ198: 0 | DA198: 0 | DB198: 0 | DC198: 0 | DD198: 0 | DE198: 0 | DF198: 0 | DG198: 0 | DH198: 0 | DI198: 0 | DJ198: 0 | DK198: 0 | DL198: 0 | DM198: 0 | DN198: 0 | DO198: 0 | DP198: 0 | DQ198: 0 | DR198: 0 | DS198: 0 | DT198: 0 | DU198: 0 | DV198: 0 | DW198: 0 | DX198: 0 | DY198: 0 | DZ198: 0 | EA198: 0 | EB198: 0
A199: 169 | B199: 0 | C199: 0 | D199: 0 | E199: 0 | F199: 0 | G199: 0 | H199: 0 | I199: 0 | J199: 0 | K199: 0 | L199: 0 | M199: 0 | N199: 0 | O199: 0 | P199: 0 | Q199: 0 | R199: 0 | S199: 0 | T199: 0 | U199: 0 | V199: 0 | W199: 0 | X199: 0 | Y199: 0 | Z199: 0 | AA199: 0 | AB199: 0 | AC199: 0 | AD199: 0 | AE199: 0 | AF199: 0 | AG199: 0 | AH199: 0 | AI199: 0 | AJ199: 0 | AK199: 0 | AL199: 0 | AM199: 0 | AN199: 0 | AO199: 0 | AP199: 0 | AQ199: 0 | AR199: 0 | AS199: 0 | AT199: 0 | AU199: 0 | AV199: 0 | AW199: 0 | AX199: 0 | AY199: 0 | AZ199: 0 | BA199: 0 | BB199: 0 | BC199: 0 | BD199: 0 | BE199: 0 | BF199: 0 | BG199: 0 | BH199: 0 | BI199: 0 | BJ199: 0 | BK199: 0 | BL199: 0 | BM199: 0 | BN199: 0 | BO199: 0 | BP199: 0 | BQ199: 0 | BR199: 0 | BS199: 0 | BT199: 0 | BU199: 0 | BV199: 0 | BW199: 0 | BX199: 0 | BY199: 0 | BZ199: 0 | CA199: 0 | CB199: 0 | CC199: 0 | CD199: 0 | CE199: 0 | CF199: 0 | CG199: 0 | CH199: 0 | CI199: 0 | CJ199: 0 | CK199: 0 | CL199: 0 | CM199: 0 | CN199: 0 | CO199: 0 | CP199: 0 | CQ199: 0 | CR199: 0 | CS199: 0 | CT199: 0 | CU199: 0 | CV199: 0 | CW199: 0 | CX199: 0 | CY199: 0 | CZ199: 0 | DA199: 0 | DB199: 0 | DC199: 0 | DD199: 0 | DE199: 0 | DF199: 0 | DG199: 0 | DH199: 0 | DI199: 0 | DJ199: 0 | DK199: 0 | DL199: 0 | DM199: 0 | DN199: 0 | DO199: 0 | DP199: 0 | DQ199: 0 | DR199: 0 | DS199: 0 | DT199: 0 | DU199: 0 | DV199: 0 | DW199: 0 | DX199: 0 | DY199: 0 | DZ199: 0 | EA199: 0 | EB199: 0
A200: 170 | B200: 0 | C200: 0 | D200: 0 | E200: 0 | F200: 0 | G200: 0 | H200: 0 | I200: 0 | J200: 0 | K200: 0 | L200: 0 | M200: 0 | N200: 0 | O200: 0 | P200: 0 | Q200: 0 | R200: 0 | S200: 0 | T200: 0 | U200: 0 | V200: 0 | W200: 0 | X200: 0 | Y200: 0 | Z200: 0 | AA200: 0 | AB200: 0 | AC200: 0 | AD200: 0 | AE200: 0 | AF200: 0 | AG200: 0 | AH200: 0 | AI200: 0 | AJ200: 0 | AK200: 0 | AL200: 0 | AM200: 0 | AN200: 0 | AO200: 0 | AP200: 0 | AQ200: 0 | AR200: 0 | AS200: 0 | AT200: 0 | AU200: 0 | AV200: 0 | AW200: 0 | AX200: 0 | AY200: 0 | AZ200: 0 | BA200: 0 | BB200: 0 | BC200: 0 | BD200: 0 | BE200: 0 | BF200: 0 | BG200: 0 | BH200: 0 | BI200: 0 | BJ200: 0 | BK200: 0 | BL200: 0 | BM200: 0 | BN200: 0 | BO200: 0 | BP200: 0 | BQ200: 0 | BR200: 0 | BS200: 0 | BT200: 0 | BU200: 0 | BV200: 0 | BW200: 0 | BX200: 0 | BY200: 0 | BZ200: 0 | CA200: 0 | CB200: 0 | CC200: 0 | CD200: 0 | CE200: 0 | CF200: 0 | CG200: 0 | CH200: 0 | CI200: 0 | CJ200: 0 | CK200: 0 | CL200: 0 | CM200: 0 | CN200: 0 | CO200: 0 | CP200: 0 | CQ200: 0 | CR200: 0 | CS200: 0 | CT200: 0 | CU200: 0 | CV200: 0 | CW200: 0 | CX200: 0 | CY200: 0 | CZ200: 0 | DA200: 0 | DB200: 0 | DC200: 0 | DD200: 0 | DE200: 0 | DF200: 0 | DG200: 0 | DH200: 0 | DI200: 0 | DJ200: 0 | DK200: 0 | DL200: 0 | DM200: 0 | DN200: 0 | DO200: 0 | DP200: 0 | DQ200: 0 | DR200: 0 | DS200: 0 | DT200: 0 | DU200: 0 | DV200: 0 | DW200: 0 | DX200: 0 | DY200: 0 | DZ200: 0 | EA200: 0 | EB200: 0
A201: 171 | B201: 0 | C201: 0 | D201: 0 | E201: 0 | F201: 0 | G201: 0 | H201: 0 | I201: 0 | J201: 0 | K201: 0 | L201: 0 | M201: 0 | N201: 0 | O201: 0 | P201: 0 | Q201: 0 | R201: 0 | S201: 0 | T201: 0 | U201: 0 | V201: 0 | W201: 0 | X201: 0 | Y201: 0 | Z201: 0 | AA201: 0 | AB201: 0 | AC201: 0 | AD201: 0 | AE201: 0 | AF201: 0 | AG201: 0 | AH201: 0 | AI201: 0 | AJ201: 0 | AK201: 0 | AL201: 0 | AM201: 0 | AN201: 0 | AO201: 0 | AP201: 0 | AQ201: 0 | AR201: 0 | AS201: 0 | AT201: 0 | AU201: 0 | AV201: 0 | AW201: 0 | AX201: 0 | AY201: 0 | AZ201: 0 | BA201: 0 | BB201: 0 | BC201: 0 | BD201: 0 | BE201: 0 | BF201: 0 | BG201: 0 | BH201: 0 | BI201: 0 | BJ201: 0 | BK201: 0 | BL201: 0 | BM201: 0 | BN201: 0 | BO201: 0 | BP201: 0 | BQ201: 0 | BR201: 0 | BS201: 0 | BT201: 0 | BU201: 0 | BV201: 0 | BW201: 0 | BX201: 0 | BY201: 0 | BZ201: 0 | CA201: 0 | CB201: 0 | CC201: 0 | CD201: 0 | CE201: 0 | CF201: 0 | CG201: 0 | CH201: 0 | CI201: 0 | CJ201: 0 | CK201: 0 | CL201: 0 | CM201: 0 | CN201: 0 | CO201: 0 | CP201: 0 | CQ201: 0 | CR201: 0 | CS201: 0 | CT201: 0 | CU201: 0 | CV201: 0 | CW201: 0 | CX201: 0 | CY201: 0 | CZ201: 0 | DA201: 0 | DB201: 0 | DC201: 0 | DD201: 0 | DE201: 0 | DF201: 0 | DG201: 0 | DH201: 0 | DI201: 0 | DJ201: 0 | DK201: 0 | DL201: 0 | DM201: 0 | DN201: 0 | DO201: 0 | DP201: 0 | DQ201: 0 | DR201: 0 | DS201: 0 | DT201: 0 | DU201: 0 | DV201: 0 | DW201: 0 | DX201: 0 | DY201: 0 | DZ201: 0 | EA201: 0 | EB201: 0
A202: 172 | B202: 0 | C202: 0 | D202: 0 | E202: 0 | F202: 0 | G202: 0 | H202: 0 | I202: 0 | J202: 0 | K202: 0 | L202: 0 | M202: 0 | N202: 0 | O202: 0 | P202: 0 | Q202: 0 | R202: 0 | S202: 0 | T202: 0 | U202: 0 | V202: 0 | W202: 0 | X202: 0 | Y202: 0 | Z202: 0 | AA202: 0 | AB202: 0 | AC202: 0 | AD202: 0 | AE202: 0 | AF202: 0 | AG202: 0 | AH202: 0 | AI202: 0 | AJ202: 0 | AK202: 0 | AL202: 0 | AM202: 0 | AN202: 0 | AO202: 0 | AP202: 0 | AQ202: 0 | AR202: 0 | AS202: 0 | AT202: 0 | AU202: 0 | AV202: 0 | AW202: 0 | AX202: 0 | AY202: 0 | AZ202: 0 | BA202: 0 | BB202: 0 | BC202: 0 | BD202: 0 | BE202: 0 | BF202: 0 | BG202: 0 | BH202: 0 | BI202: 0 | BJ202: 0 | BK202: 0 | BL202: 0 | BM202: 0 | BN202: 0 | BO202: 0 | BP202: 0 | BQ202: 0 | BR202: 0 | BS202: 0 | BT202: 0 | BU202: 0 | BV202: 0 | BW202: 0 | BX202: 0 | BY202: 0 | BZ202: 0 | CA202: 0 | CB202: 0 | CC202: 0 | CD202: 0 | CE202: 0 | CF202: 0 | CG202: 0 | CH202: 0 | CI202: 0 | CJ202: 0 | CK202: 0 | CL202: 0 | CM202: 0 | CN202: 0 | CO202: 0 | CP202: 0 | CQ202: 0 | CR202: 0 | CS202: 0 | CT202: 0 | CU202: 0 | CV202: 0 | CW202: 0 | CX202: 0 | CY202: 0 | CZ202: 0 | DA202: 0 | DB202: 0 | DC202: 0 | DD202: 0 | DE202: 0 | DF202: 0 | DG202: 0 | DH202: 0 | DI202: 0 | DJ202: 0 | DK202: 0 | DL202: 0 | DM202: 0 | DN202: 0 | DO202: 0 | DP202: 0 | DQ202: 0 | DR202: 0 | DS202: 0 | DT202: 0 | DU202: 0 | DV202: 0 | DW202: 0 | DX202: 0 | DY202: 0 | DZ202: 0 | EA202: 0 | EB202: 0
A203: 173 | B203: 0 | C203: 0 | D203: 0 | E203: 0 | F203: 0 | G203: 0 | H203: 0 | I203: 0 | J203: 0 | K203: 0 | L203: 0 | M203: 0 | N203: 0 | O203: 0 | P203: 0 | Q203: 0 | R203: 0 | S203: 0 | T203: 0 | U203: 0 | V203: 0 | W203: 0 | X203: 0 | Y203: 0 | Z203: 0 | AA203: 0 | AB203: 0 | AC203: 0 | AD203: 0 | AE203: 0 | AF203: 0 | AG203: 0 | AH203: 0 | AI203: 0 | AJ203: 0 | AK203: 0 | AL203: 0 | AM203: 0 | AN203: 0 | AO203: 0 | AP203: 0 | AQ203: 0 | AR203: 0 | AS203: 0 | AT203: 0 | AU203: 0 | AV203: 0 | AW203: 0 | AX203: 0 | AY203: 0 | AZ203: 0 | BA203: 0 | BB203: 0 | BC203: 0 | BD203: 0 | BE203: 0 | BF203: 0 | BG203: 0 | BH203: 0 | BI203: 0 | BJ203: 0 | BK203: 0 | BL203: 0 | BM203: 0 | BN203: 0 | BO203: 0 | BP203: 0 | BQ203: 0 | BR203: 0 | BS203: 0 | BT203: 0 | BU203: 0 | BV203: 0 | BW203: 0 | BX203: 0 | BY203: 0 | BZ203: 0 | CA203: 0 | CB203: 0 | CC203: 0 | CD203: 0 | CE203: 0 | CF203: 0 | CG203: 0 | CH203: 0 | CI203: 0 | CJ203: 0 | CK203: 0 | CL203: 0 | CM203: 0 | CN203: 0 | CO203: 0 | CP203: 0 | CQ203: 0 | CR203: 0 | CS203: 0 | CT203: 0 | CU203: 0 | CV203: 0 | CW203: 0 | CX203: 0 | CY203: 0 | CZ203: 0 | DA203: 0 | DB203: 0 | DC203: 0 | DD203: 0 | DE203: 0 | DF203: 0 | DG203: 0 | DH203: 0 | DI203: 0 | DJ203: 0 | DK203: 0 | DL203: 0 | DM203: 0 | DN203: 0 | DO203: 0 | DP203: 0 | DQ203: 0 | DR203: 0 | DS203: 0 | DT203: 0 | DU203: 0 | DV203: 0 | DW203: 0 | DX203: 0 | DY203: 0 | DZ203: 0 | EA203: 0 | EB203: 0
A204: 174 | B204: 0 | C204: 0 | D204: 0 | E204: 0 | F204: 0 | G204: 0 | H204: 0 | I204: 0 | J204: 0 | K204: 0 | L204: 0 | M204: 0 | N204: 0 | O204: 0 | P204: 0 | Q204: 0 | R204: 0 | S204: 0 | T204: 0 | U204: 0 | V204: 0 | W204: 0 | X204: 0 | Y204: 0 | Z204: 0 | AA204: 0 | AB204: 0 | AC204: 0 | AD204: 0 | AE204: 0 | AF204: 0 | AG204: 0 | AH204: 0 | AI204: 0 | AJ204: 0 | AK204: 0 | AL204: 0 | AM204: 0 | AN204: 0 | AO204: 0 | AP204: 0 | AQ204: 0 | AR204: 0 | AS204: 0 | AT204: 0 | AU204: 0 | AV204: 0 | AW204: 0 | AX204: 0 | AY204: 0 | AZ204: 0 | BA204: 0 | BB204: 0 | BC204: 0 | BD204: 0 | BE204: 0 | BF204: 0 | BG204: 0 | BH204: 0 | BI204: 0 | BJ204: 0 | BK204: 0 | BL204: 0 | BM204: 0 | BN204: 0 | BO204: 0 | BP204: 0 | BQ204: 0 | BR204: 0 | BS204: 0 | BT204: 0 | BU204: 0 | BV204: 0 | BW204: 0 | BX204: 0 | BY204: 0 | BZ204: 0 | CA204: 0 | CB204: 0 | CC204: 0 | CD204: 0 | CE204: 0 | CF204: 0 | CG204: 0 | CH204: 0 | CI204: 0 | CJ204: 0 | CK204: 0 | CL204: 0 | CM204: 0 | CN204: 0 | CO204: 0 | CP204: 0 | CQ204: 0 | CR204: 0 | CS204: 0 | CT204: 0 | CU204: 0 | CV204: 0 | CW204: 0 | CX204: 0 | CY204: 0 | CZ204: 0 | DA204: 0 | DB204: 0 | DC204: 0 | DD204: 0 | DE204: 0 | DF204: 0 | DG204: 0 | DH204: 0 | DI204: 0 | DJ204: 0 | DK204: 0 | DL204: 0 | DM204: 0 | DN204: 0 | DO204: 0 | DP204: 0 | DQ204: 0 | DR204: 0 | DS204: 0 | DT204: 0 | DU204: 0 | DV204: 0 | DW204: 0 | DX204: 0 | DY204: 0 | DZ204: 0 | EA204: 0 | EB204: 0
... 30 more rows

Sheet TheArtOfExcel ©
B2: Editable Dashboard 2016 Created By Arsen Makaryan - TheArtOfExcel

Sheet DashBoard
C7: =VLOOKUP(Settings!D7,Settings!E7:G29,3,0) -> Opel sells
B8: =Settings!B10 -> 5 | E8: =IFERROR(HLOOKUP(Settings!B$4,TheDate,$B8,0),"") -> 2017-11-30 | F8: =IFERROR(HLOOKUP(Settings!C$4,TheDate,$B8,0),"") -> 2018-11-30 | G8: =IFERROR(HLOOKUP(Settings!D$4,TheDate,$B8,0),"") -> 2019-11-30 | H8: =IFERROR(HLOOKUP(Settings!E$4,TheDate,$B8,0),"") -> 2020-11-30 | I8: =IFERROR(HLOOKUP(Settings!F$4,TheDate,$B8,0),"") -> 2021-11-30 | J8: =IFERROR(HLOOKUP(Settings!G$4,TheDate,$B8,0),"") -> 2022-11-30
B9: =IF(Settings!B11>Settings!B12,Settings!B12,Settings!B11) -> 6 | C9: =IFERROR(HLOOKUP("Hodvac",TheDate,$B9,0),"") -> Opel Adam | E9: =IFERROR(HLOOKUP(Settings!B$4,TheDate,$B9,0),"") -> 111 | F9: =IFERROR(HLOOKUP(Settings!C$4,TheDate,$B9,0),"") -> 273 | G9: =IFERROR(HLOOKUP(Settings!D$4,TheDate,$B9,0),"") -> 403 | H9: =IFERROR(HLOOKUP(Settings!E$4,TheDate,$B9,0),"") -> 443 | I9: =IFERROR(HLOOKUP(Settings!F$4,TheDate,$B9,0),"") -> 262 | J9: =IFERROR(HLOOKUP(Settings!G$4,TheDate,$B9,0),"") -> 462
B10: =B9+1 -> 7 | C10: Opel Admiral | E10: =IFERROR(HLOOKUP(Settings!B$4,TheDate,$B10,0),"") -> 459 | F10: =IFERROR(HLOOKUP(Settings!C$4,TheDate,$B10,0),"") -> 249 | G10: =IFERROR(HLOOKUP(Settings!D$4,TheDate,$B10,0),"") -> 324 | H10: =IFERROR(HLOOKUP(Settings!E$4,TheDate,$B10,0),"") -> 122 | I10: =IFERROR(HLOOKUP(Settings!F$4,TheDate,$B10,0),"") -> 454 | J10: =IFERROR(HLOOKUP(Settings!G$4,TheDate,$B10,0),"") -> 242
B11: 8 | C11: Opel Agila | E11: =IFERROR(HLOOKUP(Settings!B$4,TheDate,$B11,0),"") -> 130 | F11: =IFERROR(HLOOKUP(Settings!C$4,TheDate,$B11,0),"") -> 327 | G11: =IFERROR(HLOOKUP(Settings!D$4,TheDate,$B11,0),"") -> 488 | H11: =IFERROR(HLOOKUP(Settings!E$4,TheDate,$B11,0),"") -> 447 | I11: =IFERROR(HLOOKUP(Settings!F$4,TheDate,$B11,0),"") -> 189 | J11: =IFERROR(HLOOKUP(Settings!G$4,TheDate,$B11,0),"") -> 135
B12: 9 | C12: Opel Ampera | E12: =IFERROR(HLOOKUP(Settings!B$4,TheDate,$B12,0),"") -> 351 | F12: =IFERROR(HLOOKUP(Settings!C$4,TheDate,$B12,0),"") -> 460 | G12: =IFERROR(HLOOKUP(Settings!D$4,TheDate,$B12,0),"") -> 152 | H12: =IFERROR(HLOOKUP(Settings!E$4,TheDate,$B12,0),"") -> 274 | I12: =IFERROR(HLOOKUP(Settings!F$4,TheDate,$B12,0),"") -> 469 | J12: =IFERROR(HLOOKUP(Settings!G$4,TheDate,$B12,0),"") -> 344
B13: 10 | C13: Opel Antara | E13: =IFERROR(HLOOKUP(Settings!B$4,TheDate,$B13,0),"") -> 472 | F13: =IFERROR(HLOOKUP(Settings!C$4,TheDate,$B13,0),"") -> 123 | G13: =IFERROR(HLOOKUP(Settings!D$4,TheDate,$B13,0),"") -> 177 | H13: =IFERROR(HLOOKUP(Settings!E$4,TheDate,$B13,0),"") -> 135 | I13: =IFERROR(HLOOKUP(Settings!F$4,TheDate,$B13,0),"") -> 103 | J13: =IFERROR(HLOOKUP(Settings!G$4,TheDate,$B13,0),"") -> 411
B14: 11 | C14: Opel Ascona | E14: =IFERROR(HLOOKUP(Settings!B$4,TheDate,$B14,0),"") -> 152 | F14: =IFERROR(HLOOKUP(Settings!C$4,TheDate,$B14,0),"") -> 218 | G14: =IFERROR(HLOOKUP(Settings!D$4,TheDate,$B14,0),"") -> 112 | H14: =IFERROR(HLOOKUP(Settings!E$4,TheDate,$B14,0),"") -> 302 | I14: =IFERROR(HLOOKUP(Settings!F$4,TheDate,$B14,0),"") -> 438 | J14: =IFERROR(HLOOKUP(Settings!G$4,TheDate,$B14,0),"") -> 162 | M14: =Text!D3 -> There is no comment
B15: 12 | C15: Opel Astra | E15: =IFERROR(HLOOKUP(Settings!B$4,TheDate,$B15,0),"") -> 201 | F15: =IFERROR(HLOOKUP(Settings!C$4,TheDate,$B15,0),"") -> 299 | G15: =IFERROR(HLOOKUP(Settings!D$4,TheDate,$B15,0),"") -> 480 | H15: =IFERROR(HLOOKUP(Settings!E$4,TheDate,$B15,0),"") -> 276 | I15: =IFERROR(HLOOKUP(Settings!F$4,TheDate,$B15,0),"") -> 426 | J15: =IFERROR(HLOOKUP(Settings!G$4,TheDate,$B15,0),"") -> 180
B16: 13 | C16: Opel Astra Cabrio | E16: =IFERROR(HLOOKUP(Settings!B$4,TheDate,$B16,0),"") -> 222 | F16: =IFERROR(HLOOKUP(Settings!C$4,TheDate,$B16,0),"") -> 329 | G16: =IFERROR(HLOOKUP(Settings!D$4,TheDate,$B16,0),"") -> 246 | H16: =IFERROR(HLOOKUP(Settings!E$4,TheDate,$B16,0),"") -> 324 | I16: =IFERROR(HLOOKUP(Settings!F$4,TheDate,$B16,0),"") -> 270 | J16: =IFERROR(HLOOKUP(Settings!G$4,TheDate,$B16,0),"") -> 461
B17: 14 | C17: Opel Astra Coupe Bertone | E17: =IFERROR(HLOOKUP(Settings!B$4,TheDate,$B17,0),"") -> 498 | F17: =IFERROR(HLOOKUP(Settings!C$4,TheDate,$B17,0),"") -> 441 | G17: =IFERROR(HLOOKUP(Settings!D$4,TheDate,$B17,0),"") -> 430 | H17: =IFERROR(HLOOKUP(Settings!E$4,TheDate,$B17,0),"") -> 235 | I17: =IFERROR(HLOOKUP(Settings!F$4,TheDate,$B17,0),"") -> 469 | J17: =IFERROR(HLOOKUP(Settings!G$4,TheDate,$B17,0),"") -> 303
J18: Report Template created By Arsen Makaryan - TheArtOfExcel

Sheet Opel
A1: Opel sells | B1: 2016-01-31 | C1: 2016-02-28 | D1: 2016-03-31 | E1: 2016-04-30 | F1: 2016-05-31 | G1: 2016-06-30 | H1: 2016-07-31 | I1: 2016-08-31 | J1: 2016-09-30 | K1: 2016-10-31 | L1: 2016-11-30 | M1: 2016-12-31 | N1: 2017-01-31 | O1: 2017-02-28 | P1: 2017-03-31 | Q1: 2017-04-30 | R1: 2017-05-31 | S1: 2017-06-30 | T1: 2017-07-31 | U1: 2017-08-31 | V1: 2017-09-30 | W1: 2017-10-31 | X1: 2017-11-30 | Y1: 2017-12-31 | Z1: 2018-01-31 | AA1: 2018-02-28 | AB1: 2018-03-31 | AC1: 2018-04-30 | AD1: 2018-05-31 | AE1: 2018-06-30 | AF1: 2018-07-31 | AG1: 2018-08-31 | AH1: 2018-09-30 | AI1: 2018-10-31 | AJ1: 2018-11-30 | AK1: 2018-12-31 | AL1: 2019-01-31 | AM1: 2019-03-01 | AN1: 2019-03-31 | AO1: 2019-04-30 | AP1: 2019-05-31 | AQ1: 2019-06-30 | AR1: 2019-07-31 | AS1: 2019-08-31 | AT1: 2019-09-30 | AU1: 2019-10-31 | AV1: 2019-11-30 | AW1: 2019-12-31 | AX1: 2020-01-31 | AY1: 2020-02-28 | AZ1: 2020-03-31 | BA1: 2020-04-30 | BB1: 2020-05-31 | BC1: 2020-06-30 | BD1: 2020-07-31 | BE1: 2020-08-31 | BF1: 2020-09-30 | BG1: 2020-10-31 | BH1: 2020-11-30 | BI1: 2020-12-31 | BJ1: 2021-01-31 | BK1: 2021-02-28 | BL1: 2021-03-31 | BM1: 2021-04-30 | BN1: 2021-05-31 | BO1: 2021-06-30 | BP1: 2021-07-31 | BQ1: 2021-08-31 | BR1: 2021-09-30 | BS1: 2021-10-31 | BT1: 2021-11-30 | BU1: 2021-12-31 | BV1: 2022-01-31 | BW1: 2022-02-28 | BX1: 2022-03-31 | BY1: 2022-04-30 | BZ1: 2022-05-31 | CA1: 2022-06-30 | CB1: 2022-07-31 | CC1: 2022-08-31 | CD1: 2022-09-30 | CE1: 2022-10-31 | CF1: 2022-11-30 | CG1: 2022-12-31
A2: Opel Adam | B2: 145 | C2: 213 | D2: 261 | E2: 266 | F2: 291 | G2: 466 | H2: 397 | I2: 459 | J2: 375 | K2: 441 | L2: 218 | M2: 181 | N2: 174 | O2: 427 | P2: 389 | Q2: 344 | R2: 424 | S2: 347 | T2: 276 | U2: 459 | V2: 177 | W2: 149 | X2: 111 | Y2: 410 | Z2: 241 | AA2: 498 | AB2: 199 | AC2: 418 | AD2: 460 | AE2: 138 | AF2: 422 | AG2: 124 | AH2: 182 | AI2: 217 | AJ2: 273 | AK2: 467 | AL2: 402 | AM2: 211 | AN2: 213 | AO2: 297 | AP2: 496 | AQ2: 275 | AR2: 262 | AS2: 245 | AT2: 183 | AU2: 336 | AV2: 403 | AW2: 125 | AX2: 478 | AY2: 103 | AZ2: 488 | BA2: 330 | BB2: 175 | BC2: 167 | BD2: 491 | BE2: 454 | BF2: 111 | BG2: 159 | BH2: 443 | BI2: 289 | BJ2: 289 | BK2: 105 | BL2: 208 | BM2: 205 | BN2: 124 | BO2: 152 | BP2: 352 | BQ2: 331 | BR2: 175 | BS2: 453 | BT2: 262 | BU2: 492 | BV2: 157 | BW2: 357 | BX2: 410 | BY2: 452 | BZ2: 398 | CA2: 467 | CB2: 429 | CC2: 417 | CD2: 225 | CE2: 449 | CF2: 462 | CG2: 285
A3: Opel Admiral | B3: 470 | C3: 168 | D3: 341 | E3: 364 | F3: 103 | G3: 301 | H3: 246 | I3: 475 | J3: 467 | K3: 404 | L3: 281 | M3: 419 | N3: 435 | O3: 180 | P3: 217 | Q3: 169 | R3: 444 | S3: 105 | T3: 104 | U3: 217 | V3: 452 | W3: 188 | X3: 459 | Y3: 386 | Z3: 414 | AA3: 310 | AB3: 376 | AC3: 214 | AD3: 256 | AE3: 150 | AF3: 100 | AG3: 458 | AH3: 387 | AI3: 322 | AJ3: 249 | AK3: 456 | AL3: 425 | AM3: 500 | AN3: 310 | AO3: 424 | AP3: 287 | AQ3: 131 | AR3: 131 | AS3: 364 | AT3: 217 | AU3: 273 | AV3: 324 | AW3: 307 | AX3: 147 | AY3: 364 | AZ3: 363 | BA3: 130 | BB3: 151 | BC3: 228 | BD3: 187 | BE3: 216 | BF3: 341 | BG3: 445 | BH3: 122 | BI3: 263 | BJ3: 131 | BK3: 199 | BL3: 161 | BM3: 371 | BN3: 163 | BO3: 180 | BP3: 178 | BQ3: 195 | BR3: 158 | BS3: 121 | BT3: 454 | BU3: 119 | BV3: 371 | BW3: 330 | BX3: 104 | BY3: 403 | BZ3: 301 | CA3: 128 | CB3: 214 | CC3: 275 | CD3: 165 | CE3: 125 | CF3: 242 | CG3: 112
A4: Opel Agila | B4: 313 | C4: 147 | D4: 178 | E4: 386 | F4: 101 | G4: 308 | H4: 217 | I4: 123 | J4: 395 | K4: 334 | L4: 375 | M4: 241 | N4: 271 | O4: 456 | P4: 395 | Q4: 461 | R4: 258 | S4: 474 | T4: 389 | U4: 231 | V4: 310 | W4: 399 | X4: 130 | Y4: 426 | Z4: 427 | AA4: 281 | AB4: 293 | AC4: 327 | AD4: 277 | AE4: 425 | AF4: 465 | AG4: 261 | AH4: 419 | AI4: 250 | AJ4: 327 | AK4: 353 | AL4: 383 | AM4: 428 | AN4: 149 | AO4: 325 | AP4: 261 | AQ4: 439 | AR4: 179 | AS4: 266 | AT4: 192 | AU4: 286 | AV4: 488 | AW4: 144 | AX4: 230 | AY4: 192 | AZ4: 398 | BA4: 218 | BB4: 343 | BC4: 447 | BD4: 353 | BE4: 139 | BF4: 200 | BG4: 322 | BH4: 447 | BI4: 172 | BJ4: 484 | BK4: 251 | BL4: 160 | BM4: 390 | BN4: 256 | BO4: 427 | BP4: 454 | BQ4: 143 | BR4: 432 | BS4: 279 | BT4: 189 | BU4: 427 | BV4: 256 | BW4: 344 | BX4: 264 | BY4: 492 | BZ4: 317 | CA4: 125 | CB4: 420 | CC4: 248 | CD4: 324 | CE4: 472 | CF4: 135 | CG4: 340
A5: Opel Ampera | B5: 403 | C5: 315 | D5: 337 | E5: 480 | F5: 402 | G5: 138 | H5: 152 | I5: 276 | J5: 272 | K5: 187 | L5: 362 | M5: 451 | N5: 155 | O5: 177 | P5: 390 | Q5: 420 | R5: 223 | S5: 278 | T5: 203 | U5: 179 | V5: 190 | W5: 385 | X5: 351 | Y5: 431 | Z5: 458 | AA5: 428 | AB5: 362 | AC5: 458 | AD5: 472 | AE5: 140 | AF5: 294 | AG5: 473 | AH5: 298 | AI5: 257 | AJ5: 460 | AK5: 477 | AL5: 316 | AM5: 217 | AN5: 267 | AO5: 461 | AP5: 301 | AQ5: 242 | AR5: 178 | AS5: 352 | AT5: 331 | AU5: 333 | AV5: 152 | AW5: 387 | AX5: 346 | AY5: 350 | AZ5: 277 | BA5: 491 | BB5: 182 | BC5: 131 | BD5: 458 | BE5: 265 | BF5: 283 | BG5: 478 | BH5: 274 | BI5: 217 | BJ5: 482 | BK5: 201 | BL5: 264 | BM5: 131 | BN5: 322 | BO5: 292 | BP5: 499 | BQ5: 138 | BR5: 429 | BS5: 129 | BT5: 469 | BU5: 288 | BV5: 109 | BW5: 278 | BX5: 490 | BY5: 110 | BZ5: 477 | CA5: 315 | CB5: 494 | CC5: 319 | CD5: 490 | CE5: 326 | CF5: 344 | CG5: 129
A6: Opel Antara | B6: 148 | C6: 265 | D6: 109 | E6: 253 | F6: 261 | G6: 306 | H6: 437 | I6: 138 | J6: 183 | K6: 406 | L6: 116 | M6: 140 | N6: 413 | O6: 442 | P6: 303 | Q6: 444 | R6: 259 | S6: 196 | T6: 117 | U6: 354 | V6: 190 | W6: 287 | X6: 472 | Y6: 113 | Z6: 169 | AA6: 148 | AB6: 387 | AC6: 412 | AD6: 309 | AE6: 312 | AF6: 253 | AG6: 289 | AH6: 276 | AI6: 161 | AJ6: 123 | AK6: 300 | AL6: 494 | AM6: 105 | AN6: 267 | AO6: 416 | AP6: 325 | AQ6: 325 | AR6: 473 | AS6: 358 | AT6: 463 | AU6: 288 | AV6: 177 | AW6: 452 | AX6: 356 | AY6: 199 | AZ6: 491 | BA6: 158 | BB6: 286 | BC6: 136 | BD6: 315 | BE6: 470 | BF6: 200 | BG6: 203 | BH6: 135 | BI6: 489 | BJ6: 154 | BK6: 378 | BL6: 453 | BM6: 427 | BN6: 115 | BO6: 486 | BP6: 466 | BQ6: 340 | BR6: 347 | BS6: 337 | BT6: 103 | BU6: 159 | BV6: 122 | BW6: 181 | BX6: 327 | BY6: 254 | BZ6: 346 | CA6: 206 | CB6: 210 | CC6: 158 | CD6: 436 | CE6: 267 | CF6: 411 | CG6: 197
A7: Opel Ascona | B7: 180 | C7: 118 | D7: 356 | E7: 153 | F7: 410 | G7: 273 | H7: 228 | I7: 163 | J7: 263 | K7: 337 | L7: 125 | M7: 367 | N7: 346 | O7: 247 | P7: 105 | Q7: 214 | R7: 401 | S7: 345 | T7: 344 | U7: 143 | V7: 401 | W7: 334 | X7: 152 | Y7: 158 | Z7: 255 | AA7: 357 | AB7: 481 | AC7: 378 | AD7: 495 | AE7: 301 | AF7: 485 | AG7: 273 | AH7: 425 | AI7: 243 | AJ7: 218 | AK7: 113 | AL7: 196 | AM7: 111 | AN7: 480 | AO7: 202 | AP7: 217 | AQ7: 260 | AR7: 125 | AS7: 462 | AT7: 432 | AU7: 411 | AV7: 112 | AW7: 386 | AX7: 470 | AY7: 198 | AZ7: 304 | BA7: 470 | BB7: 406 | BC7: 171 | BD7: 416 | BE7: 140 | BF7: 218 | BG7: 304 | BH7: 302 | BI7: 481 | BJ7: 343 | BK7: 445 | BL7: 441 | BM7: 131 | BN7: 181 | BO7: 486 | BP7: 265 | BQ7: 440 | BR7: 496 | BS7: 260 | BT7: 438 | BU7: 414 | BV7: 365 | BW7: 107 | BX7: 478 | BY7: 211 | BZ7: 114 | CA7: 409 | CB7: 178 | CC7: 273 | CD7: 375 | CE7: 302 | CF7: 162 | CG7: 130
A8: Opel Astra | B8: 418 | C8: 248 | D8: 411 | E8: 403 | F8: 224 | G8: 201 | H8: 108 | I8: 333 | J8: 369 | K8: 390 | L8: 426 | M8: 275 | N8: 357 | O8: 119 | P8: 153 | Q8: 320 | R8: 180 | S8: 495 | T8: 163 | U8: 438 | V8: 180 | W8: 357 | X8: 201 | Y8: 165 | Z8: 482 | AA8: 455 | AB8: 308 | AC8: 291 | AD8: 217 | AE8: 386 | AF8: 489 | AG8: 168 | AH8: 492 | AI8: 239 | AJ8: 299 | AK8: 247 | AL8: 155 | AM8: 484 | AN8: 176 | AO8: 397 | AP8: 264 | AQ8: 451 | AR8: 237 | AS8: 486 | AT8: 405 | AU8: 398 | AV8: 480 | AW8: 293 | AX8: 384 | AY8: 112 | AZ8: 412 | BA8: 453 | BB8: 188 | BC8: 185 | BD8: 247 | BE8: 142 | BF8: 421 | BG8: 193 | BH8: 276 | BI8: 109 | BJ8: 259 | BK8: 428 | BL8: 132 | BM8: 263 | BN8: 177 | BO8: 170 | BP8: 490 | BQ8: 349 | BR8: 188 | BS8: 142 | BT8: 426 | BU8: 260 | BV8: 209 | BW8: 219 | BX8: 462 | BY8: 216 | BZ8: 184 | CA8: 158 | CB8: 336 | CC8: 445 | CD8: 387 | CE8: 102 | CF8: 180 | CG8: 114
A9: Opel Astra Cabrio | B9: 286 | C9: 249 | D9: 422 | E9: 481 | F9: 125 | G9: 348 | H9: 458 | I9: 314 | J9: 272 | K9: 288 | L9: 246 | M9: 223 | N9: 419 | O9: 168 | P9: 431 | Q9: 344 | R9: 166 | S9: 364 | T9: 477 | U9: 419 | V9: 364 | W9: 329 | X9: 222 | Y9: 147 | Z9: 444 | AA9: 153 | AB9: 360 | AC9: 454 | AD9: 198 | AE9: 216 | AF9: 264 | AG9: 488 | AH9: 495 | AI9: 103 | AJ9: 329 | AK9: 131 | AL9: 389 | AM9: 260 | AN9: 112 | AO9: 204 | AP9: 141 | AQ9: 490 | AR9: 319 | AS9: 345 | AT9: 281 | AU9: 454 | AV9: 246 | AW9: 318 | AX9: 148 | AY9: 335 | AZ9: 474 | BA9: 428 | BB9: 202 | BC9: 266 | BD9: 387 | BE9: 401 | BF9: 128 | BG9: 279 | BH9: 324 | BI9: 489 | BJ9: 385 | BK9: 348 | BL9: 181 | BM9: 386 | BN9: 235 | BO9: 157 | BP9: 204 | BQ9: 128 | BR9: 260 | BS9: 192 | BT9: 270 | BU9: 103 | BV9: 137 | BW9: 230 | BX9: 234 | BY9: 492 | BZ9: 127 | CA9: 237 | CB9: 457 | CC9: 172 | CD9: 251 | CE9: 267 | CF9: 461 | CG9: 413
A10: Opel Astra Coupe Bertone | B10: 276 | C10: 382 | D10: 373 | E10: 413 | F10: 340 | G10: 122 | H10: 249 | I10: 441 | J10: 372 | K10: 280 | L10: 249 | M10: 410 | N10: 138 | O10: 131 | P10: 237 | Q10: 412 | R10: 368 | S10: 244 | T10: 297 | U10: 284 | V10: 315 | W10: 421 | X10: 498 | Y10: 274 | Z10: 379 | AA10: 309 | AB10: 380 | AC10: 122 | AD10: 492 | AE10: 478 | AF10: 444 | AG10: 330 | AH10: 433 | AI10: 456 | AJ10: 441 | AK10: 178 | AL10: 446 | AM10: 473 | AN10: 448 | AO10: 256 | AP10: 368 | AQ10: 376 | AR10: 479 | AS10: 426 | AT10: 373 | AU10: 225 | AV10: 430 | AW10: 407 | AX10: 475 | AY10: 406 | AZ10: 336 | BA10: 457 | BB10: 425 | BC10: 324 | BD10: 469 | BE10: 363 | BF10: 362 | BG10: 186 | BH10: 235 | BI10: 137 | BJ10: 417 | BK10: 200 | BL10: 233 | BM10: 329 | BN10: 387 | BO10: 257 | BP10: 438 | BQ10: 387 | BR10: 199 | BS10: 500 | BT10: 469 | BU10: 157 | BV10: 468 | BW10: 487 | BX10: 173 | BY10: 364 | BZ10: 293 | CA10: 209 | CB10: 295 | CC10: 277 | CD10: 426 | CE10: 290 | CF10: 303 | CG10: 279
A11: Opel Astra GTC | B11: 419 | C11: 233 | D11: 447 | E11: 392 | F11: 116 | G11: 296 | H11: 231 | I11: 453 | J11: 297 | K11: 421 | L11: 371 | M11: 354 | N11: 332 | O11: 392 | P11: 158 | Q11: 179 | R11: 216 | S11: 103 | T11: 241 | U11: 308 | V11: 489 | W11: 138 | X11: 140 | Y11: 482 | Z11: 228 | AA11: 327 | AB11: 346 | AC11: 107 | AD11: 412 | AE11: 406 | AF11: 449 | AG11: 132 | AH11: 100 | AI11: 317 | AJ11: 296 | AK11: 263 | AL11: 450 | AM11: 434 | AN11: 355 | AO11: 343 | AP11: 445 | AQ11: 315 | AR11: 495 | AS11: 195 | AT11: 165 | AU11: 291 | AV11: 234 | AW11: 106 | AX11: 377 | AY11: 199 | AZ11: 181 | BA11: 405 | BB11: 269 | BC11: 445 | BD11: 116 | BE11: 378 | BF11: 189 | BG11: 474 | BH11: 207 | BI11: 107 | BJ11: 218 | BK11: 250 | BL11: 179 | BM11: 184 | BN11: 248 | BO11: 255 | BP11: 192 | BQ11: 104 | BR11: 390 | BS11: 373 | BT11: 196 | BU11: 122 | BV11: 458 | BW11: 292 | BX11: 189 | BY11: 262 | BZ11: 489 | CA11: 139 | CB11: 178 | CC11: 305 | CD11: 134 | CE11: 477 | CF11: 377 | CG11: 197
A12: Opel Astra OPC | B12: 371 | C12: 431 | D12: 436 | E12: 312 | F12: 146 | G12: 197 | H12: 343 | I12: 200 | J12: 365 | K12: 156 | L12: 164 | M12: 131 | N12: 204 | O12: 112 | P12: 305 | Q12: 376 | R12: 149 | S12: 109 | T12: 280 | U12: 216 | V12: 120 | W12: 167 | X12: 267 | Y12: 173 | Z12: 251 | AA12: 424 | AB12: 295 | AC12: 205 | AD12: 317 | AE12: 203 | AF12: 299 | AG12: 156 | AH12: 363 | AI12: 109 | AJ12: 480 | AK12: 239 | AL12: 292 | AM12: 248 | AN12: 250 | AO12: 275 | AP12: 411 | AQ12: 149 | AR12: 118 | AS12: 274 | AT12: 266 | AU12: 158 | AV12: 407 | AW12: 313 | AX12: 337 | AY12: 182 | AZ12: 478 | BA12: 153 | BB12: 250 | BC12: 499 | BD12: 191 | BE12: 223 | BF12: 494 | BG12: 243 | BH12: 436 | BI12: 297 | BJ12: 284 | BK12: 346 | BL12: 327 | BM12: 409 | BN12: 460 | BO12: 167 | BP12: 105 | BQ12: 429 | BR12: 144 | BS12: 330 | BT12: 355 | BU12: 360 | BV12: 326 | BW12: 221 | BX12: 487 | BY12: 361 | BZ12: 417 | CA12: 207 | CB12: 175 | CC12: 455 | CD12: 193 | CE12: 110 | CF12: 426 | CG12: 139
A13: Opel Astra Twin Top | B13: 398 | C13: 276 | D13: 453 | E13: 163 | F13: 117 | G13: 211 | H13: 142 | I13: 258 | J13: 235 | K13: 495 | L13: 145 | M13: 379 | N13: 291 | O13: 285 | P13: 299 | Q13: 316 | R13: 341 | S13: 238 | T13: 435 | U13: 488 | V13: 376 | W13: 414 | X13: 161 | Y13: 417 | Z13: 295 | AA13: 373 | AB13: 464 | AC13: 319 | AD13: 460 | AE13: 452 | AF13: 122 | AG13: 141 | AH13: 204 | AI13: 212 | AJ13: 407 | AK13: 213 | AL13: 321 | AM13: 260 | AN13: 208 | AO13: 194 | AP13: 408 | AQ13: 492 | AR13: 102 | AS13: 307 | AT13: 261 | AU13: 309 | AV13: 284 | AW13: 453 | AX13: 407 | AY13: 178 | AZ13: 313 | BA13: 151 | BB13: 486 | BC13: 345 | BD13: 424 | BE13: 497 | BF13: 496 | BG13: 234 | BH13: 170 | BI13: 132 | BJ13: 164 | BK13: 334 | BL13: 138 | BM13: 180 | BN13: 462 | BO13: 209 | BP13: 374 | BQ13: 223 | BR13: 279 | BS13: 500 | BT13: 177 | BU13: 184 | BV13: 487 | BW13: 143 | BX13: 489 | BY13: 295 | BZ13: 303 | CA13: 437 | CB13: 364 | CC13: 203 | CD13: 246 | CE13: 253 | CF13: 470 | CG13: 457
A14: Opel Bedford Blitz | B14: 338 | C14: 214 | D14: 388 | E14: 476 | F14: 123 | G14: 266 | H14: 470 | I14: 491 | J14: 118 | K14: 196 | L14: 238 | M14: 183 | N14: 394 | O14: 201 | P14: 217 | Q14: 404 | R14: 330 | S14: 190 | T14: 392 | U14: 416 | V14: 340 | W14: 124 | X14: 395 | Y14: 450 | Z14: 362 | AA14: 258 | AB14: 359 | AC14: 479 | AD14: 169 | AE14: 286 | AF14: 292 | AG14: 434 | AH14: 179 | AI14: 458 | AJ14: 483 | AK14: 303 | AL14: 401 | AM14: 278 | AN14: 383 | AO14: 339 | AP14: 297 | AQ14: 431 | AR14: 156 | AS14: 281 | AT14: 100 | AU14: 347 | AV14: 288 | AW14: 427 | AX14: 116 | AY14: 242 | AZ14: 440 | BA14: 190 | BB14: 156 | BC14: 197 | BD14: 283 | BE14: 334 | BF14: 360 | BG14: 160 | BH14: 401 | BI14: 250 | BJ14: 207 | BK14: 258 | BL14: 210 | BM14: 161 | BN14: 265 | BO14: 371 | BP14: 407 | BQ14: 412 | BR14: 424 | BS14: 249 | BT14: 295 | BU14: 211 | BV14: 105 | BW14: 198 | BX14: 370 | BY14: 116 | BZ14: 418 | CA14: 119 | CB14: 128 | CC14: 355 | CD14: 494 | CE14: 430 | CF14: 431 | CG14: 177
A15: Opel Calibra | B15: 497 | C15: 429 | D15: 465 | E15: 287 | F15: 413 | G15: 417 | H15: 377 | I15: 290 | J15: 488 | K15: 205 | L15: 280 | M15: 165 | N15: 123 | O15: 204 | P15: 454 | Q15: 338 | R15: 486 | S15: 129 | T15: 245 | U15: 330 | V15: 253 | W15: 453 | X15: 184 | Y15: 407 | Z15: 268 | AA15: 364 | AB15: 355 | AC15: 449 | AD15: 390 | AE15: 113 | AF15: 265 | AG15: 197 | AH15: 247 | AI15: 339 | AJ15: 239 | AK15: 389 | AL15: 255 | AM15: 393 | AN15: 300 | AO15: 230 | AP15: 393 | AQ15: 286 | AR15: 192 | AS15: 366 | AT15: 450 | AU15: 239 | AV15: 286 | AW15: 146 | AX15: 340 | AY15: 438 | AZ15: 382 | BA15: 239 | BB15: 106 | BC15: 241 | BD15: 192 | BE15: 107 | BF15: 226 | BG15: 436 | BH15: 392 | BI15: 497 | BJ15: 206 | BK15: 406 | BL15: 214 | BM15: 227 | BN15: 300 | BO15: 163 | BP15: 465 | BQ15: 301 | BR15: 308 | BS15: 176 | BT15: 318 | BU15: 410 | BV15: 186 | BW15: 122 | BX15: 365 | BY15: 275 | BZ15: 143 | CA15: 271 | CB15: 267 | CC15: 432 | CD15: 218 | CE15: 164 | CF15: 184 | CG15: 134
A16: Opel Combo | B16: 146 | C16: 308 | D16: 180 | E16: 220 | F16: 277 | G16: 474 | H16: 335 | I16: 407 | J16: 320 | K16: 253 | L16: 105 | M16: 232 | N16: 135 | O16: 170 | P16: 478 | Q16: 443 | R16: 282 | S16: 461 | T16: 252 | U16: 410 | V16: 491 | W16: 126 | X16: 414 | Y16: 294 | Z16: 209 | AA16: 336 | AB16: 208 | AC16: 279 | AD16: 120 | AE16: 303 | AF16: 206 | AG16: 175 | AH16: 247 | AI16: 375 | AJ16: 329 | AK16: 240 | AL16: 411 | AM16: 372 | AN16: 341 | AO16: 313 | AP16: 247 | AQ16: 116 | AR16: 134 | AS16: 378 | AT16: 287 | AU16: 354 | AV16: 298 | AW16: 484 | AX16: 211 | AY16: 159 | AZ16: 307 | BA16: 244 | BB16: 190 | BC16: 403 | BD16: 324 | BE16: 222 | BF16: 235 | BG16: 462 | BH16: 212 | BI16: 232 | BJ16: 458 | BK16: 235 | BL16: 500 | BM16: 121 | BN16: 184 | BO16: 426 | BP16: 495 | BQ16: 386 | BR16: 312 | BS16: 350 | BT16: 225 | BU16: 339 | BV16: 363 | BW16: 413 | BX16: 363 | BY16: 375 | BZ16: 452 | CA16: 387 | CB16: 363 | CC16: 217 | CD16: 195 | CE16: 348 | CF16: 117 | CG16: 406
A17: Opel Commodore | B17: 444 | C17: 460 | D17: 434 | E17: 134 | F17: 374 | G17: 484 | H17: 476 | I17: 419 | J17: 185 | K17: 107 | L17: 376 | M17: 395 | N17: 496 | O17: 260 | P17: 497 | Q17: 167 | R17: 349 | S17: 198 | T17: 458 | U17: 173 | V17: 445 | W17: 381 | X17: 421 | Y17: 147 | Z17: 439 | AA17: 347 | AB17: 413 | AC17: 180 | AD17: 216 | AE17: 331 | AF17: 180 | AG17: 168 | AH17: 350 | AI17: 157 | AJ17: 425 | AK17: 426 | AL17: 211 | AM17: 120 | AN17: 337 | AO17: 371 | AP17: 159 | AQ17: 194 | AR17: 149 | AS17: 263 | AT17: 294 | AU17: 408 | AV17: 447 | AW17: 135 | AX17: 336 | AY17: 443 | AZ17: 359 | BA17: 401 | BB17: 184 | BC17: 279 | BD17: 425 | BE17: 246 | BF17: 482 | BG17: 300 | BH17: 141 | BI17: 398 | BJ17: 132 | BK17: 412 | BL17: 480 | BM17: 108 | BN17: 426 | BO17: 245 | BP17: 122 | BQ17: 138 | BR17: 121 | BS17: 409 | BT17: 360 | BU17: 142 | BV17: 264 | BW17: 301 | BX17: 204 | BY17: 307 | BZ17: 217 | CA17: 140 | CB17: 230 | CC17: 426 | CD17: 450 | CE17: 332 | CF17: 253 | CG17: 441
A18: Opel Corsa | B18: 293 | C18: 166 | D18: 274 | E18: 179 | F18: 251 | G18: 226 | H18: 389 | I18: 291 | J18: 325 | K18: 484 | L18: 135 | M18: 299 | N18: 300 | O18: 442 | P18: 228 | Q18: 133 | R18: 263 | S18: 386 | T18: 440 | U18: 141 | V18: 341 | W18: 346 | X18: 155 | Y18: 284 | Z18: 223 | AA18: 158 | AB18: 316 | AC18: 271 | AD18: 288 | AE18: 228 | AF18: 159 | AG18: 496 | AH18: 133 | AI18: 326 | AJ18: 241 | AK18: 444 | AL18: 417 | AM18: 261 | AN18: 302 | AO18: 248 | AP18: 250 | AQ18: 360 | AR18: 485 | AS18: 273 | AT18: 433 | AU18: 287 | AV18: 189 | AW18: 277 | AX18: 307 | AY18: 420 | AZ18: 157 | BA18: 344 | BB18: 314 | BC18: 139 | BD18: 192 | BE18: 328 | BF18: 346 | BG18: 213 | BH18: 218 | BI18: 160 | BJ18: 335 | BK18: 346 | BL18: 452 | BM18: 415 | BN18: 233 | BO18: 371 | BP18: 249 | BQ18: 250 | BR18: 212 | BS18: 157 | BT18: 453 | BU18: 179 | BV18: 358 | BW18: 169 | BX18: 434 | BY18: 150 | BZ18: 249 | CA18: 470 | CB18: 428 | CC18: 417 | CD18: 162 | CE18: 262 | CF18: 120 | CG18: 489
A19: Opel Corsa OPC | B19: 177 | C19: 392 | D19: 315 | E19: 224 | F19: 124 | G19: 148 | H19: 390 | I19: 314 | J19: 326 | K19: 472 | L19: 477 | M19: 126 | N19: 297 | O19: 329 | P19: 237 | Q19: 166 | R19: 389 | S19: 429 | T19: 107 | U19: 263 | V19: 193 | W19: 208 | X19: 491 | Y19: 455 | Z19: 498 | AA19: 239 | AB19: 180 | AC19: 439 | AD19: 386 | AE19: 476 | AF19: 184 | AG19: 474 | AH19: 286 | AI19: 482 | AJ19: 268 | AK19: 306 | AL19: 420 | AM19: 309 | AN19: 406 | AO19: 219 | AP19: 327 | AQ19: 180 | AR19: 284 | AS19: 339 | AT19: 253 | AU19: 413 | AV19: 155 | AW19: 404 | AX19: 125 | AY19: 152 | AZ19: 333 | BA19: 408 | BB19: 106 | BC19: 415 | BD19: 374 | BE19: 196 | BF19: 478 | BG19: 373 | BH19: 146 | BI19: 397 | BJ19: 482 | BK19: 203 | BL19: 289 | BM19: 229 | BN19: 459 | BO19: 120 | BP19: 412 | BQ19: 109 | BR19: 346 | BS19: 265 | BT19: 442 | BU19: 150 | BV19: 382 | BW19: 270 | BX19: 110 | BY19: 306 | BZ19: 306 | CA19: 369 | CB19: 340 | CC19: 489 | CD19: 238 | CE19: 334 | CF19: 315 | CG19: 315
A20: Opel Diplomat | B20: 233 | C20: 324 | D20: 392 | E20: 311 | F20: 244 | G20: 462 | H20: 458 | I20: 428 | J20: 338 | K20: 417 | L20: 134 | M20: 285 | N20: 446 | O20: 123 | P20: 375 | Q20: 242 | R20: 483 | S20: 447 | T20: 113 | U20: 304 | V20: 225 | W20: 102 | X20: 281 | Y20: 165 | Z20: 173 | AA20: 187 | AB20: 440 | AC20: 455 | AD20: 391 | AE20: 432 | AF20: 178 | AG20: 435 | AH20: 177 | AI20: 489 | AJ20: 153 | AK20: 265 | AL20: 393 | AM20: 442 | AN20: 331 | AO20: 375 | AP20: 421 | AQ20: 370 | AR20: 101 | AS20: 130 | AT20: 312 | AU20: 483 | AV20: 250 | AW20: 155 | AX20: 441 | AY20: 207 | AZ20: 402 | BA20: 470 | BB20: 413 | BC20: 409 | BD20: 356 | BE20: 472 | BF20: 124 | BG20: 294 | BH20: 146 | BI20: 412 | BJ20: 448 | BK20: 381 | BL20: 198 | BM20: 166 | BN20: 238 | BO20: 122 | BP20: 165 | BQ20: 397 | BR20: 210 | BS20: 128 | BT20: 180 | BU20: 467 | BV20: 304 | BW20: 455 | BX20: 123 | BY20: 348 | BZ20: 189 | CA20: 418 | CB20: 329 | CC20: 459 | CD20: 400 | CE20: 473 | CF20: 190 | CG20: 398
A21: Opel Frontera A | B21: 355 | C21: 409 | D21: 123 | E21: 408 | F21: 259 | G21: 491 | H21: 131 | I21: 351 | J21: 138 | K21: 471 | L21: 300 | M21: 162 | N21: 436 | O21: 271 | P21: 359 | Q21: 222 | R21: 178 | S21: 445 | T21: 332 | U21: 462 | V21: 370 | W21: 387 | X21: 198 | Y21: 363 | Z21: 190 | AA21: 447 | AB21: 177 | AC21: 385 | AD21: 134 | AE21: 348 | AF21: 253 | AG21: 287 | AH21: 352 | AI21: 147 | AJ21: 267 | AK21: 415 | AL21: 231 | AM21: 294 | AN21: 254 | AO21: 301 | AP21: 293 | AQ21: 440 | AR21: 282 | AS21: 496 | AT21: 162 | AU21: 175 | AV21: 106 | AW21: 116 | AX21: 130 | AY21: 258 | AZ21: 484 | BA21: 430 | BB21: 405 | BC21: 125 | BD21: 204 | BE21: 153 | BF21: 211 | BG21: 241 | BH21: 329 | BI21: 103 | BJ21: 163 | BK21: 475 | BL21: 425 | BM21: 279 | BN21: 172 | BO21: 422 | BP21: 149 | BQ21: 458 | BR21: 362 | BS21: 279 | BT21: 360 | BU21: 208 | BV21: 215 | BW21: 432 | BX21: 476 | BY21: 473 | BZ21: 199 | CA21: 240 | CB21: 304 | CC21: 103 | CD21: 412 | CE21: 175 | CF21: 183 | CG21: 481
A22: Opel Frontera B | B22: 427 | C22: 224 | D22: 221 | E22: 164 | F22: 205 | G22: 459 | H22: 191 | I22: 186 | J22: 299 | K22: 222 | L22: 413 | M22: 105 | N22: 380 | O22: 339 | P22: 262 | Q22: 355 | R22: 317 | S22: 490 | T22: 232 | U22: 322 | V22: 103 | W22: 195 | X22: 346 | Y22: 467 | Z22: 375 | AA22: 306 | AB22: 416 | AC22: 169 | AD22: 237 | AE22: 319 | AF22: 167 | AG22: 358 | AH22: 311 | AI22: 422 | AJ22: 374 | AK22: 306 | AL22: 128 | AM22: 385 | AN22: 106 | AO22: 107 | AP22: 317 | AQ22: 274 | AR22: 379 | AS22: 184 | AT22: 101 | AU22: 226 | AV22: 258 | AW22: 265 | AX22: 384 | AY22: 352 | AZ22: 459 | BA22: 104 | BB22: 154 | BC22: 409 | BD22: 374 | BE22: 223 | BF22: 486 | BG22: 168 | BH22: 126 | BI22: 453 | BJ22: 453 | BK22: 362 | BL22: 246 | BM22: 363 | BN22: 454 | BO22: 267 | BP22: 164 | BQ22: 345 | BR22: 345 | BS22: 250 | BT22: 217 | BU22: 469 | BV22: 188 | BW22: 157 | BX22: 165 | BY22: 136 | BZ22: 380 | CA22: 373 | CB22: 429 | CC22: 222 | CD22: 348 | CE22: 102 | CF22: 417 | CG22: 200
